Workbook

Sheet RangeObjects
A1: Rng_Item( -1, 0 ) | B1: Rng_Item( -1, 1 ) | C1: Rng_Item( -1, 2 ) | D1: Rng_Item( -1, 3 )
A2: Rng_Item( 0, 0 ) | B2: Rng_Item( 0, 1 ) | C2: Rng_Item( 0, 2 ) | D2: Rng_Item( 0, 3 )
A3: Rng_Item( 1, 0 ) | B3: RngItm(1, "A") and RngIem( 1 ) | C3: RngItm(1, "B") and RngIem( 2 ) | D3: Rng_Item( 1, 3 )
A4: Rng_Item( 2, 0 ) | B4: RngItm(2, "A") and RngIem( 3 ) | C4: RngItm(2, "B") and RngIem( 4 ) | D4: Rng_Item( 2, 3 )
A5: Rng_Item( 3, 0 ) | B5: RngItm(3, "A") and RngIem( 5 ) | C5: RngItm(3, "B") and RngIem( 6 ) | D5: Rng_Item( 3, 3 )
C27: =C4 -> RngItm(2, "B") and RngIem( 4 )

Sheet ProperTease
A1: 2 | B1: =A$1 -> 2

Sheet MacroRecorder
A1: 2 | C1: R1C1-Style Notation And The FormulaR1C1 Property In Excel VBA: Tutorial And Examples
C3: Visit this post in PowerSpreadsheets.com now
A5: =XFD1048576 -> 0 | B5: 1
B6: 2 | C6: =SUM(C$5,$B6) -> 2 | D6: 2 | E6: 2 | F6: 2 | G6: 2 | H6: 2 | I6: 2 | J6: 2 | K6: 2 | L6: 2 | M6: =SUM(M$5,$B6) -> 2 | N6: 2 | O6: 2 | P6: 2 | Q6: 2 | R6: 2 | S6: 2 | T6: 2 | U6: 2 | V6: 2 | W6: =SUM(W$5,$B6) -> 2 | X6: 2 | Y6: 2 | Z6: 2 | AA6: 2 | AB6: 2 | AC6: 2 | AD6: 2 | AE6: 2 | AF6: 2 | AG6: =SUM(AG$5,$B6) -> 2 | AH6: 2 | AI6: 2 | AJ6: 2 | AK6: 2 | AL6: 2 | AM6: 2 | AN6: 2 | AO6: 2 | AP6: 2 | AQ6: =SUM(AQ$5,$B6) -> 2 | AR6: 2 | AS6: 2 | AT6: 2 | AU6: 2 | AV6: 2 | AW6: 2 | AX6: 2 | AY6: 2 | AZ6: 2 | BA6: =SUM(BA$5,$B6) -> 2 | BB6: 2 | BC6: 2 | BD6: 2 | BE6: 2 | BF6: 2 | BG6: 2 | BH6: 2 | BI6: 2 | BJ6: 2 | BK6: =SUM(BK$5,$B6) -> 2 | BL6: 2 | BM6: 2 | BN6: 2 | BO6: 2 | BP6: 2 | BQ6: 2 | BR6: 2 | BS6: 2 | BT6: 2 | BU6: =SUM(BU$5,$B6) -> 2 | BV6: 2 | BW6: 2 | BX6: 2 | BY6: 2 | BZ6: 2 | CA6: 2 | CB6: 2 | CC6: 2 | CD6: 2 | CE6: =SUM(CE$5,$B6) -> 2 | CF6: 2 | CG6: 2 | CH6: 2 | CI6: 2 | CJ6: 2 | CK6: 2 | CL6: 2 | CM6: 2 | CN6: 2 | CO6: =SUM(CO$5,$B6) -> 2 | CP6: 2 | CQ6: 2 | CR6: 2 | CS6: 2 | CT6: 2 | CU6: 2 | CV6: 2 | CW6: 2 | CX6: 2
B7: 3 | C7: 3 | D7: 3 | E7: 3 | F7: 3 | G7: 3 | H7: 3 | I7: 3 | J7: 3 | K7: 3 | L7: 3 | M7: 3 | N7: 3 | O7: 3 | P7: 3 | Q7: 3 | R7: 3 | S7: 3 | T7: 3 | U7: 3 | V7: 3 | W7: 3 | X7: 3 | Y7: 3 | Z7: 3 | AA7: 3 | AB7: 3 | AC7: 3 | AD7: 3 | AE7: 3 | AF7: 3 | AG7: 3 | AH7: 3 | AI7: 3 | AJ7: 3 | AK7: 3 | AL7: 3 | AM7: 3 | AN7: 3 | AO7: 3 | AP7: 3 | AQ7: 3 | AR7: 3 | AS7: 3 | AT7: 3 | AU7: 3 | AV7: 3 | AW7: 3 | AX7: 3 | AY7: 3 | AZ7: 3 | BA7: 3 | BB7: 3 | BC7: 3 | BD7: 3 | BE7: 3 | BF7: 3 | BG7: 3 | BH7: 3 | BI7: 3 | BJ7: 3 | BK7: 3 | BL7: 3 | BM7: 3 | BN7: 3 | BO7: 3 | BP7: 3 | BQ7: 3 | BR7: 3 | BS7: 3 | BT7: 3 | BU7: 3 | BV7: 3 | BW7: 3 | BX7: 3 | BY7: 3 | BZ7: 3 | CA7: 3 | CB7: 3 | CC7: 3 | CD7: 3 | CE7: 3 | CF7: 3 | CG7: 3 | CH7: 3 | CI7: 3 | CJ7: 3 | CK7: 3 | CL7: 3 | CM7: 3 | CN7: 3 | CO7: 3 | CP7: 3 | CQ7: 3 | CR7: 3 | CS7: 3 | CT7: 3 | CU7: 3 | CV7: 3 | CW7: 3 | CX7: 3
B8: 4 | C8: 4 | D8: 4 | E8: 4 | F8: 4 | G8: 4 | H8: 4 | I8: 4 | J8: 4 | K8: 4 | L8: 4 | M8: 4 | N8: 4 | O8: 4 | P8: 4 | Q8: 4 | R8: 4 | S8: 4 | T8: 4 | U8: 4 | V8: 4 | W8: 4 | X8: 4 | Y8: 4 | Z8: 4 | AA8: 4 | AB8: 4 | AC8: 4 | AD8: 4 | AE8: 4 | AF8: 4 | AG8: 4 | AH8: 4 | AI8: 4 | AJ8: 4 | AK8: 4 | AL8: 4 | AM8: 4 | AN8: 4 | AO8: 4 | AP8: 4 | AQ8: 4 | AR8: 4 | AS8: 4 | AT8: 4 | AU8: 4 | AV8: 4 | AW8: 4 | AX8: 4 | AY8: 4 | AZ8: 4 | BA8: 4 | BB8: 4 | BC8: 4 | BD8: 4 | BE8: 4 | BF8: 4 | BG8: 4 | BH8: 4 | BI8: 4 | BJ8: 4 | BK8: 4 | BL8: 4 | BM8: 4 | BN8: 4 | BO8: 4 | BP8: 4 | BQ8: 4 | BR8: 4 | BS8: 4 | BT8: 4 | BU8: 4 | BV8: 4 | BW8: 4 | BX8: 4 | BY8: 4 | BZ8: 4 | CA8: 4 | CB8: 4 | CC8: 4 | CD8: 4 | CE8: 4 | CF8: 4 | CG8: 4 | CH8: 4 | CI8: 4 | CJ8: 4 | CK8: 4 | CL8: 4 | CM8: 4 | CN8: 4 | CO8: 4 | CP8: 4 | CQ8: 4 | CR8: 4 | CS8: 4 | CT8: 4 | CU8: 4 | CV8: 4 | CW8: 4 | CX8: 4
B9: 5 | C9: 5 | D9: 5 | E9: 5 | F9: 5 | G9: 5 | H9: 5 | I9: 5 | J9: 5 | K9: 5 | L9: 5 | M9: 5 | N9: 5 | O9: 5 | P9: 5 | Q9: 5 | R9: 5 | S9: 5 | T9: 5 | U9: 5 | V9: 5 | W9: 5 | X9: 5 | Y9: 5 | Z9: 5 | AA9: 5 | AB9: 5 | AC9: 5 | AD9: 5 | AE9: 5 | AF9: 5 | AG9: 5 | AH9: 5 | AI9: 5 | AJ9: 5 | AK9: 5 | AL9: 5 | AM9: 5 | AN9: 5 | AO9: 5 | AP9: 5 | AQ9: 5 | AR9: 5 | AS9: 5 | AT9: 5 | AU9: 5 | AV9: 5 | AW9: 5 | AX9: 5 | AY9: 5 | AZ9: 5 | BA9: 5 | BB9: 5 | BC9: 5 | BD9: 5 | BE9: 5 | BF9: 5 | BG9: 5 | BH9: 5 | BI9: 5 | BJ9: 5 | BK9: 5 | BL9: 5 | BM9: 5 | BN9: 5 | BO9: 5 | BP9: 5 | BQ9: 5 | BR9: 5 | BS9: 5 | BT9: 5 | BU9: 5 | BV9: 5 | BW9: 5 | BX9: 5 | BY9: 5 | BZ9: 5 | CA9: 5 | CB9: 5 | CC9: 5 | CD9: 5 | CE9: 5 | CF9: 5 | CG9: 5 | CH9: 5 | CI9: 5 | CJ9: 5 | CK9: 5 | CL9: 5 | CM9: 5 | CN9: 5 | CO9: 5 | CP9: 5 | CQ9: 5 | CR9: 5 | CS9: 5 | CT9: 5 | CU9: 5 | CV9: 5 | CW9: 5 | CX9: 5
C10: 0 | D10: 0 | E10: 0 | F10: 0 | G10: 0 | H10: 0 | I10: 0 | J10: 0 | K10: 0 | L10: 0 | M10: 0 | N10: 0 | O10: 0 | P10: 0 | Q10: 0 | R10: 0 | S10: 0 | T10: 0 | U10: 0 | V10: 0 | W10: 0 | X10: 0 | Y10: 0 | Z10: 0 | AA10: 0 | AB10: 0 | AC10: 0 | AD10: 0 | AE10: 0 | AF10: 0 | AG10: 0 | AH10: 0 | AI10: 0 | AJ10: 0 | AK10: 0 | AL10: 0 | AM10: 0 | AN10: 0 | AO10: 0 | AP10: 0 | AQ10: 0 | AR10: 0 | AS10: 0 | AT10: 0 | AU10: 0 | AV10: 0 | AW10: 0 | AX10: 0 | AY10: 0 | AZ10: 0 | BA10: 0 | BB10: 0 | BC10: 0 | BD10: 0 | BE10: 0 | BF10: 0 | BG10: 0 | BH10: 0 | BI10: 0 | BJ10: 0 | BK10: 0 | BL10: 0 | BM10: 0 | BN10: 0 | BO10: 0 | BP10: 0 | BQ10: 0 | BR10: 0 | BS10: 0 | BT10: 0 | BU10: 0 | BV10: 0 | BW10: 0 | BX10: 0 | BY10: 0 | BZ10: 0 | CA10: 0 | CB10: 0 | CC10: 0 | CD10: 0 | CE10: 0 | CF10: 0 | CG10: 0 | CH10: 0 | CI10: 0 | CJ10: 0 | CK10: 0 | CL10: 0 | CM10: 0 | CN10: 0 | CO10: 0 | CP10: 0 | CQ10: 0 | CR10: 0 | CS10: 0 | CT10: 0 | CU10: 0 | CV10: 0 | CW10: 0 | CX10: 0
C11: 0 | D11: 0 | E11: 0 | F11: 0 | G11: 0 | H11: 0 | I11: 0 | J11: 0 | K11: 0 | L11: 0 | M11: 0 | N11: 0 | O11: 0 | P11: 0 | Q11: 0 | R11: 0 | S11: 0 | T11: 0 | U11: 0 | V11: 0 | W11: 0 | X11: 0 | Y11: 0 | Z11: 0 | AA11: 0 | AB11: 0 | AC11: 0 | AD11: 0 | AE11: 0 | AF11: 0 | AG11: 0 | AH11: 0 | AI11: 0 | AJ11: 0 | AK11: 0 | AL11: 0 | AM11: 0 | AN11: 0 | AO11: 0 | AP11: 0 | AQ11: 0 | AR11: 0 | AS11: 0 | AT11: 0 | AU11: 0 | AV11: 0 | AW11: 0 | AX11: 0 | AY11: 0 | AZ11: 0 | BA11: 0 | BB11: 0 | BC11: 0 | BD11: 0 | BE11: 0 | BF11: 0 | BG11: 0 | BH11: 0 | BI11: 0 | BJ11: 0 | BK11: 0 | BL11: 0 | BM11: 0 | BN11: 0 | BO11: 0 | BP11: 0 | BQ11: 0 | BR11: 0 | BS11: 0 | BT11: 0 | BU11: 0 | BV11: 0 | BW11: 0 | BX11: 0 | BY11: 0 | BZ11: 0 | CA11: 0 | CB11: 0 | CC11: 0 | CD11: 0 | CE11: 0 | CF11: 0 | CG11: 0 | CH11: 0 | CI11: 0 | CJ11: 0 | CK11: 0 | CL11: 0 | CM11: 0 | CN11: 0 | CO11: 0 | CP11: 0 | CQ11: 0 | CR11: 0 | CS11: 0 | CT11: 0 | CU11: 0 | CV11: 0 | CW11: 0 | CX11: 0
C12: 0 | D12: 0 | E12: 0 | F12: 0 | G12: 0 | H12: 0 | I12: 0 | J12: 0 | K12: 0 | L12: 0 | M12: 0 | N12: 0 | O12: 0 | P12: 0 | Q12: 0 | R12: 0 | S12: 0 | T12: 0 | U12: 0 | V12: 0 | W12: 0 | X12: 0 | Y12: 0 | Z12: 0 | AA12: 0 | AB12: 0 | AC12: 0 | AD12: 0 | AE12: 0 | AF12: 0 | AG12: 0 | AH12: 0 | AI12: 0 | AJ12: 0 | AK12: 0 | AL12: 0 | AM12: 0 | AN12: 0 | AO12: 0 | AP12: 0 | AQ12: 0 | AR12: 0 | AS12: 0 | AT12: 0 | AU12: 0 | AV12: 0 | AW12: 0 | AX12: 0 | AY12: 0 | AZ12: 0 | BA12: 0 | BB12: 0 | BC12: 0 | BD12: 0 | BE12: 0 | BF12: 0 | BG12: 0 | BH12: 0 | BI12: 0 | BJ12: 0 | BK12: 0 | BL12: 0 | BM12: 0 | BN12: 0 | BO12: 0 | BP12: 0 | BQ12: 0 | BR12: 0 | BS12: 0 | BT12: 0 | BU12: 0 | BV12: 0 | BW12: 0 | BX12: 0 | BY12: 0 | BZ12: 0 | CA12: 0 | CB12: 0 | CC12: 0 | CD12: 0 | CE12: 0 | CF12: 0 | CG12: 0 | CH12: 0 | CI12: 0 | CJ12: 0 | CK12: 0 | CL12: 0 | CM12: 0 | CN12: 0 | CO12: 0 | CP12: 0 | CQ12: 0 | CR12: 0 | CS12: 0 | CT12: 0 | CU12: 0 | CV12: 0 | CW12: 0 | CX12: 0
C13: 0 | D13: 0 | E13: 0 | F13: 0 | G13: 0 | H13: 0 | I13: 0 | J13: 0 | K13: 0 | L13: 0 | M13: 0 | N13: 0 | O13: 0 | P13: 0 | Q13: 0 | R13: 0 | S13: 0 | T13: 0 | U13: 0 | V13: 0 | W13: 0 | X13: 0 | Y13: 0 | Z13: 0 | AA13: 0 | AB13: 0 | AC13: 0 | AD13: 0 | AE13: 0 | AF13: 0 | AG13: 0 | AH13: 0 | AI13: 0 | AJ13: 0 | AK13: 0 | AL13: 0 | AM13: 0 | AN13: 0 | AO13: 0 | AP13: 0 | AQ13: 0 | AR13: 0 | AS13: 0 | AT13: 0 | AU13: 0 | AV13: 0 | AW13: 0 | AX13: 0 | AY13: 0 | AZ13: 0 | BA13: 0 | BB13: 0 | BC13: 0 | BD13: 0 | BE13: 0 | BF13: 0 | BG13: 0 | BH13: 0 | BI13: 0 | BJ13: 0 | BK13: 0 | BL13: 0 | BM13: 0 | BN13: 0 | BO13: 0 | BP13: 0 | BQ13: 0 | BR13: 0 | BS13: 0 | BT13: 0 | BU13: 0 | BV13: 0 | BW13: 0 | BX13: 0 | BY13: 0 | BZ13: 0 | CA13: 0 | CB13: 0 | CC13: 0 | CD13: 0 | CE13: 0 | CF13: 0 | CG13: 0 | CH13: 0 | CI13: 0 | CJ13: 0 | CK13: 0 | CL13: 0 | CM13: 0 | CN13: 0 | CO13: 0 | CP13: 0 | CQ13: 0 | CR13: 0 | CS13: 0 | CT13: 0 | CU13: 0 | CV13: 0 | CW13: 0 | CX13: 0
C14: 0 | D14: 0 | E14: 0 | F14: 0 | G14: 0 | H14: 0 | I14: 0 | J14: 0 | K14: 0 | L14: 0 | M14: 0 | N14: 0 | O14: 0 | P14: 0 | Q14: 0 | R14: 0 | S14: 0 | T14: 0 | U14: 0 | V14: 0 | W14: 0 | X14: 0 | Y14: 0 | Z14: 0 | AA14: 0 | AB14: 0 | AC14: 0 | AD14: 0 | AE14: 0 | AF14: 0 | AG14: 0 | AH14: 0 | AI14: 0 | AJ14: 0 | AK14: 0 | AL14: 0 | AM14: 0 | AN14: 0 | AO14: 0 | AP14: 0 | AQ14: 0 | AR14: 0 | AS14: 0 | AT14: 0 | AU14: 0 | AV14: 0 | AW14: 0 | AX14: 0 | AY14: 0 | AZ14: 0 | BA14: 0 | BB14: 0 | BC14: 0 | BD14: 0 | BE14: 0 | BF14: 0 | BG14: 0 | BH14: 0 | BI14: 0 | BJ14: 0 | BK14: 0 | BL14: 0 | BM14: 0 | BN14: 0 | BO14: 0 | BP14: 0 | BQ14: 0 | BR14: 0 | BS14: 0 | BT14: 0 | BU14: 0 | BV14: 0 | BW14: 0 | BX14: 0 | BY14: 0 | BZ14: 0 | CA14: 0 | CB14: 0 | CC14: 0 | CD14: 0 | CE14: 0 | CF14: 0 | CG14: 0 | CH14: 0 | CI14: 0 | CJ14: 0 | CK14: 0 | CL14: 0 | CM14: 0 | CN14: 0 | CO14: 0 | CP14: 0 | CQ14: 0 | CR14: 0 | CS14: 0 | CT14: 0 | CU14: 0 | CV14: 0 | CW14: 0 | CX14: 0
C15: 0 | D15: 0 | E15: 0 | F15: 0 | G15: 0 | H15: 0 | I15: 0 | J15: 0 | K15: 0 | L15: 0 | M15: 0 | N15: 0 | O15: 0 | P15: 0 | Q15: 0 | R15: 0 | S15: 0 | T15: 0 | U15: 0 | V15: 0 | W15: 0 | X15: 0 | Y15: 0 | Z15: 0 | AA15: 0 | AB15: 0 | AC15: 0 | AD15: 0 | AE15: 0 | AF15: 0 | AG15: 0 | AH15: 0 | AI15: 0 | AJ15: 0 | AK15: 0 | AL15: 0 | AM15: 0 | AN15: 0 | AO15: 0 | AP15: 0 | AQ15: 0 | AR15: 0 | AS15: 0 | AT15: 0 | AU15: 0 | AV15: 0 | AW15: 0 | AX15: 0 | AY15: 0 | AZ15: 0 | BA15: 0 | BB15: 0 | BC15: 0 | BD15: 0 | BE15: 0 | BF15: 0 | BG15: 0 | BH15: 0 | BI15: 0 | BJ15: 0 | BK15: 0 | BL15: 0 | BM15: 0 | BN15: 0 | BO15: 0 | BP15: 0 | BQ15: 0 | BR15: 0 | BS15: 0 | BT15: 0 | BU15: 0 | BV15: 0 | BW15: 0 | BX15: 0 | BY15: 0 | BZ15: 0 | CA15: 0 | CB15: 0 | CC15: 0 | CD15: 0 | CE15: 0 | CF15: 0 | CG15: 0 | CH15: 0 | CI15: 0 | CJ15: 0 | CK15: 0 | CL15: 0 | CM15: 0 | CN15: 0 | CO15: 0 | CP15: 0 | CQ15: 0 | CR15: 0 | CS15: 0 | CT15: 0 | CU15: 0 | CV15: 0 | CW15: 0 | CX15: 0
C16: =SUM(C$5,$B16) -> 0 | D16: 0 | E16: 0 | F16: 0 | G16: 0 | H16: 0 | I16: 0 | J16: 0 | K16: 0 | L16: 0 | M16: =SUM(M$5,$B16) -> 0 | N16: 0 | O16: 0 | P16: 0 | Q16: 0 | R16: 0 | S16: 0 | T16: 0 | U16: 0 | V16: 0 | W16: =SUM(W$5,$B16) -> 0 | X16: 0 | Y16: 0 | Z16: 0 | AA16: 0 | AB16: 0 | AC16: 0 | AD16: 0 | AE16: 0 | AF16: 0 | AG16: =SUM(AG$5,$B16) -> 0 | AH16: 0 | AI16: 0 | AJ16: 0 | AK16: 0 | AL16: 0 | AM16: 0 | AN16: 0 | AO16: 0 | AP16: 0 | AQ16: =SUM(AQ$5,$B16) -> 0 | AR16: 0 | AS16: 0 | AT16: 0 | AU16: 0 | AV16: 0 | AW16: 0 | AX16: 0 | AY16: 0 | AZ16: 0 | BA16: =SUM(BA$5,$B16) -> 0 | BB16: 0 | BC16: 0 | BD16: 0 | BE16: 0 | BF16: 0 | BG16: 0 | BH16: 0 | BI16: 0 | BJ16: 0 | BK16: =SUM(BK$5,$B16) -> 0 | BL16: 0 | BM16: 0 | BN16: 0 | BO16: 0 | BP16: 0 | BQ16: 0 | BR16: 0 | BS16: 0 | BT16: 0 | BU16: =SUM(BU$5,$B16) -> 0 | BV16: 0 | BW16: 0 | BX16: 0 | BY16: 0 | BZ16: 0 | CA16: 0 | CB16: 0 | CC16: 0 | CD16: 0 | CE16: =SUM(CE$5,$B16) -> 0 | CF16: 0 | CG16: 0 | CH16: 0 | CI16: 0 | CJ16: 0 | CK16: 0 | CL16: 0 | CM16: 0 | CN16: 0 | CO16: =SUM(CO$5,$B16) -> 0 | CP16: 0 | CQ16: 0 | CR16: 0 | CS16: 0 | CT16: 0 | CU16: 0 | CV16: 0 | CW16: 0 | CX16: 0
C17: 0 | D17: 0 | E17: 0 | F17: 0 | G17: 0 | H17: 0 | I17: 0 | J17: 0 | K17: 0 | L17: 0 | M17: 0 | N17: 0 | O17: 0 | P17: 0 | Q17: 0 | R17: 0 | S17: 0 | T17: 0 | U17: 0 | V17: 0 | W17: 0 | X17: 0 | Y17: 0 | Z17: 0 | AA17: 0 | AB17: 0 | AC17: 0 | AD17: 0 | AE17: 0 | AF17: 0 | AG17: 0 | AH17: 0 | AI17: 0 | AJ17: 0 | AK17: 0 | AL17: 0 | AM17: 0 | AN17: 0 | AO17: 0 | AP17: 0 | AQ17: 0 | AR17: 0 | AS17: 0 | AT17: 0 | AU17: 0 | AV17: 0 | AW17: 0 | AX17: 0 | AY17: 0 | AZ17: 0 | BA17: 0 | BB17: 0 | BC17: 0 | BD17: 0 | BE17: 0 | BF17: 0 | BG17: 0 | BH17: 0 | BI17: 0 | BJ17: 0 | BK17: 0 | BL17: 0 | BM17: 0 | BN17: 0 | BO17: 0 | BP17: 0 | BQ17: 0 | BR17: 0 | BS17: 0 | BT17: 0 | BU17: 0 | BV17: 0 | BW17: 0 | BX17: 0 | BY17: 0 | BZ17: 0 | CA17: 0 | CB17: 0 | CC17: 0 | CD17: 0 | CE17: 0 | CF17: 0 | CG17: 0 | CH17: 0 | CI17: 0 | CJ17: 0 | CK17: 0 | CL17: 0 | CM17: 0 | CN17: 0 | CO17: 0 | CP17: 0 | CQ17: 0 | CR17: 0 | CS17: 0 | CT17: 0 | CU17: 0 | CV17: 0 | CW17: 0 | CX17: 0
C18: 0 | D18: 0 | E18: 0 | F18: 0 | G18: 0 | H18: 0 | I18: 0 | J18: 0 | K18: 0 | L18: 0 | M18: 0 | N18: 0 | O18: 0 | P18: 0 | Q18: 0 | R18: 0 | S18: 0 | T18: 0 | U18: 0 | V18: 0 | W18: 0 | X18: 0 | Y18: 0 | Z18: 0 | AA18: 0 | AB18: 0 | AC18: 0 | AD18: 0 | AE18: 0 | AF18: 0 | AG18: 0 | AH18: 0 | AI18: 0 | AJ18: 0 | AK18: 0 | AL18: 0 | AM18: 0 | AN18: 0 | AO18: 0 | AP18: 0 | AQ18: 0 | AR18: 0 | AS18: 0 | AT18: 0 | AU18: 0 | AV18: 0 | AW18: 0 | AX18: 0 | AY18: 0 | AZ18: 0 | BA18: 0 | BB18: 0 | BC18: 0 | BD18: 0 | BE18: 0 | BF18: 0 | BG18: 0 | BH18: 0 | BI18: 0 | BJ18: 0 | BK18: 0 | BL18: 0 | BM18: 0 | BN18: 0 | BO18: 0 | BP18: 0 | BQ18: 0 | BR18: 0 | BS18: 0 | BT18: 0 | BU18: 0 | BV18: 0 | BW18: 0 | BX18: 0 | BY18: 0 | BZ18: 0 | CA18: 0 | CB18: 0 | CC18: 0 | CD18: 0 | CE18: 0 | CF18: 0 | CG18: 0 | CH18: 0 | CI18: 0 | CJ18: 0 | CK18: 0 | CL18: 0 | CM18: 0 | CN18: 0 | CO18: 0 | CP18: 0 | CQ18: 0 | CR18: 0 | CS18: 0 | CT18: 0 | CU18: 0 | CV18: 0 | CW18: 0 | CX18: 0
C19: 0 | D19: 0 | E19: 0 | F19: 0 | G19: 0 | H19: 0 | I19: 0 | J19: 0 | K19: 0 | L19: 0 | M19: 0 | N19: 0 | O19: 0 | P19: 0 | Q19: 0 | R19: 0 | S19: 0 | T19: 0 | U19: 0 | V19: 0 | W19: 0 | X19: 0 | Y19: 0 | Z19: 0 | AA19: 0 | AB19: 0 | AC19: 0 | AD19: 0 | AE19: 0 | AF19: 0 | AG19: 0 | AH19: 0 | AI19: 0 | AJ19: 0 | AK19: 0 | AL19: 0 | AM19: 0 | AN19: 0 | AO19: 0 | AP19: 0 | AQ19: 0 | AR19: 0 | AS19: 0 | AT19: 0 | AU19: 0 | AV19: 0 | AW19: 0 | AX19: 0 | AY19: 0 | AZ19: 0 | BA19: 0 | BB19: 0 | BC19: 0 | BD19: 0 | BE19: 0 | BF19: 0 | BG19: 0 | BH19: 0 | BI19: 0 | BJ19: 0 | BK19: 0 | BL19: 0 | BM19: 0 | BN19: 0 | BO19: 0 | BP19: 0 | BQ19: 0 | BR19: 0 | BS19: 0 | BT19: 0 | BU19: 0 | BV19: 0 | BW19: 0 | BX19: 0 | BY19: 0 | BZ19: 0 | CA19: 0 | CB19: 0 | CC19: 0 | CD19: 0 | CE19: 0 | CF19: 0 | CG19: 0 | CH19: 0 | CI19: 0 | CJ19: 0 | CK19: 0 | CL19: 0 | CM19: 0 | CN19: 0 | CO19: 0 | CP19: 0 | CQ19: 0 | CR19: 0 | CS19: 0 | CT19: 0 | CU19: 0 | CV19: 0 | CW19: 0 | CX19: 0
C20: 0 | D20: 0 | E20: 0 | F20: 0 | G20: 0 | H20: 0 | I20: 0 | J20: 0 | K20: 0 | L20: 0 | M20: 0 | N20: 0 | O20: 0 | P20: 0 | Q20: 0 | R20: 0 | S20: 0 | T20: 0 | U20: 0 | V20: 0 | W20: 0 | X20: 0 | Y20: 0 | Z20: 0 | AA20: 0 | AB20: 0 | AC20: 0 | AD20: 0 | AE20: 0 | AF20: 0 | AG20: 0 | AH20: 0 | AI20: 0 | AJ20: 0 | AK20: 0 | AL20: 0 | AM20: 0 | AN20: 0 | AO20: 0 | AP20: 0 | AQ20: 0 | AR20: 0 | AS20: 0 | AT20: 0 | AU20: 0 | AV20: 0 | AW20: 0 | AX20: 0 | AY20: 0 | AZ20: 0 | BA20: 0 | BB20: 0 | BC20: 0 | BD20: 0 | BE20: 0 | BF20: 0 | BG20: 0 | BH20: 0 | BI20: 0 | BJ20: 0 | BK20: 0 | BL20: 0 | BM20: 0 | BN20: 0 | BO20: 0 | BP20: 0 | BQ20: 0 | BR20: 0 | BS20: 0 | BT20: 0 | BU20: 0 | BV20: 0 | BW20: 0 | BX20: 0 | BY20: 0 | BZ20: 0 | CA20: 0 | CB20: 0 | CC20: 0 | CD20: 0 | CE20: 0 | CF20: 0 | CG20: 0 | CH20: 0 | CI20: 0 | CJ20: 0 | CK20: 0 | CL20: 0 | CM20: 0 | CN20: 0 | CO20: 0 | CP20: 0 | CQ20: 0 | CR20: 0 | CS20: 0 | CT20: 0 | CU20: 0 | CV20: 0 | CW20: 0 | CX20: 0
C21: 0 | D21: 0 | E21: 0 | F21: 0 | G21: 0 | H21: 0 | I21: 0 | J21: 0 | K21: 0 | L21: 0 | M21: 0 | N21: 0 | O21: 0 | P21: 0 | Q21: 0 | R21: 0 | S21: 0 | T21: 0 | U21: 0 | V21: 0 | W21: 0 | X21: 0 | Y21: 0 | Z21: 0 | AA21: 0 | AB21: 0 | AC21: 0 | AD21: 0 | AE21: 0 | AF21: 0 | AG21: 0 | AH21: 0 | AI21: 0 | AJ21: 0 | AK21: 0 | AL21: 0 | AM21: 0 | AN21: 0 | AO21: 0 | AP21: 0 | AQ21: 0 | AR21: 0 | AS21: 0 | AT21: 0 | AU21: 0 | AV21: 0 | AW21: 0 | AX21: 0 | AY21: 0 | AZ21: 0 | BA21: 0 | BB21: 0 | BC21: 0 | BD21: 0 | BE21: 0 | BF21: 0 | BG21: 0 | BH21: 0 | BI21: 0 | BJ21: 0 | BK21: 0 | BL21: 0 | BM21: 0 | BN21: 0 | BO21: 0 | BP21: 0 | BQ21: 0 | BR21: 0 | BS21: 0 | BT21: 0 | BU21: 0 | BV21: 0 | BW21: 0 | BX21: 0 | BY21: 0 | BZ21: 0 | CA21: 0 | CB21: 0 | CC21: 0 | CD21: 0 | CE21: 0 | CF21: 0 | CG21: 0 | CH21: 0 | CI21: 0 | CJ21: 0 | CK21: 0 | CL21: 0 | CM21: 0 | CN21: 0 | CO21: 0 | CP21: 0 | CQ21: 0 | CR21: 0 | CS21: 0 | CT21: 0 | CU21: 0 | CV21: 0 | CW21: 0 | CX21: 0
C22: 0 | D22: 0 | E22: 0 | F22: 0 | G22: 0 | H22: 0 | I22: 0 | J22: 0 | K22: 0 | L22: 0 | M22: 0 | N22: 0 | O22: 0 | P22: 0 | Q22: 0 | R22: 0 | S22: 0 | T22: 0 | U22: 0 | V22: 0 | W22: 0 | X22: 0 | Y22: 0 | Z22: 0 | AA22: 0 | AB22: 0 | AC22: 0 | AD22: 0 | AE22: 0 | AF22: 0 | AG22: 0 | AH22: 0 | AI22: 0 | AJ22: 0 | AK22: 0 | AL22: 0 | AM22: 0 | AN22: 0 | AO22: 0 | AP22: 0 | AQ22: 0 | AR22: 0 | AS22: 0 | AT22: 0 | AU22: 0 | AV22: 0 | AW22: 0 | AX22: 0 | AY22: 0 | AZ22: 0 | BA22: 0 | BB22: 0 | BC22: 0 | BD22: 0 | BE22: 0 | BF22: 0 | BG22: 0 | BH22: 0 | BI22: 0 | BJ22: 0 | BK22: 0 | BL22: 0 | BM22: 0 | BN22: 0 | BO22: 0 | BP22: 0 | BQ22: 0 | BR22: 0 | BS22: 0 | BT22: 0 | BU22: 0 | BV22: 0 | BW22: 0 | BX22: 0 | BY22: 0 | BZ22: 0 | CA22: 0 | CB22: 0 | CC22: 0 | CD22: 0 | CE22: 0 | CF22: 0 | CG22: 0 | CH22: 0 | CI22: 0 | CJ22: 0 | CK22: 0 | CL22: 0 | CM22: 0 | CN22: 0 | CO22: 0 | CP22: 0 | CQ22: 0 | CR22: 0 | CS22: 0 | CT22: 0 | CU22: 0 | CV22: 0 | CW22: 0 | CX22: 0
C23: 0 | D23: 0 | E23: 0 | F23: 0 | G23: 0 | H23: 0 | I23: 0 | J23: 0 | K23: 0 | L23: 0 | M23: 0 | N23: 0 | O23: 0 | P23: 0 | Q23: 0 | R23: 0 | S23: 0 | T23: 0 | U23: 0 | V23: 0 | W23: 0 | X23: 0 | Y23: 0 | Z23: 0 | AA23: 0 | AB23: 0 | AC23: 0 | AD23: 0 | AE23: 0 | AF23: 0 | AG23: 0 | AH23: 0 | AI23: 0 | AJ23: 0 | AK23: 0 | AL23: 0 | AM23: 0 | AN23: 0 | AO23: 0 | AP23: 0 | AQ23: 0 | AR23: 0 | AS23: 0 | AT23: 0 | AU23: 0 | AV23: 0 | AW23: 0 | AX23: 0 | AY23: 0 | AZ23: 0 | BA23: 0 | BB23: 0 | BC23: 0 | BD23: 0 | BE23: 0 | BF23: 0 | BG23: 0 | BH23: 0 | BI23: 0 | BJ23: 0 | BK23: 0 | BL23: 0 | BM23: 0 | BN23: 0 | BO23: 0 | BP23: 0 | BQ23: 0 | BR23: 0 | BS23: 0 | BT23: 0 | BU23: 0 | BV23: 0 | BW23: 0 | BX23: 0 | BY23: 0 | BZ23: 0 | CA23: 0 | CB23: 0 | CC23: 0 | CD23: 0 | CE23: 0 | CF23: 0 | CG23: 0 | CH23: 0 | CI23: 0 | CJ23: 0 | CK23: 0 | CL23: 0 | CM23: 0 | CN23: 0 | CO23: 0 | CP23: 0 | CQ23: 0 | CR23: 0 | CS23: 0 | CT23: 0 | CU23: 0 | CV23: 0 | CW23: 0 | CX23: 0
C24: 0 | D24: 0 | E24: 0 | F24: 0 | G24: 0 | H24: 0 | I24: 0 | J24: 0 | K24: 0 | L24: 0 | M24: 0 | N24: 0 | O24: 0 | P24: 0 | Q24: 0 | R24: 0 | S24: 0 | T24: 0 | U24: 0 | V24: 0 | W24: 0 | X24: 0 | Y24: 0 | Z24: 0 | AA24: 0 | AB24: 0 | AC24: 0 | AD24: 0 | AE24: 0 | AF24: 0 | AG24: 0 | AH24: 0 | AI24: 0 | AJ24: 0 | AK24: 0 | AL24: 0 | AM24: 0 | AN24: 0 | AO24: 0 | AP24: 0 | AQ24: 0 | AR24: 0 | AS24: 0 | AT24: 0 | AU24: 0 | AV24: 0 | AW24: 0 | AX24: 0 | AY24: 0 | AZ24: 0 | BA24: 0 | BB24: 0 | BC24: 0 | BD24: 0 | BE24: 0 | BF24: 0 | BG24: 0 | BH24: 0 | BI24: 0 | BJ24: 0 | BK24: 0 | BL24: 0 | BM24: 0 | BN24: 0 | BO24: 0 | BP24: 0 | BQ24: 0 | BR24: 0 | BS24: 0 | BT24: 0 | BU24: 0 | BV24: 0 | BW24: 0 | BX24: 0 | BY24: 0 | BZ24: 0 | CA24: 0 | CB24: 0 | CC24: 0 | CD24: 0 | CE24: 0 | CF24: 0 | CG24: 0 | CH24: 0 | CI24: 0 | CJ24: 0 | CK24: 0 | CL24: 0 | CM24: 0 | CN24: 0 | CO24: 0 | CP24: 0 | CQ24: 0 | CR24: 0 | CS24: 0 | CT24: 0 | CU24: 0 | CV24: 0 | CW24: 0 | CX24: 0
C25: 0 | D25: 0 | E25: 0 | F25: 0 | G25: 0 | H25: 0 | I25: 0 | J25: 0 | K25: 0 | L25: 0 | M25: 0 | N25: 0 | O25: 0 | P25: 0 | Q25: 0 | R25: 0 | S25: 0 | T25: 0 | U25: 0 | V25: 0 | W25: 0 | X25: 0 | Y25: 0 | Z25: 0 | AA25: 0 | AB25: 0 | AC25: 0 | AD25: 0 | AE25: 0 | AF25: 0 | AG25: 0 | AH25: 0 | AI25: 0 | AJ25: 0 | AK25: 0 | AL25: 0 | AM25: 0 | AN25: 0 | AO25: 0 | AP25: 0 | AQ25: 0 | AR25: 0 | AS25: 0 | AT25: 0 | AU25: 0 | AV25: 0 | AW25: 0 | AX25: 0 | AY25: 0 | AZ25: 0 | BA25: 0 | BB25: 0 | BC25: 0 | BD25: 0 | BE25: 0 | BF25: 0 | BG25: 0 | BH25: 0 | BI25: 0 | BJ25: 0 | BK25: 0 | BL25: 0 | BM25: 0 | BN25: 0 | BO25: 0 | BP25: 0 | BQ25: 0 | BR25: 0 | BS25: 0 | BT25: 0 | BU25: 0 | BV25: 0 | BW25: 0 | BX25: 0 | BY25: 0 | BZ25: 0 | CA25: 0 | CB25: 0 | CC25: 0 | CD25: 0 | CE25: 0 | CF25: 0 | CG25: 0 | CH25: 0 | CI25: 0 | CJ25: 0 | CK25: 0 | CL25: 0 | CM25: 0 | CN25: 0 | CO25: 0 | CP25: 0 | CQ25: 0 | CR25: 0 | CS25: 0 | CT25: 0 | CU25: 0 | CV25: 0 | CW25: 0 | CX25: 0
C26: =SUM(C$5,$B26) -> 0 | D26: 0 | E26: 0 | F26: 0 | G26: 0 | H26: 0 | I26: 0 | J26: 0 | K26: 0 | L26: 0 | M26: =SUM(M$5,$B26) -> 0 | N26: 0 | O26: 0 | P26: 0 | Q26: 0 | R26: 0 | S26: 0 | T26: 0 | U26: 0 | V26: 0 | W26: =SUM(W$5,$B26) -> 0 | X26: 0 | Y26: 0 | Z26: 0 | AA26: 0 | AB26: 0 | AC26: 0 | AD26: 0 | AE26: 0 | AF26: 0 | AG26: =SUM(AG$5,$B26) -> 0 | AH26: 0 | AI26: 0 | AJ26: 0 | AK26: 0 | AL26: 0 | AM26: 0 | AN26: 0 | AO26: 0 | AP26: 0 | AQ26: =SUM(AQ$5,$B26) -> 0 | AR26: 0 | AS26: 0 | AT26: 0 | AU26: 0 | AV26: 0 | AW26: 0 | AX26: 0 | AY26: 0 | AZ26: 0 | BA26: =SUM(BA$5,$B26) -> 0 | BB26: 0 | BC26: 0 | BD26: 0 | BE26: 0 | BF26: 0 | BG26: 0 | BH26: 0 | BI26: 0 | BJ26: 0 | BK26: =SUM(BK$5,$B26) -> 0 | BL26: 0 | BM26: 0 | BN26: 0 | BO26: 0 | BP26: 0 | BQ26: 0 | BR26: 0 | BS26: 0 | BT26: 0 | BU26: =SUM(BU$5,$B26) -> 0 | BV26: 0 | BW26: 0 | BX26: 0 | BY26: 0 | BZ26: 0 | CA26: 0 | CB26: 0 | CC26: 0 | CD26: 0 | CE26: =SUM(CE$5,$B26) -> 0 | CF26: 0 | CG26: 0 | CH26: 0 | CI26: 0 | CJ26: 0 | CK26: 0 | CL26: 0 | CM26: 0 | CN26: 0 | CO26: =SUM(CO$5,$B26) -> 0 | CP26: 0 | CQ26: 0 | CR26: 0 | CS26: 0 | CT26: 0 | CU26: 0 | CV26: 0 | CW26: 0 | CX26: 0
C27: 0 | D27: 0 | E27: 0 | F27: 0 | G27: 0 | H27: 0 | I27: 0 | J27: 0 | K27: 0 | L27: 0 | M27: 0 | N27: 0 | O27: 0 | P27: 0 | Q27: 0 | R27: 0 | S27: 0 | T27: 0 | U27: 0 | V27: 0 | W27: 0 | X27: 0 | Y27: 0 | Z27: 0 | AA27: 0 | AB27: 0 | AC27: 0 | AD27: 0 | AE27: 0 | AF27: 0 | AG27: 0 | AH27: 0 | AI27: 0 | AJ27: 0 | AK27: 0 | AL27: 0 | AM27: 0 | AN27: 0 | AO27: 0 | AP27: 0 | AQ27: 0 | AR27: 0 | AS27: 0 | AT27: 0 | AU27: 0 | AV27: 0 | AW27: 0 | AX27: 0 | AY27: 0 | AZ27: 0 | BA27: 0 | BB27: 0 | BC27: 0 | BD27: 0 | BE27: 0 | BF27: 0 | BG27: 0 | BH27: 0 | BI27: 0 | BJ27: 0 | BK27: 0 | BL27: 0 | BM27: 0 | BN27: 0 | BO27: 0 | BP27: 0 | BQ27: 0 | BR27: 0 | BS27: 0 | BT27: 0 | BU27: 0 | BV27: 0 | BW27: 0 | BX27: 0 | BY27: 0 | BZ27: 0 | CA27: 0 | CB27: 0 | CC27: 0 | CD27: 0 | CE27: 0 | CF27: 0 | CG27: 0 | CH27: 0 | CI27: 0 | CJ27: 0 | CK27: 0 | CL27: 0 | CM27: 0 | CN27: 0 | CO27: 0 | CP27: 0 | CQ27: 0 | CR27: 0 | CS27: 0 | CT27: 0 | CU27: 0 | CV27: 0 | CW27: 0 | CX27: 0
C28: 0 | D28: 0 | E28: 0 | F28: 0 | G28: 0 | H28: 0 | I28: 0 | J28: 0 | K28: 0 | L28: 0 | M28: 0 | N28: 0 | O28: 0 | P28: 0 | Q28: 0 | R28: 0 | S28: 0 | T28: 0 | U28: 0 | V28: 0 | W28: 0 | X28: 0 | Y28: 0 | Z28: 0 | AA28: 0 | AB28: 0 | AC28: 0 | AD28: 0 | AE28: 0 | AF28: 0 | AG28: 0 | AH28: 0 | AI28: 0 | AJ28: 0 | AK28: 0 | AL28: 0 | AM28: 0 | AN28: 0 | AO28: 0 | AP28: 0 | AQ28: 0 | AR28: 0 | AS28: 0 | AT28: 0 | AU28: 0 | AV28: 0 | AW28: 0 | AX28: 0 | AY28: 0 | AZ28: 0 | BA28: 0 | BB28: 0 | BC28: 0 | BD28: 0 | BE28: 0 | BF28: 0 | BG28: 0 | BH28: 0 | BI28: 0 | BJ28: 0 | BK28: 0 | BL28: 0 | BM28: 0 | BN28: 0 | BO28: 0 | BP28: 0 | BQ28: 0 | BR28: 0 | BS28: 0 | BT28: 0 | BU28: 0 | BV28: 0 | BW28: 0 | BX28: 0 | BY28: 0 | BZ28: 0 | CA28: 0 | CB28: 0 | CC28: 0 | CD28: 0 | CE28: 0 | CF28: 0 | CG28: 0 | CH28: 0 | CI28: 0 | CJ28: 0 | CK28: 0 | CL28: 0 | CM28: 0 | CN28: 0 | CO28: 0 | CP28: 0 | CQ28: 0 | CR28: 0 | CS28: 0 | CT28: 0 | CU28: 0 | CV28: 0 | CW28: 0 | CX28: 0
C29: 0 | D29: 0 | E29: 0 | F29: 0 | G29: 0 | H29: 0 | I29: 0 | J29: 0 | K29: 0 | L29: 0 | M29: 0 | N29: 0 | O29: 0 | P29: 0 | Q29: 0 | R29: 0 | S29: 0 | T29: 0 | U29: 0 | V29: 0 | W29: 0 | X29: 0 | Y29: 0 | Z29: 0 | AA29: 0 | AB29: 0 | AC29: 0 | AD29: 0 | AE29: 0 | AF29: 0 | AG29: 0 | AH29: 0 | AI29: 0 | AJ29: 0 | AK29: 0 | AL29: 0 | AM29: 0 | AN29: 0 | AO29: 0 | AP29: 0 | AQ29: 0 | AR29: 0 | AS29: 0 | AT29: 0 | AU29: 0 | AV29: 0 | AW29: 0 | AX29: 0 | AY29: 0 | AZ29: 0 | BA29: 0 | BB29: 0 | BC29: 0 | BD29: 0 | BE29: 0 | BF29: 0 | BG29: 0 | BH29: 0 | BI29: 0 | BJ29: 0 | BK29: 0 | BL29: 0 | BM29: 0 | BN29: 0 | BO29: 0 | BP29: 0 | BQ29: 0 | BR29: 0 | BS29: 0 | BT29: 0 | BU29: 0 | BV29: 0 | BW29: 0 | BX29: 0 | BY29: 0 | BZ29: 0 | CA29: 0 | CB29: 0 | CC29: 0 | CD29: 0 | CE29: 0 | CF29: 0 | CG29: 0 | CH29: 0 | CI29: 0 | CJ29: 0 | CK29: 0 | CL29: 0 | CM29: 0 | CN29: 0 | CO29: 0 | CP29: 0 | CQ29: 0 | CR29: 0 | CS29: 0 | CT29: 0 | CU29: 0 | CV29: 0 | CW29: 0 | CX29: 0
C30: 0 | D30: 0 | E30: 0 | F30: 0 | G30: 0 | H30: 0 | I30: 0 | J30: 0 | K30: 0 | L30: 0 | M30: 0 | N30: 0 | O30: 0 | P30: 0 | Q30: 0 | R30: 0 | S30: 0 | T30: 0 | U30: 0 | V30: 0 | W30: 0 | X30: 0 | Y30: 0 | Z30: 0 | AA30: 0 | AB30: 0 | AC30: 0 | AD30: 0 | AE30: 0 | AF30: 0 | AG30: 0 | AH30: 0 | AI30: 0 | AJ30: 0 | AK30: 0 | AL30: 0 | AM30: 0 | AN30: 0 | AO30: 0 | AP30: 0 | AQ30: 0 | AR30: 0 | AS30: 0 | AT30: 0 | AU30: 0 | AV30: 0 | AW30: 0 | AX30: 0 | AY30: 0 | AZ30: 0 | BA30: 0 | BB30: 0 | BC30: 0 | BD30: 0 | BE30: 0 | BF30: 0 | BG30: 0 | BH30: 0 | BI30: 0 | BJ30: 0 | BK30: 0 | BL30: 0 | BM30: 0 | BN30: 0 | BO30: 0 | BP30: 0 | BQ30: 0 | BR30: 0 | BS30: 0 | BT30: 0 | BU30: 0 | BV30: 0 | BW30: 0 | BX30: 0 | BY30: 0 | BZ30: 0 | CA30: 0 | CB30: 0 | CC30: 0 | CD30: 0 | CE30: 0 | CF30: 0 | CG30: 0 | CH30: 0 | CI30: 0 | CJ30: 0 | CK30: 0 | CL30: 0 | CM30: 0 | CN30: 0 | CO30: 0 | CP30: 0 | CQ30: 0 | CR30: 0 | CS30: 0 | CT30: 0 | CU30: 0 | CV30: 0 | CW30: 0 | CX30: 0
C31: 0 | D31: 0 | E31: 0 | F31: 0 | G31: 0 | H31: 0 | I31: 0 | J31: 0 | K31: 0 | L31: 0 | M31: 0 | N31: 0 | O31: 0 | P31: 0 | Q31: 0 | R31: 0 | S31: 0 | T31: 0 | U31: 0 | V31: 0 | W31: 0 | X31: 0 | Y31: 0 | Z31: 0 | AA31: 0 | AB31: 0 | AC31: 0 | AD31: 0 | AE31: 0 | AF31: 0 | AG31: 0 | AH31: 0 | AI31: 0 | AJ31: 0 | AK31: 0 | AL31: 0 | AM31: 0 | AN31: 0 | AO31: 0 | AP31: 0 | AQ31: 0 | AR31: 0 | AS31: 0 | AT31: 0 | AU31: 0 | AV31: 0 | AW31: 0 | AX31: 0 | AY31: 0 | AZ31: 0 | BA31: 0 | BB31: 0 | BC31: 0 | BD31: 0 | BE31: 0 | BF31: 0 | BG31: 0 | BH31: 0 | BI31: 0 | BJ31: 0 | BK31: 0 | BL31: 0 | BM31: 0 | BN31: 0 | BO31: 0 | BP31: 0 | BQ31: 0 | BR31: 0 | BS31: 0 | BT31: 0 | BU31: 0 | BV31: 0 | BW31: 0 | BX31: 0 | BY31: 0 | BZ31: 0 | CA31: 0 | CB31: 0 | CC31: 0 | CD31: 0 | CE31: 0 | CF31: 0 | CG31: 0 | CH31: 0 | CI31: 0 | CJ31: 0 | CK31: 0 | CL31: 0 | CM31: 0 | CN31: 0 | CO31: 0 | CP31: 0 | CQ31: 0 | CR31: 0 | CS31: 0 | CT31: 0 | CU31: 0 | CV31: 0 | CW31: 0 | CX31: 0
C32: 0 | D32: 0 | E32: 0 | F32: 0 | G32: 0 | H32: 0 | I32: 0 | J32: 0 | K32: 0 | L32: 0 | M32: 0 | N32: 0 | O32: 0 | P32: 0 | Q32: 0 | R32: 0 | S32: 0 | T32: 0 | U32: 0 | V32: 0 | W32: 0 | X32: 0 | Y32: 0 | Z32: 0 | AA32: 0 | AB32: 0 | AC32: 0 | AD32: 0 | AE32: 0 | AF32: 0 | AG32: 0 | AH32: 0 | AI32: 0 | AJ32: 0 | AK32: 0 | AL32: 0 | AM32: 0 | AN32: 0 | AO32: 0 | AP32: 0 | AQ32: 0 | AR32: 0 | AS32: 0 | AT32: 0 | AU32: 0 | AV32: 0 | AW32: 0 | AX32: 0 | AY32: 0 | AZ32: 0 | BA32: 0 | BB32: 0 | BC32: 0 | BD32: 0 | BE32: 0 | BF32: 0 | BG32: 0 | BH32: 0 | BI32: 0 | BJ32: 0 | BK32: 0 | BL32: 0 | BM32: 0 | BN32: 0 | BO32: 0 | BP32: 0 | BQ32: 0 | BR32: 0 | BS32: 0 | BT32: 0 | BU32: 0 | BV32: 0 | BW32: 0 | BX32: 0 | BY32: 0 | BZ32: 0 | CA32: 0 | CB32: 0 | CC32: 0 | CD32: 0 | CE32: 0 | CF32: 0 | CG32: 0 | CH32: 0 | CI32: 0 | CJ32: 0 | CK32: 0 | CL32: 0 | CM32: 0 | CN32: 0 | CO32: 0 | CP32: 0 | CQ32: 0 | CR32: 0 | CS32: 0 | CT32: 0 | CU32: 0 | CV32: 0 | CW32: 0 | CX32: 0
C33: 0 | D33: 0 | E33: 0 | F33: 0 | G33: 0 | H33: 0 | I33: 0 | J33: 0 | K33: 0 | L33: 0 | M33: 0 | N33: 0 | O33: 0 | P33: 0 | Q33: 0 | R33: 0 | S33: 0 | T33: 0 | U33: 0 | V33: 0 | W33: 0 | X33: 0 | Y33: 0 | Z33: 0 | AA33: 0 | AB33: 0 | AC33: 0 | AD33: 0 | AE33: 0 | AF33: 0 | AG33: 0 | AH33: 0 | AI33: 0 | AJ33: 0 | AK33: 0 | AL33: 0 | AM33: 0 | AN33: 0 | AO33: 0 | AP33: 0 | AQ33: 0 | AR33: 0 | AS33: 0 | AT33: 0 | AU33: 0 | AV33: 0 | AW33: 0 | AX33: 0 | AY33: 0 | AZ33: 0 | BA33: 0 | BB33: 0 | BC33: 0 | BD33: 0 | BE33: 0 | BF33: 0 | BG33: 0 | BH33: 0 | BI33: 0 | BJ33: 0 | BK33: 0 | BL33: 0 | BM33: 0 | BN33: 0 | BO33: 0 | BP33: 0 | BQ33: 0 | BR33: 0 | BS33: 0 | BT33: 0 | BU33: 0 | BV33: 0 | BW33: 0 | BX33: 0 | BY33: 0 | BZ33: 0 | CA33: 0 | CB33: 0 | CC33: 0 | CD33: 0 | CE33: 0 | CF33: 0 | CG33: 0 | CH33: 0 | CI33: 0 | CJ33: 0 | CK33: 0 | CL33: 0 | CM33: 0 | CN33: 0 | CO33: 0 | CP33: 0 | CQ33: 0 | CR33: 0 | CS33: 0 | CT33: 0 | CU33: 0 | CV33: 0 | CW33: 0 | CX33: 0
C34: 0 | D34: 0 | E34: 0 | F34: 0 | G34: 0 | H34: 0 | I34: 0 | J34: 0 | K34: 0 | L34: 0 | M34: 0 | N34: 0 | O34: 0 | P34: 0 | Q34: 0 | R34: 0 | S34: 0 | T34: 0 | U34: 0 | V34: 0 | W34: 0 | X34: 0 | Y34: 0 | Z34: 0 | AA34: 0 | AB34: 0 | AC34: 0 | AD34: 0 | AE34: 0 | AF34: 0 | AG34: 0 | AH34: 0 | AI34: 0 | AJ34: 0 | AK34: 0 | AL34: 0 | AM34: 0 | AN34: 0 | AO34: 0 | AP34: 0 | AQ34: 0 | AR34: 0 | AS34: 0 | AT34: 0 | AU34: 0 | AV34: 0 | AW34: 0 | AX34: 0 | AY34: 0 | AZ34: 0 | BA34: 0 | BB34: 0 | BC34: 0 | BD34: 0 | BE34: 0 | BF34: 0 | BG34: 0 | BH34: 0 | BI34: 0 | BJ34: 0 | BK34: 0 | BL34: 0 | BM34: 0 | BN34: 0 | BO34: 0 | BP34: 0 | BQ34: 0 | BR34: 0 | BS34: 0 | BT34: 0 | BU34: 0 | BV34: 0 | BW34: 0 | BX34: 0 | BY34: 0 | BZ34: 0 | CA34: 0 | CB34: 0 | CC34: 0 | CD34: 0 | CE34: 0 | CF34: 0 | CG34: 0 | CH34: 0 | CI34: 0 | CJ34: 0 | CK34: 0 | CL34: 0 | CM34: 0 | CN34: 0 | CO34: 0 | CP34: 0 | CQ34: 0 | CR34: 0 | CS34: 0 | CT34: 0 | CU34: 0 | CV34: 0 | CW34: 0 | CX34: 0
C35: 0 | D35: 0 | E35: 0 | F35: 0 | G35: 0 | H35: 0 | I35: 0 | J35: 0 | K35: 0 | L35: 0 | M35: 0 | N35: 0 | O35: 0 | P35: 0 | Q35: 0 | R35: 0 | S35: 0 | T35: 0 | U35: 0 | V35: 0 | W35: 0 | X35: 0 | Y35: 0 | Z35: 0 | AA35: 0 | AB35: 0 | AC35: 0 | AD35: 0 | AE35: 0 | AF35: 0 | AG35: 0 | AH35: 0 | AI35: 0 | AJ35: 0 | AK35: 0 | AL35: 0 | AM35: 0 | AN35: 0 | AO35: 0 | AP35: 0 | AQ35: 0 | AR35: 0 | AS35: 0 | AT35: 0 | AU35: 0 | AV35: 0 | AW35: 0 | AX35: 0 | AY35: 0 | AZ35: 0 | BA35: 0 | BB35: 0 | BC35: 0 | BD35: 0 | BE35: 0 | BF35: 0 | BG35: 0 | BH35: 0 | BI35: 0 | BJ35: 0 | BK35: 0 | BL35: 0 | BM35: 0 | BN35: 0 | BO35: 0 | BP35: 0 | BQ35: 0 | BR35: 0 | BS35: 0 | BT35: 0 | BU35: 0 | BV35: 0 | BW35: 0 | BX35: 0 | BY35: 0 | BZ35: 0 | CA35: 0 | CB35: 0 | CC35: 0 | CD35: 0 | CE35: 0 | CF35: 0 | CG35: 0 | CH35: 0 | CI35: 0 | CJ35: 0 | CK35: 0 | CL35: 0 | CM35: 0 | CN35: 0 | CO35: 0 | CP35: 0 | CQ35: 0 | CR35: 0 | CS35: 0 | CT35: 0 | CU35: 0 | CV35: 0 | CW35: 0 | CX35: 0
C36: =SUM(C$5,$B36) -> 0 | D36: 0 | E36: 0 | F36: 0 | G36: 0 | H36: 0 | I36: 0 | J36: 0 | K36: 0 | L36: 0 | M36: =SUM(M$5,$B36) -> 0 | N36: 0 | O36: 0 | P36: 0 | Q36: 0 | R36: 0 | S36: 0 | T36: 0 | U36: 0 | V36: 0 | W36: =SUM(W$5,$B36) -> 0 | X36: 0 | Y36: 0 | Z36: 0 | AA36: 0 | AB36: 0 | AC36: 0 | AD36: 0 | AE36: 0 | AF36: 0 | AG36: =SUM(AG$5,$B36) -> 0 | AH36: 0 | AI36: 0 | AJ36: 0 | AK36: 0 | AL36: 0 | AM36: 0 | AN36: 0 | AO36: 0 | AP36: 0 | AQ36: =SUM(AQ$5,$B36) -> 0 | AR36: 0 | AS36: 0 | AT36: 0 | AU36: 0 | AV36: 0 | AW36: 0 | AX36: 0 | AY36: 0 | AZ36: 0 | BA36: =SUM(BA$5,$B36) -> 0 | BB36: 0 | BC36: 0 | BD36: 0 | BE36: 0 | BF36: 0 | BG36: 0 | BH36: 0 | BI36: 0 | BJ36: 0 | BK36: =SUM(BK$5,$B36) -> 0 | BL36: 0 | BM36: 0 | BN36: 0 | BO36: 0 | BP36: 0 | BQ36: 0 | BR36: 0 | BS36: 0 | BT36: 0 | BU36: =SUM(BU$5,$B36) -> 0 | BV36: 0 | BW36: 0 | BX36: 0 | BY36: 0 | BZ36: 0 | CA36: 0 | CB36: 0 | CC36: 0 | CD36: 0 | CE36: =SUM(CE$5,$B36) -> 0 | CF36: 0 | CG36: 0 | CH36: 0 | CI36: 0 | CJ36: 0 | CK36: 0 | CL36: 0 | CM36: 0 | CN36: 0 | CO36: =SUM(CO$5,$B36) -> 0 | CP36: 0 | CQ36: 0 | CR36: 0 | CS36: 0 | CT36: 0 | CU36: 0 | CV36: 0 | CW36: 0 | CX36: 0
C37: 0 | D37: 0 | E37: 0 | F37: 0 | G37: 0 | H37: 0 | I37: 0 | J37: 0 | K37: 0 | L37: 0 | M37: 0 | N37: 0 | O37: 0 | P37: 0 | Q37: 0 | R37: 0 | S37: 0 | T37: 0 | U37: 0 | V37: 0 | W37: 0 | X37: 0 | Y37: 0 | Z37: 0 | AA37: 0 | AB37: 0 | AC37: 0 | AD37: 0 | AE37: 0 | AF37: 0 | AG37: 0 | AH37: 0 | AI37: 0 | AJ37: 0 | AK37: 0 | AL37: 0 | AM37: 0 | AN37: 0 | AO37: 0 | AP37: 0 | AQ37: 0 | AR37: 0 | AS37: 0 | AT37: 0 | AU37: 0 | AV37: 0 | AW37: 0 | AX37: 0 | AY37: 0 | AZ37: 0 | BA37: 0 | BB37: 0 | BC37: 0 | BD37: 0 | BE37: 0 | BF37: 0 | BG37: 0 | BH37: 0 | BI37: 0 | BJ37: 0 | BK37: 0 | BL37: 0 | BM37: 0 | BN37: 0 | BO37: 0 | BP37: 0 | BQ37: 0 | BR37: 0 | BS37: 0 | BT37: 0 | BU37: 0 | BV37: 0 | BW37: 0 | BX37: 0 | BY37: 0 | BZ37: 0 | CA37: 0 | CB37: 0 | CC37: 0 | CD37: 0 | CE37: 0 | CF37: 0 | CG37: 0 | CH37: 0 | CI37: 0 | CJ37: 0 | CK37: 0 | CL37: 0 | CM37: 0 | CN37: 0 | CO37: 0 | CP37: 0 | CQ37: 0 | CR37: 0 | CS37: 0 | CT37: 0 | CU37: 0 | CV37: 0 | CW37: 0 | CX37: 0
C38: 0 | D38: 0 | E38: 0 | F38: 0 | G38: 0 | H38: 0 | I38: 0 | J38: 0 | K38: 0 | L38: 0 | M38: 0 | N38: 0 | O38: 0 | P38: 0 | Q38: 0 | R38: 0 | S38: 0 | T38: 0 | U38: 0 | V38: 0 | W38: 0 | X38: 0 | Y38: 0 | Z38: 0 | AA38: 0 | AB38: 0 | AC38: 0 | AD38: 0 | AE38: 0 | AF38: 0 | AG38: 0 | AH38: 0 | AI38: 0 | AJ38: 0 | AK38: 0 | AL38: 0 | AM38: 0 | AN38: 0 | AO38: 0 | AP38: 0 | AQ38: 0 | AR38: 0 | AS38: 0 | AT38: 0 | AU38: 0 | AV38: 0 | AW38: 0 | AX38: 0 | AY38: 0 | AZ38: 0 | BA38: 0 | BB38: 0 | BC38: 0 | BD38: 0 | BE38: 0 | BF38: 0 | BG38: 0 | BH38: 0 | BI38: 0 | BJ38: 0 | BK38: 0 | BL38: 0 | BM38: 0 | BN38: 0 | BO38: 0 | BP38: 0 | BQ38: 0 | BR38: 0 | BS38: 0 | BT38: 0 | BU38: 0 | BV38: 0 | BW38: 0 | BX38: 0 | BY38: 0 | BZ38: 0 | CA38: 0 | CB38: 0 | CC38: 0 | CD38: 0 | CE38: 0 | CF38: 0 | CG38: 0 | CH38: 0 | CI38: 0 | CJ38: 0 | CK38: 0 | CL38: 0 | CM38: 0 | CN38: 0 | CO38: 0 | CP38: 0 | CQ38: 0 | CR38: 0 | CS38: 0 | CT38: 0 | CU38: 0 | CV38: 0 | CW38: 0 | CX38: 0
C39: 0 | D39: 0 | E39: 0 | F39: 0 | G39: 0 | H39: 0 | I39: 0 | J39: 0 | K39: 0 | L39: 0 | M39: 0 | N39: 0 | O39: 0 | P39: 0 | Q39: 0 | R39: 0 | S39: 0 | T39: 0 | U39: 0 | V39: 0 | W39: 0 | X39: 0 | Y39: 0 | Z39: 0 | AA39: 0 | AB39: 0 | AC39: 0 | AD39: 0 | AE39: 0 | AF39: 0 | AG39: 0 | AH39: 0 | AI39: 0 | AJ39: 0 | AK39: 0 | AL39: 0 | AM39: 0 | AN39: 0 | AO39: 0 | AP39: 0 | AQ39: 0 | AR39: 0 | AS39: 0 | AT39: 0 | AU39: 0 | AV39: 0 | AW39: 0 | AX39: 0 | AY39: 0 | AZ39: 0 | BA39: 0 | BB39: 0 | BC39: 0 | BD39: 0 | BE39: 0 | BF39: 0 | BG39: 0 | BH39: 0 | BI39: 0 | BJ39: 0 | BK39: 0 | BL39: 0 | BM39: 0 | BN39: 0 | BO39: 0 | BP39: 0 | BQ39: 0 | BR39: 0 | BS39: 0 | BT39: 0 | BU39: 0 | BV39: 0 | BW39: 0 | BX39: 0 | BY39: 0 | BZ39: 0 | CA39: 0 | CB39: 0 | CC39: 0 | CD39: 0 | CE39: 0 | CF39: 0 | CG39: 0 | CH39: 0 | CI39: 0 | CJ39: 0 | CK39: 0 | CL39: 0 | CM39: 0 | CN39: 0 | CO39: 0 | CP39: 0 | CQ39: 0 | CR39: 0 | CS39: 0 | CT39: 0 | CU39: 0 | CV39: 0 | CW39: 0 | CX39: 0
C40: 0 | D40: 0 | E40: 0 | F40: 0 | G40: 0 | H40: 0 | I40: 0 | J40: 0 | K40: 0 | L40: 0 | M40: 0 | N40: 0 | O40: 0 | P40: 0 | Q40: 0 | R40: 0 | S40: 0 | T40: 0 | U40: 0 | V40: 0 | W40: 0 | X40: 0 | Y40: 0 | Z40: 0 | AA40: 0 | AB40: 0 | AC40: 0 | AD40: 0 | AE40: 0 | AF40: 0 | AG40: 0 | AH40: 0 | AI40: 0 | AJ40: 0 | AK40: 0 | AL40: 0 | AM40: 0 | AN40: 0 | AO40: 0 | AP40: 0 | AQ40: 0 | AR40: 0 | AS40: 0 | AT40: 0 | AU40: 0 | AV40: 0 | AW40: 0 | AX40: 0 | AY40: 0 | AZ40: 0 | BA40: 0 | BB40: 0 | BC40: 0 | BD40: 0 | BE40: 0 | BF40: 0 | BG40: 0 | BH40: 0 | BI40: 0 | BJ40: 0 | BK40: 0 | BL40: 0 | BM40: 0 | BN40: 0 | BO40: 0 | BP40: 0 | BQ40: 0 | BR40: 0 | BS40: 0 | BT40: 0 | BU40: 0 | BV40: 0 | BW40: 0 | BX40: 0 | BY40: 0 | BZ40: 0 | CA40: 0 | CB40: 0 | CC40: 0 | CD40: 0 | CE40: 0 | CF40: 0 | CG40: 0 | CH40: 0 | CI40: 0 | CJ40: 0 | CK40: 0 | CL40: 0 | CM40: 0 | CN40: 0 | CO40: 0 | CP40: 0 | CQ40: 0 | CR40: 0 | CS40: 0 | CT40: 0 | CU40: 0 | CV40: 0 | CW40: 0 | CX40: 0
C41: 0 | D41: 0 | E41: 0 | F41: 0 | G41: 0 | H41: 0 | I41: 0 | J41: 0 | K41: 0 | L41: 0 | M41: 0 | N41: 0 | O41: 0 | P41: 0 | Q41: 0 | R41: 0 | S41: 0 | T41: 0 | U41: 0 | V41: 0 | W41: 0 | X41: 0 | Y41: 0 | Z41: 0 | AA41: 0 | AB41: 0 | AC41: 0 | AD41: 0 | AE41: 0 | AF41: 0 | AG41: 0 | AH41: 0 | AI41: 0 | AJ41: 0 | AK41: 0 | AL41: 0 | AM41: 0 | AN41: 0 | AO41: 0 | AP41: 0 | AQ41: 0 | AR41: 0 | AS41: 0 | AT41: 0 | AU41: 0 | AV41: 0 | AW41: 0 | AX41: 0 | AY41: 0 | AZ41: 0 | BA41: 0 | BB41: 0 | BC41: 0 | BD41: 0 | BE41: 0 | BF41: 0 | BG41: 0 | BH41: 0 | BI41: 0 | BJ41: 0 | BK41: 0 | BL41: 0 | BM41: 0 | BN41: 0 | BO41: 0 | BP41: 0 | BQ41: 0 | BR41: 0 | BS41: 0 | BT41: 0 | BU41: 0 | BV41: 0 | BW41: 0 | BX41: 0 | BY41: 0 | BZ41: 0 | CA41: 0 | CB41: 0 | CC41: 0 | CD41: 0 | CE41: 0 | CF41: 0 | CG41: 0 | CH41: 0 | CI41: 0 | CJ41: 0 | CK41: 0 | CL41: 0 | CM41: 0 | CN41: 0 | CO41: 0 | CP41: 0 | CQ41: 0 | CR41: 0 | CS41: 0 | CT41: 0 | CU41: 0 | CV41: 0 | CW41: 0 | CX41: 0
C42: 0 | D42: 0 | E42: 0 | F42: 0 | G42: 0 | H42: 0 | I42: 0 | J42: 0 | K42: 0 | L42: 0 | M42: 0 | N42: 0 | O42: 0 | P42: 0 | Q42: 0 | R42: 0 | S42: 0 | T42: 0 | U42: 0 | V42: 0 | W42: 0 | X42: 0 | Y42: 0 | Z42: 0 | AA42: 0 | AB42: 0 | AC42: 0 | AD42: 0 | AE42: 0 | AF42: 0 | AG42: 0 | AH42: 0 | AI42: 0 | AJ42: 0 | AK42: 0 | AL42: 0 | AM42: 0 | AN42: 0 | AO42: 0 | AP42: 0 | AQ42: 0 | AR42: 0 | AS42: 0 | AT42: 0 | AU42: 0 | AV42: 0 | AW42: 0 | AX42: 0 | AY42: 0 | AZ42: 0 | BA42: 0 | BB42: 0 | BC42: 0 | BD42: 0 | BE42: 0 | BF42: 0 | BG42: 0 | BH42: 0 | BI42: 0 | BJ42: 0 | BK42: 0 | BL42: 0 | BM42: 0 | BN42: 0 | BO42: 0 | BP42: 0 | BQ42: 0 | BR42: 0 | BS42: 0 | BT42: 0 | BU42: 0 | BV42: 0 | BW42: 0 | BX42: 0 | BY42: 0 | BZ42: 0 | CA42: 0 | CB42: 0 | CC42: 0 | CD42: 0 | CE42: 0 | CF42: 0 | CG42: 0 | CH42: 0 | CI42: 0 | CJ42: 0 | CK42: 0 | CL42: 0 | CM42: 0 | CN42: 0 | CO42: 0 | CP42: 0 | CQ42: 0 | CR42: 0 | CS42: 0 | CT42: 0 | CU42: 0 | CV42: 0 | CW42: 0 | CX42: 0
C43: 0 | D43: 0 | E43: 0 | F43: 0 | G43: 0 | H43: 0 | I43: 0 | J43: 0 | K43: 0 | L43: 0 | M43: 0 | N43: 0 | O43: 0 | P43: 0 | Q43: 0 | R43: 0 | S43: 0 | T43: 0 | U43: 0 | V43: 0 | W43: 0 | X43: 0 | Y43: 0 | Z43: 0 | AA43: 0 | AB43: 0 | AC43: 0 | AD43: 0 | AE43: 0 | AF43: 0 | AG43: 0 | AH43: 0 | AI43: 0 | AJ43: 0 | AK43: 0 | AL43: 0 | AM43: 0 | AN43: 0 | AO43: 0 | AP43: 0 | AQ43: 0 | AR43: 0 | AS43: 0 | AT43: 0 | AU43: 0 | AV43: 0 | AW43: 0 | AX43: 0 | AY43: 0 | AZ43: 0 | BA43: 0 | BB43: 0 | BC43: 0 | BD43: 0 | BE43: 0 | BF43: 0 | BG43: 0 | BH43: 0 | BI43: 0 | BJ43: 0 | BK43: 0 | BL43: 0 | BM43: 0 | BN43: 0 | BO43: 0 | BP43: 0 | BQ43: 0 | BR43: 0 | BS43: 0 | BT43: 0 | BU43: 0 | BV43: 0 | BW43: 0 | BX43: 0 | BY43: 0 | BZ43: 0 | CA43: 0 | CB43: 0 | CC43: 0 | CD43: 0 | CE43: 0 | CF43: 0 | CG43: 0 | CH43: 0 | CI43: 0 | CJ43: 0 | CK43: 0 | CL43: 0 | CM43: 0 | CN43: 0 | CO43: 0 | CP43: 0 | CQ43: 0 | CR43: 0 | CS43: 0 | CT43: 0 | CU43: 0 | CV43: 0 | CW43: 0 | CX43: 0
C44: 0 | D44: 0 | E44: 0 | F44: 0 | G44: 0 | H44: 0 | I44: 0 | J44: 0 | K44: 0 | L44: 0 | M44: 0 | N44: 0 | O44: 0 | P44: 0 | Q44: 0 | R44: 0 | S44: 0 | T44: 0 | U44: 0 | V44: 0 | W44: 0 | X44: 0 | Y44: 0 | Z44: 0 | AA44: 0 | AB44: 0 | AC44: 0 | AD44: 0 | AE44: 0 | AF44: 0 | AG44: 0 | AH44: 0 | AI44: 0 | AJ44: 0 | AK44: 0 | AL44: 0 | AM44: 0 | AN44: 0 | AO44: 0 | AP44: 0 | AQ44: 0 | AR44: 0 | AS44: 0 | AT44: 0 | AU44: 0 | AV44: 0 | AW44: 0 | AX44: 0 | AY44: 0 | AZ44: 0 | BA44: 0 | BB44: 0 | BC44: 0 | BD44: 0 | BE44: 0 | BF44: 0 | BG44: 0 | BH44: 0 | BI44: 0 | BJ44: 0 | BK44: 0 | BL44: 0 | BM44: 0 | BN44: 0 | BO44: 0 | BP44: 0 | BQ44: 0 | BR44: 0 | BS44: 0 | BT44: 0 | BU44: 0 | BV44: 0 | BW44: 0 | BX44: 0 | BY44: 0 | BZ44: 0 | CA44: 0 | CB44: 0 | CC44: 0 | CD44: 0 | CE44: 0 | CF44: 0 | CG44: 0 | CH44: 0 | CI44: 0 | CJ44: 0 | CK44: 0 | CL44: 0 | CM44: 0 | CN44: 0 | CO44: 0 | CP44: 0 | CQ44: 0 | CR44: 0 | CS44: 0 | CT44: 0 | CU44: 0 | CV44: 0 | CW44: 0 | CX44: 0
C45: 0 | D45: 0 | E45: 0 | F45: 0 | G45: 0 | H45: 0 | I45: 0 | J45: 0 | K45: 0 | L45: 0 | M45: 0 | N45: 0 | O45: 0 | P45: 0 | Q45: 0 | R45: 0 | S45: 0 | T45: 0 | U45: 0 | V45: 0 | W45: 0 | X45: 0 | Y45: 0 | Z45: 0 | AA45: 0 | AB45: 0 | AC45: 0 | AD45: 0 | AE45: 0 | AF45: 0 | AG45: 0 | AH45: 0 | AI45: 0 | AJ45: 0 | AK45: 0 | AL45: 0 | AM45: 0 | AN45: 0 | AO45: 0 | AP45: 0 | AQ45: 0 | AR45: 0 | AS45: 0 | AT45: 0 | AU45: 0 | AV45: 0 | AW45: 0 | AX45: 0 | AY45: 0 | AZ45: 0 | BA45: 0 | BB45: 0 | BC45: 0 | BD45: 0 | BE45: 0 | BF45: 0 | BG45: 0 | BH45: 0 | BI45: 0 | BJ45: 0 | BK45: 0 | BL45: 0 | BM45: 0 | BN45: 0 | BO45: 0 | BP45: 0 | BQ45: 0 | BR45: 0 | BS45: 0 | BT45: 0 | BU45: 0 | BV45: 0 | BW45: 0 | BX45: 0 | BY45: 0 | BZ45: 0 | CA45: 0 | CB45: 0 | CC45: 0 | CD45: 0 | CE45: 0 | CF45: 0 | CG45: 0 | CH45: 0 | CI45: 0 | CJ45: 0 | CK45: 0 | CL45: 0 | CM45: 0 | CN45: 0 | CO45: 0 | CP45: 0 | CQ45: 0 | CR45: 0 | CS45: 0 | CT45: 0 | CU45: 0 | CV45: 0 | CW45: 0 | CX45: 0
C46: =SUM(C$5,$B46) -> 0 | D46: 0 | E46: 0 | F46: 0 | G46: 0 | H46: 0 | I46: 0 | J46: 0 | K46: 0 | L46: 0 | M46: =SUM(M$5,$B46) -> 0 | N46: 0 | O46: 0 | P46: 0 | Q46: 0 | R46: 0 | S46: 0 | T46: 0 | U46: 0 | V46: 0 | W46: =SUM(W$5,$B46) -> 0 | X46: 0 | Y46: 0 | Z46: 0 | AA46: 0 | AB46: 0 | AC46: 0 | AD46: 0 | AE46: 0 | AF46: 0 | AG46: =SUM(AG$5,$B46) -> 0 | AH46: 0 | AI46: 0 | AJ46: 0 | AK46: 0 | AL46: 0 | AM46: 0 | AN46: 0 | AO46: 0 | AP46: 0 | AQ46: =SUM(AQ$5,$B46) -> 0 | AR46: 0 | AS46: 0 | AT46: 0 | AU46: 0 | AV46: 0 | AW46: 0 | AX46: 0 | AY46: 0 | AZ46: 0 | BA46: =SUM(BA$5,$B46) -> 0 | BB46: 0 | BC46: 0 | BD46: 0 | BE46: 0 | BF46: 0 | BG46: 0 | BH46: 0 | BI46: 0 | BJ46: 0 | BK46: =SUM(BK$5,$B46) -> 0 | BL46: 0 | BM46: 0 | BN46: 0 | BO46: 0 | BP46: 0 | BQ46: 0 | BR46: 0 | BS46: 0 | BT46: 0 | BU46: =SUM(BU$5,$B46) -> 0 | BV46: 0 | BW46: 0 | BX46: 0 | BY46: 0 | BZ46: 0 | CA46: 0 | CB46: 0 | CC46: 0 | CD46: 0 | CE46: =SUM(CE$5,$B46) -> 0 | CF46: 0 | CG46: 0 | CH46: 0 | CI46: 0 | CJ46: 0 | CK46: 0 | CL46: 0 | CM46: 0 | CN46: 0 | CO46: =SUM(CO$5,$B46) -> 0 | CP46: 0 | CQ46: 0 | CR46: 0 | CS46: 0 | CT46: 0 | CU46: 0 | CV46: 0 | CW46: 0 | CX46: 0
C47: 0 | D47: 0 | E47: 0 | F47: 0 | G47: 0 | H47: 0 | I47: 0 | J47: 0 | K47: 0 | L47: 0 | M47: 0 | N47: 0 | O47: 0 | P47: 0 | Q47: 0 | R47: 0 | S47: 0 | T47: 0 | U47: 0 | V47: 0 | W47: 0 | X47: 0 | Y47: 0 | Z47: 0 | AA47: 0 | AB47: 0 | AC47: 0 | AD47: 0 | AE47: 0 | AF47: 0 | AG47: 0 | AH47: 0 | AI47: 0 | AJ47: 0 | AK47: 0 | AL47: 0 | AM47: 0 | AN47: 0 | AO47: 0 | AP47: 0 | AQ47: 0 | AR47: 0 | AS47: 0 | AT47: 0 | AU47: 0 | AV47: 0 | AW47: 0 | AX47: 0 | AY47: 0 | AZ47: 0 | BA47: 0 | BB47: 0 | BC47: 0 | BD47: 0 | BE47: 0 | BF47: 0 | BG47: 0 | BH47: 0 | BI47: 0 | BJ47: 0 | BK47: 0 | BL47: 0 | BM47: 0 | BN47: 0 | BO47: 0 | BP47: 0 | BQ47: 0 | BR47: 0 | BS47: 0 | BT47: 0 | BU47: 0 | BV47: 0 | BW47: 0 | BX47: 0 | BY47: 0 | BZ47: 0 | CA47: 0 | CB47: 0 | CC47: 0 | CD47: 0 | CE47: 0 | CF47: 0 | CG47: 0 | CH47: 0 | CI47: 0 | CJ47: 0 | CK47: 0 | CL47: 0 | CM47: 0 | CN47: 0 | CO47: 0 | CP47: 0 | CQ47: 0 | CR47: 0 | CS47: 0 | CT47: 0 | CU47: 0 | CV47: 0 | CW47: 0 | CX47: 0
C48: 0 | D48: 0 | E48: 0 | F48: 0 | G48: 0 | H48: 0 | I48: 0 | J48: 0 | K48: 0 | L48: 0 | M48: 0 | N48: 0 | O48: 0 | P48: 0 | Q48: 0 | R48: 0 | S48: 0 | T48: 0 | U48: 0 | V48: 0 | W48: 0 | X48: 0 | Y48: 0 | Z48: 0 | AA48: 0 | AB48: 0 | AC48: 0 | AD48: 0 | AE48: 0 | AF48: 0 | AG48: 0 | AH48: 0 | AI48: 0 | AJ48: 0 | AK48: 0 | AL48: 0 | AM48: 0 | AN48: 0 | AO48: 0 | AP48: 0 | AQ48: 0 | AR48: 0 | AS48: 0 | AT48: 0 | AU48: 0 | AV48: 0 | AW48: 0 | AX48: 0 | AY48: 0 | AZ48: 0 | BA48: 0 | BB48: 0 | BC48: 0 | BD48: 0 | BE48: 0 | BF48: 0 | BG48: 0 | BH48: 0 | BI48: 0 | BJ48: 0 | BK48: 0 | BL48: 0 | BM48: 0 | BN48: 0 | BO48: 0 | BP48: 0 | BQ48: 0 | BR48: 0 | BS48: 0 | BT48: 0 | BU48: 0 | BV48: 0 | BW48: 0 | BX48: 0 | BY48: 0 | BZ48: 0 | CA48: 0 | CB48: 0 | CC48: 0 | CD48: 0 | CE48: 0 | CF48: 0 | CG48: 0 | CH48: 0 | CI48: 0 | CJ48: 0 | CK48: 0 | CL48: 0 | CM48: 0 | CN48: 0 | CO48: 0 | CP48: 0 | CQ48: 0 | CR48: 0 | CS48: 0 | CT48: 0 | CU48: 0 | CV48: 0 | CW48: 0 | CX48: 0
C49: 0 | D49: 0 | E49: 0 | F49: 0 | G49: 0 | H49: 0 | I49: 0 | J49: 0 | K49: 0 | L49: 0 | M49: 0 | N49: 0 | O49: 0 | P49: 0 | Q49: 0 | R49: 0 | S49: 0 | T49: 0 | U49: 0 | V49: 0 | W49: 0 | X49: 0 | Y49: 0 | Z49: 0 | AA49: 0 | AB49: 0 | AC49: 0 | AD49: 0 | AE49: 0 | AF49: 0 | AG49: 0 | AH49: 0 | AI49: 0 | AJ49: 0 | AK49: 0 | AL49: 0 | AM49: 0 | AN49: 0 | AO49: 0 | AP49: 0 | AQ49: 0 | AR49: 0 | AS49: 0 | AT49: 0 | AU49: 0 | AV49: 0 | AW49: 0 | AX49: 0 | AY49: 0 | AZ49: 0 | BA49: 0 | BB49: 0 | BC49: 0 | BD49: 0 | BE49: 0 | BF49: 0 | BG49: 0 | BH49: 0 | BI49: 0 | BJ49: 0 | BK49: 0 | BL49: 0 | BM49: 0 | BN49: 0 | BO49: 0 | BP49: 0 | BQ49: 0 | BR49: 0 | BS49: 0 | BT49: 0 | BU49: 0 | BV49: 0 | BW49: 0 | BX49: 0 | BY49: 0 | BZ49: 0 | CA49: 0 | CB49: 0 | CC49: 0 | CD49: 0 | CE49: 0 | CF49: 0 | CG49: 0 | CH49: 0 | CI49: 0 | CJ49: 0 | CK49: 0 | CL49: 0 | CM49: 0 | CN49: 0 | CO49: 0 | CP49: 0 | CQ49: 0 | CR49: 0 | CS49: 0 | CT49: 0 | CU49: 0 | CV49: 0 | CW49: 0 | CX49: 0
C50: 0 | D50: 0 | E50: 0 | F50: 0 | G50: 0 | H50: 0 | I50: 0 | J50: 0 | K50: 0 | L50: 0 | M50: 0 | N50: 0 | O50: 0 | P50: 0 | Q50: 0 | R50: 0 | S50: 0 | T50: 0 | U50: 0 | V50: 0 | W50: 0 | X50: 0 | Y50: 0 | Z50: 0 | AA50: 0 | AB50: 0 | AC50: 0 | AD50: 0 | AE50: 0 | AF50: 0 | AG50: 0 | AH50: 0 | AI50: 0 | AJ50: 0 | AK50: 0 | AL50: 0 | AM50: 0 | AN50: 0 | AO50: 0 | AP50: 0 | AQ50: 0 | AR50: 0 | AS50: 0 | AT50: 0 | AU50: 0 | AV50: 0 | AW50: 0 | AX50: 0 | AY50: 0 | AZ50: 0 | BA50: 0 | BB50: 0 | BC50: 0 | BD50: 0 | BE50: 0 | BF50: 0 | BG50: 0 | BH50: 0 | BI50: 0 | BJ50: 0 | BK50: 0 | BL50: 0 | BM50: 0 | BN50: 0 | BO50: 0 | BP50: 0 | BQ50: 0 | BR50: 0 | BS50: 0 | BT50: 0 | BU50: 0 | BV50: 0 | BW50: 0 | BX50: 0 | BY50: 0 | BZ50: 0 | CA50: 0 | CB50: 0 | CC50: 0 | CD50: 0 | CE50: 0 | CF50: 0 | CG50: 0 | CH50: 0 | CI50: 0 | CJ50: 0 | CK50: 0 | CL50: 0 | CM50: 0 | CN50: 0 | CO50: 0 | CP50: 0 | CQ50: 0 | CR50: 0 | CS50: 0 | CT50: 0 | CU50: 0 | CV50: 0 | CW50: 0 | CX50: 0
C51: 0 | D51: 0 | E51: 0 | F51: 0 | G51: 0 | H51: 0 | I51: 0 | J51: 0 | K51: 0 | L51: 0 | M51: 0 | N51: 0 | O51: 0 | P51: 0 | Q51: 0 | R51: 0 | S51: 0 | T51: 0 | U51: 0 | V51: 0 | W51: 0 | X51: 0 | Y51: 0 | Z51: 0 | AA51: 0 | AB51: 0 | AC51: 0 | AD51: 0 | AE51: 0 | AF51: 0 | AG51: 0 | AH51: 0 | AI51: 0 | AJ51: 0 | AK51: 0 | AL51: 0 | AM51: 0 | AN51: 0 | AO51: 0 | AP51: 0 | AQ51: 0 | AR51: 0 | AS51: 0 | AT51: 0 | AU51: 0 | AV51: 0 | AW51: 0 | AX51: 0 | AY51: 0 | AZ51: 0 | BA51: 0 | BB51: 0 | BC51: 0 | BD51: 0 | BE51: 0 | BF51: 0 | BG51: 0 | BH51: 0 | BI51: 0 | BJ51: 0 | BK51: 0 | BL51: 0 | BM51: 0 | BN51: 0 | BO51: 0 | BP51: 0 | BQ51: 0 | BR51: 0 | BS51: 0 | BT51: 0 | BU51: 0 | BV51: 0 | BW51: 0 | BX51: 0 | BY51: 0 | BZ51: 0 | CA51: 0 | CB51: 0 | CC51: 0 | CD51: 0 | CE51: 0 | CF51: 0 | CG51: 0 | CH51: 0 | CI51: 0 | CJ51: 0 | CK51: 0 | CL51: 0 | CM51: 0 | CN51: 0 | CO51: 0 | CP51: 0 | CQ51: 0 | CR51: 0 | CS51: 0 | CT51: 0 | CU51: 0 | CV51: 0 | CW51: 0 | CX51: 0
C52: 0 | D52: 0 | E52: 0 | F52: 0 | G52: 0 | H52: 0 | I52: 0 | J52: 0 | K52: 0 | L52: 0 | M52: 0 | N52: 0 | O52: 0 | P52: 0 | Q52: 0 | R52: 0 | S52: 0 | T52: 0 | U52: 0 | V52: 0 | W52: 0 | X52: 0 | Y52: 0 | Z52: 0 | AA52: 0 | AB52: 0 | AC52: 0 | AD52: 0 | AE52: 0 | AF52: 0 | AG52: 0 | AH52: 0 | AI52: 0 | AJ52: 0 | AK52: 0 | AL52: 0 | AM52: 0 | AN52: 0 | AO52: 0 | AP52: 0 | AQ52: 0 | AR52: 0 | AS52: 0 | AT52: 0 | AU52: 0 | AV52: 0 | AW52: 0 | AX52: 0 | AY52: 0 | AZ52: 0 | BA52: 0 | BB52: 0 | BC52: 0 | BD52: 0 | BE52: 0 | BF52: 0 | BG52: 0 | BH52: 0 | BI52: 0 | BJ52: 0 | BK52: 0 | BL52: 0 | BM52: 0 | BN52: 0 | BO52: 0 | BP52: 0 | BQ52: 0 | BR52: 0 | BS52: 0 | BT52: 0 | BU52: 0 | BV52: 0 | BW52: 0 | BX52: 0 | BY52: 0 | BZ52: 0 | CA52: 0 | CB52: 0 | CC52: 0 | CD52: 0 | CE52: 0 | CF52: 0 | CG52: 0 | CH52: 0 | CI52: 0 | CJ52: 0 | CK52: 0 | CL52: 0 | CM52: 0 | CN52: 0 | CO52: 0 | CP52: 0 | CQ52: 0 | CR52: 0 | CS52: 0 | CT52: 0 | CU52: 0 | CV52: 0 | CW52: 0 | CX52: 0
C53: 0 | D53: 0 | E53: 0 | F53: 0 | G53: 0 | H53: 0 | I53: 0 | J53: 0 | K53: 0 | L53: 0 | M53: 0 | N53: 0 | O53: 0 | P53: 0 | Q53: 0 | R53: 0 | S53: 0 | T53: 0 | U53: 0 | V53: 0 | W53: 0 | X53: 0 | Y53: 0 | Z53: 0 | AA53: 0 | AB53: 0 | AC53: 0 | AD53: 0 | AE53: 0 | AF53: 0 | AG53: 0 | AH53: 0 | AI53: 0 | AJ53: 0 | AK53: 0 | AL53: 0 | AM53: 0 | AN53: 0 | AO53: 0 | AP53: 0 | AQ53: 0 | AR53: 0 | AS53: 0 | AT53: 0 | AU53: 0 | AV53: 0 | AW53: 0 | AX53: 0 | AY53: 0 | AZ53: 0 | BA53: 0 | BB53: 0 | BC53: 0 | BD53: 0 | BE53: 0 | BF53: 0 | BG53: 0 | BH53: 0 | BI53: 0 | BJ53: 0 | BK53: 0 | BL53: 0 | BM53: 0 | BN53: 0 | BO53: 0 | BP53: 0 | BQ53: 0 | BR53: 0 | BS53: 0 | BT53: 0 | BU53: 0 | BV53: 0 | BW53: 0 | BX53: 0 | BY53: 0 | BZ53: 0 | CA53: 0 | CB53: 0 | CC53: 0 | CD53: 0 | CE53: 0 | CF53: 0 | CG53: 0 | CH53: 0 | CI53: 0 | CJ53: 0 | CK53: 0 | CL53: 0 | CM53: 0 | CN53: 0 | CO53: 0 | CP53: 0 | CQ53: 0 | CR53: 0 | CS53: 0 | CT53: 0 | CU53: 0 | CV53: 0 | CW53: 0 | CX53: 0
C54: 0 | D54: 0 | E54: 0 | F54: 0 | G54: 0 | H54: 0 | I54: 0 | J54: 0 | K54: 0 | L54: 0 | M54: 0 | N54: 0 | O54: 0 | P54: 0 | Q54: 0 | R54: 0 | S54: 0 | T54: 0 | U54: 0 | V54: 0 | W54: 0 | X54: 0 | Y54: 0 | Z54: 0 | AA54: 0 | AB54: 0 | AC54: 0 | AD54: 0 | AE54: 0 | AF54: 0 | AG54: 0 | AH54: 0 | AI54: 0 | AJ54: 0 | AK54: 0 | AL54: 0 | AM54: 0 | AN54: 0 | AO54: 0 | AP54: 0 | AQ54: 0 | AR54: 0 | AS54: 0 | AT54: 0 | AU54: 0 | AV54: 0 | AW54: 0 | AX54: 0 | AY54: 0 | AZ54: 0 | BA54: 0 | BB54: 0 | BC54: 0 | BD54: 0 | BE54: 0 | BF54: 0 | BG54: 0 | BH54: 0 | BI54: 0 | BJ54: 0 | BK54: 0 | BL54: 0 | BM54: 0 | BN54: 0 | BO54: 0 | BP54: 0 | BQ54: 0 | BR54: 0 | BS54: 0 | BT54: 0 | BU54: 0 | BV54: 0 | BW54: 0 | BX54: 0 | BY54: 0 | BZ54: 0 | CA54: 0 | CB54: 0 | CC54: 0 | CD54: 0 | CE54: 0 | CF54: 0 | CG54: 0 | CH54: 0 | CI54: 0 | CJ54: 0 | CK54: 0 | CL54: 0 | CM54: 0 | CN54: 0 | CO54: 0 | CP54: 0 | CQ54: 0 | CR54: 0 | CS54: 0 | CT54: 0 | CU54: 0 | CV54: 0 | CW54: 0 | CX54: 0
C55: 0 | D55: 0 | E55: 0 | F55: 0 | G55: 0 | H55: 0 | I55: 0 | J55: 0 | K55: 0 | L55: 0 | M55: 0 | N55: 0 | O55: 0 | P55: 0 | Q55: 0 | R55: 0 | S55: 0 | T55: 0 | U55: 0 | V55: 0 | W55: 0 | X55: 0 | Y55: 0 | Z55: 0 | AA55: 0 | AB55: 0 | AC55: 0 | AD55: 0 | AE55: 0 | AF55: 0 | AG55: 0 | AH55: 0 | AI55: 0 | AJ55: 0 | AK55: 0 | AL55: 0 | AM55: 0 | AN55: 0 | AO55: 0 | AP55: 0 | AQ55: 0 | AR55: 0 | AS55: 0 | AT55: 0 | AU55: 0 | AV55: 0 | AW55: 0 | AX55: 0 | AY55: 0 | AZ55: 0 | BA55: 0 | BB55: 0 | BC55: 0 | BD55: 0 | BE55: 0 | BF55: 0 | BG55: 0 | BH55: 0 | BI55: 0 | BJ55: 0 | BK55: 0 | BL55: 0 | BM55: 0 | BN55: 0 | BO55: 0 | BP55: 0 | BQ55: 0 | BR55: 0 | BS55: 0 | BT55: 0 | BU55: 0 | BV55: 0 | BW55: 0 | BX55: 0 | BY55: 0 | BZ55: 0 | CA55: 0 | CB55: 0 | CC55: 0 | CD55: 0 | CE55: 0 | CF55: 0 | CG55: 0 | CH55: 0 | CI55: 0 | CJ55: 0 | CK55: 0 | CL55: 0 | CM55: 0 | CN55: 0 | CO55: 0 | CP55: 0 | CQ55: 0 | CR55: 0 | CS55: 0 | CT55: 0 | CU55: 0 | CV55: 0 | CW55: 0 | CX55: 0
C56: =SUM(C$5,$B56) -> 0 | D56: 0 | E56: 0 | F56: 0 | G56: 0 | H56: 0 | I56: 0 | J56: 0 | K56: 0 | L56: 0 | M56: =SUM(M$5,$B56) -> 0 | N56: 0 | O56: 0 | P56: 0 | Q56: 0 | R56: 0 | S56: 0 | T56: 0 | U56: 0 | V56: 0 | W56: =SUM(W$5,$B56) -> 0 | X56: 0 | Y56: 0 | Z56: 0 | AA56: 0 | AB56: 0 | AC56: 0 | AD56: 0 | AE56: 0 | AF56: 0 | AG56: =SUM(AG$5,$B56) -> 0 | AH56: 0 | AI56: 0 | AJ56: 0 | AK56: 0 | AL56: 0 | AM56: 0 | AN56: 0 | AO56: 0 | AP56: 0 | AQ56: =SUM(AQ$5,$B56) -> 0 | AR56: 0 | AS56: 0 | AT56: 0 | AU56: 0 | AV56: 0 | AW56: 0 | AX56: 0 | AY56: 0 | AZ56: 0 | BA56: =SUM(BA$5,$B56) -> 0 | BB56: 0 | BC56: 0 | BD56: 0 | BE56: 0 | BF56: 0 | BG56: 0 | BH56: 0 | BI56: 0 | BJ56: 0 | BK56: =SUM(BK$5,$B56) -> 0 | BL56: 0 | BM56: 0 | BN56: 0 | BO56: 0 | BP56: 0 | BQ56: 0 | BR56: 0 | BS56: 0 | BT56: 0 | BU56: =SUM(BU$5,$B56) -> 0 | BV56: 0 | BW56: 0 | BX56: 0 | BY56: 0 | BZ56: 0 | CA56: 0 | CB56: 0 | CC56: 0 | CD56: 0 | CE56: =SUM(CE$5,$B56) -> 0 | CF56: 0 | CG56: 0 | CH56: 0 | CI56: 0 | CJ56: 0 | CK56: 0 | CL56: 0 | CM56: 0 | CN56: 0 | CO56: =SUM(CO$5,$B56) -> 0 | CP56: 0 | CQ56: 0 | CR56: 0 | CS56: 0 | CT56: 0 | CU56: 0 | CV56: 0 | CW56: 0 | CX56: 0
C57: 0 | D57: 0 | E57: 0 | F57: 0 | G57: 0 | H57: 0 | I57: 0 | J57: 0 | K57: 0 | L57: 0 | M57: 0 | N57: 0 | O57: 0 | P57: 0 | Q57: 0 | R57: 0 | S57: 0 | T57: 0 | U57: 0 | V57: 0 | W57: 0 | X57: 0 | Y57: 0 | Z57: 0 | AA57: 0 | AB57: 0 | AC57: 0 | AD57: 0 | AE57: 0 | AF57: 0 | AG57: 0 | AH57: 0 | AI57: 0 | AJ57: 0 | AK57: 0 | AL57: 0 | AM57: 0 | AN57: 0 | AO57: 0 | AP57: 0 | AQ57: 0 | AR57: 0 | AS57: 0 | AT57: 0 | AU57: 0 | AV57: 0 | AW57: 0 | AX57: 0 | AY57: 0 | AZ57: 0 | BA57: 0 | BB57: 0 | BC57: 0 | BD57: 0 | BE57: 0 | BF57: 0 | BG57: 0 | BH57: 0 | BI57: 0 | BJ57: 0 | BK57: 0 | BL57: 0 | BM57: 0 | BN57: 0 | BO57: 0 | BP57: 0 | BQ57: 0 | BR57: 0 | BS57: 0 | BT57: 0 | BU57: 0 | BV57: 0 | BW57: 0 | BX57: 0 | BY57: 0 | BZ57: 0 | CA57: 0 | CB57: 0 | CC57: 0 | CD57: 0 | CE57: 0 | CF57: 0 | CG57: 0 | CH57: 0 | CI57: 0 | CJ57: 0 | CK57: 0 | CL57: 0 | CM57: 0 | CN57: 0 | CO57: 0 | CP57: 0 | CQ57: 0 | CR57: 0 | CS57: 0 | CT57: 0 | CU57: 0 | CV57: 0 | CW57: 0 | CX57: 0
C58: 0 | D58: 0 | E58: 0 | F58: 0 | G58: 0 | H58: 0 | I58: 0 | J58: 0 | K58: 0 | L58: 0 | M58: 0 | N58: 0 | O58: 0 | P58: 0 | Q58: 0 | R58: 0 | S58: 0 | T58: 0 | U58: 0 | V58: 0 | W58: 0 | X58: 0 | Y58: 0 | Z58: 0 | AA58: 0 | AB58: 0 | AC58: 0 | AD58: 0 | AE58: 0 | AF58: 0 | AG58: 0 | AH58: 0 | AI58: 0 | AJ58: 0 | AK58: 0 | AL58: 0 | AM58: 0 | AN58: 0 | AO58: 0 | AP58: 0 | AQ58: 0 | AR58: 0 | AS58: 0 | AT58: 0 | AU58: 0 | AV58: 0 | AW58: 0 | AX58: 0 | AY58: 0 | AZ58: 0 | BA58: 0 | BB58: 0 | BC58: 0 | BD58: 0 | BE58: 0 | BF58: 0 | BG58: 0 | BH58: 0 | BI58: 0 | BJ58: 0 | BK58: 0 | BL58: 0 | BM58: 0 | BN58: 0 | BO58: 0 | BP58: 0 | BQ58: 0 | BR58: 0 | BS58: 0 | BT58: 0 | BU58: 0 | BV58: 0 | BW58: 0 | BX58: 0 | BY58: 0 | BZ58: 0 | CA58: 0 | CB58: 0 | CC58: 0 | CD58: 0 | CE58: 0 | CF58: 0 | CG58: 0 | CH58: 0 | CI58: 0 | CJ58: 0 | CK58: 0 | CL58: 0 | CM58: 0 | CN58: 0 | CO58: 0 | CP58: 0 | CQ58: 0 | CR58: 0 | CS58: 0 | CT58: 0 | CU58: 0 | CV58: 0 | CW58: 0 | CX58: 0
C59: 0 | D59: 0 | E59: 0 | F59: 0 | G59: 0 | H59: 0 | I59: 0 | J59: 0 | K59: 0 | L59: 0 | M59: 0 | N59: 0 | O59: 0 | P59: 0 | Q59: 0 | R59: 0 | S59: 0 | T59: 0 | U59: 0 | V59: 0 | W59: 0 | X59: 0 | Y59: 0 | Z59: 0 | AA59: 0 | AB59: 0 | AC59: 0 | AD59: 0 | AE59: 0 | AF59: 0 | AG59: 0 | AH59: 0 | AI59: 0 | AJ59: 0 | AK59: 0 | AL59: 0 | AM59: 0 | AN59: 0 | AO59: 0 | AP59: 0 | AQ59: 0 | AR59: 0 | AS59: 0 | AT59: 0 | AU59: 0 | AV59: 0 | AW59: 0 | AX59: 0 | AY59: 0 | AZ59: 0 | BA59: 0 | BB59: 0 | BC59: 0 | BD59: 0 | BE59: 0 | BF59: 0 | BG59: 0 | BH59: 0 | BI59: 0 | BJ59: 0 | BK59: 0 | BL59: 0 | BM59: 0 | BN59: 0 | BO59: 0 | BP59: 0 | BQ59: 0 | BR59: 0 | BS59: 0 | BT59: 0 | BU59: 0 | BV59: 0 | BW59: 0 | BX59: 0 | BY59: 0 | BZ59: 0 | CA59: 0 | CB59: 0 | CC59: 0 | CD59: 0 | CE59: 0 | CF59: 0 | CG59: 0 | CH59: 0 | CI59: 0 | CJ59: 0 | CK59: 0 | CL59: 0 | CM59: 0 | CN59: 0 | CO59: 0 | CP59: 0 | CQ59: 0 | CR59: 0 | CS59: 0 | CT59: 0 | CU59: 0 | CV59: 0 | CW59: 0 | CX59: 0
C60: 0 | D60: 0 | E60: 0 | F60: 0 | G60: 0 | H60: 0 | I60: 0 | J60: 0 | K60: 0 | L60: 0 | M60: 0 | N60: 0 | O60: 0 | P60: 0 | Q60: 0 | R60: 0 | S60: 0 | T60: 0 | U60: 0 | V60: 0 | W60: 0 | X60: 0 | Y60: 0 | Z60: 0 | AA60: 0 | AB60: 0 | AC60: 0 | AD60: 0 | AE60: 0 | AF60: 0 | AG60: 0 | AH60: 0 | AI60: 0 | AJ60: 0 | AK60: 0 | AL60: 0 | AM60: 0 | AN60: 0 | AO60: 0 | AP60: 0 | AQ60: 0 | AR60: 0 | AS60: 0 | AT60: 0 | AU60: 0 | AV60: 0 | AW60: 0 | AX60: 0 | AY60: 0 | AZ60: 0 | BA60: 0 | BB60: 0 | BC60: 0 | BD60: 0 | BE60: 0 | BF60: 0 | BG60: 0 | BH60: 0 | BI60: 0 | BJ60: 0 | BK60: 0 | BL60: 0 | BM60: 0 | BN60: 0 | BO60: 0 | BP60: 0 | BQ60: 0 | BR60: 0 | BS60: 0 | BT60: 0 | BU60: 0 | BV60: 0 | BW60: 0 | BX60: 0 | BY60: 0 | BZ60: 0 | CA60: 0 | CB60: 0 | CC60: 0 | CD60: 0 | CE60: 0 | CF60: 0 | CG60: 0 | CH60: 0 | CI60: 0 | CJ60: 0 | CK60: 0 | CL60: 0 | CM60: 0 | CN60: 0 | CO60: 0 | CP60: 0 | CQ60: 0 | CR60: 0 | CS60: 0 | CT60: 0 | CU60: 0 | CV60: 0 | CW60: 0 | CX60: 0
C61: 0 | D61: 0 | E61: 0 | F61: 0 | G61: 0 | H61: 0 | I61: 0 | J61: 0 | K61: 0 | L61: 0 | M61: 0 | N61: 0 | O61: 0 | P61: 0 | Q61: 0 | R61: 0 | S61: 0 | T61: 0 | U61: 0 | V61: 0 | W61: 0 | X61: 0 | Y61: 0 | Z61: 0 | AA61: 0 | AB61: 0 | AC61: 0 | AD61: 0 | AE61: 0 | AF61: 0 | AG61: 0 | AH61: 0 | AI61: 0 | AJ61: 0 | AK61: 0 | AL61: 0 | AM61: 0 | AN61: 0 | AO61: 0 | AP61: 0 | AQ61: 0 | AR61: 0 | AS61: 0 | AT61: 0 | AU61: 0 | AV61: 0 | AW61: 0 | AX61: 0 | AY61: 0 | AZ61: 0 | BA61: 0 | BB61: 0 | BC61: 0 | BD61: 0 | BE61: 0 | BF61: 0 | BG61: 0 | BH61: 0 | BI61: 0 | BJ61: 0 | BK61: 0 | BL61: 0 | BM61: 0 | BN61: 0 | BO61: 0 | BP61: 0 | BQ61: 0 | BR61: 0 | BS61: 0 | BT61: 0 | BU61: 0 | BV61: 0 | BW61: 0 | BX61: 0 | BY61: 0 | BZ61: 0 | CA61: 0 | CB61: 0 | CC61: 0 | CD61: 0 | CE61: 0 | CF61: 0 | CG61: 0 | CH61: 0 | CI61: 0 | CJ61: 0 | CK61: 0 | CL61: 0 | CM61: 0 | CN61: 0 | CO61: 0 | CP61: 0 | CQ61: 0 | CR61: 0 | CS61: 0 | CT61: 0 | CU61: 0 | CV61: 0 | CW61: 0 | CX61: 0
C62: 0 | D62: 0 | E62: 0 | F62: 0 | G62: 0 | H62: 0 | I62: 0 | J62: 0 | K62: 0 | L62: 0 | M62: 0 | N62: 0 | O62: 0 | P62: 0 | Q62: 0 | R62: 0 | S62: 0 | T62: 0 | U62: 0 | V62: 0 | W62: 0 | X62: 0 | Y62: 0 | Z62: 0 | AA62: 0 | AB62: 0 | AC62: 0 | AD62: 0 | AE62: 0 | AF62: 0 | AG62: 0 | AH62: 0 | AI62: 0 | AJ62: 0 | AK62: 0 | AL62: 0 | AM62: 0 | AN62: 0 | AO62: 0 | AP62: 0 | AQ62: 0 | AR62: 0 | AS62: 0 | AT62: 0 | AU62: 0 | AV62: 0 | AW62: 0 | AX62: 0 | AY62: 0 | AZ62: 0 | BA62: 0 | BB62: 0 | BC62: 0 | BD62: 0 | BE62: 0 | BF62: 0 | BG62: 0 | BH62: 0 | BI62: 0 | BJ62: 0 | BK62: 0 | BL62: 0 | BM62: 0 | BN62: 0 | BO62: 0 | BP62: 0 | BQ62: 0 | BR62: 0 | BS62: 0 | BT62: 0 | BU62: 0 | BV62: 0 | BW62: 0 | BX62: 0 | BY62: 0 | BZ62: 0 | CA62: 0 | CB62: 0 | CC62: 0 | CD62: 0 | CE62: 0 | CF62: 0 | CG62: 0 | CH62: 0 | CI62: 0 | CJ62: 0 | CK62: 0 | CL62: 0 | CM62: 0 | CN62: 0 | CO62: 0 | CP62: 0 | CQ62: 0 | CR62: 0 | CS62: 0 | CT62: 0 | CU62: 0 | CV62: 0 | CW62: 0 | CX62: 0
C63: 0 | D63: 0 | E63: 0 | F63: 0 | G63: 0 | H63: 0 | I63: 0 | J63: 0 | K63: 0 | L63: 0 | M63: 0 | N63: 0 | O63: 0 | P63: 0 | Q63: 0 | R63: 0 | S63: 0 | T63: 0 | U63: 0 | V63: 0 | W63: 0 | X63: 0 | Y63: 0 | Z63: 0 | AA63: 0 | AB63: 0 | AC63: 0 | AD63: 0 | AE63: 0 | AF63: 0 | AG63: 0 | AH63: 0 | AI63: 0 | AJ63: 0 | AK63: 0 | AL63: 0 | AM63: 0 | AN63: 0 | AO63: 0 | AP63: 0 | AQ63: 0 | AR63: 0 | AS63: 0 | AT63: 0 | AU63: 0 | AV63: 0 | AW63: 0 | AX63: 0 | AY63: 0 | AZ63: 0 | BA63: 0 | BB63: 0 | BC63: 0 | BD63: 0 | BE63: 0 | BF63: 0 | BG63: 0 | BH63: 0 | BI63: 0 | BJ63: 0 | BK63: 0 | BL63: 0 | BM63: 0 | BN63: 0 | BO63: 0 | BP63: 0 | BQ63: 0 | BR63: 0 | BS63: 0 | BT63: 0 | BU63: 0 | BV63: 0 | BW63: 0 | BX63: 0 | BY63: 0 | BZ63: 0 | CA63: 0 | CB63: 0 | CC63: 0 | CD63: 0 | CE63: 0 | CF63: 0 | CG63: 0 | CH63: 0 | CI63: 0 | CJ63: 0 | CK63: 0 | CL63: 0 | CM63: 0 | CN63: 0 | CO63: 0 | CP63: 0 | CQ63: 0 | CR63: 0 | CS63: 0 | CT63: 0 | CU63: 0 | CV63: 0 | CW63: 0 | CX63: 0
C64: 0 | D64: 0 | E64: 0 | F64: 0 | G64: 0 | H64: 0 | I64: 0 | J64: 0 | K64: 0 | L64: 0 | M64: 0 | N64: 0 | O64: 0 | P64: 0 | Q64: 0 | R64: 0 | S64: 0 | T64: 0 | U64: 0 | V64: 0 | W64: 0 | X64: 0 | Y64: 0 | Z64: 0 | AA64: 0 | AB64: 0 | AC64: 0 | AD64: 0 | AE64: 0 | AF64: 0 | AG64: 0 | AH64: 0 | AI64: 0 | AJ64: 0 | AK64: 0 | AL64: 0 | AM64: 0 | AN64: 0 | AO64: 0 | AP64: 0 | AQ64: 0 | AR64: 0 | AS64: 0 | AT64: 0 | AU64: 0 | AV64: 0 | AW64: 0 | AX64: 0 | AY64: 0 | AZ64: 0 | BA64: 0 | BB64: 0 | BC64: 0 | BD64: 0 | BE64: 0 | BF64: 0 | BG64: 0 | BH64: 0 | BI64: 0 | BJ64: 0 | BK64: 0 | BL64: 0 | BM64: 0 | BN64: 0 | BO64: 0 | BP64: 0 | BQ64: 0 | BR64: 0 | BS64: 0 | BT64: 0 | BU64: 0 | BV64: 0 | BW64: 0 | BX64: 0 | BY64: 0 | BZ64: 0 | CA64: 0 | CB64: 0 | CC64: 0 | CD64: 0 | CE64: 0 | CF64: 0 | CG64: 0 | CH64: 0 | CI64: 0 | CJ64: 0 | CK64: 0 | CL64: 0 | CM64: 0 | CN64: 0 | CO64: 0 | CP64: 0 | CQ64: 0 | CR64: 0 | CS64: 0 | CT64: 0 | CU64: 0 | CV64: 0 | CW64: 0 | CX64: 0
C65: 0 | D65: 0 | E65: 0 | F65: 0 | G65: 0 | H65: 0 | I65: 0 | J65: 0 | K65: 0 | L65: 0 | M65: 0 | N65: 0 | O65: 0 | P65: 0 | Q65: 0 | R65: 0 | S65: 0 | T65: 0 | U65: 0 | V65: 0 | W65: 0 | X65: 0 | Y65: 0 | Z65: 0 | AA65: 0 | AB65: 0 | AC65: 0 | AD65: 0 | AE65: 0 | AF65: 0 | AG65: 0 | AH65: 0 | AI65: 0 | AJ65: 0 | AK65: 0 | AL65: 0 | AM65: 0 | AN65: 0 | AO65: 0 | AP65: 0 | AQ65: 0 | AR65: 0 | AS65: 0 | AT65: 0 | AU65: 0 | AV65: 0 | AW65: 0 | AX65: 0 | AY65: 0 | AZ65: 0 | BA65: 0 | BB65: 0 | BC65: 0 | BD65: 0 | BE65: 0 | BF65: 0 | BG65: 0 | BH65: 0 | BI65: 0 | BJ65: 0 | BK65: 0 | BL65: 0 | BM65: 0 | BN65: 0 | BO65: 0 | BP65: 0 | BQ65: 0 | BR65: 0 | BS65: 0 | BT65: 0 | BU65: 0 | BV65: 0 | BW65: 0 | BX65: 0 | BY65: 0 | BZ65: 0 | CA65: 0 | CB65: 0 | CC65: 0 | CD65: 0 | CE65: 0 | CF65: 0 | CG65: 0 | CH65: 0 | CI65: 0 | CJ65: 0 | CK65: 0 | CL65: 0 | CM65: 0 | CN65: 0 | CO65: 0 | CP65: 0 | CQ65: 0 | CR65: 0 | CS65: 0 | CT65: 0 | CU65: 0 | CV65: 0 | CW65: 0 | CX65: 0
C66: =SUM(C$5,$B66) -> 0 | D66: 0 | E66: 0 | F66: 0 | G66: 0 | H66: 0 | I66: 0 | J66: 0 | K66: 0 | L66: 0 | M66: =SUM(M$5,$B66) -> 0 | N66: 0 | O66: 0 | P66: 0 | Q66: 0 | R66: 0 | S66: 0 | T66: 0 | U66: 0 | V66: 0 | W66: =SUM(W$5,$B66) -> 0 | X66: 0 | Y66: 0 | Z66: 0 | AA66: 0 | AB66: 0 | AC66: 0 | AD66: 0 | AE66: 0 | AF66: 0 | AG66: =SUM(AG$5,$B66) -> 0 | AH66: 0 | AI66: 0 | AJ66: 0 | AK66: 0 | AL66: 0 | AM66: 0 | AN66: 0 | AO66: 0 | AP66: 0 | AQ66: =SUM(AQ$5,$B66) -> 0 | AR66: 0 | AS66: 0 | AT66: 0 | AU66: 0 | AV66: 0 | AW66: 0 | AX66: 0 | AY66: 0 | AZ66: 0 | BA66: =SUM(BA$5,$B66) -> 0 | BB66: 0 | BC66: 0 | BD66: 0 | BE66: 0 | BF66: 0 | BG66: 0 | BH66: 0 | BI66: 0 | BJ66: 0 | BK66: =SUM(BK$5,$B66) -> 0 | BL66: 0 | BM66: 0 | BN66: 0 | BO66: 0 | BP66: 0 | BQ66: 0 | BR66: 0 | BS66: 0 | BT66: 0 | BU66: =SUM(BU$5,$B66) -> 0 | BV66: 0 | BW66: 0 | BX66: 0 | BY66: 0 | BZ66: 0 | CA66: 0 | CB66: 0 | CC66: 0 | CD66: 0 | CE66: =SUM(CE$5,$B66) -> 0 | CF66: 0 | CG66: 0 | CH66: 0 | CI66: 0 | CJ66: 0 | CK66: 0 | CL66: 0 | CM66: 0 | CN66: 0 | CO66: =SUM(CO$5,$B66) -> 0 | CP66: 0 | CQ66: 0 | CR66: 0 | CS66: 0 | CT66: 0 | CU66: 0 | CV66: 0 | CW66: 0 | CX66: 0
C67: 0 | D67: 0 | E67: 0 | F67: 0 | G67: 0 | H67: 0 | I67: 0 | J67: 0 | K67: 0 | L67: 0 | M67: 0 | N67: 0 | O67: 0 | P67: 0 | Q67: 0 | R67: 0 | S67: 0 | T67: 0 | U67: 0 | V67: 0 | W67: 0 | X67: 0 | Y67: 0 | Z67: 0 | AA67: 0 | AB67: 0 | AC67: 0 | AD67: 0 | AE67: 0 | AF67: 0 | AG67: 0 | AH67: 0 | AI67: 0 | AJ67: 0 | AK67: 0 | AL67: 0 | AM67: 0 | AN67: 0 | AO67: 0 | AP67: 0 | AQ67: 0 | AR67: 0 | AS67: 0 | AT67: 0 | AU67: 0 | AV67: 0 | AW67: 0 | AX67: 0 | AY67: 0 | AZ67: 0 | BA67: 0 | BB67: 0 | BC67: 0 | BD67: 0 | BE67: 0 | BF67: 0 | BG67: 0 | BH67: 0 | BI67: 0 | BJ67: 0 | BK67: 0 | BL67: 0 | BM67: 0 | BN67: 0 | BO67: 0 | BP67: 0 | BQ67: 0 | BR67: 0 | BS67: 0 | BT67: 0 | BU67: 0 | BV67: 0 | BW67: 0 | BX67: 0 | BY67: 0 | BZ67: 0 | CA67: 0 | CB67: 0 | CC67: 0 | CD67: 0 | CE67: 0 | CF67: 0 | CG67: 0 | CH67: 0 | CI67: 0 | CJ67: 0 | CK67: 0 | CL67: 0 | CM67: 0 | CN67: 0 | CO67: 0 | CP67: 0 | CQ67: 0 | CR67: 0 | CS67: 0 | CT67: 0 | CU67: 0 | CV67: 0 | CW67: 0 | CX67: 0
C68: 0 | D68: 0 | E68: 0 | F68: 0 | G68: 0 | H68: 0 | I68: 0 | J68: 0 | K68: 0 | L68: 0 | M68: 0 | N68: 0 | O68: 0 | P68: 0 | Q68: 0 | R68: 0 | S68: 0 | T68: 0 | U68: 0 | V68: 0 | W68: 0 | X68: 0 | Y68: 0 | Z68: 0 | AA68: 0 | AB68: 0 | AC68: 0 | AD68: 0 | AE68: 0 | AF68: 0 | AG68: 0 | AH68: 0 | AI68: 0 | AJ68: 0 | AK68: 0 | AL68: 0 | AM68: 0 | AN68: 0 | AO68: 0 | AP68: 0 | AQ68: 0 | AR68: 0 | AS68: 0 | AT68: 0 | AU68: 0 | AV68: 0 | AW68: 0 | AX68: 0 | AY68: 0 | AZ68: 0 | BA68: 0 | BB68: 0 | BC68: 0 | BD68: 0 | BE68: 0 | BF68: 0 | BG68: 0 | BH68: 0 | BI68: 0 | BJ68: 0 | BK68: 0 | BL68: 0 | BM68: 0 | BN68: 0 | BO68: 0 | BP68: 0 | BQ68: 0 | BR68: 0 | BS68: 0 | BT68: 0 | BU68: 0 | BV68: 0 | BW68: 0 | BX68: 0 | BY68: 0 | BZ68: 0 | CA68: 0 | CB68: 0 | CC68: 0 | CD68: 0 | CE68: 0 | CF68: 0 | CG68: 0 | CH68: 0 | CI68: 0 | CJ68: 0 | CK68: 0 | CL68: 0 | CM68: 0 | CN68: 0 | CO68: 0 | CP68: 0 | CQ68: 0 | CR68: 0 | CS68: 0 | CT68: 0 | CU68: 0 | CV68: 0 | CW68: 0 | CX68: 0
C69: 0 | D69: 0 | E69: 0 | F69: 0 | G69: 0 | H69: 0 | I69: 0 | J69: 0 | K69: 0 | L69: 0 | M69: 0 | N69: 0 | O69: 0 | P69: 0 | Q69: 0 | R69: 0 | S69: 0 | T69: 0 | U69: 0 | V69: 0 | W69: 0 | X69: 0 | Y69: 0 | Z69: 0 | AA69: 0 | AB69: 0 | AC69: 0 | AD69: 0 | AE69: 0 | AF69: 0 | AG69: 0 | AH69: 0 | AI69: 0 | AJ69: 0 | AK69: 0 | AL69: 0 | AM69: 0 | AN69: 0 | AO69: 0 | AP69: 0 | AQ69: 0 | AR69: 0 | AS69: 0 | AT69: 0 | AU69: 0 | AV69: 0 | AW69: 0 | AX69: 0 | AY69: 0 | AZ69: 0 | BA69: 0 | BB69: 0 | BC69: 0 | BD69: 0 | BE69: 0 | BF69: 0 | BG69: 0 | BH69: 0 | BI69: 0 | BJ69: 0 | BK69: 0 | BL69: 0 | BM69: 0 | BN69: 0 | BO69: 0 | BP69: 0 | BQ69: 0 | BR69: 0 | BS69: 0 | BT69: 0 | BU69: 0 | BV69: 0 | BW69: 0 | BX69: 0 | BY69: 0 | BZ69: 0 | CA69: 0 | CB69: 0 | CC69: 0 | CD69: 0 | CE69: 0 | CF69: 0 | CG69: 0 | CH69: 0 | CI69: 0 | CJ69: 0 | CK69: 0 | CL69: 0 | CM69: 0 | CN69: 0 | CO69: 0 | CP69: 0 | CQ69: 0 | CR69: 0 | CS69: 0 | CT69: 0 | CU69: 0 | CV69: 0 | CW69: 0 | CX69: 0
C70: 0 | D70: 0 | E70: 0 | F70: 0 | G70: 0 | H70: 0 | I70: 0 | J70: 0 | K70: 0 | L70: 0 | M70: 0 | N70: 0 | O70: 0 | P70: 0 | Q70: 0 | R70: 0 | S70: 0 | T70: 0 | U70: 0 | V70: 0 | W70: 0 | X70: 0 | Y70: 0 | Z70: 0 | AA70: 0 | AB70: 0 | AC70: 0 | AD70: 0 | AE70: 0 | AF70: 0 | AG70: 0 | AH70: 0 | AI70: 0 | AJ70: 0 | AK70: 0 | AL70: 0 | AM70: 0 | AN70: 0 | AO70: 0 | AP70: 0 | AQ70: 0 | AR70: 0 | AS70: 0 | AT70: 0 | AU70: 0 | AV70: 0 | AW70: 0 | AX70: 0 | AY70: 0 | AZ70: 0 | BA70: 0 | BB70: 0 | BC70: 0 | BD70: 0 | BE70: 0 | BF70: 0 | BG70: 0 | BH70: 0 | BI70: 0 | BJ70: 0 | BK70: 0 | BL70: 0 | BM70: 0 | BN70: 0 | BO70: 0 | BP70: 0 | BQ70: 0 | BR70: 0 | BS70: 0 | BT70: 0 | BU70: 0 | BV70: 0 | BW70: 0 | BX70: 0 | BY70: 0 | BZ70: 0 | CA70: 0 | CB70: 0 | CC70: 0 | CD70: 0 | CE70: 0 | CF70: 0 | CG70: 0 | CH70: 0 | CI70: 0 | CJ70: 0 | CK70: 0 | CL70: 0 | CM70: 0 | CN70: 0 | CO70: 0 | CP70: 0 | CQ70: 0 | CR70: 0 | CS70: 0 | CT70: 0 | CU70: 0 | CV70: 0 | CW70: 0 | CX70: 0
C71: 0 | D71: 0 | E71: 0 | F71: 0 | G71: 0 | H71: 0 | I71: 0 | J71: 0 | K71: 0 | L71: 0 | M71: 0 | N71: 0 | O71: 0 | P71: 0 | Q71: 0 | R71: 0 | S71: 0 | T71: 0 | U71: 0 | V71: 0 | W71: 0 | X71: 0 | Y71: 0 | Z71: 0 | AA71: 0 | AB71: 0 | AC71: 0 | AD71: 0 | AE71: 0 | AF71: 0 | AG71: 0 | AH71: 0 | AI71: 0 | AJ71: 0 | AK71: 0 | AL71: 0 | AM71: 0 | AN71: 0 | AO71: 0 | AP71: 0 | AQ71: 0 | AR71: 0 | AS71: 0 | AT71: 0 | AU71: 0 | AV71: 0 | AW71: 0 | AX71: 0 | AY71: 0 | AZ71: 0 | BA71: 0 | BB71: 0 | BC71: 0 | BD71: 0 | BE71: 0 | BF71: 0 | BG71: 0 | BH71: 0 | BI71: 0 | BJ71: 0 | BK71: 0 | BL71: 0 | BM71: 0 | BN71: 0 | BO71: 0 | BP71: 0 | BQ71: 0 | BR71: 0 | BS71: 0 | BT71: 0 | BU71: 0 | BV71: 0 | BW71: 0 | BX71: 0 | BY71: 0 | BZ71: 0 | CA71: 0 | CB71: 0 | CC71: 0 | CD71: 0 | CE71: 0 | CF71: 0 | CG71: 0 | CH71: 0 | CI71: 0 | CJ71: 0 | CK71: 0 | CL71: 0 | CM71: 0 | CN71: 0 | CO71: 0 | CP71: 0 | CQ71: 0 | CR71: 0 | CS71: 0 | CT71: 0 | CU71: 0 | CV71: 0 | CW71: 0 | CX71: 0
C72: 0 | D72: 0 | E72: 0 | F72: 0 | G72: 0 | H72: 0 | I72: 0 | J72: 0 | K72: 0 | L72: 0 | M72: 0 | N72: 0 | O72: 0 | P72: 0 | Q72: 0 | R72: 0 | S72: 0 | T72: 0 | U72: 0 | V72: 0 | W72: 0 | X72: 0 | Y72: 0 | Z72: 0 | AA72: 0 | AB72: 0 | AC72: 0 | AD72: 0 | AE72: 0 | AF72: 0 | AG72: 0 | AH72: 0 | AI72: 0 | AJ72: 0 | AK72: 0 | AL72: 0 | AM72: 0 | AN72: 0 | AO72: 0 | AP72: 0 | AQ72: 0 | AR72: 0 | AS72: 0 | AT72: 0 | AU72: 0 | AV72: 0 | AW72: 0 | AX72: 0 | AY72: 0 | AZ72: 0 | BA72: 0 | BB72: 0 | BC72: 0 | BD72: 0 | BE72: 0 | BF72: 0 | BG72: 0 | BH72: 0 | BI72: 0 | BJ72: 0 | BK72: 0 | BL72: 0 | BM72: 0 | BN72: 0 | BO72: 0 | BP72: 0 | BQ72: 0 | BR72: 0 | BS72: 0 | BT72: 0 | BU72: 0 | BV72: 0 | BW72: 0 | BX72: 0 | BY72: 0 | BZ72: 0 | CA72: 0 | CB72: 0 | CC72: 0 | CD72: 0 | CE72: 0 | CF72: 0 | CG72: 0 | CH72: 0 | CI72: 0 | CJ72: 0 | CK72: 0 | CL72: 0 | CM72: 0 | CN72: 0 | CO72: 0 | CP72: 0 | CQ72: 0 | CR72: 0 | CS72: 0 | CT72: 0 | CU72: 0 | CV72: 0 | CW72: 0 | CX72: 0
C73: 0 | D73: 0 | E73: 0 | F73: 0 | G73: 0 | H73: 0 | I73: 0 | J73: 0 | K73: 0 | L73: 0 | M73: 0 | N73: 0 | O73: 0 | P73: 0 | Q73: 0 | R73: 0 | S73: 0 | T73: 0 | U73: 0 | V73: 0 | W73: 0 | X73: 0 | Y73: 0 | Z73: 0 | AA73: 0 | AB73: 0 | AC73: 0 | AD73: 0 | AE73: 0 | AF73: 0 | AG73: 0 | AH73: 0 | AI73: 0 | AJ73: 0 | AK73: 0 | AL73: 0 | AM73: 0 | AN73: 0 | AO73: 0 | AP73: 0 | AQ73: 0 | AR73: 0 | AS73: 0 | AT73: 0 | AU73: 0 | AV73: 0 | AW73: 0 | AX73: 0 | AY73: 0 | AZ73: 0 | BA73: 0 | BB73: 0 | BC73: 0 | BD73: 0 | BE73: 0 | BF73: 0 | BG73: 0 | BH73: 0 | BI73: 0 | BJ73: 0 | BK73: 0 | BL73: 0 | BM73: 0 | BN73: 0 | BO73: 0 | BP73: 0 | BQ73: 0 | BR73: 0 | BS73: 0 | BT73: 0 | BU73: 0 | BV73: 0 | BW73: 0 | BX73: 0 | BY73: 0 | BZ73: 0 | CA73: 0 | CB73: 0 | CC73: 0 | CD73: 0 | CE73: 0 | CF73: 0 | CG73: 0 | CH73: 0 | CI73: 0 | CJ73: 0 | CK73: 0 | CL73: 0 | CM73: 0 | CN73: 0 | CO73: 0 | CP73: 0 | CQ73: 0 | CR73: 0 | CS73: 0 | CT73: 0 | CU73: 0 | CV73: 0 | CW73: 0 | CX73: 0
C74: 0 | D74: 0 | E74: 0 | F74: 0 | G74: 0 | H74: 0 | I74: 0 | J74: 0 | K74: 0 | L74: 0 | M74: 0 | N74: 0 | O74: 0 | P74: 0 | Q74: 0 | R74: 0 | S74: 0 | T74: 0 | U74: 0 | V74: 0 | W74: 0 | X74: 0 | Y74: 0 | Z74: 0 | AA74: 0 | AB74: 0 | AC74: 0 | AD74: 0 | AE74: 0 | AF74: 0 | AG74: 0 | AH74: 0 | AI74: 0 | AJ74: 0 | AK74: 0 | AL74: 0 | AM74: 0 | AN74: 0 | AO74: 0 | AP74: 0 | AQ74: 0 | AR74: 0 | AS74: 0 | AT74: 0 | AU74: 0 | AV74: 0 | AW74: 0 | AX74: 0 | AY74: 0 | AZ74: 0 | BA74: 0 | BB74: 0 | BC74: 0 | BD74: 0 | BE74: 0 | BF74: 0 | BG74: 0 | BH74: 0 | BI74: 0 | BJ74: 0 | BK74: 0 | BL74: 0 | BM74: 0 | BN74: 0 | BO74: 0 | BP74: 0 | BQ74: 0 | BR74: 0 | BS74: 0 | BT74: 0 | BU74: 0 | BV74: 0 | BW74: 0 | BX74: 0 | BY74: 0 | BZ74: 0 | CA74: 0 | CB74: 0 | CC74: 0 | CD74: 0 | CE74: 0 | CF74: 0 | CG74: 0 | CH74: 0 | CI74: 0 | CJ74: 0 | CK74: 0 | CL74: 0 | CM74: 0 | CN74: 0 | CO74: 0 | CP74: 0 | CQ74: 0 | CR74: 0 | CS74: 0 | CT74: 0 | CU74: 0 | CV74: 0 | CW74: 0 | CX74: 0
C75: 0 | D75: 0 | E75: 0 | F75: 0 | G75: 0 | H75: 0 | I75: 0 | J75: 0 | K75: 0 | L75: 0 | M75: 0 | N75: 0 | O75: 0 | P75: 0 | Q75: 0 | R75: 0 | S75: 0 | T75: 0 | U75: 0 | V75: 0 | W75: 0 | X75: 0 | Y75: 0 | Z75: 0 | AA75: 0 | AB75: 0 | AC75: 0 | AD75: 0 | AE75: 0 | AF75: 0 | AG75: 0 | AH75: 0 | AI75: 0 | AJ75: 0 | AK75: 0 | AL75: 0 | AM75: 0 | AN75: 0 | AO75: 0 | AP75: 0 | AQ75: 0 | AR75: 0 | AS75: 0 | AT75: 0 | AU75: 0 | AV75: 0 | AW75: 0 | AX75: 0 | AY75: 0 | AZ75: 0 | BA75: 0 | BB75: 0 | BC75: 0 | BD75: 0 | BE75: 0 | BF75: 0 | BG75: 0 | BH75: 0 | BI75: 0 | BJ75: 0 | BK75: 0 | BL75: 0 | BM75: 0 | BN75: 0 | BO75: 0 | BP75: 0 | BQ75: 0 | BR75: 0 | BS75: 0 | BT75: 0 | BU75: 0 | BV75: 0 | BW75: 0 | BX75: 0 | BY75: 0 | BZ75: 0 | CA75: 0 | CB75: 0 | CC75: 0 | CD75: 0 | CE75: 0 | CF75: 0 | CG75: 0 | CH75: 0 | CI75: 0 | CJ75: 0 | CK75: 0 | CL75: 0 | CM75: 0 | CN75: 0 | CO75: 0 | CP75: 0 | CQ75: 0 | CR75: 0 | CS75: 0 | CT75: 0 | CU75: 0 | CV75: 0 | CW75: 0 | CX75: 0
C76: =SUM(C$5,$B76) -> 0 | D76: 0 | E76: 0 | F76: 0 | G76: 0 | H76: 0 | I76: 0 | J76: 0 | K76: 0 | L76: 0 | M76: =SUM(M$5,$B76) -> 0 | N76: 0 | O76: 0 | P76: 0 | Q76: 0 | R76: 0 | S76: 0 | T76: 0 | U76: 0 | V76: 0 | W76: =SUM(W$5,$B76) -> 0 | X76: 0 | Y76: 0 | Z76: 0 | AA76: 0 | AB76: 0 | AC76: 0 | AD76: 0 | AE76: 0 | AF76: 0 | AG76: =SUM(AG$5,$B76) -> 0 | AH76: 0 | AI76: 0 | AJ76: 0 | AK76: 0 | AL76: 0 | AM76: 0 | AN76: 0 | AO76: 0 | AP76: 0 | AQ76: =SUM(AQ$5,$B76) -> 0 | AR76: 0 | AS76: 0 | AT76: 0 | AU76: 0 | AV76: 0 | AW76: 0 | AX76: 0 | AY76: 0 | AZ76: 0 | BA76: =SUM(BA$5,$B76) -> 0 | BB76: 0 | BC76: 0 | BD76: 0 | BE76: 0 | BF76: 0 | BG76: 0 | BH76: 0 | BI76: 0 | BJ76: 0 | BK76: =SUM(BK$5,$B76) -> 0 | BL76: 0 | BM76: 0 | BN76: 0 | BO76: 0 | BP76: 0 | BQ76: 0 | BR76: 0 | BS76: 0 | BT76: 0 | BU76: =SUM(BU$5,$B76) -> 0 | BV76: 0 | BW76: 0 | BX76: 0 | BY76: 0 | BZ76: 0 | CA76: 0 | CB76: 0 | CC76: 0 | CD76: 0 | CE76: =SUM(CE$5,$B76) -> 0 | CF76: 0 | CG76: 0 | CH76: 0 | CI76: 0 | CJ76: 0 | CK76: 0 | CL76: 0 | CM76: 0 | CN76: 0 | CO76: =SUM(CO$5,$B76) -> 0 | CP76: 0 | CQ76: 0 | CR76: 0 | CS76: 0 | CT76: 0 | CU76: 0 | CV76: 0 | CW76: 0 | CX76: 0
C77: 0 | D77: 0 | E77: 0 | F77: 0 | G77: 0 | H77: 0 | I77: 0 | J77: 0 | K77: 0 | L77: 0 | M77: 0 | N77: 0 | O77: 0 | P77: 0 | Q77: 0 | R77: 0 | S77: 0 | T77: 0 | U77: 0 | V77: 0 | W77: 0 | X77: 0 | Y77: 0 | Z77: 0 | AA77: 0 | AB77: 0 | AC77: 0 | AD77: 0 | AE77: 0 | AF77: 0 | AG77: 0 | AH77: 0 | AI77: 0 | AJ77: 0 | AK77: 0 | AL77: 0 | AM77: 0 | AN77: 0 | AO77: 0 | AP77: 0 | AQ77: 0 | AR77: 0 | AS77: 0 | AT77: 0 | AU77: 0 | AV77: 0 | AW77: 0 | AX77: 0 | AY77: 0 | AZ77: 0 | BA77: 0 | BB77: 0 | BC77: 0 | BD77: 0 | BE77: 0 | BF77: 0 | BG77: 0 | BH77: 0 | BI77: 0 | BJ77: 0 | BK77: 0 | BL77: 0 | BM77: 0 | BN77: 0 | BO77: 0 | BP77: 0 | BQ77: 0 | BR77: 0 | BS77: 0 | BT77: 0 | BU77: 0 | BV77: 0 | BW77: 0 | BX77: 0 | BY77: 0 | BZ77: 0 | CA77: 0 | CB77: 0 | CC77: 0 | CD77: 0 | CE77: 0 | CF77: 0 | CG77: 0 | CH77: 0 | CI77: 0 | CJ77: 0 | CK77: 0 | CL77: 0 | CM77: 0 | CN77: 0 | CO77: 0 | CP77: 0 | CQ77: 0 | CR77: 0 | CS77: 0 | CT77: 0 | CU77: 0 | CV77: 0 | CW77: 0 | CX77: 0
C78: 0 | D78: 0 | E78: 0 | F78: 0 | G78: 0 | H78: 0 | I78: 0 | J78: 0 | K78: 0 | L78: 0 | M78: 0 | N78: 0 | O78: 0 | P78: 0 | Q78: 0 | R78: 0 | S78: 0 | T78: 0 | U78: 0 | V78: 0 | W78: 0 | X78: 0 | Y78: 0 | Z78: 0 | AA78: 0 | AB78: 0 | AC78: 0 | AD78: 0 | AE78: 0 | AF78: 0 | AG78: 0 | AH78: 0 | AI78: 0 | AJ78: 0 | AK78: 0 | AL78: 0 | AM78: 0 | AN78: 0 | AO78: 0 | AP78: 0 | AQ78: 0 | AR78: 0 | AS78: 0 | AT78: 0 | AU78: 0 | AV78: 0 | AW78: 0 | AX78: 0 | AY78: 0 | AZ78: 0 | BA78: 0 | BB78: 0 | BC78: 0 | BD78: 0 | BE78: 0 | BF78: 0 | BG78: 0 | BH78: 0 | BI78: 0 | BJ78: 0 | BK78: 0 | BL78: 0 | BM78: 0 | BN78: 0 | BO78: 0 | BP78: 0 | BQ78: 0 | BR78: 0 | BS78: 0 | BT78: 0 | BU78: 0 | BV78: 0 | BW78: 0 | BX78: 0 | BY78: 0 | BZ78: 0 | CA78: 0 | CB78: 0 | CC78: 0 | CD78: 0 | CE78: 0 | CF78: 0 | CG78: 0 | CH78: 0 | CI78: 0 | CJ78: 0 | CK78: 0 | CL78: 0 | CM78: 0 | CN78: 0 | CO78: 0 | CP78: 0 | CQ78: 0 | CR78: 0 | CS78: 0 | CT78: 0 | CU78: 0 | CV78: 0 | CW78: 0 | CX78: 0
C79: 0 | D79: 0 | E79: 0 | F79: 0 | G79: 0 | H79: 0 | I79: 0 | J79: 0 | K79: 0 | L79: 0 | M79: 0 | N79: 0 | O79: 0 | P79: 0 | Q79: 0 | R79: 0 | S79: 0 | T79: 0 | U79: 0 | V79: 0 | W79: 0 | X79: 0 | Y79: 0 | Z79: 0 | AA79: 0 | AB79: 0 | AC79: 0 | AD79: 0 | AE79: 0 | AF79: 0 | AG79: 0 | AH79: 0 | AI79: 0 | AJ79: 0 | AK79: 0 | AL79: 0 | AM79: 0 | AN79: 0 | AO79: 0 | AP79: 0 | AQ79: 0 | AR79: 0 | AS79: 0 | AT79: 0 | AU79: 0 | AV79: 0 | AW79: 0 | AX79: 0 | AY79: 0 | AZ79: 0 | BA79: 0 | BB79: 0 | BC79: 0 | BD79: 0 | BE79: 0 | BF79: 0 | BG79: 0 | BH79: 0 | BI79: 0 | BJ79: 0 | BK79: 0 | BL79: 0 | BM79: 0 | BN79: 0 | BO79: 0 | BP79: 0 | BQ79: 0 | BR79: 0 | BS79: 0 | BT79: 0 | BU79: 0 | BV79: 0 | BW79: 0 | BX79: 0 | BY79: 0 | BZ79: 0 | CA79: 0 | CB79: 0 | CC79: 0 | CD79: 0 | CE79: 0 | CF79: 0 | CG79: 0 | CH79: 0 | CI79: 0 | CJ79: 0 | CK79: 0 | CL79: 0 | CM79: 0 | CN79: 0 | CO79: 0 | CP79: 0 | CQ79: 0 | CR79: 0 | CS79: 0 | CT79: 0 | CU79: 0 | CV79: 0 | CW79: 0 | CX79: 0
C80: 0 | D80: 0 | E80: 0 | F80: 0 | G80: 0 | H80: 0 | I80: 0 | J80: 0 | K80: 0 | L80: 0 | M80: 0 | N80: 0 | O80: 0 | P80: 0 | Q80: 0 | R80: 0 | S80: 0 | T80: 0 | U80: 0 | V80: 0 | W80: 0 | X80: 0 | Y80: 0 | Z80: 0 | AA80: 0 | AB80: 0 | AC80: 0 | AD80: 0 | AE80: 0 | AF80: 0 | AG80: 0 | AH80: 0 | AI80: 0 | AJ80: 0 | AK80: 0 | AL80: 0 | AM80: 0 | AN80: 0 | AO80: 0 | AP80: 0 | AQ80: 0 | AR80: 0 | AS80: 0 | AT80: 0 | AU80: 0 | AV80: 0 | AW80: 0 | AX80: 0 | AY80: 0 | AZ80: 0 | BA80: 0 | BB80: 0 | BC80: 0 | BD80: 0 | BE80: 0 | BF80: 0 | BG80: 0 | BH80: 0 | BI80: 0 | BJ80: 0 | BK80: 0 | BL80: 0 | BM80: 0 | BN80: 0 | BO80: 0 | BP80: 0 | BQ80: 0 | BR80: 0 | BS80: 0 | BT80: 0 | BU80: 0 | BV80: 0 | BW80: 0 | BX80: 0 | BY80: 0 | BZ80: 0 | CA80: 0 | CB80: 0 | CC80: 0 | CD80: 0 | CE80: 0 | CF80: 0 | CG80: 0 | CH80: 0 | CI80: 0 | CJ80: 0 | CK80: 0 | CL80: 0 | CM80: 0 | CN80: 0 | CO80: 0 | CP80: 0 | CQ80: 0 | CR80: 0 | CS80: 0 | CT80: 0 | CU80: 0 | CV80: 0 | CW80: 0 | CX80: 0
C81: 0 | D81: 0 | E81: 0 | F81: 0 | G81: 0 | H81: 0 | I81: 0 | J81: 0 | K81: 0 | L81: 0 | M81: 0 | N81: 0 | O81: 0 | P81: 0 | Q81: 0 | R81: 0 | S81: 0 | T81: 0 | U81: 0 | V81: 0 | W81: 0 | X81: 0 | Y81: 0 | Z81: 0 | AA81: 0 | AB81: 0 | AC81: 0 | AD81: 0 | AE81: 0 | AF81: 0 | AG81: 0 | AH81: 0 | AI81: 0 | AJ81: 0 | AK81: 0 | AL81: 0 | AM81: 0 | AN81: 0 | AO81: 0 | AP81: 0 | AQ81: 0 | AR81: 0 | AS81: 0 | AT81: 0 | AU81: 0 | AV81: 0 | AW81: 0 | AX81: 0 | AY81: 0 | AZ81: 0 | BA81: 0 | BB81: 0 | BC81: 0 | BD81: 0 | BE81: 0 | BF81: 0 | BG81: 0 | BH81: 0 | BI81: 0 | BJ81: 0 | BK81: 0 | BL81: 0 | BM81: 0 | BN81: 0 | BO81: 0 | BP81: 0 | BQ81: 0 | BR81: 0 | BS81: 0 | BT81: 0 | BU81: 0 | BV81: 0 | BW81: 0 | BX81: 0 | BY81: 0 | BZ81: 0 | CA81: 0 | CB81: 0 | CC81: 0 | CD81: 0 | CE81: 0 | CF81: 0 | CG81: 0 | CH81: 0 | CI81: 0 | CJ81: 0 | CK81: 0 | CL81: 0 | CM81: 0 | CN81: 0 | CO81: 0 | CP81: 0 | CQ81: 0 | CR81: 0 | CS81: 0 | CT81: 0 | CU81: 0 | CV81: 0 | CW81: 0 | CX81: 0
C82: 0 | D82: 0 | E82: 0 | F82: 0 | G82: 0 | H82: 0 | I82: 0 | J82: 0 | K82: 0 | L82: 0 | M82: 0 | N82: 0 | O82: 0 | P82: 0 | Q82: 0 | R82: 0 | S82: 0 | T82: 0 | U82: 0 | V82: 0 | W82: 0 | X82: 0 | Y82: 0 | Z82: 0 | AA82: 0 | AB82: 0 | AC82: 0 | AD82: 0 | AE82: 0 | AF82: 0 | AG82: 0 | AH82: 0 | AI82: 0 | AJ82: 0 | AK82: 0 | AL82: 0 | AM82: 0 | AN82: 0 | AO82: 0 | AP82: 0 | AQ82: 0 | AR82: 0 | AS82: 0 | AT82: 0 | AU82: 0 | AV82: 0 | AW82: 0 | AX82: 0 | AY82: 0 | AZ82: 0 | BA82: 0 | BB82: 0 | BC82: 0 | BD82: 0 | BE82: 0 | BF82: 0 | BG82: 0 | BH82: 0 | BI82: 0 | BJ82: 0 | BK82: 0 | BL82: 0 | BM82: 0 | BN82: 0 | BO82: 0 | BP82: 0 | BQ82: 0 | BR82: 0 | BS82: 0 | BT82: 0 | BU82: 0 | BV82: 0 | BW82: 0 | BX82: 0 | BY82: 0 | BZ82: 0 | CA82: 0 | CB82: 0 | CC82: 0 | CD82: 0 | CE82: 0 | CF82: 0 | CG82: 0 | CH82: 0 | CI82: 0 | CJ82: 0 | CK82: 0 | CL82: 0 | CM82: 0 | CN82: 0 | CO82: 0 | CP82: 0 | CQ82: 0 | CR82: 0 | CS82: 0 | CT82: 0 | CU82: 0 | CV82: 0 | CW82: 0 | CX82: 0
C83: 0 | D83: 0 | E83: 0 | F83: 0 | G83: 0 | H83: 0 | I83: 0 | J83: 0 | K83: 0 | L83: 0 | M83: 0 | N83: 0 | O83: 0 | P83: 0 | Q83: 0 | R83: 0 | S83: 0 | T83: 0 | U83: 0 | V83: 0 | W83: 0 | X83: 0 | Y83: 0 | Z83: 0 | AA83: 0 | AB83: 0 | AC83: 0 | AD83: 0 | AE83: 0 | AF83: 0 | AG83: 0 | AH83: 0 | AI83: 0 | AJ83: 0 | AK83: 0 | AL83: 0 | AM83: 0 | AN83: 0 | AO83: 0 | AP83: 0 | AQ83: 0 | AR83: 0 | AS83: 0 | AT83: 0 | AU83: 0 | AV83: 0 | AW83: 0 | AX83: 0 | AY83: 0 | AZ83: 0 | BA83: 0 | BB83: 0 | BC83: 0 | BD83: 0 | BE83: 0 | BF83: 0 | BG83: 0 | BH83: 0 | BI83: 0 | BJ83: 0 | BK83: 0 | BL83: 0 | BM83: 0 | BN83: 0 | BO83: 0 | BP83: 0 | BQ83: 0 | BR83: 0 | BS83: 0 | BT83: 0 | BU83: 0 | BV83: 0 | BW83: 0 | BX83: 0 | BY83: 0 | BZ83: 0 | CA83: 0 | CB83: 0 | CC83: 0 | CD83: 0 | CE83: 0 | CF83: 0 | CG83: 0 | CH83: 0 | CI83: 0 | CJ83: 0 | CK83: 0 | CL83: 0 | CM83: 0 | CN83: 0 | CO83: 0 | CP83: 0 | CQ83: 0 | CR83: 0 | CS83: 0 | CT83: 0 | CU83: 0 | CV83: 0 | CW83: 0 | CX83: 0
C84: 0 | D84: 0 | E84: 0 | F84: 0 | G84: 0 | H84: 0 | I84: 0 | J84: 0 | K84: 0 | L84: 0 | M84: 0 | N84: 0 | O84: 0 | P84: 0 | Q84: 0 | R84: 0 | S84: 0 | T84: 0 | U84: 0 | V84: 0 | W84: 0 | X84: 0 | Y84: 0 | Z84: 0 | AA84: 0 | AB84: 0 | AC84: 0 | AD84: 0 | AE84: 0 | AF84: 0 | AG84: 0 | AH84: 0 | AI84: 0 | AJ84: 0 | AK84: 0 | AL84: 0 | AM84: 0 | AN84: 0 | AO84: 0 | AP84: 0 | AQ84: 0 | AR84: 0 | AS84: 0 | AT84: 0 | AU84: 0 | AV84: 0 | AW84: 0 | AX84: 0 | AY84: 0 | AZ84: 0 | BA84: 0 | BB84: 0 | BC84: 0 | BD84: 0 | BE84: 0 | BF84: 0 | BG84: 0 | BH84: 0 | BI84: 0 | BJ84: 0 | BK84: 0 | BL84: 0 | BM84: 0 | BN84: 0 | BO84: 0 | BP84: 0 | BQ84: 0 | BR84: 0 | BS84: 0 | BT84: 0 | BU84: 0 | BV84: 0 | BW84: 0 | BX84: 0 | BY84: 0 | BZ84: 0 | CA84: 0 | CB84: 0 | CC84: 0 | CD84: 0 | CE84: 0 | CF84: 0 | CG84: 0 | CH84: 0 | CI84: 0 | CJ84: 0 | CK84: 0 | CL84: 0 | CM84: 0 | CN84: 0 | CO84: 0 | CP84: 0 | CQ84: 0 | CR84: 0 | CS84: 0 | CT84: 0 | CU84: 0 | CV84: 0 | CW84: 0 | CX84: 0
C85: 0 | D85: 0 | E85: 0 | F85: 0 | G85: 0 | H85: 0 | I85: 0 | J85: 0 | K85: 0 | L85: 0 | M85: 0 | N85: 0 | O85: 0 | P85: 0 | Q85: 0 | R85: 0 | S85: 0 | T85: 0 | U85: 0 | V85: 0 | W85: 0 | X85: 0 | Y85: 0 | Z85: 0 | AA85: 0 | AB85: 0 | AC85: 0 | AD85: 0 | AE85: 0 | AF85: 0 | AG85: 0 | AH85: 0 | AI85: 0 | AJ85: 0 | AK85: 0 | AL85: 0 | AM85: 0 | AN85: 0 | AO85: 0 | AP85: 0 | AQ85: 0 | AR85: 0 | AS85: 0 | AT85: 0 | AU85: 0 | AV85: 0 | AW85: 0 | AX85: 0 | AY85: 0 | AZ85: 0 | BA85: 0 | BB85: 0 | BC85: 0 | BD85: 0 | BE85: 0 | BF85: 0 | BG85: 0 | BH85: 0 | BI85: 0 | BJ85: 0 | BK85: 0 | BL85: 0 | BM85: 0 | BN85: 0 | BO85: 0 | BP85: 0 | BQ85: 0 | BR85: 0 | BS85: 0 | BT85: 0 | BU85: 0 | BV85: 0 | BW85: 0 | BX85: 0 | BY85: 0 | BZ85: 0 | CA85: 0 | CB85: 0 | CC85: 0 | CD85: 0 | CE85: 0 | CF85: 0 | CG85: 0 | CH85: 0 | CI85: 0 | CJ85: 0 | CK85: 0 | CL85: 0 | CM85: 0 | CN85: 0 | CO85: 0 | CP85: 0 | CQ85: 0 | CR85: 0 | CS85: 0 | CT85: 0 | CU85: 0 | CV85: 0 | CW85: 0 | CX85: 0
C86: =SUM(C$5,$B86) -> 0 | D86: 0 | E86: 0 | F86: 0 | G86: 0 | H86: 0 | I86: 0 | J86: 0 | K86: 0 | L86: 0 | M86: =SUM(M$5,$B86) -> 0 | N86: 0 | O86: 0 | P86: 0 | Q86: 0 | R86: 0 | S86: 0 | T86: 0 | U86: 0 | V86: 0 | W86: =SUM(W$5,$B86) -> 0 | X86: 0 | Y86: 0 | Z86: 0 | AA86: 0 | AB86: 0 | AC86: 0 | AD86: 0 | AE86: 0 | AF86: 0 | AG86: =SUM(AG$5,$B86) -> 0 | AH86: 0 | AI86: 0 | AJ86: 0 | AK86: 0 | AL86: 0 | AM86: 0 | AN86: 0 | AO86: 0 | AP86: 0 | AQ86: =SUM(AQ$5,$B86) -> 0 | AR86: 0 | AS86: 0 | AT86: 0 | AU86: 0 | AV86: 0 | AW86: 0 | AX86: 0 | AY86: 0 | AZ86: 0 | BA86: =SUM(BA$5,$B86) -> 0 | BB86: 0 | BC86: 0 | BD86: 0 | BE86: 0 | BF86: 0 | BG86: 0 | BH86: 0 | BI86: 0 | BJ86: 0 | BK86: =SUM(BK$5,$B86) -> 0 | BL86: 0 | BM86: 0 | BN86: 0 | BO86: 0 | BP86: 0 | BQ86: 0 | BR86: 0 | BS86: 0 | BT86: 0 | BU86: =SUM(BU$5,$B86) -> 0 | BV86: 0 | BW86: 0 | BX86: 0 | BY86: 0 | BZ86: 0 | CA86: 0 | CB86: 0 | CC86: 0 | CD86: 0 | CE86: =SUM(CE$5,$B86) -> 0 | CF86: 0 | CG86: 0 | CH86: 0 | CI86: 0 | CJ86: 0 | CK86: 0 | CL86: 0 | CM86: 0 | CN86: 0 | CO86: =SUM(CO$5,$B86) -> 0 | CP86: 0 | CQ86: 0 | CR86: 0 | CS86: 0 | CT86: 0 | CU86: 0 | CV86: 0 | CW86: 0 | CX86: 0
C87: 0 | D87: 0 | E87: 0 | F87: 0 | G87: 0 | H87: 0 | I87: 0 | J87: 0 | K87: 0 | L87: 0 | M87: 0 | N87: 0 | O87: 0 | P87: 0 | Q87: 0 | R87: 0 | S87: 0 | T87: 0 | U87: 0 | V87: 0 | W87: 0 | X87: 0 | Y87: 0 | Z87: 0 | AA87: 0 | AB87: 0 | AC87: 0 | AD87: 0 | AE87: 0 | AF87: 0 | AG87: 0 | AH87: 0 | AI87: 0 | AJ87: 0 | AK87: 0 | AL87: 0 | AM87: 0 | AN87: 0 | AO87: 0 | AP87: 0 | AQ87: 0 | AR87: 0 | AS87: 0 | AT87: 0 | AU87: 0 | AV87: 0 | AW87: 0 | AX87: 0 | AY87: 0 | AZ87: 0 | BA87: 0 | BB87: 0 | BC87: 0 | BD87: 0 | BE87: 0 | BF87: 0 | BG87: 0 | BH87: 0 | BI87: 0 | BJ87: 0 | BK87: 0 | BL87: 0 | BM87: 0 | BN87: 0 | BO87: 0 | BP87: 0 | BQ87: 0 | BR87: 0 | BS87: 0 | BT87: 0 | BU87: 0 | BV87: 0 | BW87: 0 | BX87: 0 | BY87: 0 | BZ87: 0 | CA87: 0 | CB87: 0 | CC87: 0 | CD87: 0 | CE87: 0 | CF87: 0 | CG87: 0 | CH87: 0 | CI87: 0 | CJ87: 0 | CK87: 0 | CL87: 0 | CM87: 0 | CN87: 0 | CO87: 0 | CP87: 0 | CQ87: 0 | CR87: 0 | CS87: 0 | CT87: 0 | CU87: 0 | CV87: 0 | CW87: 0 | CX87: 0
C88: 0 | D88: 0 | E88: 0 | F88: 0 | G88: 0 | H88: 0 | I88: 0 | J88: 0 | K88: 0 | L88: 0 | M88: 0 | N88: 0 | O88: 0 | P88: 0 | Q88: 0 | R88: 0 | S88: 0 | T88: 0 | U88: 0 | V88: 0 | W88: 0 | X88: 0 | Y88: 0 | Z88: 0 | AA88: 0 | AB88: 0 | AC88: 0 | AD88: 0 | AE88: 0 | AF88: 0 | AG88: 0 | AH88: 0 | AI88: 0 | AJ88: 0 | AK88: 0 | AL88: 0 | AM88: 0 | AN88: 0 | AO88: 0 | AP88: 0 | AQ88: 0 | AR88: 0 | AS88: 0 | AT88: 0 | AU88: 0 | AV88: 0 | AW88: 0 | AX88: 0 | AY88: 0 | AZ88: 0 | BA88: 0 | BB88: 0 | BC88: 0 | BD88: 0 | BE88: 0 | BF88: 0 | BG88: 0 | BH88: 0 | BI88: 0 | BJ88: 0 | BK88: 0 | BL88: 0 | BM88: 0 | BN88: 0 | BO88: 0 | BP88: 0 | BQ88: 0 | BR88: 0 | BS88: 0 | BT88: 0 | BU88: 0 | BV88: 0 | BW88: 0 | BX88: 0 | BY88: 0 | BZ88: 0 | CA88: 0 | CB88: 0 | CC88: 0 | CD88: 0 | CE88: 0 | CF88: 0 | CG88: 0 | CH88: 0 | CI88: 0 | CJ88: 0 | CK88: 0 | CL88: 0 | CM88: 0 | CN88: 0 | CO88: 0 | CP88: 0 | CQ88: 0 | CR88: 0 | CS88: 0 | CT88: 0 | CU88: 0 | CV88: 0 | CW88: 0 | CX88: 0
C89: 0 | D89: 0 | E89: 0 | F89: 0 | G89: 0 | H89: 0 | I89: 0 | J89: 0 | K89: 0 | L89: 0 | M89: 0 | N89: 0 | O89: 0 | P89: 0 | Q89: 0 | R89: 0 | S89: 0 | T89: 0 | U89: 0 | V89: 0 | W89: 0 | X89: 0 | Y89: 0 | Z89: 0 | AA89: 0 | AB89: 0 | AC89: 0 | AD89: 0 | AE89: 0 | AF89: 0 | AG89: 0 | AH89: 0 | AI89: 0 | AJ89: 0 | AK89: 0 | AL89: 0 | AM89: 0 | AN89: 0 | AO89: 0 | AP89: 0 | AQ89: 0 | AR89: 0 | AS89: 0 | AT89: 0 | AU89: 0 | AV89: 0 | AW89: 0 | AX89: 0 | AY89: 0 | AZ89: 0 | BA89: 0 | BB89: 0 | BC89: 0 | BD89: 0 | BE89: 0 | BF89: 0 | BG89: 0 | BH89: 0 | BI89: 0 | BJ89: 0 | BK89: 0 | BL89: 0 | BM89: 0 | BN89: 0 | BO89: 0 | BP89: 0 | BQ89: 0 | BR89: 0 | BS89: 0 | BT89: 0 | BU89: 0 | BV89: 0 | BW89: 0 | BX89: 0 | BY89: 0 | BZ89: 0 | CA89: 0 | CB89: 0 | CC89: 0 | CD89: 0 | CE89: 0 | CF89: 0 | CG89: 0 | CH89: 0 | CI89: 0 | CJ89: 0 | CK89: 0 | CL89: 0 | CM89: 0 | CN89: 0 | CO89: 0 | CP89: 0 | CQ89: 0 | CR89: 0 | CS89: 0 | CT89: 0 | CU89: 0 | CV89: 0 | CW89: 0 | CX89: 0
C90: 0 | D90: 0 | E90: 0 | F90: 0 | G90: 0 | H90: 0 | I90: 0 | J90: 0 | K90: 0 | L90: 0 | M90: 0 | N90: 0 | O90: 0 | P90: 0 | Q90: 0 | R90: 0 | S90: 0 | T90: 0 | U90: 0 | V90: 0 | W90: 0 | X90: 0 | Y90: 0 | Z90: 0 | AA90: 0 | AB90: 0 | AC90: 0 | AD90: 0 | AE90: 0 | AF90: 0 | AG90: 0 | AH90: 0 | AI90: 0 | AJ90: 0 | AK90: 0 | AL90: 0 | AM90: 0 | AN90: 0 | AO90: 0 | AP90: 0 | AQ90: 0 | AR90: 0 | AS90: 0 | AT90: 0 | AU90: 0 | AV90: 0 | AW90: 0 | AX90: 0 | AY90: 0 | AZ90: 0 | BA90: 0 | BB90: 0 | BC90: 0 | BD90: 0 | BE90: 0 | BF90: 0 | BG90: 0 | BH90: 0 | BI90: 0 | BJ90: 0 | BK90: 0 | BL90: 0 | BM90: 0 | BN90: 0 | BO90: 0 | BP90: 0 | BQ90: 0 | BR90: 0 | BS90: 0 | BT90: 0 | BU90: 0 | BV90: 0 | BW90: 0 | BX90: 0 | BY90: 0 | BZ90: 0 | CA90: 0 | CB90: 0 | CC90: 0 | CD90: 0 | CE90: 0 | CF90: 0 | CG90: 0 | CH90: 0 | CI90: 0 | CJ90: 0 | CK90: 0 | CL90: 0 | CM90: 0 | CN90: 0 | CO90: 0 | CP90: 0 | CQ90: 0 | CR90: 0 | CS90: 0 | CT90: 0 | CU90: 0 | CV90: 0 | CW90: 0 | CX90: 0
C91: 0 | D91: 0 | E91: 0 | F91: 0 | G91: 0 | H91: 0 | I91: 0 | J91: 0 | K91: 0 | L91: 0 | M91: 0 | N91: 0 | O91: 0 | P91: 0 | Q91: 0 | R91: 0 | S91: 0 | T91: 0 | U91: 0 | V91: 0 | W91: 0 | X91: 0 | Y91: 0 | Z91: 0 | AA91: 0 | AB91: 0 | AC91: 0 | AD91: 0 | AE91: 0 | AF91: 0 | AG91: 0 | AH91: 0 | AI91: 0 | AJ91: 0 | AK91: 0 | AL91: 0 | AM91: 0 | AN91: 0 | AO91: 0 | AP91: 0 | AQ91: 0 | AR91: 0 | AS91: 0 | AT91: 0 | AU91: 0 | AV91: 0 | AW91: 0 | AX91: 0 | AY91: 0 | AZ91: 0 | BA91: 0 | BB91: 0 | BC91: 0 | BD91: 0 | BE91: 0 | BF91: 0 | BG91: 0 | BH91: 0 | BI91: 0 | BJ91: 0 | BK91: 0 | BL91: 0 | BM91: 0 | BN91: 0 | BO91: 0 | BP91: 0 | BQ91: 0 | BR91: 0 | BS91: 0 | BT91: 0 | BU91: 0 | BV91: 0 | BW91: 0 | BX91: 0 | BY91: 0 | BZ91: 0 | CA91: 0 | CB91: 0 | CC91: 0 | CD91: 0 | CE91: 0 | CF91: 0 | CG91: 0 | CH91: 0 | CI91: 0 | CJ91: 0 | CK91: 0 | CL91: 0 | CM91: 0 | CN91: 0 | CO91: 0 | CP91: 0 | CQ91: 0 | CR91: 0 | CS91: 0 | CT91: 0 | CU91: 0 | CV91: 0 | CW91: 0 | CX91: 0
C92: 0 | D92: 0 | E92: 0 | F92: 0 | G92: 0 | H92: 0 | I92: 0 | J92: 0 | K92: 0 | L92: 0 | M92: 0 | N92: 0 | O92: 0 | P92: 0 | Q92: 0 | R92: 0 | S92: 0 | T92: 0 | U92: 0 | V92: 0 | W92: 0 | X92: 0 | Y92: 0 | Z92: 0 | AA92: 0 | AB92: 0 | AC92: 0 | AD92: 0 | AE92: 0 | AF92: 0 | AG92: 0 | AH92: 0 | AI92: 0 | AJ92: 0 | AK92: 0 | AL92: 0 | AM92: 0 | AN92: 0 | AO92: 0 | AP92: 0 | AQ92: 0 | AR92: 0 | AS92: 0 | AT92: 0 | AU92: 0 | AV92: 0 | AW92: 0 | AX92: 0 | AY92: 0 | AZ92: 0 | BA92: 0 | BB92: 0 | BC92: 0 | BD92: 0 | BE92: 0 | BF92: 0 | BG92: 0 | BH92: 0 | BI92: 0 | BJ92: 0 | BK92: 0 | BL92: 0 | BM92: 0 | BN92: 0 | BO92: 0 | BP92: 0 | BQ92: 0 | BR92: 0 | BS92: 0 | BT92: 0 | BU92: 0 | BV92: 0 | BW92: 0 | BX92: 0 | BY92: 0 | BZ92: 0 | CA92: 0 | CB92: 0 | CC92: 0 | CD92: 0 | CE92: 0 | CF92: 0 | CG92: 0 | CH92: 0 | CI92: 0 | CJ92: 0 | CK92: 0 | CL92: 0 | CM92: 0 | CN92: 0 | CO92: 0 | CP92: 0 | CQ92: 0 | CR92: 0 | CS92: 0 | CT92: 0 | CU92: 0 | CV92: 0 | CW92: 0 | CX92: 0
C93: 0 | D93: 0 | E93: 0 | F93: 0 | G93: 0 | H93: 0 | I93: 0 | J93: 0 | K93: 0 | L93: 0 | M93: 0 | N93: 0 | O93: 0 | P93: 0 | Q93: 0 | R93: 0 | S93: 0 | T93: 0 | U93: 0 | V93: 0 | W93: 0 | X93: 0 | Y93: 0 | Z93: 0 | AA93: 0 | AB93: 0 | AC93: 0 | AD93: 0 | AE93: 0 | AF93: 0 | AG93: 0 | AH93: 0 | AI93: 0 | AJ93: 0 | AK93: 0 | AL93: 0 | AM93: 0 | AN93: 0 | AO93: 0 | AP93: 0 | AQ93: 0 | AR93: 0 | AS93: 0 | AT93: 0 | AU93: 0 | AV93: 0 | AW93: 0 | AX93: 0 | AY93: 0 | AZ93: 0 | BA93: 0 | BB93: 0 | BC93: 0 | BD93: 0 | BE93: 0 | BF93: 0 | BG93: 0 | BH93: 0 | BI93: 0 | BJ93: 0 | BK93: 0 | BL93: 0 | BM93: 0 | BN93: 0 | BO93: 0 | BP93: 0 | BQ93: 0 | BR93: 0 | BS93: 0 | BT93: 0 | BU93: 0 | BV93: 0 | BW93: 0 | BX93: 0 | BY93: 0 | BZ93: 0 | CA93: 0 | CB93: 0 | CC93: 0 | CD93: 0 | CE93: 0 | CF93: 0 | CG93: 0 | CH93: 0 | CI93: 0 | CJ93: 0 | CK93: 0 | CL93: 0 | CM93: 0 | CN93: 0 | CO93: 0 | CP93: 0 | CQ93: 0 | CR93: 0 | CS93: 0 | CT93: 0 | CU93: 0 | CV93: 0 | CW93: 0 | CX93: 0
C94: 0 | D94: 0 | E94: 0 | F94: 0 | G94: 0 | H94: 0 | I94: 0 | J94: 0 | K94: 0 | L94: 0 | M94: 0 | N94: 0 | O94: 0 | P94: 0 | Q94: 0 | R94: 0 | S94: 0 | T94: 0 | U94: 0 | V94: 0 | W94: 0 | X94: 0 | Y94: 0 | Z94: 0 | AA94: 0 | AB94: 0 | AC94: 0 | AD94: 0 | AE94: 0 | AF94: 0 | AG94: 0 | AH94: 0 | AI94: 0 | AJ94: 0 | AK94: 0 | AL94: 0 | AM94: 0 | AN94: 0 | AO94: 0 | AP94: 0 | AQ94: 0 | AR94: 0 | AS94: 0 | AT94: 0 | AU94: 0 | AV94: 0 | AW94: 0 | AX94: 0 | AY94: 0 | AZ94: 0 | BA94: 0 | BB94: 0 | BC94: 0 | BD94: 0 | BE94: 0 | BF94: 0 | BG94: 0 | BH94: 0 | BI94: 0 | BJ94: 0 | BK94: 0 | BL94: 0 | BM94: 0 | BN94: 0 | BO94: 0 | BP94: 0 | BQ94: 0 | BR94: 0 | BS94: 0 | BT94: 0 | BU94: 0 | BV94: 0 | BW94: 0 | BX94: 0 | BY94: 0 | BZ94: 0 | CA94: 0 | CB94: 0 | CC94: 0 | CD94: 0 | CE94: 0 | CF94: 0 | CG94: 0 | CH94: 0 | CI94: 0 | CJ94: 0 | CK94: 0 | CL94: 0 | CM94: 0 | CN94: 0 | CO94: 0 | CP94: 0 | CQ94: 0 | CR94: 0 | CS94: 0 | CT94: 0 | CU94: 0 | CV94: 0 | CW94: 0 | CX94: 0
C95: 0 | D95: 0 | E95: 0 | F95: 0 | G95: 0 | H95: 0 | I95: 0 | J95: 0 | K95: 0 | L95: 0 | M95: 0 | N95: 0 | O95: 0 | P95: 0 | Q95: 0 | R95: 0 | S95: 0 | T95: 0 | U95: 0 | V95: 0 | W95: 0 | X95: 0 | Y95: 0 | Z95: 0 | AA95: 0 | AB95: 0 | AC95: 0 | AD95: 0 | AE95: 0 | AF95: 0 | AG95: 0 | AH95: 0 | AI95: 0 | AJ95: 0 | AK95: 0 | AL95: 0 | AM95: 0 | AN95: 0 | AO95: 0 | AP95: 0 | AQ95: 0 | AR95: 0 | AS95: 0 | AT95: 0 | AU95: 0 | AV95: 0 | AW95: 0 | AX95: 0 | AY95: 0 | AZ95: 0 | BA95: 0 | BB95: 0 | BC95: 0 | BD95: 0 | BE95: 0 | BF95: 0 | BG95: 0 | BH95: 0 | BI95: 0 | BJ95: 0 | BK95: 0 | BL95: 0 | BM95: 0 | BN95: 0 | BO95: 0 | BP95: 0 | BQ95: 0 | BR95: 0 | BS95: 0 | BT95: 0 | BU95: 0 | BV95: 0 | BW95: 0 | BX95: 0 | BY95: 0 | BZ95: 0 | CA95: 0 | CB95: 0 | CC95: 0 | CD95: 0 | CE95: 0 | CF95: 0 | CG95: 0 | CH95: 0 | CI95: 0 | CJ95: 0 | CK95: 0 | CL95: 0 | CM95: 0 | CN95: 0 | CO95: 0 | CP95: 0 | CQ95: 0 | CR95: 0 | CS95: 0 | CT95: 0 | CU95: 0 | CV95: 0 | CW95: 0 | CX95: 0
C96: =SUM(C$5,$B96) -> 0 | D96: 0 | E96: 0 | F96: 0 | G96: 0 | H96: 0 | I96: 0 | J96: 0 | K96: 0 | L96: 0 | M96: =SUM(M$5,$B96) -> 0 | N96: 0 | O96: 0 | P96: 0 | Q96: 0 | R96: 0 | S96: 0 | T96: 0 | U96: 0 | V96: 0 | W96: =SUM(W$5,$B96) -> 0 | X96: 0 | Y96: 0 | Z96: 0 | AA96: 0 | AB96: 0 | AC96: 0 | AD96: 0 | AE96: 0 | AF96: 0 | AG96: =SUM(AG$5,$B96) -> 0 | AH96: 0 | AI96: 0 | AJ96: 0 | AK96: 0 | AL96: 0 | AM96: 0 | AN96: 0 | AO96: 0 | AP96: 0 | AQ96: =SUM(AQ$5,$B96) -> 0 | AR96: 0 | AS96: 0 | AT96: 0 | AU96: 0 | AV96: 0 | AW96: 0 | AX96: 0 | AY96: 0 | AZ96: 0 | BA96: =SUM(BA$5,$B96) -> 0 | BB96: 0 | BC96: 0 | BD96: 0 | BE96: 0 | BF96: 0 | BG96: 0 | BH96: 0 | BI96: 0 | BJ96: 0 | BK96: =SUM(BK$5,$B96) -> 0 | BL96: 0 | BM96: 0 | BN96: 0 | BO96: 0 | BP96: 0 | BQ96: 0 | BR96: 0 | BS96: 0 | BT96: 0 | BU96: =SUM(BU$5,$B96) -> 0 | BV96: 0 | BW96: 0 | BX96: 0 | BY96: 0 | BZ96: 0 | CA96: 0 | CB96: 0 | CC96: 0 | CD96: 0 | CE96: =SUM(CE$5,$B96) -> 0 | CF96: 0 | CG96: 0 | CH96: 0 | CI96: 0 | CJ96: 0 | CK96: 0 | CL96: 0 | CM96: 0 | CN96: 0 | CO96: =SUM(CO$5,$B96) -> 0 | CP96: 0 | CQ96: 0 | CR96: 0 | CS96: 0 | CT96: 0 | CU96: 0 | CV96: 0 | CW96: 0 | CX96: 0
C97: 0 | D97: 0 | E97: 0 | F97: 0 | G97: 0 | H97: 0 | I97: 0 | J97: 0 | K97: 0 | L97: 0 | M97: 0 | N97: 0 | O97: 0 | P97: 0 | Q97: 0 | R97: 0 | S97: 0 | T97: 0 | U97: 0 | V97: 0 | W97: 0 | X97: 0 | Y97: 0 | Z97: 0 | AA97: 0 | AB97: 0 | AC97: 0 | AD97: 0 | AE97: 0 | AF97: 0 | AG97: 0 | AH97: 0 | AI97: 0 | AJ97: 0 | AK97: 0 | AL97: 0 | AM97: 0 | AN97: 0 | AO97: 0 | AP97: 0 | AQ97: 0 | AR97: 0 | AS97: 0 | AT97: 0 | AU97: 0 | AV97: 0 | AW97: 0 | AX97: 0 | AY97: 0 | AZ97: 0 | BA97: 0 | BB97: 0 | BC97: 0 | BD97: 0 | BE97: 0 | BF97: 0 | BG97: 0 | BH97: 0 | BI97: 0 | BJ97: 0 | BK97: 0 | BL97: 0 | BM97: 0 | BN97: 0 | BO97: 0 | BP97: 0 | BQ97: 0 | BR97: 0 | BS97: 0 | BT97: 0 | BU97: 0 | BV97: 0 | BW97: 0 | BX97: 0 | BY97: 0 | BZ97: 0 | CA97: 0 | CB97: 0 | CC97: 0 | CD97: 0 | CE97: 0 | CF97: 0 | CG97: 0 | CH97: 0 | CI97: 0 | CJ97: 0 | CK97: 0 | CL97: 0 | CM97: 0 | CN97: 0 | CO97: 0 | CP97: 0 | CQ97: 0 | CR97: 0 | CS97: 0 | CT97: 0 | CU97: 0 | CV97: 0 | CW97: 0 | CX97: 0
C98: 0 | D98: 0 | E98: 0 | F98: 0 | G98: 0 | H98: 0 | I98: 0 | J98: 0 | K98: 0 | L98: 0 | M98: 0 | N98: 0 | O98: 0 | P98: 0 | Q98: 0 | R98: 0 | S98: 0 | T98: 0 | U98: 0 | V98: 0 | W98: 0 | X98: 0 | Y98: 0 | Z98: 0 | AA98: 0 | AB98: 0 | AC98: 0 | AD98: 0 | AE98: 0 | AF98: 0 | AG98: 0 | AH98: 0 | AI98: 0 | AJ98: 0 | AK98: 0 | AL98: 0 | AM98: 0 | AN98: 0 | AO98: 0 | AP98: 0 | AQ98: 0 | AR98: 0 | AS98: 0 | AT98: 0 | AU98: 0 | AV98: 0 | AW98: 0 | AX98: 0 | AY98: 0 | AZ98: 0 | BA98: 0 | BB98: 0 | BC98: 0 | BD98: 0 | BE98: 0 | BF98: 0 | BG98: 0 | BH98: 0 | BI98: 0 | BJ98: 0 | BK98: 0 | BL98: 0 | BM98: 0 | BN98: 0 | BO98: 0 | BP98: 0 | BQ98: 0 | BR98: 0 | BS98: 0 | BT98: 0 | BU98: 0 | BV98: 0 | BW98: 0 | BX98: 0 | BY98: 0 | BZ98: 0 | CA98: 0 | CB98: 0 | CC98: 0 | CD98: 0 | CE98: 0 | CF98: 0 | CG98: 0 | CH98: 0 | CI98: 0 | CJ98: 0 | CK98: 0 | CL98: 0 | CM98: 0 | CN98: 0 | CO98: 0 | CP98: 0 | CQ98: 0 | CR98: 0 | CS98: 0 | CT98: 0 | CU98: 0 | CV98: 0 | CW98: 0 | CX98: 0
C99: 0 | D99: 0 | E99: 0 | F99: 0 | G99: 0 | H99: 0 | I99: 0 | J99: 0 | K99: 0 | L99: 0 | M99: 0 | N99: 0 | O99: 0 | P99: 0 | Q99: 0 | R99: 0 | S99: 0 | T99: 0 | U99: 0 | V99: 0 | W99: 0 | X99: 0 | Y99: 0 | Z99: 0 | AA99: 0 | AB99: 0 | AC99: 0 | AD99: 0 | AE99: 0 | AF99: 0 | AG99: 0 | AH99: 0 | AI99: 0 | AJ99: 0 | AK99: 0 | AL99: 0 | AM99: 0 | AN99: 0 | AO99: 0 | AP99: 0 | AQ99: 0 | AR99: 0 | AS99: 0 | AT99: 0 | AU99: 0 | AV99: 0 | AW99: 0 | AX99: 0 | AY99: 0 | AZ99: 0 | BA99: 0 | BB99: 0 | BC99: 0 | BD99: 0 | BE99: 0 | BF99: 0 | BG99: 0 | BH99: 0 | BI99: 0 | BJ99: 0 | BK99: 0 | BL99: 0 | BM99: 0 | BN99: 0 | BO99: 0 | BP99: 0 | BQ99: 0 | BR99: 0 | BS99: 0 | BT99: 0 | BU99: 0 | BV99: 0 | BW99: 0 | BX99: 0 | BY99: 0 | BZ99: 0 | CA99: 0 | CB99: 0 | CC99: 0 | CD99: 0 | CE99: 0 | CF99: 0 | CG99: 0 | CH99: 0 | CI99: 0 | CJ99: 0 | CK99: 0 | CL99: 0 | CM99: 0 | CN99: 0 | CO99: 0 | CP99: 0 | CQ99: 0 | CR99: 0 | CS99: 0 | CT99: 0 | CU99: 0 | CV99: 0 | CW99: 0 | CX99: 0
C100: 0 | D100: 0 | E100: 0 | F100: 0 | G100: 0 | H100: 0 | I100: 0 | J100: 0 | K100: 0 | L100: 0 | M100: 0 | N100: 0 | O100: 0 | P100: 0 | Q100: 0 | R100: 0 | S100: 0 | T100: 0 | U100: 0 | V100: 0 | W100: 0 | X100: 0 | Y100: 0 | Z100: 0 | AA100: 0 | AB100: 0 | AC100: 0 | AD100: 0 | AE100: 0 | AF100: 0 | AG100: 0 | AH100: 0 | AI100: 0 | AJ100: 0 | AK100: 0 | AL100: 0 | AM100: 0 | AN100: 0 | AO100: 0 | AP100: 0 | AQ100: 0 | AR100: 0 | AS100: 0 | AT100: 0 | AU100: 0 | AV100: 0 | AW100: 0 | AX100: 0 | AY100: 0 | AZ100: 0 | BA100: 0 | BB100: 0 | BC100: 0 | BD100: 0 | BE100: 0 | BF100: 0 | BG100: 0 | BH100: 0 | BI100: 0 | BJ100: 0 | BK100: 0 | BL100: 0 | BM100: 0 | BN100: 0 | BO100: 0 | BP100: 0 | BQ100: 0 | BR100: 0 | BS100: 0 | BT100: 0 | BU100: 0 | BV100: 0 | BW100: 0 | BX100: 0 | BY100: 0 | BZ100: 0 | CA100: 0 | CB100: 0 | CC100: 0 | CD100: 0 | CE100: 0 | CF100: 0 | CG100: 0 | CH100: 0 | CI100: 0 | CJ100: 0 | CK100: 0 | CL100: 0 | CM100: 0 | CN100: 0 | CO100: 0 | CP100: 0 | CQ100: 0 | CR100: 0 | CS100: 0 | CT100: 0 | CU100: 0 | CV100: 0 | CW100: 0 | CX100: 0
C101: 0 | D101: 0 | E101: 0 | F101: 0 | G101: 0 | H101: 0 | I101: 0 | J101: 0 | K101: 0 | L101: 0 | M101: 0 | N101: 0 | O101: 0 | P101: 0 | Q101: 0 | R101: 0 | S101: 0 | T101: 0 | U101: 0 | V101: 0 | W101: 0 | X101: 0 | Y101: 0 | Z101: 0 | AA101: 0 | AB101: 0 | AC101: 0 | AD101: 0 | AE101: 0 | AF101: 0 | AG101: 0 | AH101: 0 | AI101: 0 | AJ101: 0 | AK101: 0 | AL101: 0 | AM101: 0 | AN101: 0 | AO101: 0 | AP101: 0 | AQ101: 0 | AR101: 0 | AS101: 0 | AT101: 0 | AU101: 0 | AV101: 0 | AW101: 0 | AX101: 0 | AY101: 0 | AZ101: 0 | BA101: 0 | BB101: 0 | BC101: 0 | BD101: 0 | BE101: 0 | BF101: 0 | BG101: 0 | BH101: 0 | BI101: 0 | BJ101: 0 | BK101: 0 | BL101: 0 | BM101: 0 | BN101: 0 | BO101: 0 | BP101: 0 | BQ101: 0 | BR101: 0 | BS101: 0 | BT101: 0 | BU101: 0 | BV101: 0 | BW101: 0 | BX101: 0 | BY101: 0 | BZ101: 0 | CA101: 0 | CB101: 0 | CC101: 0 | CD101: 0 | CE101: 0 | CF101: 0 | CG101: 0 | CH101: 0 | CI101: 0 | CJ101: 0 | CK101: 0 | CL101: 0 | CM101: 0 | CN101: 0 | CO101: 0 | CP101: 0 | CQ101: 0 | CR101: 0 | CS101: 0 | CT101: 0 | CU101: 0 | CV101: 0 | CW101: 0 | CX101: 0
C102: 0 | D102: 0 | E102: 0 | F102: 0 | G102: 0 | H102: 0 | I102: 0 | J102: 0 | K102: 0 | L102: 0 | M102: 0 | N102: 0 | O102: 0 | P102: 0 | Q102: 0 | R102: 0 | S102: 0 | T102: 0 | U102: 0 | V102: 0 | W102: 0 | X102: 0 | Y102: 0 | Z102: 0 | AA102: 0 | AB102: 0 | AC102: 0 | AD102: 0 | AE102: 0 | AF102: 0 | AG102: 0 | AH102: 0 | AI102: 0 | AJ102: 0 | AK102: 0 | AL102: 0 | AM102: 0 | AN102: 0 | AO102: 0 | AP102: 0 | AQ102: 0 | AR102: 0 | AS102: 0 | AT102: 0 | AU102: 0 | AV102: 0 | AW102: 0 | AX102: 0 | AY102: 0 | AZ102: 0 | BA102: 0 | BB102: 0 | BC102: 0 | BD102: 0 | BE102: 0 | BF102: 0 | BG102: 0 | BH102: 0 | BI102: 0 | BJ102: 0 | BK102: 0 | BL102: 0 | BM102: 0 | BN102: 0 | BO102: 0 | BP102: 0 | BQ102: 0 | BR102: 0 | BS102: 0 | BT102: 0 | BU102: 0 | BV102: 0 | BW102: 0 | BX102: 0 | BY102: 0 | BZ102: 0 | CA102: 0 | CB102: 0 | CC102: 0 | CD102: 0 | CE102: 0 | CF102: 0 | CG102: 0 | CH102: 0 | CI102: 0 | CJ102: 0 | CK102: 0 | CL102: 0 | CM102: 0 | CN102: 0 | CO102: 0 | CP102: 0 | CQ102: 0 | CR102: 0 | CS102: 0 | CT102: 0 | CU102: 0 | CV102: 0 | CW102: 0 | CX102: 0
C103: 0 | D103: 0 | E103: 0 | F103: 0 | G103: 0 | H103: 0 | I103: 0 | J103: 0 | K103: 0 | L103: 0 | M103: 0 | N103: 0 | O103: 0 | P103: 0 | Q103: 0 | R103: 0 | S103: 0 | T103: 0 | U103: 0 | V103: 0 | W103: 0 | X103: 0 | Y103: 0 | Z103: 0 | AA103: 0 | AB103: 0 | AC103: 0 | AD103: 0 | AE103: 0 | AF103: 0 | AG103: 0 | AH103: 0 | AI103: 0 | AJ103: 0 | AK103: 0 | AL103: 0 | AM103: 0 | AN103: 0 | AO103: 0 | AP103: 0 | AQ103: 0 | AR103: 0 | AS103: 0 | AT103: 0 | AU103: 0 | AV103: 0 | AW103: 0 | AX103: 0 | AY103: 0 | AZ103: 0 | BA103: 0 | BB103: 0 | BC103: 0 | BD103: 0 | BE103: 0 | BF103: 0 | BG103: 0 | BH103: 0 | BI103: 0 | BJ103: 0 | BK103: 0 | BL103: 0 | BM103: 0 | BN103: 0 | BO103: 0 | BP103: 0 | BQ103: 0 | BR103: 0 | BS103: 0 | BT103: 0 | BU103: 0 | BV103: 0 | BW103: 0 | BX103: 0 | BY103: 0 | BZ103: 0 | CA103: 0 | CB103: 0 | CC103: 0 | CD103: 0 | CE103: 0 | CF103: 0 | CG103: 0 | CH103: 0 | CI103: 0 | CJ103: 0 | CK103: 0 | CL103: 0 | CM103: 0 | CN103: 0 | CO103: 0 | CP103: 0 | CQ103: 0 | CR103: 0 | CS103: 0 | CT103: 0 | CU103: 0 | CV103: 0 | CW103: 0 | CX103: 0
C104: 0 | D104: 0 | E104: 0 | F104: 0 | G104: 0 | H104: 0 | I104: 0 | J104: 0 | K104: 0 | L104: 0 | M104: 0 | N104: 0 | O104: 0 | P104: 0 | Q104: 0 | R104: 0 | S104: 0 | T104: 0 | U104: 0 | V104: 0 | W104: 0 | X104: 0 | Y104: 0 | Z104: 0 | AA104: 0 | AB104: 0 | AC104: 0 | AD104: 0 | AE104: 0 | AF104: 0 | AG104: 0 | AH104: 0 | AI104: 0 | AJ104: 0 | AK104: 0 | AL104: 0 | AM104: 0 | AN104: 0 | AO104: 0 | AP104: 0 | AQ104: 0 | AR104: 0 | AS104: 0 | AT104: 0 | AU104: 0 | AV104: 0 | AW104: 0 | AX104: 0 | AY104: 0 | AZ104: 0 | BA104: 0 | BB104: 0 | BC104: 0 | BD104: 0 | BE104: 0 | BF104: 0 | BG104: 0 | BH104: 0 | BI104: 0 | BJ104: 0 | BK104: 0 | BL104: 0 | BM104: 0 | BN104: 0 | BO104: 0 | BP104: 0 | BQ104: 0 | BR104: 0 | BS104: 0 | BT104: 0 | BU104: 0 | BV104: 0 | BW104: 0 | BX104: 0 | BY104: 0 | BZ104: 0 | CA104: 0 | CB104: 0 | CC104: 0 | CD104: 0 | CE104: 0 | CF104: 0 | CG104: 0 | CH104: 0 | CI104: 0 | CJ104: 0 | CK104: 0 | CL104: 0 | CM104: 0 | CN104: 0 | CO104: 0 | CP104: 0 | CQ104: 0 | CR104: 0 | CS104: 0 | CT104: 0 | CU104: 0 | CV104: 0 | CW104: 0 | CX104: 0
C105: 0 | D105: 0 | E105: 0 | F105: 0 | G105: 0 | H105: 0 | I105: 0 | J105: 0 | K105: 0 | L105: 0 | M105: 0 | N105: 0 | O105: 0 | P105: 0 | Q105: 0 | R105: 0 | S105: 0 | T105: 0 | U105: 0 | V105: 0 | W105: 0 | X105: 0 | Y105: 0 | Z105: 0 | AA105: 0 | AB105: 0 | AC105: 0 | AD105: 0 | AE105: 0 | AF105: 0 | AG105: 0 | AH105: 0 | AI105: 0 | AJ105: 0 | AK105: 0 | AL105: 0 | AM105: 0 | AN105: 0 | AO105: 0 | AP105: 0 | AQ105: 0 | AR105: 0 | AS105: 0 | AT105: 0 | AU105: 0 | AV105: 0 | AW105: 0 | AX105: 0 | AY105: 0 | AZ105: 0 | BA105: 0 | BB105: 0 | BC105: 0 | BD105: 0 | BE105: 0 | BF105: 0 | BG105: 0 | BH105: 0 | BI105: 0 | BJ105: 0 | BK105: 0 | BL105: 0 | BM105: 0 | BN105: 0 | BO105: 0 | BP105: 0 | BQ105: 0 | BR105: 0 | BS105: 0 | BT105: 0 | BU105: 0 | BV105: 0 | BW105: 0 | BX105: 0 | BY105: 0 | BZ105: 0 | CA105: 0 | CB105: 0 | CC105: 0 | CD105: 0 | CE105: 0 | CF105: 0 | CG105: 0 | CH105: 0 | CI105: 0 | CJ105: 0 | CK105: 0 | CL105: 0 | CM105: 0 | CN105: 0 | CO105: 0 | CP105: 0 | CQ105: 0 | CR105: 0 | CS105: 0 | CT105: 0 | CU105: 0 | CV105: 0 | CW105: 0 | CX105: 0

Sheet Manual
A1: New range Areas referrenced from any Worksheet
B3: New range Areas referrenced from any Worksheet | C3: New range Areas referrenced from any Worksheet | D3: New range Areas referrenced from any Worksheet
B4: New range Areas referrenced from any Worksheet | C4: New range Areas referrenced from any Worksheet | D4: New range Areas referrenced from any Worksheet
E5: New range Areas referrenced from any Worksheet | F5: $400 | G5: $500 | H5: $600 | I5: $700 | J5: $800 | K5: $900 | L5: $1,000 | M5: $1,100 | N5: $1,200 | O5: $1,300 | P5: $1,400 | Q5: $1,500 | R5: $1,600 | S5: $1,700 | T5: $1,800 | U5: $1,900 | V5: $2,000 | W5: $2,100 | X5: $2,200 | Y5: $2,300 | Z5: $2,400 | AA5: $2,500 | AB5: $2,600 | AC5: $2,700 | AD5: $2,800 | AE5: $2,900 | AF5: $3,000 | AG5: $3,100 | AH5: $3,200 | AI5: $3,300 | AJ5: $3,400 | AK5: $3,500 | AL5: $3,600 | AM5: $3,700 | AN5: $3,800 | AO5: $3,900 | AP5: $4,000 | AQ5: $4,100 | AR5: $4,200 | AS5: $4,300 | AT5: $4,400 | AU5: $4,500 | AV5: $4,600 | AW5: $4,700 | AX5: $4,800 | AY5: $4,900 | AZ5: $5,000 | BA5: $5,100 | BB5: $5,200 | BC5: $5,300 | BD5: $5,400 | BE5: $5,500 | BF5: $5,600 | BG5: $5,700 | BH5: $5,800 | BI5: $5,900 | BJ5: $6,000 | BK5: $6,100 | BL5: $6,200 | BM5: $6,300 | BN5: $6,400 | BO5: $6,500 | BP5: $6,600 | BQ5: $6,700 | BR5: $6,800 | BS5: $6,900 | BT5: $7,000 | BU5: $7,100 | BV5: $7,200 | BW5: $7,300 | BX5: $7,400 | BY5: $7,500 | BZ5: $7,600 | CA5: $7,700 | CB5: $7,800 | CC5: $7,900 | CD5: $8,000 | CE5: $8,100 | CF5: $8,200 | CG5: $8,300 | CH5: $8,400 | CI5: $8,500 | CJ5: $8,600 | CK5: $8,700 | CL5: $8,800 | CM5: $8,900 | CN5: $9,000 | CO5: $9,100 | CP5: $9,200 | CQ5: $9,300 | CR5: $9,400 | CS5: $9,500 | CT5: $9,600 | CU5: $9,700 | CV5: $9,800 | CW5: $9,900 | CX5: $10,000
F6: =SUM(F$5,$B6) -> $400 | G6: $500 | H6: $600 | I6: $700 | J6: $800 | K6: $900 | L6: $1,000 | M6: =SUM(M$5,$B6) -> $1,100 | N6: $1,200 | O6: $1,300 | P6: $1,400 | Q6: $1,500 | R6: $1,600 | S6: $1,700 | T6: $1,800 | U6: $1,900 | V6: $2,000 | W6: =SUM(W$5,$B6) -> $2,100 | X6: $2,200 | Y6: $2,300 | Z6: $2,400 | AA6: $2,500 | AB6: $2,600 | AC6: $2,700 | AD6: $2,800 | AE6: $2,900 | AF6: $3,000 | AG6: =SUM(AG$5,$B6) -> $3,100 | AH6: $3,200 | AI6: $3,300 | AJ6: $3,400 | AK6: $3,500 | AL6: $3,600 | AM6: $3,700 | AN6: $3,800 | AO6: $3,900 | AP6: $4,000 | AQ6: =SUM(AQ$5,$B6) -> $4,100 | AR6: $4,200 | AS6: $4,300 | AT6: $4,400 | AU6: $4,500 | AV6: $4,600 | AW6: $4,700 | AX6: $4,800 | AY6: $4,900 | AZ6: $5,000 | BA6: =SUM(BA$5,$B6) -> $5,100 | BB6: $5,200 | BC6: $5,300 | BD6: $5,400 | BE6: $5,500 | BF6: $5,600 | BG6: $5,700 | BH6: $5,800 | BI6: $5,900 | BJ6: $6,000 | BK6: =SUM(BK$5,$B6) -> $6,100 | BL6: $6,200 | BM6: $6,300 | BN6: $6,400 | BO6: $6,500 | BP6: $6,600 | BQ6: $6,700 | BR6: $6,800 | BS6: $6,900 | BT6: $7,000 | BU6: =SUM(BU$5,$B6) -> $7,100 | BV6: $7,200 | BW6: $7,300 | BX6: $7,400 | BY6: $7,500 | BZ6: $7,600 | CA6: $7,700 | CB6: $7,800 | CC6: $7,900 | CD6: $8,000 | CE6: =SUM(CE$5,$B6) -> $8,100 | CF6: $8,200 | CG6: $8,300 | CH6: $8,400 | CI6: $8,500 | CJ6: $8,600 | CK6: $8,700 | CL6: $8,800 | CM6: $8,900 | CN6: $9,000 | CO6: =SUM(CO$5,$B6) -> $9,100 | CP6: $9,200 | CQ6: $9,300 | CR6: $9,400 | CS6: $9,500 | CT6: $9,600 | CU6: $9,700 | CV6: $9,800 | CW6: $9,900 | CX6: $10,000
F7: $400 | G7: $500 | H7: $600 | I7: $700 | J7: $800 | K7: $900 | L7: $1,000 | M7: $1,100 | N7: $1,200 | O7: $1,300 | P7: $1,400 | Q7: $1,500 | R7: $1,600 | S7: $1,700 | T7: $1,800 | U7: $1,900 | V7: $2,000 | W7: $2,100 | X7: $2,200 | Y7: $2,300 | Z7: $2,400 | AA7: $2,500 | AB7: $2,600 | AC7: $2,700 | AD7: $2,800 | AE7: $2,900 | AF7: $3,000 | AG7: $3,100 | AH7: $3,200 | AI7: $3,300 | AJ7: $3,400 | AK7: $3,500 | AL7: $3,600 | AM7: $3,700 | AN7: $3,800 | AO7: $3,900 | AP7: $4,000 | AQ7: $4,100 | AR7: $4,200 | AS7: $4,300 | AT7: $4,400 | AU7: $4,500 | AV7: $4,600 | AW7: $4,700 | AX7: $4,800 | AY7: $4,900 | AZ7: $5,000 | BA7: $5,100 | BB7: $5,200 | BC7: $5,300 | BD7: $5,400 | BE7: $5,500 | BF7: $5,600 | BG7: $5,700 | BH7: $5,800 | BI7: $5,900 | BJ7: $6,000 | BK7: $6,100 | BL7: $6,200 | BM7: $6,300 | BN7: $6,400 | BO7: $6,500 | BP7: $6,600 | BQ7: $6,700 | BR7: $6,800 | BS7: $6,900 | BT7: $7,000 | BU7: $7,100 | BV7: $7,200 | BW7: $7,300 | BX7: $7,400 | BY7: $7,500 | BZ7: $7,600 | CA7: $7,700 | CB7: $7,800 | CC7: $7,900 | CD7: $8,000 | CE7: $8,100 | CF7: $8,200 | CG7: $8,300 | CH7: $8,400 | CI7: $8,500 | CJ7: $8,600 | CK7: $8,700 | CL7: $8,800 | CM7: $8,900 | CN7: $9,000 | CO7: $9,100 | CP7: $9,200 | CQ7: $9,300 | CR7: $9,400 | CS7: $9,500 | CT7: $9,600 | CU7: $9,700 | CV7: $9,800 | CW7: $9,900 | CX7: $10,000
F8: $400 | G8: $500 | H8: $600 | I8: $700 | J8: $800 | K8: $900 | L8: $1,000 | M8: $1,100 | N8: $1,200 | O8: $1,300 | P8: $1,400 | Q8: $1,500 | R8: $1,600 | S8: $1,700 | T8: $1,800 | U8: $1,900 | V8: $2,000 | W8: $2,100 | X8: $2,200 | Y8: $2,300 | Z8: $2,400 | AA8: $2,500 | AB8: $2,600 | AC8: $2,700 | AD8: $2,800 | AE8: $2,900 | AF8: $3,000 | AG8: $3,100 | AH8: $3,200 | AI8: $3,300 | AJ8: $3,400 | AK8: $3,500 | AL8: $3,600 | AM8: $3,700 | AN8: $3,800 | AO8: $3,900 | AP8: $4,000 | AQ8: $4,100 | AR8: $4,200 | AS8: $4,300 | AT8: $4,400 | AU8: $4,500 | AV8: $4,600 | AW8: $4,700 | AX8: $4,800 | AY8: $4,900 | AZ8: $5,000 | BA8: $5,100 | BB8: $5,200 | BC8: $5,300 | BD8: $5,400 | BE8: $5,500 | BF8: $5,600 | BG8: $5,700 | BH8: $5,800 | BI8: $5,900 | BJ8: $6,000 | BK8: $6,100 | BL8: $6,200 | BM8: $6,300 | BN8: $6,400 | BO8: $6,500 | BP8: $6,600 | BQ8: $6,700 | BR8: $6,800 | BS8: $6,900 | BT8: $7,000 | BU8: $7,100 | BV8: $7,200 | BW8: $7,300 | BX8: $7,400 | BY8: $7,500 | BZ8: $7,600 | CA8: $7,700 | CB8: $7,800 | CC8: $7,900 | CD8: $8,000 | CE8: $8,100 | CF8: $8,200 | CG8: $8,300 | CH8: $8,400 | CI8: $8,500 | CJ8: $8,600 | CK8: $8,700 | CL8: $8,800 | CM8: $8,900 | CN8: $9,000 | CO8: $9,100 | CP8: $9,200 | CQ8: $9,300 | CR8: $9,400 | CS8: $9,500 | CT8: $9,600 | CU8: $9,700 | CV8: $9,800 | CW8: $9,900 | CX8: $10,000
F9: $400 | G9: $500 | H9: $600 | I9: $700 | J9: $800 | K9: $900 | L9: $1,000 | M9: $1,100 | N9: $1,200 | O9: $1,300 | P9: $1,400 | Q9: $1,500 | R9: $1,600 | S9: $1,700 | T9: $1,800 | U9: $1,900 | V9: $2,000 | W9: $2,100 | X9: $2,200 | Y9: $2,300 | Z9: $2,400 | AA9: $2,500 | AB9: $2,600 | AC9: $2,700 | AD9: $2,800 | AE9: $2,900 | AF9: $3,000 | AG9: $3,100 | AH9: $3,200 | AI9: $3,300 | AJ9: $3,400 | AK9: $3,500 | AL9: $3,600 | AM9: $3,700 | AN9: $3,800 | AO9: $3,900 | AP9: $4,000 | AQ9: $4,100 | AR9: $4,200 | AS9: $4,300 | AT9: $4,400 | AU9: $4,500 | AV9: $4,600 | AW9: $4,700 | AX9: $4,800 | AY9: $4,900 | AZ9: $5,000 | BA9: $5,100 | BB9: $5,200 | BC9: $5,300 | BD9: $5,400 | BE9: $5,500 | BF9: $5,600 | BG9: $5,700 | BH9: $5,800 | BI9: $5,900 | BJ9: $6,000 | BK9: $6,100 | BL9: $6,200 | BM9: $6,300 | BN9: $6,400 | BO9: $6,500 | BP9: $6,600 | BQ9: $6,700 | BR9: $6,800 | BS9: $6,900 | BT9: $7,000 | BU9: $7,100 | BV9: $7,200 | BW9: $7,300 | BX9: $7,400 | BY9: $7,500 | BZ9: $7,600 | CA9: $7,700 | CB9: $7,800 | CC9: $7,900 | CD9: $8,000 | CE9: $8,100 | CF9: $8,200 | CG9: $8,300 | CH9: $8,400 | CI9: $8,500 | CJ9: $8,600 | CK9: $8,700 | CL9: $8,800 | CM9: $8,900 | CN9: $9,000 | CO9: $9,100 | CP9: $9,200 | CQ9: $9,300 | CR9: $9,400 | CS9: $9,500 | CT9: $9,600 | CU9: $9,700 | CV9: $9,800 | CW9: $9,900 | CX9: $10,000
A10: New range Areas referrenced from any Worksheet | F10: $400 | G10: $500 | H10: $600 | I10: $700 | J10: $800 | K10: $900 | L10: $1,000 | M10: $1,100 | N10: $1,200 | O10: $1,300 | P10: $1,400 | Q10: $1,500 | R10: $1,600 | S10: $1,700 | T10: $1,800 | U10: $1,900 | V10: $2,000 | W10: $2,100 | X10: $2,200 | Y10: $2,300 | Z10: $2,400 | AA10: $2,500 | AB10: $2,600 | AC10: $2,700 | AD10: $2,800 | AE10: $2,900 | AF10: $3,000 | AG10: $3,100 | AH10: $3,200 | AI10: $3,300 | AJ10: $3,400 | AK10: $3,500 | AL10: $3,600 | AM10: $3,700 | AN10: $3,800 | AO10: $3,900 | AP10: $4,000 | AQ10: $4,100 | AR10: $4,200 | AS10: $4,300 | AT10: $4,400 | AU10: $4,500 | AV10: $4,600 | AW10: $4,700 | AX10: $4,800 | AY10: $4,900 | AZ10: $5,000 | BA10: $5,100 | BB10: $5,200 | BC10: $5,300 | BD10: $5,400 | BE10: $5,500 | BF10: $5,600 | BG10: $5,700 | BH10: $5,800 | BI10: $5,900 | BJ10: $6,000 | BK10: $6,100 | BL10: $6,200 | BM10: $6,300 | BN10: $6,400 | BO10: $6,500 | BP10: $6,600 | BQ10: $6,700 | BR10: $6,800 | BS10: $6,900 | BT10: $7,000 | BU10: $7,100 | BV10: $7,200 | BW10: $7,300 | BX10: $7,400 | BY10: $7,500 | BZ10: $7,600 | CA10: $7,700 | CB10: $7,800 | CC10: $7,900 | CD10: $8,000 | CE10: $8,100 | CF10: $8,200 | CG10: $8,300 | CH10: $8,400 | CI10: $8,500 | CJ10: $8,600 | CK10: $8,700 | CL10: $8,800 | CM10: $8,900 | CN10: $9,000 | CO10: $9,100 | CP10: $9,200 | CQ10: $9,300 | CR10: $9,400 | CS10: $9,500 | CT10: $9,600 | CU10: $9,700 | CV10: $9,800 | CW10: $9,900 | CX10: $10,000
F11: $400 | G11: $500 | H11: $600 | I11: $700 | J11: $800 | K11: $900 | L11: $1,000 | M11: $1,100 | N11: $1,200 | O11: $1,300 | P11: $1,400 | Q11: $1,500 | R11: $1,600 | S11: $1,700 | T11: $1,800 | U11: $1,900 | V11: $2,000 | W11: $2,100 | X11: $2,200 | Y11: $2,300 | Z11: $2,400 | AA11: $2,500 | AB11: $2,600 | AC11: $2,700 | AD11: $2,800 | AE11: $2,900 | AF11: $3,000 | AG11: $3,100 | AH11: $3,200 | AI11: $3,300 | AJ11: $3,400 | AK11: $3,500 | AL11: $3,600 | AM11: $3,700 | AN11: $3,800 | AO11: $3,900 | AP11: $4,000 | AQ11: $4,100 | AR11: $4,200 | AS11: $4,300 | AT11: $4,400 | AU11: $4,500 | AV11: $4,600 | AW11: $4,700 | AX11: $4,800 | AY11: $4,900 | AZ11: $5,000 | BA11: $5,100 | BB11: $5,200 | BC11: $5,300 | BD11: $5,400 | BE11: $5,500 | BF11: $5,600 | BG11: $5,700 | BH11: $5,800 | BI11: $5,900 | BJ11: $6,000 | BK11: $6,100 | BL11: $6,200 | BM11: $6,300 | BN11: $6,400 | BO11: $6,500 | BP11: $6,600 | BQ11: $6,700 | BR11: $6,800 | BS11: $6,900 | BT11: $7,000 | BU11: $7,100 | BV11: $7,200 | BW11: $7,300 | BX11: $7,400 | BY11: $7,500 | BZ11: $7,600 | CA11: $7,700 | CB11: $7,800 | CC11: $7,900 | CD11: $8,000 | CE11: $8,100 | CF11: $8,200 | CG11: $8,300 | CH11: $8,400 | CI11: $8,500 | CJ11: $8,600 | CK11: $8,700 | CL11: $8,800 | CM11: $8,900 | CN11: $9,000 | CO11: $9,100 | CP11: $9,200 | CQ11: $9,300 | CR11: $9,400 | CS11: $9,500 | CT11: $9,600 | CU11: $9,700 | CV11: $9,800 | CW11: $9,900 | CX11: $10,000
F12: $400 | G12: $500 | H12: $600 | I12: $700 | J12: $800 | K12: $900 | L12: $1,000 | M12: $1,100 | N12: $1,200 | O12: $1,300 | P12: $1,400 | Q12: $1,500 | R12: $1,600 | S12: $1,700 | T12: $1,800 | U12: $1,900 | V12: $2,000 | W12: $2,100 | X12: $2,200 | Y12: $2,300 | Z12: $2,400 | AA12: $2,500 | AB12: $2,600 | AC12: $2,700 | AD12: $2,800 | AE12: $2,900 | AF12: $3,000 | AG12: $3,100 | AH12: $3,200 | AI12: $3,300 | AJ12: $3,400 | AK12: $3,500 | AL12: $3,600 | AM12: $3,700 | AN12: $3,800 | AO12: $3,900 | AP12: $4,000 | AQ12: $4,100 | AR12: $4,200 | AS12: $4,300 | AT12: $4,400 | AU12: $4,500 | AV12: $4,600 | AW12: $4,700 | AX12: $4,800 | AY12: $4,900 | AZ12: $5,000 | BA12: $5,100 | BB12: $5,200 | BC12: $5,300 | BD12: $5,400 | BE12: $5,500 | BF12: $5,600 | BG12: $5,700 | BH12: $5,800 | BI12: $5,900 | BJ12: $6,000 | BK12: $6,100 | BL12: $6,200 | BM12: $6,300 | BN12: $6,400 | BO12: $6,500 | BP12: $6,600 | BQ12: $6,700 | BR12: $6,800 | BS12: $6,900 | BT12: $7,000 | BU12: $7,100 | BV12: $7,200 | BW12: $7,300 | BX12: $7,400 | BY12: $7,500 | BZ12: $7,600 | CA12: $7,700 | CB12: $7,800 | CC12: $7,900 | CD12: $8,000 | CE12: $8,100 | CF12: $8,200 | CG12: $8,300 | CH12: $8,400 | CI12: $8,500 | CJ12: $8,600 | CK12: $8,700 | CL12: $8,800 | CM12: $8,900 | CN12: $9,000 | CO12: $9,100 | CP12: $9,200 | CQ12: $9,300 | CR12: $9,400 | CS12: $9,500 | CT12: $9,600 | CU12: $9,700 | CV12: $9,800 | CW12: $9,900 | CX12: $10,000
F13: $400 | G13: $500 | H13: $600 | I13: $700 | J13: $800 | K13: $900 | L13: $1,000 | M13: $1,100 | N13: $1,200 | O13: $1,300 | P13: $1,400 | Q13: $1,500 | R13: $1,600 | S13: $1,700 | T13: $1,800 | U13: $1,900 | V13: $2,000 | W13: $2,100 | X13: $2,200 | Y13: $2,300 | Z13: $2,400 | AA13: $2,500 | AB13: $2,600 | AC13: $2,700 | AD13: $2,800 | AE13: $2,900 | AF13: $3,000 | AG13: $3,100 | AH13: $3,200 | AI13: $3,300 | AJ13: $3,400 | AK13: $3,500 | AL13: $3,600 | AM13: $3,700 | AN13: $3,800 | AO13: $3,900 | AP13: $4,000 | AQ13: $4,100 | AR13: $4,200 | AS13: $4,300 | AT13: $4,400 | AU13: $4,500 | AV13: $4,600 | AW13: $4,700 | AX13: $4,800 | AY13: $4,900 | AZ13: $5,000 | BA13: $5,100 | BB13: $5,200 | BC13: $5,300 | BD13: $5,400 | BE13: $5,500 | BF13: $5,600 | BG13: $5,700 | BH13: $5,800 | BI13: $5,900 | BJ13: $6,000 | BK13: $6,100 | BL13: $6,200 | BM13: $6,300 | BN13: $6,400 | BO13: $6,500 | BP13: $6,600 | BQ13: $6,700 | BR13: $6,800 | BS13: $6,900 | BT13: $7,000 | BU13: $7,100 | BV13: $7,200 | BW13: $7,300 | BX13: $7,400 | BY13: $7,500 | BZ13: $7,600 | CA13: $7,700 | CB13: $7,800 | CC13: $7,900 | CD13: $8,000 | CE13: $8,100 | CF13: $8,200 | CG13: $8,300 | CH13: $8,400 | CI13: $8,500 | CJ13: $8,600 | CK13: $8,700 | CL13: $8,800 | CM13: $8,900 | CN13: $9,000 | CO13: $9,100 | CP13: $9,200 | CQ13: $9,300 | CR13: $9,400 | CS13: $9,500 | CT13: $9,600 | CU13: $9,700 | CV13: $9,800 | CW13: $9,900 | CX13: $10,000
F14: $400 | G14: $500 | H14: $600 | I14: $700 | J14: $800 | K14: $900 | L14: $1,000 | M14: $1,100 | N14: $1,200 | O14: $1,300 | P14: $1,400 | Q14: $1,500 | R14: $1,600 | S14: $1,700 | T14: $1,800 | U14: $1,900 | V14: $2,000 | W14: $2,100 | X14: $2,200 | Y14: $2,300 | Z14: $2,400 | AA14: $2,500 | AB14: $2,600 | AC14: $2,700 | AD14: $2,800 | AE14: $2,900 | AF14: $3,000 | AG14: $3,100 | AH14: $3,200 | AI14: $3,300 | AJ14: $3,400 | AK14: $3,500 | AL14: $3,600 | AM14: $3,700 | AN14: $3,800 | AO14: $3,900 | AP14: $4,000 | AQ14: $4,100 | AR14: $4,200 | AS14: $4,300 | AT14: $4,400 | AU14: $4,500 | AV14: $4,600 | AW14: $4,700 | AX14: $4,800 | AY14: $4,900 | AZ14: $5,000 | BA14: $5,100 | BB14: $5,200 | BC14: $5,300 | BD14: $5,400 | BE14: $5,500 | BF14: $5,600 | BG14: $5,700 | BH14: $5,800 | BI14: $5,900 | BJ14: $6,000 | BK14: $6,100 | BL14: $6,200 | BM14: $6,300 | BN14: $6,400 | BO14: $6,500 | BP14: $6,600 | BQ14: $6,700 | BR14: $6,800 | BS14: $6,900 | BT14: $7,000 | BU14: $7,100 | BV14: $7,200 | BW14: $7,300 | BX14: $7,400 | BY14: $7,500 | BZ14: $7,600 | CA14: $7,700 | CB14: $7,800 | CC14: $7,900 | CD14: $8,000 | CE14: $8,100 | CF14: $8,200 | CG14: $8,300 | CH14: $8,400 | CI14: $8,500 | CJ14: $8,600 | CK14: $8,700 | CL14: $8,800 | CM14: $8,900 | CN14: $9,000 | CO14: $9,100 | CP14: $9,200 | CQ14: $9,300 | CR14: $9,400 | CS14: $9,500 | CT14: $9,600 | CU14: $9,700 | CV14: $9,800 | CW14: $9,900 | CX14: $10,000
F15: $400 | G15: $500 | H15: $600 | I15: $700 | J15: $800 | K15: $900 | L15: $1,000 | M15: $1,100 | N15: $1,200 | O15: $1,300 | P15: $1,400 | Q15: $1,500 | R15: $1,600 | S15: $1,700 | T15: $1,800 | U15: $1,900 | V15: $2,000 | W15: $2,100 | X15: $2,200 | Y15: $2,300 | Z15: $2,400 | AA15: $2,500 | AB15: $2,600 | AC15: $2,700 | AD15: $2,800 | AE15: $2,900 | AF15: $3,000 | AG15: $3,100 | AH15: $3,200 | AI15: $3,300 | AJ15: $3,400 | AK15: $3,500 | AL15: $3,600 | AM15: $3,700 | AN15: $3,800 | AO15: $3,900 | AP15: $4,000 | AQ15: $4,100 | AR15: $4,200 | AS15: $4,300 | AT15: $4,400 | AU15: $4,500 | AV15: $4,600 | AW15: $4,700 | AX15: $4,800 | AY15: $4,900 | AZ15: $5,000 | BA15: $5,100 | BB15: $5,200 | BC15: $5,300 | BD15: $5,400 | BE15: $5,500 | BF15: $5,600 | BG15: $5,700 | BH15: $5,800 | BI15: $5,900 | BJ15: $6,000 | BK15: $6,100 | BL15: $6,200 | BM15: $6,300 | BN15: $6,400 | BO15: $6,500 | BP15: $6,600 | BQ15: $6,700 | BR15: $6,800 | BS15: $6,900 | BT15: $7,000 | BU15: $7,100 | BV15: $7,200 | BW15: $7,300 | BX15: $7,400 | BY15: $7,500 | BZ15: $7,600 | CA15: $7,700 | CB15: $7,800 | CC15: $7,900 | CD15: $8,000 | CE15: $8,100 | CF15: $8,200 | CG15: $8,300 | CH15: $8,400 | CI15: $8,500 | CJ15: $8,600 | CK15: $8,700 | CL15: $8,800 | CM15: $8,900 | CN15: $9,000 | CO15: $9,100 | CP15: $9,200 | CQ15: $9,300 | CR15: $9,400 | CS15: $9,500 | CT15: $9,600 | CU15: $9,700 | CV15: $9,800 | CW15: $9,900 | CX15: $10,000
F16: =SUM(F$5,$B16) -> $400 | G16: $500 | H16: $600 | I16: $700 | J16: $800 | K16: $900 | L16: $1,000 | M16: =SUM(M$5,$B16) -> $1,100 | N16: $1,200 | O16: $1,300 | P16: $1,400 | Q16: $1,500 | R16: $1,600 | S16: $1,700 | T16: $1,800 | U16: $1,900 | V16: $2,000 | W16: =SUM(W$5,$B16) -> $2,100 | X16: $2,200 | Y16: $2,300 | Z16: $2,400 | AA16: $2,500 | AB16: $2,600 | AC16: $2,700 | AD16: $2,800 | AE16: $2,900 | AF16: $3,000 | AG16: =SUM(AG$5,$B16) -> $3,100 | AH16: $3,200 | AI16: $3,300 | AJ16: $3,400 | AK16: $3,500 | AL16: $3,600 | AM16: $3,700 | AN16: $3,800 | AO16: $3,900 | AP16: $4,000 | AQ16: =SUM(AQ$5,$B16) -> $4,100 | AR16: $4,200 | AS16: $4,300 | AT16: $4,400 | AU16: $4,500 | AV16: $4,600 | AW16: $4,700 | AX16: $4,800 | AY16: $4,900 | AZ16: $5,000 | BA16: =SUM(BA$5,$B16) -> $5,100 | BB16: $5,200 | BC16: $5,300 | BD16: $5,400 | BE16: $5,500 | BF16: $5,600 | BG16: $5,700 | BH16: $5,800 | BI16: $5,900 | BJ16: $6,000 | BK16: =SUM(BK$5,$B16) -> $6,100 | BL16: $6,200 | BM16: $6,300 | BN16: $6,400 | BO16: $6,500 | BP16: $6,600 | BQ16: $6,700 | BR16: $6,800 | BS16: $6,900 | BT16: $7,000 | BU16: =SUM(BU$5,$B16) -> $7,100 | BV16: $7,200 | BW16: $7,300 | BX16: $7,400 | BY16: $7,500 | BZ16: $7,600 | CA16: $7,700 | CB16: $7,800 | CC16: $7,900 | CD16: $8,000 | CE16: =SUM(CE$5,$B16) -> $8,100 | CF16: $8,200 | CG16: $8,300 | CH16: $8,400 | CI16: $8,500 | CJ16: $8,600 | CK16: $8,700 | CL16: $8,800 | CM16: $8,900 | CN16: $9,000 | CO16: =SUM(CO$5,$B16) -> $9,100 | CP16: $9,200 | CQ16: $9,300 | CR16: $9,400 | CS16: $9,500 | CT16: $9,600 | CU16: $9,700 | CV16: $9,800 | CW16: $9,900 | CX16: $10,000
F17: $400 | G17: $500 | H17: $600 | I17: $700 | J17: $800 | K17: $900 | L17: $1,000 | M17: $1,100 | N17: $1,200 | O17: $1,300 | P17: $1,400 | Q17: $1,500 | R17: $1,600 | S17: $1,700 | T17: $1,800 | U17: $1,900 | V17: $2,000 | W17: $2,100 | X17: $2,200 | Y17: $2,300 | Z17: $2,400 | AA17: $2,500 | AB17: $2,600 | AC17: $2,700 | AD17: $2,800 | AE17: $2,900 | AF17: $3,000 | AG17: $3,100 | AH17: $3,200 | AI17: $3,300 | AJ17: $3,400 | AK17: $3,500 | AL17: $3,600 | AM17: $3,700 | AN17: $3,800 | AO17: $3,900 | AP17: $4,000 | AQ17: $4,100 | AR17: $4,200 | AS17: $4,300 | AT17: $4,400 | AU17: $4,500 | AV17: $4,600 | AW17: $4,700 | AX17: $4,800 | AY17: $4,900 | AZ17: $5,000 | BA17: $5,100 | BB17: $5,200 | BC17: $5,300 | BD17: $5,400 | BE17: $5,500 | BF17: $5,600 | BG17: $5,700 | BH17: $5,800 | BI17: $5,900 | BJ17: $6,000 | BK17: $6,100 | BL17: $6,200 | BM17: $6,300 | BN17: $6,400 | BO17: $6,500 | BP17: $6,600 | BQ17: $6,700 | BR17: $6,800 | BS17: $6,900 | BT17: $7,000 | BU17: $7,100 | BV17: $7,200 | BW17: $7,300 | BX17: $7,400 | BY17: $7,500 | BZ17: $7,600 | CA17: $7,700 | CB17: $7,800 | CC17: $7,900 | CD17: $8,000 | CE17: $8,100 | CF17: $8,200 | CG17: $8,300 | CH17: $8,400 | CI17: $8,500 | CJ17: $8,600 | CK17: $8,700 | CL17: $8,800 | CM17: $8,900 | CN17: $9,000 | CO17: $9,100 | CP17: $9,200 | CQ17: $9,300 | CR17: $9,400 | CS17: $9,500 | CT17: $9,600 | CU17: $9,700 | CV17: $9,800 | CW17: $9,900 | CX17: $10,000
F18: $400 | G18: $500 | H18: $600 | I18: $700 | J18: $800 | K18: $900 | L18: $1,000 | M18: $1,100 | N18: $1,200 | O18: $1,300 | P18: $1,400 | Q18: $1,500 | R18: $1,600 | S18: $1,700 | T18: $1,800 | U18: $1,900 | V18: $2,000 | W18: $2,100 | X18: $2,200 | Y18: $2,300 | Z18: $2,400 | AA18: $2,500 | AB18: $2,600 | AC18: $2,700 | AD18: $2,800 | AE18: $2,900 | AF18: $3,000 | AG18: $3,100 | AH18: $3,200 | AI18: $3,300 | AJ18: $3,400 | AK18: $3,500 | AL18: $3,600 | AM18: $3,700 | AN18: $3,800 | AO18: $3,900 | AP18: $4,000 | AQ18: $4,100 | AR18: $4,200 | AS18: $4,300 | AT18: $4,400 | AU18: $4,500 | AV18: $4,600 | AW18: $4,700 | AX18: $4,800 | AY18: $4,900 | AZ18: $5,000 | BA18: $5,100 | BB18: $5,200 | BC18: $5,300 | BD18: $5,400 | BE18: $5,500 | BF18: $5,600 | BG18: $5,700 | BH18: $5,800 | BI18: $5,900 | BJ18: $6,000 | BK18: $6,100 | BL18: $6,200 | BM18: $6,300 | BN18: $6,400 | BO18: $6,500 | BP18: $6,600 | BQ18: $6,700 | BR18: $6,800 | BS18: $6,900 | BT18: $7,000 | BU18: $7,100 | BV18: $7,200 | BW18: $7,300 | BX18: $7,400 | BY18: $7,500 | BZ18: $7,600 | CA18: $7,700 | CB18: $7,800 | CC18: $7,900 | CD18: $8,000 | CE18: $8,100 | CF18: $8,200 | CG18: $8,300 | CH18: $8,400 | CI18: $8,500 | CJ18: $8,600 | CK18: $8,700 | CL18: $8,800 | CM18: $8,900 | CN18: $9,000 | CO18: $9,100 | CP18: $9,200 | CQ18: $9,300 | CR18: $9,400 | CS18: $9,500 | CT18: $9,600 | CU18: $9,700 | CV18: $9,800 | CW18: $9,900 | CX18: $10,000
F19: $400 | G19: $500 | H19: $600 | I19: $700 | J19: $800 | K19: $900 | L19: $1,000 | M19: $1,100 | N19: $1,200 | O19: $1,300 | P19: $1,400 | Q19: $1,500 | R19: $1,600 | S19: $1,700 | T19: $1,800 | U19: $1,900 | V19: $2,000 | W19: $2,100 | X19: $2,200 | Y19: $2,300 | Z19: $2,400 | AA19: $2,500 | AB19: $2,600 | AC19: $2,700 | AD19: $2,800 | AE19: $2,900 | AF19: $3,000 | AG19: $3,100 | AH19: $3,200 | AI19: $3,300 | AJ19: $3,400 | AK19: $3,500 | AL19: $3,600 | AM19: $3,700 | AN19: $3,800 | AO19: $3,900 | AP19: $4,000 | AQ19: $4,100 | AR19: $4,200 | AS19: $4,300 | AT19: $4,400 | AU19: $4,500 | AV19: $4,600 | AW19: $4,700 | AX19: $4,800 | AY19: $4,900 | AZ19: $5,000 | BA19: $5,100 | BB19: $5,200 | BC19: $5,300 | BD19: $5,400 | BE19: $5,500 | BF19: $5,600 | BG19: $5,700 | BH19: $5,800 | BI19: $5,900 | BJ19: $6,000 | BK19: $6,100 | BL19: $6,200 | BM19: $6,300 | BN19: $6,400 | BO19: $6,500 | BP19: $6,600 | BQ19: $6,700 | BR19: $6,800 | BS19: $6,900 | BT19: $7,000 | BU19: $7,100 | BV19: $7,200 | BW19: $7,300 | BX19: $7,400 | BY19: $7,500 | BZ19: $7,600 | CA19: $7,700 | CB19: $7,800 | CC19: $7,900 | CD19: $8,000 | CE19: $8,100 | CF19: $8,200 | CG19: $8,300 | CH19: $8,400 | CI19: $8,500 | CJ19: $8,600 | CK19: $8,700 | CL19: $8,800 | CM19: $8,900 | CN19: $9,000 | CO19: $9,100 | CP19: $9,200 | CQ19: $9,300 | CR19: $9,400 | CS19: $9,500 | CT19: $9,600 | CU19: $9,700 | CV19: $9,800 | CW19: $9,900 | CX19: $10,000
F20: $400 | G20: $500 | H20: $600 | I20: $700 | J20: $800 | K20: $900 | L20: $1,000 | M20: $1,100 | N20: $1,200 | O20: $1,300 | P20: $1,400 | Q20: $1,500 | R20: $1,600 | S20: $1,700 | T20: $1,800 | U20: $1,900 | V20: $2,000 | W20: $2,100 | X20: $2,200 | Y20: $2,300 | Z20: $2,400 | AA20: $2,500 | AB20: $2,600 | AC20: $2,700 | AD20: $2,800 | AE20: $2,900 | AF20: $3,000 | AG20: $3,100 | AH20: $3,200 | AI20: $3,300 | AJ20: $3,400 | AK20: $3,500 | AL20: $3,600 | AM20: $3,700 | AN20: $3,800 | AO20: $3,900 | AP20: $4,000 | AQ20: $4,100 | AR20: $4,200 | AS20: $4,300 | AT20: $4,400 | AU20: $4,500 | AV20: $4,600 | AW20: $4,700 | AX20: $4,800 | AY20: $4,900 | AZ20: $5,000 | BA20: $5,100 | BB20: $5,200 | BC20: $5,300 | BD20: $5,400 | BE20: $5,500 | BF20: $5,600 | BG20: $5,700 | BH20: $5,800 | BI20: $5,900 | BJ20: $6,000 | BK20: $6,100 | BL20: $6,200 | BM20: $6,300 | BN20: $6,400 | BO20: $6,500 | BP20: $6,600 | BQ20: $6,700 | BR20: $6,800 | BS20: $6,900 | BT20: $7,000 | BU20: $7,100 | BV20: $7,200 | BW20: $7,300 | BX20: $7,400 | BY20: $7,500 | BZ20: $7,600 | CA20: $7,700 | CB20: $7,800 | CC20: $7,900 | CD20: $8,000 | CE20: $8,100 | CF20: $8,200 | CG20: $8,300 | CH20: $8,400 | CI20: $8,500 | CJ20: $8,600 | CK20: $8,700 | CL20: $8,800 | CM20: $8,900 | CN20: $9,000 | CO20: $9,100 | CP20: $9,200 | CQ20: $9,300 | CR20: $9,400 | CS20: $9,500 | CT20: $9,600 | CU20: $9,700 | CV20: $9,800 | CW20: $9,900 | CX20: $10,000
B21: $1,600 | C21: $1,600 | D21: $1,600 | E21: $1,600 | F21: $2,000 | G21: $2,100 | H21: $2,200 | I21: $2,300 | J21: $2,400 | K21: $2,500 | L21: $2,600 | M21: $2,700 | N21: $2,800 | O21: $2,900 | P21: $3,000 | Q21: $3,100 | R21: $3,200 | S21: $3,300 | T21: $3,400 | U21: $3,500 | V21: $3,600 | W21: $3,700 | X21: $3,800 | Y21: $3,900 | Z21: $4,000 | AA21: $4,100 | AB21: $4,200 | AC21: $4,300 | AD21: $4,400 | AE21: $4,500 | AF21: $4,600 | AG21: $4,700 | AH21: $4,800 | AI21: $4,900 | AJ21: $5,000 | AK21: $5,100 | AL21: $5,200 | AM21: $5,300 | AN21: $5,400 | AO21: $5,500 | AP21: $5,600 | AQ21: $5,700 | AR21: $5,800 | AS21: $5,900 | AT21: $6,000 | AU21: $6,100 | AV21: $6,200 | AW21: $6,300 | AX21: $6,400 | AY21: $6,500 | AZ21: $6,600 | BA21: $6,700 | BB21: $6,800 | BC21: $6,900 | BD21: $7,000 | BE21: $7,100 | BF21: $7,200 | BG21: $7,300 | BH21: $7,400 | BI21: $7,500 | BJ21: $7,600 | BK21: $7,700 | BL21: $7,800 | BM21: $7,900 | BN21: $8,000 | BO21: $8,100 | BP21: $8,200 | BQ21: $8,300 | BR21: $8,400 | BS21: $8,500 | BT21: $8,600 | BU21: $8,700 | BV21: $8,800 | BW21: $8,900 | BX21: $9,000 | BY21: $9,100 | BZ21: $9,200 | CA21: $9,300 | CB21: $9,400 | CC21: $9,500 | CD21: $9,600 | CE21: $9,700 | CF21: $9,800 | CG21: $9,900 | CH21: $10,000 | CI21: $10,100 | CJ21: $10,200 | CK21: $10,300 | CL21: $10,400 | CM21: $10,500 | CN21: $10,600 | CO21: $10,700 | CP21: $10,800 | CQ21: $10,900 | CR21: $11,000 | CS21: $11,100 | CT21: $11,200 | CU21: $11,300 | CV21: $11,400 | CW21: $11,500 | CX21: $11,600
B22: $1,700 | C22: $1,700 | D22: $1,700 | E22: $1,700 | F22: $2,100 | G22: $2,200 | H22: $2,300 | I22: $2,400 | J22: $2,500 | K22: $2,600 | L22: $2,700 | M22: $2,800 | N22: $2,900 | O22: $3,000 | P22: $3,100 | Q22: $3,200 | R22: $3,300 | S22: $3,400 | T22: $3,500 | U22: $3,600 | V22: $3,700 | W22: $3,800 | X22: $3,900 | Y22: $4,000 | Z22: $4,100 | AA22: $4,200 | AB22: $4,300 | AC22: $4,400 | AD22: $4,500 | AE22: $4,600 | AF22: $4,700 | AG22: $4,800 | AH22: $4,900 | AI22: $5,000 | AJ22: $5,100 | AK22: $5,200 | AL22: $5,300 | AM22: $5,400 | AN22: $5,500 | AO22: $5,600 | AP22: $5,700 | AQ22: $5,800 | AR22: $5,900 | AS22: $6,000 | AT22: $6,100 | AU22: $6,200 | AV22: $6,300 | AW22: $6,400 | AX22: $6,500 | AY22: $6,600 | AZ22: $6,700 | BA22: $6,800 | BB22: $6,900 | BC22: $7,000 | BD22: $7,100 | BE22: $7,200 | BF22: $7,300 | BG22: $7,400 | BH22: $7,500 | BI22: $7,600 | BJ22: $7,700 | BK22: $7,800 | BL22: $7,900 | BM22: $8,000 | BN22: $8,100 | BO22: $8,200 | BP22: $8,300 | BQ22: $8,400 | BR22: $8,500 | BS22: $8,600 | BT22: $8,700 | BU22: $8,800 | BV22: $8,900 | BW22: $9,000 | BX22: $9,100 | BY22: $9,200 | BZ22: $9,300 | CA22: $9,400 | CB22: $9,500 | CC22: $9,600 | CD22: $9,700 | CE22: $9,800 | CF22: $9,900 | CG22: $10,000 | CH22: $10,100 | CI22: $10,200 | CJ22: $10,300 | CK22: $10,400 | CL22: $10,500 | CM22: $10,600 | CN22: $10,700 | CO22: $10,800 | CP22: $10,900 | CQ22: $11,000 | CR22: $11,100 | CS22: $11,200 | CT22: $11,300 | CU22: $11,400 | CV22: $11,500 | CW22: $11,600 | CX22: $11,700
B23: $1,800 | C23: $1,800 | D23: $1,800 | E23: $1,800 | F23: $2,200 | G23: $2,300 | H23: $2,400 | I23: $2,500 | J23: $2,600 | K23: $2,700 | L23: $2,800 | M23: $2,900 | N23: $3,000 | O23: $3,100 | P23: $3,200 | Q23: $3,300 | R23: $3,400 | S23: $3,500 | T23: $3,600 | U23: $3,700 | V23: $3,800 | W23: $3,900 | X23: $4,000 | Y23: $4,100 | Z23: $4,200 | AA23: $4,300 | AB23: $4,400 | AC23: $4,500 | AD23: $4,600 | AE23: $4,700 | AF23: $4,800 | AG23: $4,900 | AH23: $5,000 | AI23: $5,100 | AJ23: $5,200 | AK23: $5,300 | AL23: $5,400 | AM23: $5,500 | AN23: $5,600 | AO23: $5,700 | AP23: $5,800 | AQ23: $5,900 | AR23: $6,000 | AS23: $6,100 | AT23: $6,200 | AU23: $6,300 | AV23: $6,400 | AW23: $6,500 | AX23: $6,600 | AY23: $6,700 | AZ23: $6,800 | BA23: $6,900 | BB23: $7,000 | BC23: $7,100 | BD23: $7,200 | BE23: $7,300 | BF23: $7,400 | BG23: $7,500 | BH23: $7,600 | BI23: $7,700 | BJ23: $7,800 | BK23: $7,900 | BL23: $8,000 | BM23: $8,100 | BN23: $8,200 | BO23: $8,300 | BP23: $8,400 | BQ23: $8,500 | BR23: $8,600 | BS23: $8,700 | BT23: $8,800 | BU23: $8,900 | BV23: $9,000 | BW23: $9,100 | BX23: $9,200 | BY23: $9,300 | BZ23: $9,400 | CA23: $9,500 | CB23: $9,600 | CC23: $9,700 | CD23: $9,800 | CE23: $9,900 | CF23: $10,000 | CG23: $10,100 | CH23: $10,200 | CI23: $10,300 | CJ23: $10,400 | CK23: $10,500 | CL23: $10,600 | CM23: $10,700 | CN23: $10,800 | CO23: $10,900 | CP23: $11,000 | CQ23: $11,100 | CR23: $11,200 | CS23: $11,300 | CT23: $11,400 | CU23: $11,500 | CV23: $11,600 | CW23: $11,700 | CX23: $11,800
B24: $1,900 | C24: $1,900 | D24: $1,900 | E24: $1,900 | F24: $2,300 | G24: $2,400 | H24: $2,500 | I24: $2,600 | J24: $2,700 | K24: $2,800 | L24: $2,900 | M24: $3,000 | N24: $3,100 | O24: $3,200 | P24: $3,300 | Q24: $3,400 | R24: $3,500 | S24: $3,600 | T24: $3,700 | U24: $3,800 | V24: $3,900 | W24: $4,000 | X24: $4,100 | Y24: $4,200 | Z24: $4,300 | AA24: $4,400 | AB24: $4,500 | AC24: $4,600 | AD24: $4,700 | AE24: $4,800 | AF24: $4,900 | AG24: $5,000 | AH24: $5,100 | AI24: $5,200 | AJ24: $5,300 | AK24: $5,400 | AL24: $5,500 | AM24: $5,600 | AN24: $5,700 | AO24: $5,800 | AP24: $5,900 | AQ24: $6,000 | AR24: $6,100 | AS24: $6,200 | AT24: $6,300 | AU24: $6,400 | AV24: $6,500 | AW24: $6,600 | AX24: $6,700 | AY24: $6,800 | AZ24: $6,900 | BA24: $7,000 | BB24: $7,100 | BC24: $7,200 | BD24: $7,300 | BE24: $7,400 | BF24: $7,500 | BG24: $7,600 | BH24: $7,700 | BI24: $7,800 | BJ24: $7,900 | BK24: $8,000 | BL24: $8,100 | BM24: $8,200 | BN24: $8,300 | BO24: $8,400 | BP24: $8,500 | BQ24: $8,600 | BR24: $8,700 | BS24: $8,800 | BT24: $8,900 | BU24: $9,000 | BV24: $9,100 | BW24: $9,200 | BX24: $9,300 | BY24: $9,400 | BZ24: $9,500 | CA24: $9,600 | CB24: $9,700 | CC24: $9,800 | CD24: $9,900 | CE24: $10,000 | CF24: $10,100 | CG24: $10,200 | CH24: $10,300 | CI24: $10,400 | CJ24: $10,500 | CK24: $10,600 | CL24: $10,700 | CM24: $10,800 | CN24: $10,900 | CO24: $11,000 | CP24: $11,100 | CQ24: $11,200 | CR24: $11,300 | CS24: $11,400 | CT24: $11,500 | CU24: $11,600 | CV24: $11,700 | CW24: $11,800 | CX24: $11,900
B25: $2,000 | C25: $2,000 | D25: $2,000 | E25: $2,000 | F25: $2,400 | G25: $2,500 | H25: $2,600 | I25: $2,700 | J25: $2,800 | K25: $2,900 | L25: $3,000 | M25: $3,100 | N25: $3,200 | O25: $3,300 | P25: $3,400 | Q25: $3,500 | R25: $3,600 | S25: $3,700 | T25: $3,800 | U25: $3,900 | V25: $4,000 | W25: $4,100 | X25: $4,200 | Y25: $4,300 | Z25: $4,400 | AA25: $4,500 | AB25: $4,600 | AC25: $4,700 | AD25: $4,800 | AE25: $4,900 | AF25: $5,000 | AG25: $5,100 | AH25: $5,200 | AI25: $5,300 | AJ25: $5,400 | AK25: $5,500 | AL25: $5,600 | AM25: $5,700 | AN25: $5,800 | AO25: $5,900 | AP25: $6,000 | AQ25: $6,100 | AR25: $6,200 | AS25: $6,300 | AT25: $6,400 | AU25: $6,500 | AV25: $6,600 | AW25: $6,700 | AX25: $6,800 | AY25: $6,900 | AZ25: $7,000 | BA25: $7,100 | BB25: $7,200 | BC25: $7,300 | BD25: $7,400 | BE25: $7,500 | BF25: $7,600 | BG25: $7,700 | BH25: $7,800 | BI25: $7,900 | BJ25: $8,000 | BK25: $8,100 | BL25: $8,200 | BM25: $8,300 | BN25: $8,400 | BO25: $8,500 | BP25: $8,600 | BQ25: $8,700 | BR25: $8,800 | BS25: $8,900 | BT25: $9,000 | BU25: $9,100 | BV25: $9,200 | BW25: $9,300 | BX25: $9,400 | BY25: $9,500 | BZ25: $9,600 | CA25: $9,700 | CB25: $9,800 | CC25: $9,900 | CD25: $10,000 | CE25: $10,100 | CF25: $10,200 | CG25: $10,300 | CH25: $10,400 | CI25: $10,500 | CJ25: $10,600 | CK25: $10,700 | CL25: $10,800 | CM25: $10,900 | CN25: $11,000 | CO25: $11,100 | CP25: $11,200 | CQ25: $11,300 | CR25: $11,400 | CS25: $11,500 | CT25: $11,600 | CU25: $11,700 | CV25: $11,800 | CW25: $11,900 | CX25: $12,000
B26: $2,100 | C26: =SUM(C$5,$B26) -> $2,100 | D26: $2,100 | E26: $2,100 | F26: $2,500 | G26: $2,600 | H26: $2,700 | I26: $2,800 | J26: $2,900 | K26: $3,000 | L26: $3,100 | M26: =SUM(M$5,$B26) -> $3,200 | N26: $3,300 | O26: $3,400 | P26: $3,500 | Q26: $3,600 | R26: $3,700 | S26: $3,800 | T26: $3,900 | U26: $4,000 | V26: $4,100 | W26: =SUM(W$5,$B26) -> $4,200 | X26: $4,300 | Y26: $4,400 | Z26: $4,500 | AA26: $4,600 | AB26: $4,700 | AC26: $4,800 | AD26: $4,900 | AE26: $5,000 | AF26: $5,100 | AG26: =SUM(AG$5,$B26) -> $5,200 | AH26: $5,300 | AI26: $5,400 | AJ26: $5,500 | AK26: $5,600 | AL26: $5,700 | AM26: $5,800 | AN26: $5,900 | AO26: $6,000 | AP26: $6,100 | AQ26: =SUM(AQ$5,$B26) -> $6,200 | AR26: $6,300 | AS26: $6,400 | AT26: $6,500 | AU26: $6,600 | AV26: $6,700 | AW26: $6,800 | AX26: $6,900 | AY26: $7,000 | AZ26: $7,100 | BA26: =SUM(BA$5,$B26) -> $7,200 | BB26: $7,300 | BC26: $7,400 | BD26: $7,500 | BE26: $7,600 | BF26: $7,700 | BG26: $7,800 | BH26: $7,900 | BI26: $8,000 | BJ26: $8,100 | BK26: =SUM(BK$5,$B26) -> $8,200 | BL26: $8,300 | BM26: $8,400 | BN26: $8,500 | BO26: $8,600 | BP26: $8,700 | BQ26: $8,800 | BR26: $8,900 | BS26: $9,000 | BT26: $9,100 | BU26: =SUM(BU$5,$B26) -> $9,200 | BV26: $9,300 | BW26: $9,400 | BX26: $9,500 | BY26: $9,600 | BZ26: $9,700 | CA26: $9,800 | CB26: $9,900 | CC26: $10,000 | CD26: $10,100 | CE26: =SUM(CE$5,$B26) -> $10,200 | CF26: $10,300 | CG26: $10,400 | CH26: $10,500 | CI26: $10,600 | CJ26: $10,700 | CK26: $10,800 | CL26: $10,900 | CM26: $11,000 | CN26: $11,100 | CO26: =SUM(CO$5,$B26) -> $11,200 | CP26: $11,300 | CQ26: $11,400 | CR26: $11,500 | CS26: $11,600 | CT26: $11,700 | CU26: $11,800 | CV26: $11,900 | CW26: $12,000 | CX26: $12,100
B27: $2,200 | C27: $2,200 | D27: $2,200 | E27: $2,200 | F27: $2,600 | G27: $2,700 | H27: $2,800 | I27: $2,900 | J27: $3,000 | K27: $3,100 | L27: $3,200 | M27: $3,300 | N27: $3,400 | O27: $3,500 | P27: $3,600 | Q27: $3,700 | R27: $3,800 | S27: $3,900 | T27: $4,000 | U27: $4,100 | V27: $4,200 | W27: $4,300 | X27: $4,400 | Y27: $4,500 | Z27: $4,600 | AA27: $4,700 | AB27: $4,800 | AC27: $4,900 | AD27: $5,000 | AE27: $5,100 | AF27: $5,200 | AG27: $5,300 | AH27: $5,400 | AI27: $5,500 | AJ27: $5,600 | AK27: $5,700 | AL27: $5,800 | AM27: $5,900 | AN27: $6,000 | AO27: $6,100 | AP27: $6,200 | AQ27: $6,300 | AR27: $6,400 | AS27: $6,500 | AT27: $6,600 | AU27: $6,700 | AV27: $6,800 | AW27: $6,900 | AX27: $7,000 | AY27: $7,100 | AZ27: $7,200 | BA27: $7,300 | BB27: $7,400 | BC27: $7,500 | BD27: $7,600 | BE27: $7,700 | BF27: $7,800 | BG27: $7,900 | BH27: $8,000 | BI27: $8,100 | BJ27: $8,200 | BK27: $8,300 | BL27: $8,400 | BM27: $8,500 | BN27: $8,600 | BO27: $8,700 | BP27: $8,800 | BQ27: $8,900 | BR27: $9,000 | BS27: $9,100 | BT27: $9,200 | BU27: $9,300 | BV27: $9,400 | BW27: $9,500 | BX27: $9,600 | BY27: $9,700 | BZ27: $9,800 | CA27: $9,900 | CB27: $10,000 | CC27: $10,100 | CD27: $10,200 | CE27: $10,300 | CF27: $10,400 | CG27: $10,500 | CH27: $10,600 | CI27: $10,700 | CJ27: $10,800 | CK27: $10,900 | CL27: $11,000 | CM27: $11,100 | CN27: $11,200 | CO27: $11,300 | CP27: $11,400 | CQ27: $11,500 | CR27: $11,600 | CS27: $11,700 | CT27: $11,800 | CU27: $11,900 | CV27: $12,000 | CW27: $12,100 | CX27: $12,200
B28: $2,300 | C28: $2,300 | D28: $2,300 | E28: $2,300 | F28: $2,700 | G28: $2,800 | H28: $2,900 | I28: $3,000 | J28: $3,100 | K28: $3,200 | L28: $3,300 | M28: $3,400 | N28: $3,500 | O28: $3,600 | P28: $3,700 | Q28: $3,800 | R28: $3,900 | S28: $4,000 | T28: $4,100 | U28: $4,200 | V28: $4,300 | W28: $4,400 | X28: $4,500 | Y28: $4,600 | Z28: $4,700 | AA28: $4,800 | AB28: $4,900 | AC28: $5,000 | AD28: $5,100 | AE28: $5,200 | AF28: $5,300 | AG28: $5,400 | AH28: $5,500 | AI28: $5,600 | AJ28: $5,700 | AK28: $5,800 | AL28: $5,900 | AM28: $6,000 | AN28: $6,100 | AO28: $6,200 | AP28: $6,300 | AQ28: $6,400 | AR28: $6,500 | AS28: $6,600 | AT28: $6,700 | AU28: $6,800 | AV28: $6,900 | AW28: $7,000 | AX28: $7,100 | AY28: $7,200 | AZ28: $7,300 | BA28: $7,400 | BB28: $7,500 | BC28: $7,600 | BD28: $7,700 | BE28: $7,800 | BF28: $7,900 | BG28: $8,000 | BH28: $8,100 | BI28: $8,200 | BJ28: $8,300 | BK28: $8,400 | BL28: $8,500 | BM28: $8,600 | BN28: $8,700 | BO28: $8,800 | BP28: $8,900 | BQ28: $9,000 | BR28: $9,100 | BS28: $9,200 | BT28: $9,300 | BU28: $9,400 | BV28: $9,500 | BW28: $9,600 | BX28: $9,700 | BY28: $9,800 | BZ28: $9,900 | CA28: $10,000 | CB28: $10,100 | CC28: $10,200 | CD28: $10,300 | CE28: $10,400 | CF28: $10,500 | CG28: $10,600 | CH28: $10,700 | CI28: $10,800 | CJ28: $10,900 | CK28: $11,000 | CL28: $11,100 | CM28: $11,200 | CN28: $11,300 | CO28: $11,400 | CP28: $11,500 | CQ28: $11,600 | CR28: $11,700 | CS28: $11,800 | CT28: $11,900 | CU28: $12,000 | CV28: $12,100 | CW28: $12,200 | CX28: $12,300
B29: $2,400 | C29: $2,400 | D29: $2,400 | E29: $2,400 | F29: $2,800 | G29: $2,900 | H29: $3,000 | I29: $3,100 | J29: $3,200 | K29: $3,300 | L29: $3,400 | M29: $3,500 | N29: $3,600 | O29: $3,700 | P29: $3,800 | Q29: $3,900 | R29: $4,000 | S29: $4,100 | T29: $4,200 | U29: $4,300 | V29: $4,400 | W29: $4,500 | X29: $4,600 | Y29: $4,700 | Z29: $4,800 | AA29: $4,900 | AB29: $5,000 | AC29: $5,100 | AD29: $5,200 | AE29: $5,300 | AF29: $5,400 | AG29: $5,500 | AH29: $5,600 | AI29: $5,700 | AJ29: $5,800 | AK29: $5,900 | AL29: $6,000 | AM29: $6,100 | AN29: $6,200 | AO29: $6,300 | AP29: $6,400 | AQ29: $6,500 | AR29: $6,600 | AS29: $6,700 | AT29: $6,800 | AU29: $6,900 | AV29: $7,000 | AW29: $7,100 | AX29: $7,200 | AY29: $7,300 | AZ29: $7,400 | BA29: $7,500 | BB29: $7,600 | BC29: $7,700 | BD29: $7,800 | BE29: $7,900 | BF29: $8,000 | BG29: $8,100 | BH29: $8,200 | BI29: $8,300 | BJ29: $8,400 | BK29: $8,500 | BL29: $8,600 | BM29: $8,700 | BN29: $8,800 | BO29: $8,900 | BP29: $9,000 | BQ29: $9,100 | BR29: $9,200 | BS29: $9,300 | BT29: $9,400 | BU29: $9,500 | BV29: $9,600 | BW29: $9,700 | BX29: $9,800 | BY29: $9,900 | BZ29: $10,000 | CA29: $10,100 | CB29: $10,200 | CC29: $10,300 | CD29: $10,400 | CE29: $10,500 | CF29: $10,600 | CG29: $10,700 | CH29: $10,800 | CI29: $10,900 | CJ29: $11,000 | CK29: $11,100 | CL29: $11,200 | CM29: $11,300 | CN29: $11,400 | CO29: $11,500 | CP29: $11,600 | CQ29: $11,700 | CR29: $11,800 | CS29: $11,900 | CT29: $12,000 | CU29: $12,100 | CV29: $12,200 | CW29: $12,300 | CX29: $12,400
B30: $2,500 | C30: $2,500 | D30: $2,500 | E30: $2,500 | F30: $2,900 | G30: $3,000 | H30: $3,100 | I30: $3,200 | J30: $3,300 | K30: $3,400 | L30: $3,500 | M30: $3,600 | N30: $3,700 | O30: $3,800 | P30: $3,900 | Q30: $4,000 | R30: $4,100 | S30: $4,200 | T30: $4,300 | U30: $4,400 | V30: $4,500 | W30: $4,600 | X30: $4,700 | Y30: $4,800 | Z30: $4,900 | AA30: $5,000 | AB30: $5,100 | AC30: $5,200 | AD30: $5,300 | AE30: $5,400 | AF30: $5,500 | AG30: $5,600 | AH30: $5,700 | AI30: $5,800 | AJ30: $5,900 | AK30: $6,000 | AL30: $6,100 | AM30: $6,200 | AN30: $6,300 | AO30: $6,400 | AP30: $6,500 | AQ30: $6,600 | AR30: $6,700 | AS30: $6,800 | AT30: $6,900 | AU30: $7,000 | AV30: $7,100 | AW30: $7,200 | AX30: $7,300 | AY30: $7,400 | AZ30: $7,500 | BA30: $7,600 | BB30: $7,700 | BC30: $7,800 | BD30: $7,900 | BE30: $8,000 | BF30: $8,100 | BG30: $8,200 | BH30: $8,300 | BI30: $8,400 | BJ30: $8,500 | BK30: $8,600 | BL30: $8,700 | BM30: $8,800 | BN30: $8,900 | BO30: $9,000 | BP30: $9,100 | BQ30: $9,200 | BR30: $9,300 | BS30: $9,400 | BT30: $9,500 | BU30: $9,600 | BV30: $9,700 | BW30: $9,800 | BX30: $9,900 | BY30: $10,000 | BZ30: $10,100 | CA30: $10,200 | CB30: $10,300 | CC30: $10,400 | CD30: $10,500 | CE30: $10,600 | CF30: $10,700 | CG30: $10,800 | CH30: $10,900 | CI30: $11,000 | CJ30: $11,100 | CK30: $11,200 | CL30: $11,300 | CM30: $11,400 | CN30: $11,500 | CO30: $11,600 | CP30: $11,700 | CQ30: $11,800 | CR30: $11,900 | CS30: $12,000 | CT30: $12,100 | CU30: $12,200 | CV30: $12,300 | CW30: $12,400 | CX30: $12,500
B31: $2,600 | C31: $2,600 | D31: $2,600 | E31: $2,600 | F31: $3,000 | G31: $3,100 | H31: $3,200 | I31: $3,300 | J31: $3,400 | K31: $3,500 | L31: $3,600 | M31: $3,700 | N31: $3,800 | O31: $3,900 | P31: $4,000 | Q31: $4,100 | R31: $4,200 | S31: $4,300 | T31: $4,400 | U31: $4,500 | V31: $4,600 | W31: $4,700 | X31: $4,800 | Y31: $4,900 | Z31: $5,000 | AA31: $5,100 | AB31: $5,200 | AC31: $5,300 | AD31: $5,400 | AE31: $5,500 | AF31: $5,600 | AG31: $5,700 | AH31: $5,800 | AI31: $5,900 | AJ31: $6,000 | AK31: $6,100 | AL31: $6,200 | AM31: $6,300 | AN31: $6,400 | AO31: $6,500 | AP31: $6,600 | AQ31: $6,700 | AR31: $6,800 | AS31: $6,900 | AT31: $7,000 | AU31: $7,100 | AV31: $7,200 | AW31: $7,300 | AX31: $7,400 | AY31: $7,500 | AZ31: $7,600 | BA31: $7,700 | BB31: $7,800 | BC31: $7,900 | BD31: $8,000 | BE31: $8,100 | BF31: $8,200 | BG31: $8,300 | BH31: $8,400 | BI31: $8,500 | BJ31: $8,600 | BK31: $8,700 | BL31: $8,800 | BM31: $8,900 | BN31: $9,000 | BO31: $9,100 | BP31: $9,200 | BQ31: $9,300 | BR31: $9,400 | BS31: $9,500 | BT31: $9,600 | BU31: $9,700 | BV31: $9,800 | BW31: $9,900 | BX31: $10,000 | BY31: $10,100 | BZ31: $10,200 | CA31: $10,300 | CB31: $10,400 | CC31: $10,500 | CD31: $10,600 | CE31: $10,700 | CF31: $10,800 | CG31: $10,900 | CH31: $11,000 | CI31: $11,100 | CJ31: $11,200 | CK31: $11,300 | CL31: $11,400 | CM31: $11,500 | CN31: $11,600 | CO31: $11,700 | CP31: $11,800 | CQ31: $11,900 | CR31: $12,000 | CS31: $12,100 | CT31: $12,200 | CU31: $12,300 | CV31: $12,400 | CW31: $12,500 | CX31: $12,600
B32: $2,700 | C32: $2,700 | D32: $2,700 | E32: $2,700 | F32: $3,100 | G32: $3,200 | H32: $3,300 | I32: $3,400 | J32: $3,500 | K32: $3,600 | L32: $3,700 | M32: $3,800 | N32: $3,900 | O32: $4,000 | P32: $4,100 | Q32: $4,200 | R32: $4,300 | S32: $4,400 | T32: $4,500 | U32: $4,600 | V32: $4,700 | W32: $4,800 | X32: $4,900 | Y32: $5,000 | Z32: $5,100 | AA32: $5,200 | AB32: $5,300 | AC32: $5,400 | AD32: $5,500 | AE32: $5,600 | AF32: $5,700 | AG32: $5,800 | AH32: $5,900 | AI32: $6,000 | AJ32: $6,100 | AK32: $6,200 | AL32: $6,300 | AM32: $6,400 | AN32: $6,500 | AO32: $6,600 | AP32: $6,700 | AQ32: $6,800 | AR32: $6,900 | AS32: $7,000 | AT32: $7,100 | AU32: $7,200 | AV32: $7,300 | AW32: $7,400 | AX32: $7,500 | AY32: $7,600 | AZ32: $7,700 | BA32: $7,800 | BB32: $7,900 | BC32: $8,000 | BD32: $8,100 | BE32: $8,200 | BF32: $8,300 | BG32: $8,400 | BH32: $8,500 | BI32: $8,600 | BJ32: $8,700 | BK32: $8,800 | BL32: $8,900 | BM32: $9,000 | BN32: $9,100 | BO32: $9,200 | BP32: $9,300 | BQ32: $9,400 | BR32: $9,500 | BS32: $9,600 | BT32: $9,700 | BU32: $9,800 | BV32: $9,900 | BW32: $10,000 | BX32: $10,100 | BY32: $10,200 | BZ32: $10,300 | CA32: $10,400 | CB32: $10,500 | CC32: $10,600 | CD32: $10,700 | CE32: $10,800 | CF32: $10,900 | CG32: $11,000 | CH32: $11,100 | CI32: $11,200 | CJ32: $11,300 | CK32: $11,400 | CL32: $11,500 | CM32: $11,600 | CN32: $11,700 | CO32: $11,800 | CP32: $11,900 | CQ32: $12,000 | CR32: $12,100 | CS32: $12,200 | CT32: $12,300 | CU32: $12,400 | CV32: $12,500 | CW32: $12,600 | CX32: $12,700
B33: $2,800 | C33: $2,800 | D33: $2,800 | E33: $2,800 | F33: $3,200 | G33: $3,300 | H33: $3,400 | I33: $3,500 | J33: $3,600 | K33: $3,700 | L33: $3,800 | M33: $3,900 | N33: $4,000 | O33: $4,100 | P33: $4,200 | Q33: $4,300 | R33: $4,400 | S33: $4,500 | T33: $4,600 | U33: $4,700 | V33: $4,800 | W33: $4,900 | X33: $5,000 | Y33: $5,100 | Z33: $5,200 | AA33: $5,300 | AB33: $5,400 | AC33: $5,500 | AD33: $5,600 | AE33: $5,700 | AF33: $5,800 | AG33: $5,900 | AH33: $6,000 | AI33: $6,100 | AJ33: $6,200 | AK33: $6,300 | AL33: $6,400 | AM33: $6,500 | AN33: $6,600 | AO33: $6,700 | AP33: $6,800 | AQ33: $6,900 | AR33: $7,000 | AS33: $7,100 | AT33: $7,200 | AU33: $7,300 | AV33: $7,400 | AW33: $7,500 | AX33: $7,600 | AY33: $7,700 | AZ33: $7,800 | BA33: $7,900 | BB33: $8,000 | BC33: $8,100 | BD33: $8,200 | BE33: $8,300 | BF33: $8,400 | BG33: $8,500 | BH33: $8,600 | BI33: $8,700 | BJ33: $8,800 | BK33: $8,900 | BL33: $9,000 | BM33: $9,100 | BN33: $9,200 | BO33: $9,300 | BP33: $9,400 | BQ33: $9,500 | BR33: $9,600 | BS33: $9,700 | BT33: $9,800 | BU33: $9,900 | BV33: $10,000 | BW33: $10,100 | BX33: $10,200 | BY33: $10,300 | BZ33: $10,400 | CA33: $10,500 | CB33: $10,600 | CC33: $10,700 | CD33: $10,800 | CE33: $10,900 | CF33: $11,000 | CG33: $11,100 | CH33: $11,200 | CI33: $11,300 | CJ33: $11,400 | CK33: $11,500 | CL33: $11,600 | CM33: $11,700 | CN33: $11,800 | CO33: $11,900 | CP33: $12,000 | CQ33: $12,100 | CR33: $12,200 | CS33: $12,300 | CT33: $12,400 | CU33: $12,500 | CV33: $12,600 | CW33: $12,700 | CX33: $12,800
B34: $2,900 | C34: $2,900 | D34: $2,900 | E34: $2,900 | F34: $3,300 | G34: $3,400 | H34: $3,500 | I34: $3,600 | J34: $3,700 | K34: $3,800 | L34: $3,900 | M34: $4,000 | N34: $4,100 | O34: $4,200 | P34: $4,300 | Q34: $4,400 | R34: $4,500 | S34: $4,600 | T34: $4,700 | U34: $4,800 | V34: $4,900 | W34: $5,000 | X34: $5,100 | Y34: $5,200 | Z34: $5,300 | AA34: $5,400 | AB34: $5,500 | AC34: $5,600 | AD34: $5,700 | AE34: $5,800 | AF34: $5,900 | AG34: $6,000 | AH34: $6,100 | AI34: $6,200 | AJ34: $6,300 | AK34: $6,400 | AL34: $6,500 | AM34: $6,600 | AN34: $6,700 | AO34: $6,800 | AP34: $6,900 | AQ34: $7,000 | AR34: $7,100 | AS34: $7,200 | AT34: $7,300 | AU34: $7,400 | AV34: $7,500 | AW34: $7,600 | AX34: $7,700 | AY34: $7,800 | AZ34: $7,900 | BA34: $8,000 | BB34: $8,100 | BC34: $8,200 | BD34: $8,300 | BE34: $8,400 | BF34: $8,500 | BG34: $8,600 | BH34: $8,700 | BI34: $8,800 | BJ34: $8,900 | BK34: $9,000 | BL34: $9,100 | BM34: $9,200 | BN34: $9,300 | BO34: $9,400 | BP34: $9,500 | BQ34: $9,600 | BR34: $9,700 | BS34: $9,800 | BT34: $9,900 | BU34: $10,000 | BV34: $10,100 | BW34: $10,200 | BX34: $10,300 | BY34: $10,400 | BZ34: $10,500 | CA34: $10,600 | CB34: $10,700 | CC34: $10,800 | CD34: $10,900 | CE34: $11,000 | CF34: $11,100 | CG34: $11,200 | CH34: $11,300 | CI34: $11,400 | CJ34: $11,500 | CK34: $11,600 | CL34: $11,700 | CM34: $11,800 | CN34: $11,900 | CO34: $12,000 | CP34: $12,100 | CQ34: $12,200 | CR34: $12,300 | CS34: $12,400 | CT34: $12,500 | CU34: $12,600 | CV34: $12,700 | CW34: $12,800 | CX34: $12,900
B35: $3,000 | C35: $3,000 | D35: $3,000 | E35: $3,000 | F35: $3,400 | G35: $3,500 | H35: $3,600 | I35: $3,700 | J35: $3,800 | K35: $3,900 | L35: $4,000 | M35: $4,100 | N35: $4,200 | O35: $4,300 | P35: $4,400 | Q35: $4,500 | R35: $4,600 | S35: $4,700 | T35: $4,800 | U35: $4,900 | V35: $5,000 | W35: $5,100 | X35: $5,200 | Y35: $5,300 | Z35: $5,400 | AA35: $5,500 | AB35: $5,600 | AC35: $5,700 | AD35: $5,800 | AE35: $5,900 | AF35: $6,000 | AG35: $6,100 | AH35: $6,200 | AI35: $6,300 | AJ35: $6,400 | AK35: $6,500 | AL35: $6,600 | AM35: $6,700 | AN35: $6,800 | AO35: $6,900 | AP35: $7,000 | AQ35: $7,100 | AR35: $7,200 | AS35: $7,300 | AT35: $7,400 | AU35: $7,500 | AV35: $7,600 | AW35: $7,700 | AX35: $7,800 | AY35: $7,900 | AZ35: $8,000 | BA35: $8,100 | BB35: $8,200 | BC35: $8,300 | BD35: $8,400 | BE35: $8,500 | BF35: $8,600 | BG35: $8,700 | BH35: $8,800 | BI35: $8,900 | BJ35: $9,000 | BK35: $9,100 | BL35: $9,200 | BM35: $9,300 | BN35: $9,400 | BO35: $9,500 | BP35: $9,600 | BQ35: $9,700 | BR35: $9,800 | BS35: $9,900 | BT35: $10,000 | BU35: $10,100 | BV35: $10,200 | BW35: $10,300 | BX35: $10,400 | BY35: $10,500 | BZ35: $10,600 | CA35: $10,700 | CB35: $10,800 | CC35: $10,900 | CD35: $11,000 | CE35: $11,100 | CF35: $11,200 | CG35: $11,300 | CH35: $11,400 | CI35: $11,500 | CJ35: $11,600 | CK35: $11,700 | CL35: $11,800 | CM35: $11,900 | CN35: $12,000 | CO35: $12,100 | CP35: $12,200 | CQ35: $12,300 | CR35: $12,400 | CS35: $12,500 | CT35: $12,600 | CU35: $12,700 | CV35: $12,800 | CW35: $12,900 | CX35: $13,000
B36: $3,100 | C36: =SUM(C$5,$B36) -> $3,100 | D36: $3,100 | E36: $3,100 | F36: $3,500 | G36: $3,600 | H36: $3,700 | I36: $3,800 | J36: $3,900 | K36: $4,000 | L36: $4,100 | M36: =SUM(M$5,$B36) -> $4,200 | N36: $4,300 | O36: $4,400 | P36: $4,500 | Q36: $4,600 | R36: $4,700 | S36: $4,800 | T36: $4,900 | U36: $5,000 | V36: $5,100 | W36: =SUM(W$5,$B36) -> $5,200 | X36: $5,300 | Y36: $5,400 | Z36: $5,500 | AA36: $5,600 | AB36: $5,700 | AC36: $5,800 | AD36: $5,900 | AE36: $6,000 | AF36: $6,100 | AG36: =SUM(AG$5,$B36) -> $6,200 | AH36: $6,300 | AI36: $6,400 | AJ36: $6,500 | AK36: $6,600 | AL36: $6,700 | AM36: $6,800 | AN36: $6,900 | AO36: $7,000 | AP36: $7,100 | AQ36: =SUM(AQ$5,$B36) -> $7,200 | AR36: $7,300 | AS36: $7,400 | AT36: $7,500 | AU36: $7,600 | AV36: $7,700 | AW36: $7,800 | AX36: $7,900 | AY36: $8,000 | AZ36: $8,100 | BA36: =SUM(BA$5,$B36) -> $8,200 | BB36: $8,300 | BC36: $8,400 | BD36: $8,500 | BE36: $8,600 | BF36: $8,700 | BG36: $8,800 | BH36: $8,900 | BI36: $9,000 | BJ36: $9,100 | BK36: =SUM(BK$5,$B36) -> $9,200 | BL36: $9,300 | BM36: $9,400 | BN36: $9,500 | BO36: $9,600 | BP36: $9,700 | BQ36: $9,800 | BR36: $9,900 | BS36: $10,000 | BT36: $10,100 | BU36: =SUM(BU$5,$B36) -> $10,200 | BV36: $10,300 | BW36: $10,400 | BX36: $10,500 | BY36: $10,600 | BZ36: $10,700 | CA36: $10,800 | CB36: $10,900 | CC36: $11,000 | CD36: $11,100 | CE36: =SUM(CE$5,$B36) -> $11,200 | CF36: $11,300 | CG36: $11,400 | CH36: $11,500 | CI36: $11,600 | CJ36: $11,700 | CK36: $11,800 | CL36: $11,900 | CM36: $12,000 | CN36: $12,100 | CO36: =SUM(CO$5,$B36) -> $12,200 | CP36: $12,300 | CQ36: $12,400 | CR36: $12,500 | CS36: $12,600 | CT36: $12,700 | CU36: $12,800 | CV36: $12,900 | CW36: $13,000 | CX36: $13,100
B37: $3,200 | C37: $3,200 | D37: $3,200 | E37: $3,200 | F37: $3,600 | G37: $3,700 | H37: $3,800 | I37: $3,900 | J37: $4,000 | K37: $4,100 | L37: $4,200 | M37: $4,300 | N37: $4,400 | O37: $4,500 | P37: $4,600 | Q37: $4,700 | R37: $4,800 | S37: $4,900 | T37: $5,000 | U37: $5,100 | V37: $5,200 | W37: $5,300 | X37: $5,400 | Y37: $5,500 | Z37: $5,600 | AA37: $5,700 | AB37: $5,800 | AC37: $5,900 | AD37: $6,000 | AE37: $6,100 | AF37: $6,200 | AG37: $6,300 | AH37: $6,400 | AI37: $6,500 | AJ37: $6,600 | AK37: $6,700 | AL37: $6,800 | AM37: $6,900 | AN37: $7,000 | AO37: $7,100 | AP37: $7,200 | AQ37: $7,300 | AR37: $7,400 | AS37: $7,500 | AT37: $7,600 | AU37: $7,700 | AV37: $7,800 | AW37: $7,900 | AX37: $8,000 | AY37: $8,100 | AZ37: $8,200 | BA37: $8,300 | BB37: $8,400 | BC37: $8,500 | BD37: $8,600 | BE37: $8,700 | BF37: $8,800 | BG37: $8,900 | BH37: $9,000 | BI37: $9,100 | BJ37: $9,200 | BK37: $9,300 | BL37: $9,400 | BM37: $9,500 | BN37: $9,600 | BO37: $9,700 | BP37: $9,800 | BQ37: $9,900 | BR37: $10,000 | BS37: $10,100 | BT37: $10,200 | BU37: $10,300 | BV37: $10,400 | BW37: $10,500 | BX37: $10,600 | BY37: $10,700 | BZ37: $10,800 | CA37: $10,900 | CB37: $11,000 | CC37: $11,100 | CD37: $11,200 | CE37: $11,300 | CF37: $11,400 | CG37: $11,500 | CH37: $11,600 | CI37: $11,700 | CJ37: $11,800 | CK37: $11,900 | CL37: $12,000 | CM37: $12,100 | CN37: $12,200 | CO37: $12,300 | CP37: $12,400 | CQ37: $12,500 | CR37: $12,600 | CS37: $12,700 | CT37: $12,800 | CU37: $12,900 | CV37: $13,000 | CW37: $13,100 | CX37: $13,200
B38: $3,300 | C38: $3,300 | D38: $3,300 | E38: $3,300 | F38: $3,700 | G38: $3,800 | H38: $3,900 | I38: $4,000 | J38: $4,100 | K38: $4,200 | L38: $4,300 | M38: $4,400 | N38: $4,500 | O38: $4,600 | P38: $4,700 | Q38: $4,800 | R38: $4,900 | S38: $5,000 | T38: $5,100 | U38: $5,200 | V38: $5,300 | W38: $5,400 | X38: $5,500 | Y38: $5,600 | Z38: $5,700 | AA38: $5,800 | AB38: $5,900 | AC38: $6,000 | AD38: $6,100 | AE38: $6,200 | AF38: $6,300 | AG38: $6,400 | AH38: $6,500 | AI38: $6,600 | AJ38: $6,700 | AK38: $6,800 | AL38: $6,900 | AM38: $7,000 | AN38: $7,100 | AO38: $7,200 | AP38: $7,300 | AQ38: $7,400 | AR38: $7,500 | AS38: $7,600 | AT38: $7,700 | AU38: $7,800 | AV38: $7,900 | AW38: $8,000 | AX38: $8,100 | AY38: $8,200 | AZ38: $8,300 | BA38: $8,400 | BB38: $8,500 | BC38: $8,600 | BD38: $8,700 | BE38: $8,800 | BF38: $8,900 | BG38: $9,000 | BH38: $9,100 | BI38: $9,200 | BJ38: $9,300 | BK38: $9,400 | BL38: $9,500 | BM38: $9,600 | BN38: $9,700 | BO38: $9,800 | BP38: $9,900 | BQ38: $10,000 | BR38: $10,100 | BS38: $10,200 | BT38: $10,300 | BU38: $10,400 | BV38: $10,500 | BW38: $10,600 | BX38: $10,700 | BY38: $10,800 | BZ38: $10,900 | CA38: $11,000 | CB38: $11,100 | CC38: $11,200 | CD38: $11,300 | CE38: $11,400 | CF38: $11,500 | CG38: $11,600 | CH38: $11,700 | CI38: $11,800 | CJ38: $11,900 | CK38: $12,000 | CL38: $12,100 | CM38: $12,200 | CN38: $12,300 | CO38: $12,400 | CP38: $12,500 | CQ38: $12,600 | CR38: $12,700 | CS38: $12,800 | CT38: $12,900 | CU38: $13,000 | CV38: $13,100 | CW38: $13,200 | CX38: $13,300
B39: $3,400 | C39: $3,400 | D39: $3,400 | E39: $3,400 | F39: $3,800 | G39: $3,900 | H39: $4,000 | I39: $4,100 | J39: $4,200 | K39: $4,300 | L39: $4,400 | M39: $4,500 | N39: $4,600 | O39: $4,700 | P39: $4,800 | Q39: $4,900 | R39: $5,000 | S39: $5,100 | T39: $5,200 | U39: $5,300 | V39: $5,400 | W39: $5,500 | X39: $5,600 | Y39: $5,700 | Z39: $5,800 | AA39: $5,900 | AB39: $6,000 | AC39: $6,100 | AD39: $6,200 | AE39: $6,300 | AF39: $6,400 | AG39: $6,500 | AH39: $6,600 | AI39: $6,700 | AJ39: $6,800 | AK39: $6,900 | AL39: $7,000 | AM39: $7,100 | AN39: $7,200 | AO39: $7,300 | AP39: $7,400 | AQ39: $7,500 | AR39: $7,600 | AS39: $7,700 | AT39: $7,800 | AU39: $7,900 | AV39: $8,000 | AW39: $8,100 | AX39: $8,200 | AY39: $8,300 | AZ39: $8,400 | BA39: $8,500 | BB39: $8,600 | BC39: $8,700 | BD39: $8,800 | BE39: $8,900 | BF39: $9,000 | BG39: $9,100 | BH39: $9,200 | BI39: $9,300 | BJ39: $9,400 | BK39: $9,500 | BL39: $9,600 | BM39: $9,700 | BN39: $9,800 | BO39: $9,900 | BP39: $10,000 | BQ39: $10,100 | BR39: $10,200 | BS39: $10,300 | BT39: $10,400 | BU39: $10,500 | BV39: $10,600 | BW39: $10,700 | BX39: $10,800 | BY39: $10,900 | BZ39: $11,000 | CA39: $11,100 | CB39: $11,200 | CC39: $11,300 | CD39: $11,400 | CE39: $11,500 | CF39: $11,600 | CG39: $11,700 | CH39: $11,800 | CI39: $11,900 | CJ39: $12,000 | CK39: $12,100 | CL39: $12,200 | CM39: $12,300 | CN39: $12,400 | CO39: $12,500 | CP39: $12,600 | CQ39: $12,700 | CR39: $12,800 | CS39: $12,900 | CT39: $13,000 | CU39: $13,100 | CV39: $13,200 | CW39: $13,300 | CX39: $13,400
B40: $3,500 | C40: $3,500 | D40: $3,500 | E40: $3,500 | F40: $3,900 | G40: $4,000 | H40: $4,100 | I40: $4,200 | J40: $4,300 | K40: $4,400 | L40: $4,500 | M40: $4,600 | N40: $4,700 | O40: $4,800 | P40: $4,900 | Q40: $5,000 | R40: $5,100 | S40: $5,200 | T40: $5,300 | U40: $5,400 | V40: $5,500 | W40: $5,600 | X40: $5,700 | Y40: $5,800 | Z40: $5,900 | AA40: $6,000 | AB40: $6,100 | AC40: $6,200 | AD40: $6,300 | AE40: $6,400 | AF40: $6,500 | AG40: $6,600 | AH40: $6,700 | AI40: $6,800 | AJ40: $6,900 | AK40: $7,000 | AL40: $7,100 | AM40: $7,200 | AN40: $7,300 | AO40: $7,400 | AP40: $7,500 | AQ40: $7,600 | AR40: $7,700 | AS40: $7,800 | AT40: $7,900 | AU40: $8,000 | AV40: $8,100 | AW40: $8,200 | AX40: $8,300 | AY40: $8,400 | AZ40: $8,500 | BA40: $8,600 | BB40: $8,700 | BC40: $8,800 | BD40: $8,900 | BE40: $9,000 | BF40: $9,100 | BG40: $9,200 | BH40: $9,300 | BI40: $9,400 | BJ40: $9,500 | BK40: $9,600 | BL40: $9,700 | BM40: $9,800 | BN40: $9,900 | BO40: $10,000 | BP40: $10,100 | BQ40: $10,200 | BR40: $10,300 | BS40: $10,400 | BT40: $10,500 | BU40: $10,600 | BV40: $10,700 | BW40: $10,800 | BX40: $10,900 | BY40: $11,000 | BZ40: $11,100 | CA40: $11,200 | CB40: $11,300 | CC40: $11,400 | CD40: $11,500 | CE40: $11,600 | CF40: $11,700 | CG40: $11,800 | CH40: $11,900 | CI40: $12,000 | CJ40: $12,100 | CK40: $12,200 | CL40: $12,300 | CM40: $12,400 | CN40: $12,500 | CO40: $12,600 | CP40: $12,700 | CQ40: $12,800 | CR40: $12,900 | CS40: $13,000 | CT40: $13,100 | CU40: $13,200 | CV40: $13,300 | CW40: $13,400 | CX40: $13,500
B41: $3,600 | C41: $3,600 | D41: $3,600 | E41: $3,600 | F41: $4,000 | G41: $4,100 | H41: $4,200 | I41: $4,300 | J41: $4,400 | K41: $4,500 | L41: $4,600 | M41: $4,700 | N41: $4,800 | O41: $4,900 | P41: $5,000 | Q41: $5,100 | R41: $5,200 | S41: $5,300 | T41: $5,400 | U41: $5,500 | V41: $5,600 | W41: $5,700 | X41: $5,800 | Y41: $5,900 | Z41: $6,000 | AA41: $6,100 | AB41: $6,200 | AC41: $6,300 | AD41: $6,400 | AE41: $6,500 | AF41: $6,600 | AG41: $6,700 | AH41: $6,800 | AI41: $6,900 | AJ41: $7,000 | AK41: $7,100 | AL41: $7,200 | AM41: $7,300 | AN41: $7,400 | AO41: $7,500 | AP41: $7,600 | AQ41: $7,700 | AR41: $7,800 | AS41: $7,900 | AT41: $8,000 | AU41: $8,100 | AV41: $8,200 | AW41: $8,300 | AX41: $8,400 | AY41: $8,500 | AZ41: $8,600 | BA41: $8,700 | BB41: $8,800 | BC41: $8,900 | BD41: $9,000 | BE41: $9,100 | BF41: $9,200 | BG41: $9,300 | BH41: $9,400 | BI41: $9,500 | BJ41: $9,600 | BK41: $9,700 | BL41: $9,800 | BM41: $9,900 | BN41: $10,000 | BO41: $10,100 | BP41: $10,200 | BQ41: $10,300 | BR41: $10,400 | BS41: $10,500 | BT41: $10,600 | BU41: $10,700 | BV41: $10,800 | BW41: $10,900 | BX41: $11,000 | BY41: $11,100 | BZ41: $11,200 | CA41: $11,300 | CB41: $11,400 | CC41: $11,500 | CD41: $11,600 | CE41: $11,700 | CF41: $11,800 | CG41: $11,900 | CH41: $12,000 | CI41: $12,100 | CJ41: $12,200 | CK41: $12,300 | CL41: $12,400 | CM41: $12,500 | CN41: $12,600 | CO41: $12,700 | CP41: $12,800 | CQ41: $12,900 | CR41: $13,000 | CS41: $13,100 | CT41: $13,200 | CU41: $13,300 | CV41: $13,400 | CW41: $13,500 | CX41: $13,600
B42: $3,700 | C42: $3,700 | D42: $3,700 | E42: $3,700 | F42: $4,100 | G42: $4,200 | H42: $4,300 | I42: $4,400 | J42: $4,500 | K42: $4,600 | L42: $4,700 | M42: $4,800 | N42: $4,900 | O42: $5,000 | P42: $5,100 | Q42: $5,200 | R42: $5,300 | S42: $5,400 | T42: $5,500 | U42: $5,600 | V42: $5,700 | W42: $5,800 | X42: $5,900 | Y42: $6,000 | Z42: $6,100 | AA42: $6,200 | AB42: $6,300 | AC42: $6,400 | AD42: $6,500 | AE42: $6,600 | AF42: $6,700 | AG42: $6,800 | AH42: $6,900 | AI42: $7,000 | AJ42: $7,100 | AK42: $7,200 | AL42: $7,300 | AM42: $7,400 | AN42: $7,500 | AO42: $7,600 | AP42: $7,700 | AQ42: $7,800 | AR42: $7,900 | AS42: $8,000 | AT42: $8,100 | AU42: $8,200 | AV42: $8,300 | AW42: $8,400 | AX42: $8,500 | AY42: $8,600 | AZ42: $8,700 | BA42: $8,800 | BB42: $8,900 | BC42: $9,000 | BD42: $9,100 | BE42: $9,200 | BF42: $9,300 | BG42: $9,400 | BH42: $9,500 | BI42: $9,600 | BJ42: $9,700 | BK42: $9,800 | BL42: $9,900 | BM42: $10,000 | BN42: $10,100 | BO42: $10,200 | BP42: $10,300 | BQ42: $10,400 | BR42: $10,500 | BS42: $10,600 | BT42: $10,700 | BU42: $10,800 | BV42: $10,900 | BW42: $11,000 | BX42: $11,100 | BY42: $11,200 | BZ42: $11,300 | CA42: $11,400 | CB42: $11,500 | CC42: $11,600 | CD42: $11,700 | CE42: $11,800 | CF42: $11,900 | CG42: $12,000 | CH42: $12,100 | CI42: $12,200 | CJ42: $12,300 | CK42: $12,400 | CL42: $12,500 | CM42: $12,600 | CN42: $12,700 | CO42: $12,800 | CP42: $12,900 | CQ42: $13,000 | CR42: $13,100 | CS42: $13,200 | CT42: $13,300 | CU42: $13,400 | CV42: $13,500 | CW42: $13,600 | CX42: $13,700
B43: $3,800 | C43: $3,800 | D43: $3,800 | E43: $3,800 | F43: $4,200 | G43: $4,300 | H43: $4,400 | I43: $4,500 | J43: $4,600 | K43: $4,700 | L43: $4,800 | M43: $4,900 | N43: $5,000 | O43: $5,100 | P43: $5,200 | Q43: $5,300 | R43: $5,400 | S43: $5,500 | T43: $5,600 | U43: $5,700 | V43: $5,800 | W43: $5,900 | X43: $6,000 | Y43: $6,100 | Z43: $6,200 | AA43: $6,300 | AB43: $6,400 | AC43: $6,500 | AD43: $6,600 | AE43: $6,700 | AF43: $6,800 | AG43: $6,900 | AH43: $7,000 | AI43: $7,100 | AJ43: $7,200 | AK43: $7,300 | AL43: $7,400 | AM43: $7,500 | AN43: $7,600 | AO43: $7,700 | AP43: $7,800 | AQ43: $7,900 | AR43: $8,000 | AS43: $8,100 | AT43: $8,200 | AU43: $8,300 | AV43: $8,400 | AW43: $8,500 | AX43: $8,600 | AY43: $8,700 | AZ43: $8,800 | BA43: $8,900 | BB43: $9,000 | BC43: $9,100 | BD43: $9,200 | BE43: $9,300 | BF43: $9,400 | BG43: $9,500 | BH43: $9,600 | BI43: $9,700 | BJ43: $9,800 | BK43: $9,900 | BL43: $10,000 | BM43: $10,100 | BN43: $10,200 | BO43: $10,300 | BP43: $10,400 | BQ43: $10,500 | BR43: $10,600 | BS43: $10,700 | BT43: $10,800 | BU43: $10,900 | BV43: $11,000 | BW43: $11,100 | BX43: $11,200 | BY43: $11,300 | BZ43: $11,400 | CA43: $11,500 | CB43: $11,600 | CC43: $11,700 | CD43: $11,800 | CE43: $11,900 | CF43: $12,000 | CG43: $12,100 | CH43: $12,200 | CI43: $12,300 | CJ43: $12,400 | CK43: $12,500 | CL43: $12,600 | CM43: $12,700 | CN43: $12,800 | CO43: $12,900 | CP43: $13,000 | CQ43: $13,100 | CR43: $13,200 | CS43: $13,300 | CT43: $13,400 | CU43: $13,500 | CV43: $13,600 | CW43: $13,700 | CX43: $13,800
B44: $3,900 | C44: $3,900 | D44: $3,900 | E44: $3,900 | F44: $4,300 | G44: $4,400 | H44: $4,500 | I44: $4,600 | J44: $4,700 | K44: $4,800 | L44: $4,900 | M44: $5,000 | N44: $5,100 | O44: $5,200 | P44: $5,300 | Q44: $5,400 | R44: $5,500 | S44: $5,600 | T44: $5,700 | U44: $5,800 | V44: $5,900 | W44: $6,000 | X44: $6,100 | Y44: $6,200 | Z44: $6,300 | AA44: $6,400 | AB44: $6,500 | AC44: $6,600 | AD44: $6,700 | AE44: $6,800 | AF44: $6,900 | AG44: $7,000 | AH44: $7,100 | AI44: $7,200 | AJ44: $7,300 | AK44: $7,400 | AL44: $7,500 | AM44: $7,600 | AN44: $7,700 | AO44: $7,800 | AP44: $7,900 | AQ44: $8,000 | AR44: $8,100 | AS44: $8,200 | AT44: $8,300 | AU44: $8,400 | AV44: $8,500 | AW44: $8,600 | AX44: $8,700 | AY44: $8,800 | AZ44: $8,900 | BA44: $9,000 | BB44: $9,100 | BC44: $9,200 | BD44: $9,300 | BE44: $9,400 | BF44: $9,500 | BG44: $9,600 | BH44: $9,700 | BI44: $9,800 | BJ44: $9,900 | BK44: $10,000 | BL44: $10,100 | BM44: $10,200 | BN44: $10,300 | BO44: $10,400 | BP44: $10,500 | BQ44: $10,600 | BR44: $10,700 | BS44: $10,800 | BT44: $10,900 | BU44: $11,000 | BV44: $11,100 | BW44: $11,200 | BX44: $11,300 | BY44: $11,400 | BZ44: $11,500 | CA44: $11,600 | CB44: $11,700 | CC44: $11,800 | CD44: $11,900 | CE44: $12,000 | CF44: $12,100 | CG44: $12,200 | CH44: $12,300 | CI44: $12,400 | CJ44: $12,500 | CK44: $12,600 | CL44: $12,700 | CM44: $12,800 | CN44: $12,900 | CO44: $13,000 | CP44: $13,100 | CQ44: $13,200 | CR44: $13,300 | CS44: $13,400 | CT44: $13,500 | CU44: $13,600 | CV44: $13,700 | CW44: $13,800 | CX44: $13,900
B45: $4,000 | C45: $4,000 | D45: $4,000 | E45: $4,000 | F45: $4,400 | G45: $4,500 | H45: $4,600 | I45: $4,700 | J45: $4,800 | K45: $4,900 | L45: $5,000 | M45: $5,100 | N45: $5,200 | O45: $5,300 | P45: $5,400 | Q45: $5,500 | R45: $5,600 | S45: $5,700 | T45: $5,800 | U45: $5,900 | V45: $6,000 | W45: $6,100 | X45: $6,200 | Y45: $6,300 | Z45: $6,400 | AA45: $6,500 | AB45: $6,600 | AC45: $6,700 | AD45: $6,800 | AE45: $6,900 | AF45: $7,000 | AG45: $7,100 | AH45: $7,200 | AI45: $7,300 | AJ45: $7,400 | AK45: $7,500 | AL45: $7,600 | AM45: $7,700 | AN45: $7,800 | AO45: $7,900 | AP45: $8,000 | AQ45: $8,100 | AR45: $8,200 | AS45: $8,300 | AT45: $8,400 | AU45: $8,500 | AV45: $8,600 | AW45: $8,700 | AX45: $8,800 | AY45: $8,900 | AZ45: $9,000 | BA45: $9,100 | BB45: $9,200 | BC45: $9,300 | BD45: $9,400 | BE45: $9,500 | BF45: $9,600 | BG45: $9,700 | BH45: $9,800 | BI45: $9,900 | BJ45: $10,000 | BK45: $10,100 | BL45: $10,200 | BM45: $10,300 | BN45: $10,400 | BO45: $10,500 | BP45: $10,600 | BQ45: $10,700 | BR45: $10,800 | BS45: $10,900 | BT45: $11,000 | BU45: $11,100 | BV45: $11,200 | BW45: $11,300 | BX45: $11,400 | BY45: $11,500 | BZ45: $11,600 | CA45: $11,700 | CB45: $11,800 | CC45: $11,900 | CD45: $12,000 | CE45: $12,100 | CF45: $12,200 | CG45: $12,300 | CH45: $12,400 | CI45: $12,500 | CJ45: $12,600 | CK45: $12,700 | CL45: $12,800 | CM45: $12,900 | CN45: $13,000 | CO45: $13,100 | CP45: $13,200 | CQ45: $13,300 | CR45: $13,400 | CS45: $13,500 | CT45: $13,600 | CU45: $13,700 | CV45: $13,800 | CW45: $13,900 | CX45: $14,000
B46: $4,100 | C46: =SUM(C$5,$B46) -> $4,100 | D46: $4,100 | E46: $4,100 | F46: $4,500 | G46: $4,600 | H46: $4,700 | I46: $4,800 | J46: $4,900 | K46: $5,000 | L46: $5,100 | M46: =SUM(M$5,$B46) -> $5,200 | N46: $5,300 | O46: $5,400 | P46: $5,500 | Q46: $5,600 | R46: $5,700 | S46: $5,800 | T46: $5,900 | U46: $6,000 | V46: $6,100 | W46: =SUM(W$5,$B46) -> $6,200 | X46: $6,300 | Y46: $6,400 | Z46: $6,500 | AA46: $6,600 | AB46: $6,700 | AC46: $6,800 | AD46: $6,900 | AE46: $7,000 | AF46: $7,100 | AG46: =SUM(AG$5,$B46) -> $7,200 | AH46: $7,300 | AI46: $7,400 | AJ46: $7,500 | AK46: $7,600 | AL46: $7,700 | AM46: $7,800 | AN46: $7,900 | AO46: $8,000 | AP46: $8,100 | AQ46: =SUM(AQ$5,$B46) -> $8,200 | AR46: $8,300 | AS46: $8,400 | AT46: $8,500 | AU46: $8,600 | AV46: $8,700 | AW46: $8,800 | AX46: $8,900 | AY46: $9,000 | AZ46: $9,100 | BA46: =SUM(BA$5,$B46) -> $9,200 | BB46: $9,300 | BC46: $9,400 | BD46: $9,500 | BE46: $9,600 | BF46: $9,700 | BG46: $9,800 | BH46: $9,900 | BI46: $10,000 | BJ46: $10,100 | BK46: =SUM(BK$5,$B46) -> $10,200 | BL46: $10,300 | BM46: $10,400 | BN46: $10,500 | BO46: $10,600 | BP46: $10,700 | BQ46: $10,800 | BR46: $10,900 | BS46: $11,000 | BT46: $11,100 | BU46: =SUM(BU$5,$B46) -> $11,200 | BV46: $11,300 | BW46: $11,400 | BX46: $11,500 | BY46: $11,600 | BZ46: $11,700 | CA46: $11,800 | CB46: $11,900 | CC46: $12,000 | CD46: $12,100 | CE46: =SUM(CE$5,$B46) -> $12,200 | CF46: $12,300 | CG46: $12,400 | CH46: $12,500 | CI46: $12,600 | CJ46: $12,700 | CK46: $12,800 | CL46: $12,900 | CM46: $13,000 | CN46: $13,100 | CO46: =SUM(CO$5,$B46) -> $13,200 | CP46: $13,300 | CQ46: $13,400 | CR46: $13,500 | CS46: $13,600 | CT46: $13,700 | CU46: $13,800 | CV46: $13,900 | CW46: $14,000 | CX46: $14,100
B47: $4,200 | C47: $4,200 | D47: $4,200 | E47: $4,200 | F47: $4,600 | G47: $4,700 | H47: $4,800 | I47: $4,900 | J47: $5,000 | K47: $5,100 | L47: $5,200 | M47: $5,300 | N47: $5,400 | O47: $5,500 | P47: $5,600 | Q47: $5,700 | R47: $5,800 | S47: $5,900 | T47: $6,000 | U47: $6,100 | V47: $6,200 | W47: $6,300 | X47: $6,400 | Y47: $6,500 | Z47: $6,600 | AA47: $6,700 | AB47: $6,800 | AC47: $6,900 | AD47: $7,000 | AE47: $7,100 | AF47: $7,200 | AG47: $7,300 | AH47: $7,400 | AI47: $7,500 | AJ47: $7,600 | AK47: $7,700 | AL47: $7,800 | AM47: $7,900 | AN47: $8,000 | AO47: $8,100 | AP47: $8,200 | AQ47: $8,300 | AR47: $8,400 | AS47: $8,500 | AT47: $8,600 | AU47: $8,700 | AV47: $8,800 | AW47: $8,900 | AX47: $9,000 | AY47: $9,100 | AZ47: $9,200 | BA47: $9,300 | BB47: $9,400 | BC47: $9,500 | BD47: $9,600 | BE47: $9,700 | BF47: $9,800 | BG47: $9,900 | BH47: $10,000 | BI47: $10,100 | BJ47: $10,200 | BK47: $10,300 | BL47: $10,400 | BM47: $10,500 | BN47: $10,600 | BO47: $10,700 | BP47: $10,800 | BQ47: $10,900 | BR47: $11,000 | BS47: $11,100 | BT47: $11,200 | BU47: $11,300 | BV47: $11,400 | BW47: $11,500 | BX47: $11,600 | BY47: $11,700 | BZ47: $11,800 | CA47: $11,900 | CB47: $12,000 | CC47: $12,100 | CD47: $12,200 | CE47: $12,300 | CF47: $12,400 | CG47: $12,500 | CH47: $12,600 | CI47: $12,700 | CJ47: $12,800 | CK47: $12,900 | CL47: $13,000 | CM47: $13,100 | CN47: $13,200 | CO47: $13,300 | CP47: $13,400 | CQ47: $13,500 | CR47: $13,600 | CS47: $13,700 | CT47: $13,800 | CU47: $13,900 | CV47: $14,000 | CW47: $14,100 | CX47: $14,200
B48: $4,300 | C48: $4,300 | D48: $4,300 | E48: $4,300 | F48: $4,700 | G48: $4,800 | H48: $4,900 | I48: $5,000 | J48: $5,100 | K48: $5,200 | L48: $5,300 | M48: $5,400 | N48: $5,500 | O48: $5,600 | P48: $5,700 | Q48: $5,800 | R48: $5,900 | S48: $6,000 | T48: $6,100 | U48: $6,200 | V48: $6,300 | W48: $6,400 | X48: $6,500 | Y48: $6,600 | Z48: $6,700 | AA48: $6,800 | AB48: $6,900 | AC48: $7,000 | AD48: $7,100 | AE48: $7,200 | AF48: $7,300 | AG48: $7,400 | AH48: $7,500 | AI48: $7,600 | AJ48: $7,700 | AK48: $7,800 | AL48: $7,900 | AM48: $8,000 | AN48: $8,100 | AO48: $8,200 | AP48: $8,300 | AQ48: $8,400 | AR48: $8,500 | AS48: $8,600 | AT48: $8,700 | AU48: $8,800 | AV48: $8,900 | AW48: $9,000 | AX48: $9,100 | AY48: $9,200 | AZ48: $9,300 | BA48: $9,400 | BB48: $9,500 | BC48: $9,600 | BD48: $9,700 | BE48: $9,800 | BF48: $9,900 | BG48: $10,000 | BH48: $10,100 | BI48: $10,200 | BJ48: $10,300 | BK48: $10,400 | BL48: $10,500 | BM48: $10,600 | BN48: $10,700 | BO48: $10,800 | BP48: $10,900 | BQ48: $11,000 | BR48: $11,100 | BS48: $11,200 | BT48: $11,300 | BU48: $11,400 | BV48: $11,500 | BW48: $11,600 | BX48: $11,700 | BY48: $11,800 | BZ48: $11,900 | CA48: $12,000 | CB48: $12,100 | CC48: $12,200 | CD48: $12,300 | CE48: $12,400 | CF48: $12,500 | CG48: $12,600 | CH48: $12,700 | CI48: $12,800 | CJ48: $12,900 | CK48: $13,000 | CL48: $13,100 | CM48: $13,200 | CN48: $13,300 | CO48: $13,400 | CP48: $13,500 | CQ48: $13,600 | CR48: $13,700 | CS48: $13,800 | CT48: $13,900 | CU48: $14,000 | CV48: $14,100 | CW48: $14,200 | CX48: $14,300
B49: $4,400 | C49: $4,400 | D49: $4,400 | E49: $4,400 | F49: $4,800 | G49: $4,900 | H49: $5,000 | I49: $5,100 | J49: $5,200 | K49: $5,300 | L49: $5,400 | M49: $5,500 | N49: $5,600 | O49: $5,700 | P49: $5,800 | Q49: $5,900 | R49: $6,000 | S49: $6,100 | T49: $6,200 | U49: $6,300 | V49: $6,400 | W49: $6,500 | X49: $6,600 | Y49: $6,700 | Z49: $6,800 | AA49: $6,900 | AB49: $7,000 | AC49: $7,100 | AD49: $7,200 | AE49: $7,300 | AF49: $7,400 | AG49: $7,500 | AH49: $7,600 | AI49: $7,700 | AJ49: $7,800 | AK49: $7,900 | AL49: $8,000 | AM49: $8,100 | AN49: $8,200 | AO49: $8,300 | AP49: $8,400 | AQ49: $8,500 | AR49: $8,600 | AS49: $8,700 | AT49: $8,800 | AU49: $8,900 | AV49: $9,000 | AW49: $9,100 | AX49: $9,200 | AY49: $9,300 | AZ49: $9,400 | BA49: $9,500 | BB49: $9,600 | BC49: $9,700 | BD49: $9,800 | BE49: $9,900 | BF49: $10,000 | BG49: $10,100 | BH49: $10,200 | BI49: $10,300 | BJ49: $10,400 | BK49: $10,500 | BL49: $10,600 | BM49: $10,700 | BN49: $10,800 | BO49: $10,900 | BP49: $11,000 | BQ49: $11,100 | BR49: $11,200 | BS49: $11,300 | BT49: $11,400 | BU49: $11,500 | BV49: $11,600 | BW49: $11,700 | BX49: $11,800 | BY49: $11,900 | BZ49: $12,000 | CA49: $12,100 | CB49: $12,200 | CC49: $12,300 | CD49: $12,400 | CE49: $12,500 | CF49: $12,600 | CG49: $12,700 | CH49: $12,800 | CI49: $12,900 | CJ49: $13,000 | CK49: $13,100 | CL49: $13,200 | CM49: $13,300 | CN49: $13,400 | CO49: $13,500 | CP49: $13,600 | CQ49: $13,700 | CR49: $13,800 | CS49: $13,900 | CT49: $14,000 | CU49: $14,100 | CV49: $14,200 | CW49: $14,300 | CX49: $14,400
B50: $4,500 | C50: $4,500 | D50: $4,500 | E50: $4,500 | F50: $4,900 | G50: $5,000 | H50: $5,100 | I50: $5,200 | J50: $5,300 | K50: $5,400 | L50: $5,500 | M50: $5,600 | N50: $5,700 | O50: $5,800 | P50: $5,900 | Q50: $6,000 | R50: $6,100 | S50: $6,200 | T50: $6,300 | U50: $6,400 | V50: $6,500 | W50: $6,600 | X50: $6,700 | Y50: $6,800 | Z50: $6,900 | AA50: $7,000 | AB50: $7,100 | AC50: $7,200 | AD50: $7,300 | AE50: $7,400 | AF50: $7,500 | AG50: $7,600 | AH50: $7,700 | AI50: $7,800 | AJ50: $7,900 | AK50: $8,000 | AL50: $8,100 | AM50: $8,200 | AN50: $8,300 | AO50: $8,400 | AP50: $8,500 | AQ50: $8,600 | AR50: $8,700 | AS50: $8,800 | AT50: $8,900 | AU50: $9,000 | AV50: $9,100 | AW50: $9,200 | AX50: $9,300 | AY50: $9,400 | AZ50: $9,500 | BA50: $9,600 | BB50: $9,700 | BC50: $9,800 | BD50: $9,900 | BE50: $10,000 | BF50: $10,100 | BG50: $10,200 | BH50: $10,300 | BI50: $10,400 | BJ50: $10,500 | BK50: $10,600 | BL50: $10,700 | BM50: $10,800 | BN50: $10,900 | BO50: $11,000 | BP50: $11,100 | BQ50: $11,200 | BR50: $11,300 | BS50: $11,400 | BT50: $11,500 | BU50: $11,600 | BV50: $11,700 | BW50: $11,800 | BX50: $11,900 | BY50: $12,000 | BZ50: $12,100 | CA50: $12,200 | CB50: $12,300 | CC50: $12,400 | CD50: $12,500 | CE50: $12,600 | CF50: $12,700 | CG50: $12,800 | CH50: $12,900 | CI50: $13,000 | CJ50: $13,100 | CK50: $13,200 | CL50: $13,300 | CM50: $13,400 | CN50: $13,500 | CO50: $13,600 | CP50: $13,700 | CQ50: $13,800 | CR50: $13,900 | CS50: $14,000 | CT50: $14,100 | CU50: $14,200 | CV50: $14,300 | CW50: $14,400 | CX50: $14,500
B51: $4,600 | C51: $4,600 | D51: $4,600 | E51: $4,600 | F51: $5,000 | G51: $5,100 | H51: $5,200 | I51: $5,300 | J51: $5,400 | K51: $5,500 | L51: $5,600 | M51: $5,700 | N51: $5,800 | O51: $5,900 | P51: $6,000 | Q51: $6,100 | R51: $6,200 | S51: $6,300 | T51: $6,400 | U51: $6,500 | V51: $6,600 | W51: $6,700 | X51: $6,800 | Y51: $6,900 | Z51: $7,000 | AA51: $7,100 | AB51: $7,200 | AC51: $7,300 | AD51: $7,400 | AE51: $7,500 | AF51: $7,600 | AG51: $7,700 | AH51: $7,800 | AI51: $7,900 | AJ51: $8,000 | AK51: $8,100 | AL51: $8,200 | AM51: $8,300 | AN51: $8,400 | AO51: $8,500 | AP51: $8,600 | AQ51: $8,700 | AR51: $8,800 | AS51: $8,900 | AT51: $9,000 | AU51: $9,100 | AV51: $9,200 | AW51: $9,300 | AX51: $9,400 | AY51: $9,500 | AZ51: $9,600 | BA51: $9,700 | BB51: $9,800 | BC51: $9,900 | BD51: $10,000 | BE51: $10,100 | BF51: $10,200 | BG51: $10,300 | BH51: $10,400 | BI51: $10,500 | BJ51: $10,600 | BK51: $10,700 | BL51: $10,800 | BM51: $10,900 | BN51: $11,000 | BO51: $11,100 | BP51: $11,200 | BQ51: $11,300 | BR51: $11,400 | BS51: $11,500 | BT51: $11,600 | BU51: $11,700 | BV51: $11,800 | BW51: $11,900 | BX51: $12,000 | BY51: $12,100 | BZ51: $12,200 | CA51: $12,300 | CB51: $12,400 | CC51: $12,500 | CD51: $12,600 | CE51: $12,700 | CF51: $12,800 | CG51: $12,900 | CH51: $13,000 | CI51: $13,100 | CJ51: $13,200 | CK51: $13,300 | CL51: $13,400 | CM51: $13,500 | CN51: $13,600 | CO51: $13,700 | CP51: $13,800 | CQ51: $13,900 | CR51: $14,000 | CS51: $14,100 | CT51: $14,200 | CU51: $14,300 | CV51: $14,400 | CW51: $14,500 | CX51: $14,600
B52: $4,700 | C52: $4,700 | D52: $4,700 | E52: $4,700 | F52: $5,100 | G52: $5,200 | H52: $5,300 | I52: $5,400 | J52: $5,500 | K52: $5,600 | L52: $5,700 | M52: $5,800 | N52: $5,900 | O52: $6,000 | P52: $6,100 | Q52: $6,200 | R52: $6,300 | S52: $6,400 | T52: $6,500 | U52: $6,600 | V52: $6,700 | W52: $6,800 | X52: $6,900 | Y52: $7,000 | Z52: $7,100 | AA52: $7,200 | AB52: $7,300 | AC52: $7,400 | AD52: $7,500 | AE52: $7,600 | AF52: $7,700 | AG52: $7,800 | AH52: $7,900 | AI52: $8,000 | AJ52: $8,100 | AK52: $8,200 | AL52: $8,300 | AM52: $8,400 | AN52: $8,500 | AO52: $8,600 | AP52: $8,700 | AQ52: $8,800 | AR52: $8,900 | AS52: $9,000 | AT52: $9,100 | AU52: $9,200 | AV52: $9,300 | AW52: $9,400 | AX52: $9,500 | AY52: $9,600 | AZ52: $9,700 | BA52: $9,800 | BB52: $9,900 | BC52: $10,000 | BD52: $10,100 | BE52: $10,200 | BF52: $10,300 | BG52: $10,400 | BH52: $10,500 | BI52: $10,600 | BJ52: $10,700 | BK52: $10,800 | BL52: $10,900 | BM52: $11,000 | BN52: $11,100 | BO52: $11,200 | BP52: $11,300 | BQ52: $11,400 | BR52: $11,500 | BS52: $11,600 | BT52: $11,700 | BU52: $11,800 | BV52: $11,900 | BW52: $12,000 | BX52: $12,100 | BY52: $12,200 | BZ52: $12,300 | CA52: $12,400 | CB52: $12,500 | CC52: $12,600 | CD52: $12,700 | CE52: $12,800 | CF52: $12,900 | CG52: $13,000 | CH52: $13,100 | CI52: $13,200 | CJ52: $13,300 | CK52: $13,400 | CL52: $13,500 | CM52: $13,600 | CN52: $13,700 | CO52: $13,800 | CP52: $13,900 | CQ52: $14,000 | CR52: $14,100 | CS52: $14,200 | CT52: $14,300 | CU52: $14,400 | CV52: $14,500 | CW52: $14,600 | CX52: $14,700
B53: $4,800 | C53: $4,800 | D53: $4,800 | E53: $4,800 | F53: $5,200 | G53: $5,300 | H53: $5,400 | I53: $5,500 | J53: $5,600 | K53: $5,700 | L53: $5,800 | M53: $5,900 | N53: $6,000 | O53: $6,100 | P53: $6,200 | Q53: $6,300 | R53: $6,400 | S53: $6,500 | T53: $6,600 | U53: $6,700 | V53: $6,800 | W53: $6,900 | X53: $7,000 | Y53: $7,100 | Z53: $7,200 | AA53: $7,300 | AB53: $7,400 | AC53: $7,500 | AD53: $7,600 | AE53: $7,700 | AF53: $7,800 | AG53: $7,900 | AH53: $8,000 | AI53: $8,100 | AJ53: $8,200 | AK53: $8,300 | AL53: $8,400 | AM53: $8,500 | AN53: $8,600 | AO53: $8,700 | AP53: $8,800 | AQ53: $8,900 | AR53: $9,000 | AS53: $9,100 | AT53: $9,200 | AU53: $9,300 | AV53: $9,400 | AW53: $9,500 | AX53: $9,600 | AY53: $9,700 | AZ53: $9,800 | BA53: $9,900 | BB53: $10,000 | BC53: $10,100 | BD53: $10,200 | BE53: $10,300 | BF53: $10,400 | BG53: $10,500 | BH53: $10,600 | BI53: $10,700 | BJ53: $10,800 | BK53: $10,900 | BL53: $11,000 | BM53: $11,100 | BN53: $11,200 | BO53: $11,300 | BP53: $11,400 | BQ53: $11,500 | BR53: $11,600 | BS53: $11,700 | BT53: $11,800 | BU53: $11,900 | BV53: $12,000 | BW53: $12,100 | BX53: $12,200 | BY53: $12,300 | BZ53: $12,400 | CA53: $12,500 | CB53: $12,600 | CC53: $12,700 | CD53: $12,800 | CE53: $12,900 | CF53: $13,000 | CG53: $13,100 | CH53: $13,200 | CI53: $13,300 | CJ53: $13,400 | CK53: $13,500 | CL53: $13,600 | CM53: $13,700 | CN53: $13,800 | CO53: $13,900 | CP53: $14,000 | CQ53: $14,100 | CR53: $14,200 | CS53: $14,300 | CT53: $14,400 | CU53: $14,500 | CV53: $14,600 | CW53: $14,700 | CX53: $14,800
B54: $4,900 | C54: $4,900 | D54: $4,900 | E54: $4,900 | F54: $5,300 | G54: $5,400 | H54: $5,500 | I54: $5,600 | J54: $5,700 | K54: $5,800 | L54: $5,900 | M54: $6,000 | N54: $6,100 | O54: $6,200 | P54: $6,300 | Q54: $6,400 | R54: $6,500 | S54: $6,600 | T54: $6,700 | U54: $6,800 | V54: $6,900 | W54: $7,000 | X54: $7,100 | Y54: $7,200 | Z54: $7,300 | AA54: $7,400 | AB54: $7,500 | AC54: $7,600 | AD54: $7,700 | AE54: $7,800 | AF54: $7,900 | AG54: $8,000 | AH54: $8,100 | AI54: $8,200 | AJ54: $8,300 | AK54: $8,400 | AL54: $8,500 | AM54: $8,600 | AN54: $8,700 | AO54: $8,800 | AP54: $8,900 | AQ54: $9,000 | AR54: $9,100 | AS54: $9,200 | AT54: $9,300 | AU54: $9,400 | AV54: $9,500 | AW54: $9,600 | AX54: $9,700 | AY54: $9,800 | AZ54: $9,900 | BA54: $10,000 | BB54: $10,100 | BC54: $10,200 | BD54: $10,300 | BE54: $10,400 | BF54: $10,500 | BG54: $10,600 | BH54: $10,700 | BI54: $10,800 | BJ54: $10,900 | BK54: $11,000 | BL54: $11,100 | BM54: $11,200 | BN54: $11,300 | BO54: $11,400 | BP54: $11,500 | BQ54: $11,600 | BR54: $11,700 | BS54: $11,800 | BT54: $11,900 | BU54: $12,000 | BV54: $12,100 | BW54: $12,200 | BX54: $12,300 | BY54: $12,400 | BZ54: $12,500 | CA54: $12,600 | CB54: $12,700 | CC54: $12,800 | CD54: $12,900 | CE54: $13,000 | CF54: $13,100 | CG54: $13,200 | CH54: $13,300 | CI54: $13,400 | CJ54: $13,500 | CK54: $13,600 | CL54: $13,700 | CM54: $13,800 | CN54: $13,900 | CO54: $14,000 | CP54: $14,100 | CQ54: $14,200 | CR54: $14,300 | CS54: $14,400 | CT54: $14,500 | CU54: $14,600 | CV54: $14,700 | CW54: $14,800 | CX54: $14,900
B55: $5,000 | C55: $5,000 | D55: $5,000 | E55: $5,000 | F55: $5,400 | G55: $5,500 | H55: $5,600 | I55: $5,700 | J55: $5,800 | K55: $5,900 | L55: $6,000 | M55: $6,100 | N55: $6,200 | O55: $6,300 | P55: $6,400 | Q55: $6,500 | R55: $6,600 | S55: $6,700 | T55: $6,800 | U55: $6,900 | V55: $7,000 | W55: $7,100 | X55: $7,200 | Y55: $7,300 | Z55: $7,400 | AA55: $7,500 | AB55: $7,600 | AC55: $7,700 | AD55: $7,800 | AE55: $7,900 | AF55: $8,000 | AG55: $8,100 | AH55: $8,200 | AI55: $8,300 | AJ55: $8,400 | AK55: $8,500 | AL55: $8,600 | AM55: $8,700 | AN55: $8,800 | AO55: $8,900 | AP55: $9,000 | AQ55: $9,100 | AR55: $9,200 | AS55: $9,300 | AT55: $9,400 | AU55: $9,500 | AV55: $9,600 | AW55: $9,700 | AX55: $9,800 | AY55: $9,900 | AZ55: $10,000 | BA55: $10,100 | BB55: $10,200 | BC55: $10,300 | BD55: $10,400 | BE55: $10,500 | BF55: $10,600 | BG55: $10,700 | BH55: $10,800 | BI55: $10,900 | BJ55: $11,000 | BK55: $11,100 | BL55: $11,200 | BM55: $11,300 | BN55: $11,400 | BO55: $11,500 | BP55: $11,600 | BQ55: $11,700 | BR55: $11,800 | BS55: $11,900 | BT55: $12,000 | BU55: $12,100 | BV55: $12,200 | BW55: $12,300 | BX55: $12,400 | BY55: $12,500 | BZ55: $12,600 | CA55: $12,700 | CB55: $12,800 | CC55: $12,900 | CD55: $13,000 | CE55: $13,100 | CF55: $13,200 | CG55: $13,300 | CH55: $13,400 | CI55: $13,500 | CJ55: $13,600 | CK55: $13,700 | CL55: $13,800 | CM55: $13,900 | CN55: $14,000 | CO55: $14,100 | CP55: $14,200 | CQ55: $14,300 | CR55: $14,400 | CS55: $14,500 | CT55: $14,600 | CU55: $14,700 | CV55: $14,800 | CW55: $14,900 | CX55: $15,000
B56: $5,100 | C56: =SUM(C$5,$B56) -> $5,100 | D56: $5,100 | E56: $5,100 | F56: $5,500 | G56: $5,600 | H56: $5,700 | I56: $5,800 | J56: $5,900 | K56: $6,000 | L56: $6,100 | M56: =SUM(M$5,$B56) -> $6,200 | N56: $6,300 | O56: $6,400 | P56: $6,500 | Q56: $6,600 | R56: $6,700 | S56: $6,800 | T56: $6,900 | U56: $7,000 | V56: $7,100 | W56: =SUM(W$5,$B56) -> $7,200 | X56: $7,300 | Y56: $7,400 | Z56: $7,500 | AA56: $7,600 | AB56: $7,700 | AC56: $7,800 | AD56: $7,900 | AE56: $8,000 | AF56: $8,100 | AG56: =SUM(AG$5,$B56) -> $8,200 | AH56: $8,300 | AI56: $8,400 | AJ56: $8,500 | AK56: $8,600 | AL56: $8,700 | AM56: $8,800 | AN56: $8,900 | AO56: $9,000 | AP56: $9,100 | AQ56: =SUM(AQ$5,$B56) -> $9,200 | AR56: $9,300 | AS56: $9,400 | AT56: $9,500 | AU56: $9,600 | AV56: $9,700 | AW56: $9,800 | AX56: $9,900 | AY56: $10,000 | AZ56: $10,100 | BA56: =SUM(BA$5,$B56) -> $10,200 | BB56: $10,300 | BC56: $10,400 | BD56: $10,500 | BE56: $10,600 | BF56: $10,700 | BG56: $10,800 | BH56: $10,900 | BI56: $11,000 | BJ56: $11,100 | BK56: =SUM(BK$5,$B56) -> $11,200 | BL56: $11,300 | BM56: $11,400 | BN56: $11,500 | BO56: $11,600 | BP56: $11,700 | BQ56: $11,800 | BR56: $11,900 | BS56: $12,000 | BT56: $12,100 | BU56: =SUM(BU$5,$B56) -> $12,200 | BV56: $12,300 | BW56: $12,400 | BX56: $12,500 | BY56: $12,600 | BZ56: $12,700 | CA56: $12,800 | CB56: $12,900 | CC56: $13,000 | CD56: $13,100 | CE56: =SUM(CE$5,$B56) -> $13,200 | CF56: $13,300 | CG56: $13,400 | CH56: $13,500 | CI56: $13,600 | CJ56: $13,700 | CK56: $13,800 | CL56: $13,900 | CM56: $14,000 | CN56: $14,100 | CO56: =SUM(CO$5,$B56) -> $14,200 | CP56: $14,300 | CQ56: $14,400 | CR56: $14,500 | CS56: $14,600 | CT56: $14,700 | CU56: $14,800 | CV56: $14,900 | CW56: $15,000 | CX56: $15,100
B57: $5,200 | C57: $5,200 | D57: $5,200 | E57: $5,200 | F57: $5,600 | G57: $5,700 | H57: $5,800 | I57: $5,900 | J57: $6,000 | K57: $6,100 | L57: $6,200 | M57: $6,300 | N57: $6,400 | O57: $6,500 | P57: $6,600 | Q57: $6,700 | R57: $6,800 | S57: $6,900 | T57: $7,000 | U57: $7,100 | V57: $7,200 | W57: $7,300 | X57: $7,400 | Y57: $7,500 | Z57: $7,600 | AA57: $7,700 | AB57: $7,800 | AC57: $7,900 | AD57: $8,000 | AE57: $8,100 | AF57: $8,200 | AG57: $8,300 | AH57: $8,400 | AI57: $8,500 | AJ57: $8,600 | AK57: $8,700 | AL57: $8,800 | AM57: $8,900 | AN57: $9,000 | AO57: $9,100 | AP57: $9,200 | AQ57: $9,300 | AR57: $9,400 | AS57: $9,500 | AT57: $9,600 | AU57: $9,700 | AV57: $9,800 | AW57: $9,900 | AX57: $10,000 | AY57: $10,100 | AZ57: $10,200 | BA57: $10,300 | BB57: $10,400 | BC57: $10,500 | BD57: $10,600 | BE57: $10,700 | BF57: $10,800 | BG57: $10,900 | BH57: $11,000 | BI57: $11,100 | BJ57: $11,200 | BK57: $11,300 | BL57: $11,400 | BM57: $11,500 | BN57: $11,600 | BO57: $11,700 | BP57: $11,800 | BQ57: $11,900 | BR57: $12,000 | BS57: $12,100 | BT57: $12,200 | BU57: $12,300 | BV57: $12,400 | BW57: $12,500 | BX57: $12,600 | BY57: $12,700 | BZ57: $12,800 | CA57: $12,900 | CB57: $13,000 | CC57: $13,100 | CD57: $13,200 | CE57: $13,300 | CF57: $13,400 | CG57: $13,500 | CH57: $13,600 | CI57: $13,700 | CJ57: $13,800 | CK57: $13,900 | CL57: $14,000 | CM57: $14,100 | CN57: $14,200 | CO57: $14,300 | CP57: $14,400 | CQ57: $14,500 | CR57: $14,600 | CS57: $14,700 | CT57: $14,800 | CU57: $14,900 | CV57: $15,000 | CW57: $15,100 | CX57: $15,200
B58: $5,300 | C58: $5,300 | D58: $5,300 | E58: $5,300 | F58: $5,700 | G58: $5,800 | H58: $5,900 | I58: $6,000 | J58: $6,100 | K58: $6,200 | L58: $6,300 | M58: $6,400 | N58: $6,500 | O58: $6,600 | P58: $6,700 | Q58: $6,800 | R58: $6,900 | S58: $7,000 | T58: $7,100 | U58: $7,200 | V58: $7,300 | W58: $7,400 | X58: $7,500 | Y58: $7,600 | Z58: $7,700 | AA58: $7,800 | AB58: $7,900 | AC58: $8,000 | AD58: $8,100 | AE58: $8,200 | AF58: $8,300 | AG58: $8,400 | AH58: $8,500 | AI58: $8,600 | AJ58: $8,700 | AK58: $8,800 | AL58: $8,900 | AM58: $9,000 | AN58: $9,100 | AO58: $9,200 | AP58: $9,300 | AQ58: $9,400 | AR58: $9,500 | AS58: $9,600 | AT58: $9,700 | AU58: $9,800 | AV58: $9,900 | AW58: $10,000 | AX58: $10,100 | AY58: $10,200 | AZ58: $10,300 | BA58: $10,400 | BB58: $10,500 | BC58: $10,600 | BD58: $10,700 | BE58: $10,800 | BF58: $10,900 | BG58: $11,000 | BH58: $11,100 | BI58: $11,200 | BJ58: $11,300 | BK58: $11,400 | BL58: $11,500 | BM58: $11,600 | BN58: $11,700 | BO58: $11,800 | BP58: $11,900 | BQ58: $12,000 | BR58: $12,100 | BS58: $12,200 | BT58: $12,300 | BU58: $12,400 | BV58: $12,500 | BW58: $12,600 | BX58: $12,700 | BY58: $12,800 | BZ58: $12,900 | CA58: $13,000 | CB58: $13,100 | CC58: $13,200 | CD58: $13,300 | CE58: $13,400 | CF58: $13,500 | CG58: $13,600 | CH58: $13,700 | CI58: $13,800 | CJ58: $13,900 | CK58: $14,000 | CL58: $14,100 | CM58: $14,200 | CN58: $14,300 | CO58: $14,400 | CP58: $14,500 | CQ58: $14,600 | CR58: $14,700 | CS58: $14,800 | CT58: $14,900 | CU58: $15,000 | CV58: $15,100 | CW58: $15,200 | CX58: $15,300
B59: $5,400 | C59: $5,400 | D59: $5,400 | E59: $5,400 | F59: $5,800 | G59: $5,900 | H59: $6,000 | I59: $6,100 | J59: $6,200 | K59: $6,300 | L59: $6,400 | M59: $6,500 | N59: $6,600 | O59: $6,700 | P59: $6,800 | Q59: $6,900 | R59: $7,000 | S59: $7,100 | T59: $7,200 | U59: $7,300 | V59: $7,400 | W59: $7,500 | X59: $7,600 | Y59: $7,700 | Z59: $7,800 | AA59: $7,900 | AB59: $8,000 | AC59: $8,100 | AD59: $8,200 | AE59: $8,300 | AF59: $8,400 | AG59: $8,500 | AH59: $8,600 | AI59: $8,700 | AJ59: $8,800 | AK59: $8,900 | AL59: $9,000 | AM59: $9,100 | AN59: $9,200 | AO59: $9,300 | AP59: $9,400 | AQ59: $9,500 | AR59: $9,600 | AS59: $9,700 | AT59: $9,800 | AU59: $9,900 | AV59: $10,000 | AW59: $10,100 | AX59: $10,200 | AY59: $10,300 | AZ59: $10,400 | BA59: $10,500 | BB59: $10,600 | BC59: $10,700 | BD59: $10,800 | BE59: $10,900 | BF59: $11,000 | BG59: $11,100 | BH59: $11,200 | BI59: $11,300 | BJ59: $11,400 | BK59: $11,500 | BL59: $11,600 | BM59: $11,700 | BN59: $11,800 | BO59: $11,900 | BP59: $12,000 | BQ59: $12,100 | BR59: $12,200 | BS59: $12,300 | BT59: $12,400 | BU59: $12,500 | BV59: $12,600 | BW59: $12,700 | BX59: $12,800 | BY59: $12,900 | BZ59: $13,000 | CA59: $13,100 | CB59: $13,200 | CC59: $13,300 | CD59: $13,400 | CE59: $13,500 | CF59: $13,600 | CG59: $13,700 | CH59: $13,800 | CI59: $13,900 | CJ59: $14,000 | CK59: $14,100 | CL59: $14,200 | CM59: $14,300 | CN59: $14,400 | CO59: $14,500 | CP59: $14,600 | CQ59: $14,700 | CR59: $14,800 | CS59: $14,900 | CT59: $15,000 | CU59: $15,100 | CV59: $15,200 | CW59: $15,300 | CX59: $15,400
B60: $5,500 | C60: $5,500 | D60: $5,500 | E60: $5,500 | F60: $5,900 | G60: $6,000 | H60: $6,100 | I60: $6,200 | J60: $6,300 | K60: $6,400 | L60: $6,500 | M60: $6,600 | N60: $6,700 | O60: $6,800 | P60: $6,900 | Q60: $7,000 | R60: $7,100 | S60: $7,200 | T60: $7,300 | U60: $7,400 | V60: $7,500 | W60: $7,600 | X60: $7,700 | Y60: $7,800 | Z60: $7,900 | AA60: $8,000 | AB60: $8,100 | AC60: $8,200 | AD60: $8,300 | AE60: $8,400 | AF60: $8,500 | AG60: $8,600 | AH60: $8,700 | AI60: $8,800 | AJ60: $8,900 | AK60: $9,000 | AL60: $9,100 | AM60: $9,200 | AN60: $9,300 | AO60: $9,400 | AP60: $9,500 | AQ60: $9,600 | AR60: $9,700 | AS60: $9,800 | AT60: $9,900 | AU60: $10,000 | AV60: $10,100 | AW60: $10,200 | AX60: $10,300 | AY60: $10,400 | AZ60: $10,500 | BA60: $10,600 | BB60: $10,700 | BC60: $10,800 | BD60: $10,900 | BE60: $11,000 | BF60: $11,100 | BG60: $11,200 | BH60: $11,300 | BI60: $11,400 | BJ60: $11,500 | BK60: $11,600 | BL60: $11,700 | BM60: $11,800 | BN60: $11,900 | BO60: $12,000 | BP60: $12,100 | BQ60: $12,200 | BR60: $12,300 | BS60: $12,400 | BT60: $12,500 | BU60: $12,600 | BV60: $12,700 | BW60: $12,800 | BX60: $12,900 | BY60: $13,000 | BZ60: $13,100 | CA60: $13,200 | CB60: $13,300 | CC60: $13,400 | CD60: $13,500 | CE60: $13,600 | CF60: $13,700 | CG60: $13,800 | CH60: $13,900 | CI60: $14,000 | CJ60: $14,100 | CK60: $14,200 | CL60: $14,300 | CM60: $14,400 | CN60: $14,500 | CO60: $14,600 | CP60: $14,700 | CQ60: $14,800 | CR60: $14,900 | CS60: $15,000 | CT60: $15,100 | CU60: $15,200 | CV60: $15,300 | CW60: $15,400 | CX60: $15,500
B61: $5,600 | C61: $5,600 | D61: $5,600 | E61: $5,600 | F61: $6,000 | G61: $6,100 | H61: $6,200 | I61: $6,300 | J61: $6,400 | K61: $6,500 | L61: $6,600 | M61: $6,700 | N61: $6,800 | O61: $6,900 | P61: $7,000 | Q61: $7,100 | R61: $7,200 | S61: $7,300 | T61: $7,400 | U61: $7,500 | V61: $7,600 | W61: $7,700 | X61: $7,800 | Y61: $7,900 | Z61: $8,000 | AA61: $8,100 | AB61: $8,200 | AC61: $8,300 | AD61: $8,400 | AE61: $8,500 | AF61: $8,600 | AG61: $8,700 | AH61: $8,800 | AI61: $8,900 | AJ61: $9,000 | AK61: $9,100 | AL61: $9,200 | AM61: $9,300 | AN61: $9,400 | AO61: $9,500 | AP61: $9,600 | AQ61: $9,700 | AR61: $9,800 | AS61: $9,900 | AT61: $10,000 | AU61: $10,100 | AV61: $10,200 | AW61: $10,300 | AX61: $10,400 | AY61: $10,500 | AZ61: $10,600 | BA61: $10,700 | BB61: $10,800 | BC61: $10,900 | BD61: $11,000 | BE61: $11,100 | BF61: $11,200 | BG61: $11,300 | BH61: $11,400 | BI61: $11,500 | BJ61: $11,600 | BK61: $11,700 | BL61: $11,800 | BM61: $11,900 | BN61: $12,000 | BO61: $12,100 | BP61: $12,200 | BQ61: $12,300 | BR61: $12,400 | BS61: $12,500 | BT61: $12,600 | BU61: $12,700 | BV61: $12,800 | BW61: $12,900 | BX61: $13,000 | BY61: $13,100 | BZ61: $13,200 | CA61: $13,300 | CB61: $13,400 | CC61: $13,500 | CD61: $13,600 | CE61: $13,700 | CF61: $13,800 | CG61: $13,900 | CH61: $14,000 | CI61: $14,100 | CJ61: $14,200 | CK61: $14,300 | CL61: $14,400 | CM61: $14,500 | CN61: $14,600 | CO61: $14,700 | CP61: $14,800 | CQ61: $14,900 | CR61: $15,000 | CS61: $15,100 | CT61: $15,200 | CU61: $15,300 | CV61: $15,400 | CW61: $15,500 | CX61: $15,600
B62: $5,700 | C62: $5,700 | D62: $5,700 | E62: $5,700 | F62: $6,100 | G62: $6,200 | H62: $6,300 | I62: $6,400 | J62: $6,500 | K62: $6,600 | L62: $6,700 | M62: $6,800 | N62: $6,900 | O62: $7,000 | P62: $7,100 | Q62: $7,200 | R62: $7,300 | S62: $7,400 | T62: $7,500 | U62: $7,600 | V62: $7,700 | W62: $7,800 | X62: $7,900 | Y62: $8,000 | Z62: $8,100 | AA62: $8,200 | AB62: $8,300 | AC62: $8,400 | AD62: $8,500 | AE62: $8,600 | AF62: $8,700 | AG62: $8,800 | AH62: $8,900 | AI62: $9,000 | AJ62: $9,100 | AK62: $9,200 | AL62: $9,300 | AM62: $9,400 | AN62: $9,500 | AO62: $9,600 | AP62: $9,700 | AQ62: $9,800 | AR62: $9,900 | AS62: $10,000 | AT62: $10,100 | AU62: $10,200 | AV62: $10,300 | AW62: $10,400 | AX62: $10,500 | AY62: $10,600 | AZ62: $10,700 | BA62: $10,800 | BB62: $10,900 | BC62: $11,000 | BD62: $11,100 | BE62: $11,200 | BF62: $11,300 | BG62: $11,400 | BH62: $11,500 | BI62: $11,600 | BJ62: $11,700 | BK62: $11,800 | BL62: $11,900 | BM62: $12,000 | BN62: $12,100 | BO62: $12,200 | BP62: $12,300 | BQ62: $12,400 | BR62: $12,500 | BS62: $12,600 | BT62: $12,700 | BU62: $12,800 | BV62: $12,900 | BW62: $13,000 | BX62: $13,100 | BY62: $13,200 | BZ62: $13,300 | CA62: $13,400 | CB62: $13,500 | CC62: $13,600 | CD62: $13,700 | CE62: $13,800 | CF62: $13,900 | CG62: $14,000 | CH62: $14,100 | CI62: $14,200 | CJ62: $14,300 | CK62: $14,400 | CL62: $14,500 | CM62: $14,600 | CN62: $14,700 | CO62: $14,800 | CP62: $14,900 | CQ62: $15,000 | CR62: $15,100 | CS62: $15,200 | CT62: $15,300 | CU62: $15,400 | CV62: $15,500 | CW62: $15,600 | CX62: $15,700
B63: $5,800 | C63: $5,800 | D63: $5,800 | E63: $5,800 | F63: $6,200 | G63: $6,300 | H63: $6,400 | I63: $6,500 | J63: $6,600 | K63: $6,700 | L63: $6,800 | M63: $6,900 | N63: $7,000 | O63: $7,100 | P63: $7,200 | Q63: $7,300 | R63: $7,400 | S63: $7,500 | T63: $7,600 | U63: $7,700 | V63: $7,800 | W63: $7,900 | X63: $8,000 | Y63: $8,100 | Z63: $8,200 | AA63: $8,300 | AB63: $8,400 | AC63: $8,500 | AD63: $8,600 | AE63: $8,700 | AF63: $8,800 | AG63: $8,900 | AH63: $9,000 | AI63: $9,100 | AJ63: $9,200 | AK63: $9,300 | AL63: $9,400 | AM63: $9,500 | AN63: $9,600 | AO63: $9,700 | AP63: $9,800 | AQ63: $9,900 | AR63: $10,000 | AS63: $10,100 | AT63: $10,200 | AU63: $10,300 | AV63: $10,400 | AW63: $10,500 | AX63: $10,600 | AY63: $10,700 | AZ63: $10,800 | BA63: $10,900 | BB63: $11,000 | BC63: $11,100 | BD63: $11,200 | BE63: $11,300 | BF63: $11,400 | BG63: $11,500 | BH63: $11,600 | BI63: $11,700 | BJ63: $11,800 | BK63: $11,900 | BL63: $12,000 | BM63: $12,100 | BN63: $12,200 | BO63: $12,300 | BP63: $12,400 | BQ63: $12,500 | BR63: $12,600 | BS63: $12,700 | BT63: $12,800 | BU63: $12,900 | BV63: $13,000 | BW63: $13,100 | BX63: $13,200 | BY63: $13,300 | BZ63: $13,400 | CA63: $13,500 | CB63: $13,600 | CC63: $13,700 | CD63: $13,800 | CE63: $13,900 | CF63: $14,000 | CG63: $14,100 | CH63: $14,200 | CI63: $14,300 | CJ63: $14,400 | CK63: $14,500 | CL63: $14,600 | CM63: $14,700 | CN63: $14,800 | CO63: $14,900 | CP63: $15,000 | CQ63: $15,100 | CR63: $15,200 | CS63: $15,300 | CT63: $15,400 | CU63: $15,500 | CV63: $15,600 | CW63: $15,700 | CX63: $15,800
B64: $5,900 | C64: $5,900 | D64: $5,900 | E64: $5,900 | F64: $6,300 | G64: $6,400 | H64: $6,500 | I64: $6,600 | J64: $6,700 | K64: $6,800 | L64: $6,900 | M64: $7,000 | N64: $7,100 | O64: $7,200 | P64: $7,300 | Q64: $7,400 | R64: $7,500 | S64: $7,600 | T64: $7,700 | U64: $7,800 | V64: $7,900 | W64: $8,000 | X64: $8,100 | Y64: $8,200 | Z64: $8,300 | AA64: $8,400 | AB64: $8,500 | AC64: $8,600 | AD64: $8,700 | AE64: $8,800 | AF64: $8,900 | AG64: $9,000 | AH64: $9,100 | AI64: $9,200 | AJ64: $9,300 | AK64: $9,400 | AL64: $9,500 | AM64: $9,600 | AN64: $9,700 | AO64: $9,800 | AP64: $9,900 | AQ64: $10,000 | AR64: $10,100 | AS64: $10,200 | AT64: $10,300 | AU64: $10,400 | AV64: $10,500 | AW64: $10,600 | AX64: $10,700 | AY64: $10,800 | AZ64: $10,900 | BA64: $11,000 | BB64: $11,100 | BC64: $11,200 | BD64: $11,300 | BE64: $11,400 | BF64: $11,500 | BG64: $11,600 | BH64: $11,700 | BI64: $11,800 | BJ64: $11,900 | BK64: $12,000 | BL64: $12,100 | BM64: $12,200 | BN64: $12,300 | BO64: $12,400 | BP64: $12,500 | BQ64: $12,600 | BR64: $12,700 | BS64: $12,800 | BT64: $12,900 | BU64: $13,000 | BV64: $13,100 | BW64: $13,200 | BX64: $13,300 | BY64: $13,400 | BZ64: $13,500 | CA64: $13,600 | CB64: $13,700 | CC64: $13,800 | CD64: $13,900 | CE64: $14,000 | CF64: $14,100 | CG64: $14,200 | CH64: $14,300 | CI64: $14,400 | CJ64: $14,500 | CK64: $14,600 | CL64: $14,700 | CM64: $14,800 | CN64: $14,900 | CO64: $15,000 | CP64: $15,100 | CQ64: $15,200 | CR64: $15,300 | CS64: $15,400 | CT64: $15,500 | CU64: $15,600 | CV64: $15,700 | CW64: $15,800 | CX64: $15,900
B65: $6,000 | C65: $6,000 | D65: $6,000 | E65: $6,000 | F65: $6,400 | G65: $6,500 | H65: $6,600 | I65: $6,700 | J65: $6,800 | K65: $6,900 | L65: $7,000 | M65: $7,100 | N65: $7,200 | O65: $7,300 | P65: $7,400 | Q65: $7,500 | R65: $7,600 | S65: $7,700 | T65: $7,800 | U65: $7,900 | V65: $8,000 | W65: $8,100 | X65: $8,200 | Y65: $8,300 | Z65: $8,400 | AA65: $8,500 | AB65: $8,600 | AC65: $8,700 | AD65: $8,800 | AE65: $8,900 | AF65: $9,000 | AG65: $9,100 | AH65: $9,200 | AI65: $9,300 | AJ65: $9,400 | AK65: $9,500 | AL65: $9,600 | AM65: $9,700 | AN65: $9,800 | AO65: $9,900 | AP65: $10,000 | AQ65: $10,100 | AR65: $10,200 | AS65: $10,300 | AT65: $10,400 | AU65: $10,500 | AV65: $10,600 | AW65: $10,700 | AX65: $10,800 | AY65: $10,900 | AZ65: $11,000 | BA65: $11,100 | BB65: $11,200 | BC65: $11,300 | BD65: $11,400 | BE65: $11,500 | BF65: $11,600 | BG65: $11,700 | BH65: $11,800 | BI65: $11,900 | BJ65: $12,000 | BK65: $12,100 | BL65: $12,200 | BM65: $12,300 | BN65: $12,400 | BO65: $12,500 | BP65: $12,600 | BQ65: $12,700 | BR65: $12,800 | BS65: $12,900 | BT65: $13,000 | BU65: $13,100 | BV65: $13,200 | BW65: $13,300 | BX65: $13,400 | BY65: $13,500 | BZ65: $13,600 | CA65: $13,700 | CB65: $13,800 | CC65: $13,900 | CD65: $14,000 | CE65: $14,100 | CF65: $14,200 | CG65: $14,300 | CH65: $14,400 | CI65: $14,500 | CJ65: $14,600 | CK65: $14,700 | CL65: $14,800 | CM65: $14,900 | CN65: $15,000 | CO65: $15,100 | CP65: $15,200 | CQ65: $15,300 | CR65: $15,400 | CS65: $15,500 | CT65: $15,600 | CU65: $15,700 | CV65: $15,800 | CW65: $15,900 | CX65: $16,000
B66: $6,100 | C66: =SUM(C$5,$B66) -> $6,100 | D66: $6,100 | E66: $6,100 | F66: $6,500 | G66: $6,600 | H66: $6,700 | I66: $6,800 | J66: $6,900 | K66: $7,000 | L66: $7,100 | M66: =SUM(M$5,$B66) -> $7,200 | N66: $7,300 | O66: $7,400 | P66: $7,500 | Q66: $7,600 | R66: $7,700 | S66: $7,800 | T66: $7,900 | U66: $8,000 | V66: $8,100 | W66: =SUM(W$5,$B66) -> $8,200 | X66: $8,300 | Y66: $8,400 | Z66: $8,500 | AA66: $8,600 | AB66: $8,700 | AC66: $8,800 | AD66: $8,900 | AE66: $9,000 | AF66: $9,100 | AG66: =SUM(AG$5,$B66) -> $9,200 | AH66: $9,300 | AI66: $9,400 | AJ66: $9,500 | AK66: $9,600 | AL66: $9,700 | AM66: $9,800 | AN66: $9,900 | AO66: $10,000 | AP66: $10,100 | AQ66: =SUM(AQ$5,$B66) -> $10,200 | AR66: $10,300 | AS66: $10,400 | AT66: $10,500 | AU66: $10,600 | AV66: $10,700 | AW66: $10,800 | AX66: $10,900 | AY66: $11,000 | AZ66: $11,100 | BA66: =SUM(BA$5,$B66) -> $11,200 | BB66: $11,300 | BC66: $11,400 | BD66: $11,500 | BE66: $11,600 | BF66: $11,700 | BG66: $11,800 | BH66: $11,900 | BI66: $12,000 | BJ66: $12,100 | BK66: =SUM(BK$5,$B66) -> $12,200 | BL66: $12,300 | BM66: $12,400 | BN66: $12,500 | BO66: $12,600 | BP66: $12,700 | BQ66: $12,800 | BR66: $12,900 | BS66: $13,000 | BT66: $13,100 | BU66: =SUM(BU$5,$B66) -> $13,200 | BV66: $13,300 | BW66: $13,400 | BX66: $13,500 | BY66: $13,600 | BZ66: $13,700 | CA66: $13,800 | CB66: $13,900 | CC66: $14,000 | CD66: $14,100 | CE66: =SUM(CE$5,$B66) -> $14,200 | CF66: $14,300 | CG66: $14,400 | CH66: $14,500 | CI66: $14,600 | CJ66: $14,700 | CK66: $14,800 | CL66: $14,900 | CM66: $15,000 | CN66: $15,100 | CO66: =SUM(CO$5,$B66) -> $15,200 | CP66: $15,300 | CQ66: $15,400 | CR66: $15,500 | CS66: $15,600 | CT66: $15,700 | CU66: $15,800 | CV66: $15,900 | CW66: $16,000 | CX66: $16,100
B67: $6,200 | C67: $6,200 | D67: $6,200 | E67: $6,200 | F67: $6,600 | G67: $6,700 | H67: $6,800 | I67: $6,900 | J67: $7,000 | K67: $7,100 | L67: $7,200 | M67: $7,300 | N67: $7,400 | O67: $7,500 | P67: $7,600 | Q67: $7,700 | R67: $7,800 | S67: $7,900 | T67: $8,000 | U67: $8,100 | V67: $8,200 | W67: $8,300 | X67: $8,400 | Y67: $8,500 | Z67: $8,600 | AA67: $8,700 | AB67: $8,800 | AC67: $8,900 | AD67: $9,000 | AE67: $9,100 | AF67: $9,200 | AG67: $9,300 | AH67: $9,400 | AI67: $9,500 | AJ67: $9,600 | AK67: $9,700 | AL67: $9,800 | AM67: $9,900 | AN67: $10,000 | AO67: $10,100 | AP67: $10,200 | AQ67: $10,300 | AR67: $10,400 | AS67: $10,500 | AT67: $10,600 | AU67: $10,700 | AV67: $10,800 | AW67: $10,900 | AX67: $11,000 | AY67: $11,100 | AZ67: $11,200 | BA67: $11,300 | BB67: $11,400 | BC67: $11,500 | BD67: $11,600 | BE67: $11,700 | BF67: $11,800 | BG67: $11,900 | BH67: $12,000 | BI67: $12,100 | BJ67: $12,200 | BK67: $12,300 | BL67: $12,400 | BM67: $12,500 | BN67: $12,600 | BO67: $12,700 | BP67: $12,800 | BQ67: $12,900 | BR67: $13,000 | BS67: $13,100 | BT67: $13,200 | BU67: $13,300 | BV67: $13,400 | BW67: $13,500 | BX67: $13,600 | BY67: $13,700 | BZ67: $13,800 | CA67: $13,900 | CB67: $14,000 | CC67: $14,100 | CD67: $14,200 | CE67: $14,300 | CF67: $14,400 | CG67: $14,500 | CH67: $14,600 | CI67: $14,700 | CJ67: $14,800 | CK67: $14,900 | CL67: $15,000 | CM67: $15,100 | CN67: $15,200 | CO67: $15,300 | CP67: $15,400 | CQ67: $15,500 | CR67: $15,600 | CS67: $15,700 | CT67: $15,800 | CU67: $15,900 | CV67: $16,000 | CW67: $16,100 | CX67: $16,200
B68: $6,300 | C68: $6,300 | D68: $6,300 | E68: $6,300 | F68: $6,700 | G68: $6,800 | H68: $6,900 | I68: $7,000 | J68: $7,100 | K68: $7,200 | L68: $7,300 | M68: $7,400 | N68: $7,500 | O68: $7,600 | P68: $7,700 | Q68: $7,800 | R68: $7,900 | S68: $8,000 | T68: $8,100 | U68: $8,200 | V68: $8,300 | W68: $8,400 | X68: $8,500 | Y68: $8,600 | Z68: $8,700 | AA68: $8,800 | AB68: $8,900 | AC68: $9,000 | AD68: $9,100 | AE68: $9,200 | AF68: $9,300 | AG68: $9,400 | AH68: $9,500 | AI68: $9,600 | AJ68: $9,700 | AK68: $9,800 | AL68: $9,900 | AM68: $10,000 | AN68: $10,100 | AO68: $10,200 | AP68: $10,300 | AQ68: $10,400 | AR68: $10,500 | AS68: $10,600 | AT68: $10,700 | AU68: $10,800 | AV68: $10,900 | AW68: $11,000 | AX68: $11,100 | AY68: $11,200 | AZ68: $11,300 | BA68: $11,400 | BB68: $11,500 | BC68: $11,600 | BD68: $11,700 | BE68: $11,800 | BF68: $11,900 | BG68: $12,000 | BH68: $12,100 | BI68: $12,200 | BJ68: $12,300 | BK68: $12,400 | BL68: $12,500 | BM68: $12,600 | BN68: $12,700 | BO68: $12,800 | BP68: $12,900 | BQ68: $13,000 | BR68: $13,100 | BS68: $13,200 | BT68: $13,300 | BU68: $13,400 | BV68: $13,500 | BW68: $13,600 | BX68: $13,700 | BY68: $13,800 | BZ68: $13,900 | CA68: $14,000 | CB68: $14,100 | CC68: $14,200 | CD68: $14,300 | CE68: $14,400 | CF68: $14,500 | CG68: $14,600 | CH68: $14,700 | CI68: $14,800 | CJ68: $14,900 | CK68: $15,000 | CL68: $15,100 | CM68: $15,200 | CN68: $15,300 | CO68: $15,400 | CP68: $15,500 | CQ68: $15,600 | CR68: $15,700 | CS68: $15,800 | CT68: $15,900 | CU68: $16,000 | CV68: $16,100 | CW68: $16,200 | CX68: $16,300
B69: $6,400 | C69: $6,400 | D69: $6,400 | E69: $6,400 | F69: $6,800 | G69: $6,900 | H69: $7,000 | I69: $7,100 | J69: $7,200 | K69: $7,300 | L69: $7,400 | M69: $7,500 | N69: $7,600 | O69: $7,700 | P69: $7,800 | Q69: $7,900 | R69: $8,000 | S69: $8,100 | T69: $8,200 | U69: $8,300 | V69: $8,400 | W69: $8,500 | X69: $8,600 | Y69: $8,700 | Z69: $8,800 | AA69: $8,900 | AB69: $9,000 | AC69: $9,100 | AD69: $9,200 | AE69: $9,300 | AF69: $9,400 | AG69: $9,500 | AH69: $9,600 | AI69: $9,700 | AJ69: $9,800 | AK69: $9,900 | AL69: $10,000 | AM69: $10,100 | AN69: $10,200 | AO69: $10,300 | AP69: $10,400 | AQ69: $10,500 | AR69: $10,600 | AS69: $10,700 | AT69: $10,800 | AU69: $10,900 | AV69: $11,000 | AW69: $11,100 | AX69: $11,200 | AY69: $11,300 | AZ69: $11,400 | BA69: $11,500 | BB69: $11,600 | BC69: $11,700 | BD69: $11,800 | BE69: $11,900 | BF69: $12,000 | BG69: $12,100 | BH69: $12,200 | BI69: $12,300 | BJ69: $12,400 | BK69: $12,500 | BL69: $12,600 | BM69: $12,700 | BN69: $12,800 | BO69: $12,900 | BP69: $13,000 | BQ69: $13,100 | BR69: $13,200 | BS69: $13,300 | BT69: $13,400 | BU69: $13,500 | BV69: $13,600 | BW69: $13,700 | BX69: $13,800 | BY69: $13,900 | BZ69: $14,000 | CA69: $14,100 | CB69: $14,200 | CC69: $14,300 | CD69: $14,400 | CE69: $14,500 | CF69: $14,600 | CG69: $14,700 | CH69: $14,800 | CI69: $14,900 | CJ69: $15,000 | CK69: $15,100 | CL69: $15,200 | CM69: $15,300 | CN69: $15,400 | CO69: $15,500 | CP69: $15,600 | CQ69: $15,700 | CR69: $15,800 | CS69: $15,900 | CT69: $16,000 | CU69: $16,100 | CV69: $16,200 | CW69: $16,300 | CX69: $16,400
B70: $6,500 | C70: $6,500 | D70: $6,500 | E70: $6,500 | F70: $6,900 | G70: $7,000 | H70: $7,100 | I70: $7,200 | J70: $7,300 | K70: $7,400 | L70: $7,500 | M70: $7,600 | N70: $7,700 | O70: $7,800 | P70: $7,900 | Q70: $8,000 | R70: $8,100 | S70: $8,200 | T70: $8,300 | U70: $8,400 | V70: $8,500 | W70: $8,600 | X70: $8,700 | Y70: $8,800 | Z70: $8,900 | AA70: $9,000 | AB70: $9,100 | AC70: $9,200 | AD70: $9,300 | AE70: $9,400 | AF70: $9,500 | AG70: $9,600 | AH70: $9,700 | AI70: $9,800 | AJ70: $9,900 | AK70: $10,000 | AL70: $10,100 | AM70: $10,200 | AN70: $10,300 | AO70: $10,400 | AP70: $10,500 | AQ70: $10,600 | AR70: $10,700 | AS70: $10,800 | AT70: $10,900 | AU70: $11,000 | AV70: $11,100 | AW70: $11,200 | AX70: $11,300 | AY70: $11,400 | AZ70: $11,500 | BA70: $11,600 | BB70: $11,700 | BC70: $11,800 | BD70: $11,900 | BE70: $12,000 | BF70: $12,100 | BG70: $12,200 | BH70: $12,300 | BI70: $12,400 | BJ70: $12,500 | BK70: $12,600 | BL70: $12,700 | BM70: $12,800 | BN70: $12,900 | BO70: $13,000 | BP70: $13,100 | BQ70: $13,200 | BR70: $13,300 | BS70: $13,400 | BT70: $13,500 | BU70: $13,600 | BV70: $13,700 | BW70: $13,800 | BX70: $13,900 | BY70: $14,000 | BZ70: $14,100 | CA70: $14,200 | CB70: $14,300 | CC70: $14,400 | CD70: $14,500 | CE70: $14,600 | CF70: $14,700 | CG70: $14,800 | CH70: $14,900 | CI70: $15,000 | CJ70: $15,100 | CK70: $15,200 | CL70: $15,300 | CM70: $15,400 | CN70: $15,500 | CO70: $15,600 | CP70: $15,700 | CQ70: $15,800 | CR70: $15,900 | CS70: $16,000 | CT70: $16,100 | CU70: $16,200 | CV70: $16,300 | CW70: $16,400 | CX70: $16,500
B71: $6,600 | C71: $6,600 | D71: $6,600 | E71: $6,600 | F71: $7,000 | G71: $7,100 | H71: $7,200 | I71: $7,300 | J71: $7,400 | K71: $7,500 | L71: $7,600 | M71: $7,700 | N71: $7,800 | O71: $7,900 | P71: $8,000 | Q71: $8,100 | R71: $8,200 | S71: $8,300 | T71: $8,400 | U71: $8,500 | V71: $8,600 | W71: $8,700 | X71: $8,800 | Y71: $8,900 | Z71: $9,000 | AA71: $9,100 | AB71: $9,200 | AC71: $9,300 | AD71: $9,400 | AE71: $9,500 | AF71: $9,600 | AG71: $9,700 | AH71: $9,800 | AI71: $9,900 | AJ71: $10,000 | AK71: $10,100 | AL71: $10,200 | AM71: $10,300 | AN71: $10,400 | AO71: $10,500 | AP71: $10,600 | AQ71: $10,700 | AR71: $10,800 | AS71: $10,900 | AT71: $11,000 | AU71: $11,100 | AV71: $11,200 | AW71: $11,300 | AX71: $11,400 | AY71: $11,500 | AZ71: $11,600 | BA71: $11,700 | BB71: $11,800 | BC71: $11,900 | BD71: $12,000 | BE71: $12,100 | BF71: $12,200 | BG71: $12,300 | BH71: $12,400 | BI71: $12,500 | BJ71: $12,600 | BK71: $12,700 | BL71: $12,800 | BM71: $12,900 | BN71: $13,000 | BO71: $13,100 | BP71: $13,200 | BQ71: $13,300 | BR71: $13,400 | BS71: $13,500 | BT71: $13,600 | BU71: $13,700 | BV71: $13,800 | BW71: $13,900 | BX71: $14,000 | BY71: $14,100 | BZ71: $14,200 | CA71: $14,300 | CB71: $14,400 | CC71: $14,500 | CD71: $14,600 | CE71: $14,700 | CF71: $14,800 | CG71: $14,900 | CH71: $15,000 | CI71: $15,100 | CJ71: $15,200 | CK71: $15,300 | CL71: $15,400 | CM71: $15,500 | CN71: $15,600 | CO71: $15,700 | CP71: $15,800 | CQ71: $15,900 | CR71: $16,000 | CS71: $16,100 | CT71: $16,200 | CU71: $16,300 | CV71: $16,400 | CW71: $16,500 | CX71: $16,600
B72: $6,700 | C72: $6,700 | D72: $6,700 | E72: $6,700 | F72: $7,100 | G72: $7,200 | H72: $7,300 | I72: $7,400 | J72: $7,500 | K72: $7,600 | L72: $7,700 | M72: $7,800 | N72: $7,900 | O72: $8,000 | P72: $8,100 | Q72: $8,200 | R72: $8,300 | S72: $8,400 | T72: $8,500 | U72: $8,600 | V72: $8,700 | W72: $8,800 | X72: $8,900 | Y72: $9,000 | Z72: $9,100 | AA72: $9,200 | AB72: $9,300 | AC72: $9,400 | AD72: $9,500 | AE72: $9,600 | AF72: $9,700 | AG72: $9,800 | AH72: $9,900 | AI72: $10,000 | AJ72: $10,100 | AK72: $10,200 | AL72: $10,300 | AM72: $10,400 | AN72: $10,500 | AO72: $10,600 | AP72: $10,700 | AQ72: $10,800 | AR72: $10,900 | AS72: $11,000 | AT72: $11,100 | AU72: $11,200 | AV72: $11,300 | AW72: $11,400 | AX72: $11,500 | AY72: $11,600 | AZ72: $11,700 | BA72: $11,800 | BB72: $11,900 | BC72: $12,000 | BD72: $12,100 | BE72: $12,200 | BF72: $12,300 | BG72: $12,400 | BH72: $12,500 | BI72: $12,600 | BJ72: $12,700 | BK72: $12,800 | BL72: $12,900 | BM72: $13,000 | BN72: $13,100 | BO72: $13,200 | BP72: $13,300 | BQ72: $13,400 | BR72: $13,500 | BS72: $13,600 | BT72: $13,700 | BU72: $13,800 | BV72: $13,900 | BW72: $14,000 | BX72: $14,100 | BY72: $14,200 | BZ72: $14,300 | CA72: $14,400 | CB72: $14,500 | CC72: $14,600 | CD72: $14,700 | CE72: $14,800 | CF72: $14,900 | CG72: $15,000 | CH72: $15,100 | CI72: $15,200 | CJ72: $15,300 | CK72: $15,400 | CL72: $15,500 | CM72: $15,600 | CN72: $15,700 | CO72: $15,800 | CP72: $15,900 | CQ72: $16,000 | CR72: $16,100 | CS72: $16,200 | CT72: $16,300 | CU72: $16,400 | CV72: $16,500 | CW72: $16,600 | CX72: $16,700
B73: $6,800 | C73: $6,800 | D73: $6,800 | E73: $6,800 | F73: $7,200 | G73: $7,300 | H73: $7,400 | I73: $7,500 | J73: $7,600 | K73: $7,700 | L73: $7,800 | M73: $7,900 | N73: $8,000 | O73: $8,100 | P73: $8,200 | Q73: $8,300 | R73: $8,400 | S73: $8,500 | T73: $8,600 | U73: $8,700 | V73: $8,800 | W73: $8,900 | X73: $9,000 | Y73: $9,100 | Z73: $9,200 | AA73: $9,300 | AB73: $9,400 | AC73: $9,500 | AD73: $9,600 | AE73: $9,700 | AF73: $9,800 | AG73: $9,900 | AH73: $10,000 | AI73: $10,100 | AJ73: $10,200 | AK73: $10,300 | AL73: $10,400 | AM73: $10,500 | AN73: $10,600 | AO73: $10,700 | AP73: $10,800 | AQ73: $10,900 | AR73: $11,000 | AS73: $11,100 | AT73: $11,200 | AU73: $11,300 | AV73: $11,400 | AW73: $11,500 | AX73: $11,600 | AY73: $11,700 | AZ73: $11,800 | BA73: $11,900 | BB73: $12,000 | BC73: $12,100 | BD73: $12,200 | BE73: $12,300 | BF73: $12,400 | BG73: $12,500 | BH73: $12,600 | BI73: $12,700 | BJ73: $12,800 | BK73: $12,900 | BL73: $13,000 | BM73: $13,100 | BN73: $13,200 | BO73: $13,300 | BP73: $13,400 | BQ73: $13,500 | BR73: $13,600 | BS73: $13,700 | BT73: $13,800 | BU73: $13,900 | BV73: $14,000 | BW73: $14,100 | BX73: $14,200 | BY73: $14,300 | BZ73: $14,400 | CA73: $14,500 | CB73: $14,600 | CC73: $14,700 | CD73: $14,800 | CE73: $14,900 | CF73: $15,000 | CG73: $15,100 | CH73: $15,200 | CI73: $15,300 | CJ73: $15,400 | CK73: $15,500 | CL73: $15,600 | CM73: $15,700 | CN73: $15,800 | CO73: $15,900 | CP73: $16,000 | CQ73: $16,100 | CR73: $16,200 | CS73: $16,300 | CT73: $16,400 | CU73: $16,500 | CV73: $16,600 | CW73: $16,700 | CX73: $16,800
B74: $6,900 | C74: $6,900 | D74: $6,900 | E74: $6,900 | F74: $7,300 | G74: $7,400 | H74: $7,500 | I74: $7,600 | J74: $7,700 | K74: $7,800 | L74: $7,900 | M74: $8,000 | N74: $8,100 | O74: $8,200 | P74: $8,300 | Q74: $8,400 | R74: $8,500 | S74: $8,600 | T74: $8,700 | U74: $8,800 | V74: $8,900 | W74: $9,000 | X74: $9,100 | Y74: $9,200 | Z74: $9,300 | AA74: $9,400 | AB74: $9,500 | AC74: $9,600 | AD74: $9,700 | AE74: $9,800 | AF74: $9,900 | AG74: $10,000 | AH74: $10,100 | AI74: $10,200 | AJ74: $10,300 | AK74: $10,400 | AL74: $10,500 | AM74: $10,600 | AN74: $10,700 | AO74: $10,800 | AP74: $10,900 | AQ74: $11,000 | AR74: $11,100 | AS74: $11,200 | AT74: $11,300 | AU74: $11,400 | AV74: $11,500 | AW74: $11,600 | AX74: $11,700 | AY74: $11,800 | AZ74: $11,900 | BA74: $12,000 | BB74: $12,100 | BC74: $12,200 | BD74: $12,300 | BE74: $12,400 | BF74: $12,500 | BG74: $12,600 | BH74: $12,700 | BI74: $12,800 | BJ74: $12,900 | BK74: $13,000 | BL74: $13,100 | BM74: $13,200 | BN74: $13,300 | BO74: $13,400 | BP74: $13,500 | BQ74: $13,600 | BR74: $13,700 | BS74: $13,800 | BT74: $13,900 | BU74: $14,000 | BV74: $14,100 | BW74: $14,200 | BX74: $14,300 | BY74: $14,400 | BZ74: $14,500 | CA74: $14,600 | CB74: $14,700 | CC74: $14,800 | CD74: $14,900 | CE74: $15,000 | CF74: $15,100 | CG74: $15,200 | CH74: $15,300 | CI74: $15,400 | CJ74: $15,500 | CK74: $15,600 | CL74: $15,700 | CM74: $15,800 | CN74: $15,900 | CO74: $16,000 | CP74: $16,100 | CQ74: $16,200 | CR74: $16,300 | CS74: $16,400 | CT74: $16,500 | CU74: $16,600 | CV74: $16,700 | CW74: $16,800 | CX74: $16,900
B75: $7,000 | C75: $7,000 | D75: $7,000 | E75: $7,000 | F75: $7,400 | G75: $7,500 | H75: $7,600 | I75: $7,700 | J75: $7,800 | K75: $7,900 | L75: $8,000 | M75: $8,100 | N75: $8,200 | O75: $8,300 | P75: $8,400 | Q75: $8,500 | R75: $8,600 | S75: $8,700 | T75: $8,800 | U75: $8,900 | V75: $9,000 | W75: $9,100 | X75: $9,200 | Y75: $9,300 | Z75: $9,400 | AA75: $9,500 | AB75: $9,600 | AC75: $9,700 | AD75: $9,800 | AE75: $9,900 | AF75: $10,000 | AG75: $10,100 | AH75: $10,200 | AI75: $10,300 | AJ75: $10,400 | AK75: $10,500 | AL75: $10,600 | AM75: $10,700 | AN75: $10,800 | AO75: $10,900 | AP75: $11,000 | AQ75: $11,100 | AR75: $11,200 | AS75: $11,300 | AT75: $11,400 | AU75: $11,500 | AV75: $11,600 | AW75: $11,700 | AX75: $11,800 | AY75: $11,900 | AZ75: $12,000 | BA75: $12,100 | BB75: $12,200 | BC75: $12,300 | BD75: $12,400 | BE75: $12,500 | BF75: $12,600 | BG75: $12,700 | BH75: $12,800 | BI75: $12,900 | BJ75: $13,000 | BK75: $13,100 | BL75: $13,200 | BM75: $13,300 | BN75: $13,400 | BO75: $13,500 | BP75: $13,600 | BQ75: $13,700 | BR75: $13,800 | BS75: $13,900 | BT75: $14,000 | BU75: $14,100 | BV75: $14,200 | BW75: $14,300 | BX75: $14,400 | BY75: $14,500 | BZ75: $14,600 | CA75: $14,700 | CB75: $14,800 | CC75: $14,900 | CD75: $15,000 | CE75: $15,100 | CF75: $15,200 | CG75: $15,300 | CH75: $15,400 | CI75: $15,500 | CJ75: $15,600 | CK75: $15,700 | CL75: $15,800 | CM75: $15,900 | CN75: $16,000 | CO75: $16,100 | CP75: $16,200 | CQ75: $16,300 | CR75: $16,400 | CS75: $16,500 | CT75: $16,600 | CU75: $16,700 | CV75: $16,800 | CW75: $16,900 | CX75: $17,000
B76: $7,100 | C76: =SUM(C$5,$B76) -> $7,100 | D76: $7,100 | E76: $7,100 | F76: $7,500 | G76: $7,600 | H76: $7,700 | I76: $7,800 | J76: $7,900 | K76: $8,000 | L76: $8,100 | M76: =SUM(M$5,$B76) -> $8,200 | N76: $8,300 | O76: $8,400 | P76: $8,500 | Q76: $8,600 | R76: $8,700 | S76: $8,800 | T76: $8,900 | U76: $9,000 | V76: $9,100 | W76: =SUM(W$5,$B76) -> $9,200 | X76: $9,300 | Y76: $9,400 | Z76: $9,500 | AA76: $9,600 | AB76: $9,700 | AC76: $9,800 | AD76: $9,900 | AE76: $10,000 | AF76: $10,100 | AG76: =SUM(AG$5,$B76) -> $10,200 | AH76: $10,300 | AI76: $10,400 | AJ76: $10,500 | AK76: $10,600 | AL76: $10,700 | AM76: $10,800 | AN76: $10,900 | AO76: $11,000 | AP76: $11,100 | AQ76: =SUM(AQ$5,$B76) -> $11,200 | AR76: $11,300 | AS76: $11,400 | AT76: $11,500 | AU76: $11,600 | AV76: $11,700 | AW76: $11,800 | AX76: $11,900 | AY76: $12,000 | AZ76: $12,100 | BA76: =SUM(BA$5,$B76) -> $12,200 | BB76: $12,300 | BC76: $12,400 | BD76: $12,500 | BE76: $12,600 | BF76: $12,700 | BG76: $12,800 | BH76: $12,900 | BI76: $13,000 | BJ76: $13,100 | BK76: =SUM(BK$5,$B76) -> $13,200 | BL76: $13,300 | BM76: $13,400 | BN76: $13,500 | BO76: $13,600 | BP76: $13,700 | BQ76: $13,800 | BR76: $13,900 | BS76: $14,000 | BT76: $14,100 | BU76: =SUM(BU$5,$B76) -> $14,200 | BV76: $14,300 | BW76: $14,400 | BX76: $14,500 | BY76: $14,600 | BZ76: $14,700 | CA76: $14,800 | CB76: $14,900 | CC76: $15,000 | CD76: $15,100 | CE76: =SUM(CE$5,$B76) -> $15,200 | CF76: $15,300 | CG76: $15,400 | CH76: $15,500 | CI76: $15,600 | CJ76: $15,700 | CK76: $15,800 | CL76: $15,900 | CM76: $16,000 | CN76: $16,100 | CO76: =SUM(CO$5,$B76) -> $16,200 | CP76: $16,300 | CQ76: $16,400 | CR76: $16,500 | CS76: $16,600 | CT76: $16,700 | CU76: $16,800 | CV76: $16,900 | CW76: $17,000 | CX76: $17,100
B77: $7,200 | C77: $7,200 | D77: $7,200 | E77: $7,200 | F77: $7,600 | G77: $7,700 | H77: $7,800 | I77: $7,900 | J77: $8,000 | K77: $8,100 | L77: $8,200 | M77: $8,300 | N77: $8,400 | O77: $8,500 | P77: $8,600 | Q77: $8,700 | R77: $8,800 | S77: $8,900 | T77: $9,000 | U77: $9,100 | V77: $9,200 | W77: $9,300 | X77: $9,400 | Y77: $9,500 | Z77: $9,600 | AA77: $9,700 | AB77: $9,800 | AC77: $9,900 | AD77: $10,000 | AE77: $10,100 | AF77: $10,200 | AG77: $10,300 | AH77: $10,400 | AI77: $10,500 | AJ77: $10,600 | AK77: $10,700 | AL77: $10,800 | AM77: $10,900 | AN77: $11,000 | AO77: $11,100 | AP77: $11,200 | AQ77: $11,300 | AR77: $11,400 | AS77: $11,500 | AT77: $11,600 | AU77: $11,700 | AV77: $11,800 | AW77: $11,900 | AX77: $12,000 | AY77: $12,100 | AZ77: $12,200 | BA77: $12,300 | BB77: $12,400 | BC77: $12,500 | BD77: $12,600 | BE77: $12,700 | BF77: $12,800 | BG77: $12,900 | BH77: $13,000 | BI77: $13,100 | BJ77: $13,200 | BK77: $13,300 | BL77: $13,400 | BM77: $13,500 | BN77: $13,600 | BO77: $13,700 | BP77: $13,800 | BQ77: $13,900 | BR77: $14,000 | BS77: $14,100 | BT77: $14,200 | BU77: $14,300 | BV77: $14,400 | BW77: $14,500 | BX77: $14,600 | BY77: $14,700 | BZ77: $14,800 | CA77: $14,900 | CB77: $15,000 | CC77: $15,100 | CD77: $15,200 | CE77: $15,300 | CF77: $15,400 | CG77: $15,500 | CH77: $15,600 | CI77: $15,700 | CJ77: $15,800 | CK77: $15,900 | CL77: $16,000 | CM77: $16,100 | CN77: $16,200 | CO77: $16,300 | CP77: $16,400 | CQ77: $16,500 | CR77: $16,600 | CS77: $16,700 | CT77: $16,800 | CU77: $16,900 | CV77: $17,000 | CW77: $17,100 | CX77: $17,200
B78: $7,300 | C78: $7,300 | D78: $7,300 | E78: $7,300 | F78: $7,700 | G78: $7,800 | H78: $7,900 | I78: $8,000 | J78: $8,100 | K78: $8,200 | L78: $8,300 | M78: $8,400 | N78: $8,500 | O78: $8,600 | P78: $8,700 | Q78: $8,800 | R78: $8,900 | S78: $9,000 | T78: $9,100 | U78: $9,200 | V78: $9,300 | W78: $9,400 | X78: $9,500 | Y78: $9,600 | Z78: $9,700 | AA78: $9,800 | AB78: $9,900 | AC78: $10,000 | AD78: $10,100 | AE78: $10,200 | AF78: $10,300 | AG78: $10,400 | AH78: $10,500 | AI78: $10,600 | AJ78: $10,700 | AK78: $10,800 | AL78: $10,900 | AM78: $11,000 | AN78: $11,100 | AO78: $11,200 | AP78: $11,300 | AQ78: $11,400 | AR78: $11,500 | AS78: $11,600 | AT78: $11,700 | AU78: $11,800 | AV78: $11,900 | AW78: $12,000 | AX78: $12,100 | AY78: $12,200 | AZ78: $12,300 | BA78: $12,400 | BB78: $12,500 | BC78: $12,600 | BD78: $12,700 | BE78: $12,800 | BF78: $12,900 | BG78: $13,000 | BH78: $13,100 | BI78: $13,200 | BJ78: $13,300 | BK78: $13,400 | BL78: $13,500 | BM78: $13,600 | BN78: $13,700 | BO78: $13,800 | BP78: $13,900 | BQ78: $14,000 | BR78: $14,100 | BS78: $14,200 | BT78: $14,300 | BU78: $14,400 | BV78: $14,500 | BW78: $14,600 | BX78: $14,700 | BY78: $14,800 | BZ78: $14,900 | CA78: $15,000 | CB78: $15,100 | CC78: $15,200 | CD78: $15,300 | CE78: $15,400 | CF78: $15,500 | CG78: $15,600 | CH78: $15,700 | CI78: $15,800 | CJ78: $15,900 | CK78: $16,000 | CL78: $16,100 | CM78: $16,200 | CN78: $16,300 | CO78: $16,400 | CP78: $16,500 | CQ78: $16,600 | CR78: $16,700 | CS78: $16,800 | CT78: $16,900 | CU78: $17,000 | CV78: $17,100 | CW78: $17,200 | CX78: $17,300
B79: $7,400 | C79: $7,400 | D79: $7,400 | E79: $7,400 | F79: $7,800 | G79: $7,900 | H79: $8,000 | I79: $8,100 | J79: $8,200 | K79: $8,300 | L79: $8,400 | M79: $8,500 | N79: $8,600 | O79: $8,700 | P79: $8,800 | Q79: $8,900 | R79: $9,000 | S79: $9,100 | T79: $9,200 | U79: $9,300 | V79: $9,400 | W79: $9,500 | X79: $9,600 | Y79: $9,700 | Z79: $9,800 | AA79: $9,900 | AB79: $10,000 | AC79: $10,100 | AD79: $10,200 | AE79: $10,300 | AF79: $10,400 | AG79: $10,500 | AH79: $10,600 | AI79: $10,700 | AJ79: $10,800 | AK79: $10,900 | AL79: $11,000 | AM79: $11,100 | AN79: $11,200 | AO79: $11,300 | AP79: $11,400 | AQ79: $11,500 | AR79: $11,600 | AS79: $11,700 | AT79: $11,800 | AU79: $11,900 | AV79: $12,000 | AW79: $12,100 | AX79: $12,200 | AY79: $12,300 | AZ79: $12,400 | BA79: $12,500 | BB79: $12,600 | BC79: $12,700 | BD79: $12,800 | BE79: $12,900 | BF79: $13,000 | BG79: $13,100 | BH79: $13,200 | BI79: $13,300 | BJ79: $13,400 | BK79: $13,500 | BL79: $13,600 | BM79: $13,700 | BN79: $13,800 | BO79: $13,900 | BP79: $14,000 | BQ79: $14,100 | BR79: $14,200 | BS79: $14,300 | BT79: $14,400 | BU79: $14,500 | BV79: $14,600 | BW79: $14,700 | BX79: $14,800 | BY79: $14,900 | BZ79: $15,000 | CA79: $15,100 | CB79: $15,200 | CC79: $15,300 | CD79: $15,400 | CE79: $15,500 | CF79: $15,600 | CG79: $15,700 | CH79: $15,800 | CI79: $15,900 | CJ79: $16,000 | CK79: $16,100 | CL79: $16,200 | CM79: $16,300 | CN79: $16,400 | CO79: $16,500 | CP79: $16,600 | CQ79: $16,700 | CR79: $16,800 | CS79: $16,900 | CT79: $17,000 | CU79: $17,100 | CV79: $17,200 | CW79: $17,300 | CX79: $17,400
B80: $7,500 | C80: $7,500 | D80: $7,500 | E80: $7,500 | F80: $7,900 | G80: $8,000 | H80: $8,100 | I80: $8,200 | J80: $8,300 | K80: $8,400 | L80: $8,500 | M80: $8,600 | N80: $8,700 | O80: $8,800 | P80: $8,900 | Q80: $9,000 | R80: $9,100 | S80: $9,200 | T80: $9,300 | U80: $9,400 | V80: $9,500 | W80: $9,600 | X80: $9,700 | Y80: $9,800 | Z80: $9,900 | AA80: $10,000 | AB80: $10,100 | AC80: $10,200 | AD80: $10,300 | AE80: $10,400 | AF80: $10,500 | AG80: $10,600 | AH80: $10,700 | AI80: $10,800 | AJ80: $10,900 | AK80: $11,000 | AL80: $11,100 | AM80: $11,200 | AN80: $11,300 | AO80: $11,400 | AP80: $11,500 | AQ80: $11,600 | AR80: $11,700 | AS80: $11,800 | AT80: $11,900 | AU80: $12,000 | AV80: $12,100 | AW80: $12,200 | AX80: $12,300 | AY80: $12,400 | AZ80: $12,500 | BA80: $12,600 | BB80: $12,700 | BC80: $12,800 | BD80: $12,900 | BE80: $13,000 | BF80: $13,100 | BG80: $13,200 | BH80: $13,300 | BI80: $13,400 | BJ80: $13,500 | BK80: $13,600 | BL80: $13,700 | BM80: $13,800 | BN80: $13,900 | BO80: $14,000 | BP80: $14,100 | BQ80: $14,200 | BR80: $14,300 | BS80: $14,400 | BT80: $14,500 | BU80: $14,600 | BV80: $14,700 | BW80: $14,800 | BX80: $14,900 | BY80: $15,000 | BZ80: $15,100 | CA80: $15,200 | CB80: $15,300 | CC80: $15,400 | CD80: $15,500 | CE80: $15,600 | CF80: $15,700 | CG80: $15,800 | CH80: $15,900 | CI80: $16,000 | CJ80: $16,100 | CK80: $16,200 | CL80: $16,300 | CM80: $16,400 | CN80: $16,500 | CO80: $16,600 | CP80: $16,700 | CQ80: $16,800 | CR80: $16,900 | CS80: $17,000 | CT80: $17,100 | CU80: $17,200 | CV80: $17,300 | CW80: $17,400 | CX80: $17,500
B81: $7,600 | C81: $7,600 | D81: $7,600 | E81: $7,600 | F81: $8,000 | G81: $8,100 | H81: $8,200 | I81: $8,300 | J81: $8,400 | K81: $8,500 | L81: $8,600 | M81: $8,700 | N81: $8,800 | O81: $8,900 | P81: $9,000 | Q81: $9,100 | R81: $9,200 | S81: $9,300 | T81: $9,400 | U81: $9,500 | V81: $9,600 | W81: $9,700 | X81: $9,800 | Y81: $9,900 | Z81: $10,000 | AA81: $10,100 | AB81: $10,200 | AC81: $10,300 | AD81: $10,400 | AE81: $10,500 | AF81: $10,600 | AG81: $10,700 | AH81: $10,800 | AI81: $10,900 | AJ81: $11,000 | AK81: $11,100 | AL81: $11,200 | AM81: $11,300 | AN81: $11,400 | AO81: $11,500 | AP81: $11,600 | AQ81: $11,700 | AR81: $11,800 | AS81: $11,900 | AT81: $12,000 | AU81: $12,100 | AV81: $12,200 | AW81: $12,300 | AX81: $12,400 | AY81: $12,500 | AZ81: $12,600 | BA81: $12,700 | BB81: $12,800 | BC81: $12,900 | BD81: $13,000 | BE81: $13,100 | BF81: $13,200 | BG81: $13,300 | BH81: $13,400 | BI81: $13,500 | BJ81: $13,600 | BK81: $13,700 | BL81: $13,800 | BM81: $13,900 | BN81: $14,000 | BO81: $14,100 | BP81: $14,200 | BQ81: $14,300 | BR81: $14,400 | BS81: $14,500 | BT81: $14,600 | BU81: $14,700 | BV81: $14,800 | BW81: $14,900 | BX81: $15,000 | BY81: $15,100 | BZ81: $15,200 | CA81: $15,300 | CB81: $15,400 | CC81: $15,500 | CD81: $15,600 | CE81: $15,700 | CF81: $15,800 | CG81: $15,900 | CH81: $16,000 | CI81: $16,100 | CJ81: $16,200 | CK81: $16,300 | CL81: $16,400 | CM81: $16,500 | CN81: $16,600 | CO81: $16,700 | CP81: $16,800 | CQ81: $16,900 | CR81: $17,000 | CS81: $17,100 | CT81: $17,200 | CU81: $17,300 | CV81: $17,400 | CW81: $17,500 | CX81: $17,600
B82: $7,700 | C82: $7,700 | D82: $7,700 | E82: $7,700 | F82: $8,100 | G82: $8,200 | H82: $8,300 | I82: $8,400 | J82: $8,500 | K82: $8,600 | L82: $8,700 | M82: $8,800 | N82: $8,900 | O82: $9,000 | P82: $9,100 | Q82: $9,200 | R82: $9,300 | S82: $9,400 | T82: $9,500 | U82: $9,600 | V82: $9,700 | W82: $9,800 | X82: $9,900 | Y82: $10,000 | Z82: $10,100 | AA82: $10,200 | AB82: $10,300 | AC82: $10,400 | AD82: $10,500 | AE82: $10,600 | AF82: $10,700 | AG82: $10,800 | AH82: $10,900 | AI82: $11,000 | AJ82: $11,100 | AK82: $11,200 | AL82: $11,300 | AM82: $11,400 | AN82: $11,500 | AO82: $11,600 | AP82: $11,700 | AQ82: $11,800 | AR82: $11,900 | AS82: $12,000 | AT82: $12,100 | AU82: $12,200 | AV82: $12,300 | AW82: $12,400 | AX82: $12,500 | AY82: $12,600 | AZ82: $12,700 | BA82: $12,800 | BB82: $12,900 | BC82: $13,000 | BD82: $13,100 | BE82: $13,200 | BF82: $13,300 | BG82: $13,400 | BH82: $13,500 | BI82: $13,600 | BJ82: $13,700 | BK82: $13,800 | BL82: $13,900 | BM82: $14,000 | BN82: $14,100 | BO82: $14,200 | BP82: $14,300 | BQ82: $14,400 | BR82: $14,500 | BS82: $14,600 | BT82: $14,700 | BU82: $14,800 | BV82: $14,900 | BW82: $15,000 | BX82: $15,100 | BY82: $15,200 | BZ82: $15,300 | CA82: $15,400 | CB82: $15,500 | CC82: $15,600 | CD82: $15,700 | CE82: $15,800 | CF82: $15,900 | CG82: $16,000 | CH82: $16,100 | CI82: $16,200 | CJ82: $16,300 | CK82: $16,400 | CL82: $16,500 | CM82: $16,600 | CN82: $16,700 | CO82: $16,800 | CP82: $16,900 | CQ82: $17,000 | CR82: $17,100 | CS82: $17,200 | CT82: $17,300 | CU82: $17,400 | CV82: $17,500 | CW82: $17,600 | CX82: $17,700
B83: $7,800 | C83: $7,800 | D83: $7,800 | E83: $7,800 | F83: $8,200 | G83: $8,300 | H83: $8,400 | I83: $8,500 | J83: $8,600 | K83: $8,700 | L83: $8,800 | M83: $8,900 | N83: $9,000 | O83: $9,100 | P83: $9,200 | Q83: $9,300 | R83: $9,400 | S83: $9,500 | T83: $9,600 | U83: $9,700 | V83: $9,800 | W83: $9,900 | X83: $10,000 | Y83: $10,100 | Z83: $10,200 | AA83: $10,300 | AB83: $10,400 | AC83: $10,500 | AD83: $10,600 | AE83: $10,700 | AF83: $10,800 | AG83: $10,900 | AH83: $11,000 | AI83: $11,100 | AJ83: $11,200 | AK83: $11,300 | AL83: $11,400 | AM83: $11,500 | AN83: $11,600 | AO83: $11,700 | AP83: $11,800 | AQ83: $11,900 | AR83: $12,000 | AS83: $12,100 | AT83: $12,200 | AU83: $12,300 | AV83: $12,400 | AW83: $12,500 | AX83: $12,600 | AY83: $12,700 | AZ83: $12,800 | BA83: $12,900 | BB83: $13,000 | BC83: $13,100 | BD83: $13,200 | BE83: $13,300 | BF83: $13,400 | BG83: $13,500 | BH83: $13,600 | BI83: $13,700 | BJ83: $13,800 | BK83: $13,900 | BL83: $14,000 | BM83: $14,100 | BN83: $14,200 | BO83: $14,300 | BP83: $14,400 | BQ83: $14,500 | BR83: $14,600 | BS83: $14,700 | BT83: $14,800 | BU83: $14,900 | BV83: $15,000 | BW83: $15,100 | BX83: $15,200 | BY83: $15,300 | BZ83: $15,400 | CA83: $15,500 | CB83: $15,600 | CC83: $15,700 | CD83: $15,800 | CE83: $15,900 | CF83: $16,000 | CG83: $16,100 | CH83: $16,200 | CI83: $16,300 | CJ83: $16,400 | CK83: $16,500 | CL83: $16,600 | CM83: $16,700 | CN83: $16,800 | CO83: $16,900 | CP83: $17,000 | CQ83: $17,100 | CR83: $17,200 | CS83: $17,300 | CT83: $17,400 | CU83: $17,500 | CV83: $17,600 | CW83: $17,700 | CX83: $17,800
B84: $7,900 | C84: $7,900 | D84: $7,900 | E84: $7,900 | F84: $8,300 | G84: $8,400 | H84: $8,500 | I84: $8,600 | J84: $8,700 | K84: $8,800 | L84: $8,900 | M84: $9,000 | N84: $9,100 | O84: $9,200 | P84: $9,300 | Q84: $9,400 | R84: $9,500 | S84: $9,600 | T84: $9,700 | U84: $9,800 | V84: $9,900 | W84: $10,000 | X84: $10,100 | Y84: $10,200 | Z84: $10,300 | AA84: $10,400 | AB84: $10,500 | AC84: $10,600 | AD84: $10,700 | AE84: $10,800 | AF84: $10,900 | AG84: $11,000 | AH84: $11,100 | AI84: $11,200 | AJ84: $11,300 | AK84: $11,400 | AL84: $11,500 | AM84: $11,600 | AN84: $11,700 | AO84: $11,800 | AP84: $11,900 | AQ84: $12,000 | AR84: $12,100 | AS84: $12,200 | AT84: $12,300 | AU84: $12,400 | AV84: $12,500 | AW84: $12,600 | AX84: $12,700 | AY84: $12,800 | AZ84: $12,900 | BA84: $13,000 | BB84: $13,100 | BC84: $13,200 | BD84: $13,300 | BE84: $13,400 | BF84: $13,500 | BG84: $13,600 | BH84: $13,700 | BI84: $13,800 | BJ84: $13,900 | BK84: $14,000 | BL84: $14,100 | BM84: $14,200 | BN84: $14,300 | BO84: $14,400 | BP84: $14,500 | BQ84: $14,600 | BR84: $14,700 | BS84: $14,800 | BT84: $14,900 | BU84: $15,000 | BV84: $15,100 | BW84: $15,200 | BX84: $15,300 | BY84: $15,400 | BZ84: $15,500 | CA84: $15,600 | CB84: $15,700 | CC84: $15,800 | CD84: $15,900 | CE84: $16,000 | CF84: $16,100 | CG84: $16,200 | CH84: $16,300 | CI84: $16,400 | CJ84: $16,500 | CK84: $16,600 | CL84: $16,700 | CM84: $16,800 | CN84: $16,900 | CO84: $17,000 | CP84: $17,100 | CQ84: $17,200 | CR84: $17,300 | CS84: $17,400 | CT84: $17,500 | CU84: $17,600 | CV84: $17,700 | CW84: $17,800 | CX84: $17,900
B85: $8,000 | C85: $8,000 | D85: $8,000 | E85: $8,000 | F85: $8,400 | G85: $8,500 | H85: $8,600 | I85: $8,700 | J85: $8,800 | K85: $8,900 | L85: $9,000 | M85: $9,100 | N85: $9,200 | O85: $9,300 | P85: $9,400 | Q85: $9,500 | R85: $9,600 | S85: $9,700 | T85: $9,800 | U85: $9,900 | V85: $10,000 | W85: $10,100 | X85: $10,200 | Y85: $10,300 | Z85: $10,400 | AA85: $10,500 | AB85: $10,600 | AC85: $10,700 | AD85: $10,800 | AE85: $10,900 | AF85: $11,000 | AG85: $11,100 | AH85: $11,200 | AI85: $11,300 | AJ85: $11,400 | AK85: $11,500 | AL85: $11,600 | AM85: $11,700 | AN85: $11,800 | AO85: $11,900 | AP85: $12,000 | AQ85: $12,100 | AR85: $12,200 | AS85: $12,300 | AT85: $12,400 | AU85: $12,500 | AV85: $12,600 | AW85: $12,700 | AX85: $12,800 | AY85: $12,900 | AZ85: $13,000 | BA85: $13,100 | BB85: $13,200 | BC85: $13,300 | BD85: $13,400 | BE85: $13,500 | BF85: $13,600 | BG85: $13,700 | BH85: $13,800 | BI85: $13,900 | BJ85: $14,000 | BK85: $14,100 | BL85: $14,200 | BM85: $14,300 | BN85: $14,400 | BO85: $14,500 | BP85: $14,600 | BQ85: $14,700 | BR85: $14,800 | BS85: $14,900 | BT85: $15,000 | BU85: $15,100 | BV85: $15,200 | BW85: $15,300 | BX85: $15,400 | BY85: $15,500 | BZ85: $15,600 | CA85: $15,700 | CB85: $15,800 | CC85: $15,900 | CD85: $16,000 | CE85: $16,100 | CF85: $16,200 | CG85: $16,300 | CH85: $16,400 | CI85: $16,500 | CJ85: $16,600 | CK85: $16,700 | CL85: $16,800 | CM85: $16,900 | CN85: $17,000 | CO85: $17,100 | CP85: $17,200 | CQ85: $17,300 | CR85: $17,400 | CS85: $17,500 | CT85: $17,600 | CU85: $17,700 | CV85: $17,800 | CW85: $17,900 | CX85: $18,000
B86: $8,100 | C86: =SUM(C$5,$B86) -> $8,100 | D86: $8,100 | E86: $8,100 | F86: $8,500 | G86: $8,600 | H86: $8,700 | I86: $8,800 | J86: $8,900 | K86: $9,000 | L86: $9,100 | M86: =SUM(M$5,$B86) -> $9,200 | N86: $9,300 | O86: $9,400 | P86: $9,500 | Q86: $9,600 | R86: $9,700 | S86: $9,800 | T86: $9,900 | U86: $10,000 | V86: $10,100 | W86: =SUM(W$5,$B86) -> $10,200 | X86: $10,300 | Y86: $10,400 | Z86: $10,500 | AA86: $10,600 | AB86: $10,700 | AC86: $10,800 | AD86: $10,900 | AE86: $11,000 | AF86: $11,100 | AG86: =SUM(AG$5,$B86) -> $11,200 | AH86: $11,300 | AI86: $11,400 | AJ86: $11,500 | AK86: $11,600 | AL86: $11,700 | AM86: $11,800 | AN86: $11,900 | AO86: $12,000 | AP86: $12,100 | AQ86: =SUM(AQ$5,$B86) -> $12,200 | AR86: $12,300 | AS86: $12,400 | AT86: $12,500 | AU86: $12,600 | AV86: $12,700 | AW86: $12,800 | AX86: $12,900 | AY86: $13,000 | AZ86: $13,100 | BA86: =SUM(BA$5,$B86) -> $13,200 | BB86: $13,300 | BC86: $13,400 | BD86: $13,500 | BE86: $13,600 | BF86: $13,700 | BG86: $13,800 | BH86: $13,900 | BI86: $14,000 | BJ86: $14,100 | BK86: =SUM(BK$5,$B86) -> $14,200 | BL86: $14,300 | BM86: $14,400 | BN86: $14,500 | BO86: $14,600 | BP86: $14,700 | BQ86: $14,800 | BR86: $14,900 | BS86: $15,000 | BT86: $15,100 | BU86: =SUM(BU$5,$B86) -> $15,200 | BV86: $15,300 | BW86: $15,400 | BX86: $15,500 | BY86: $15,600 | BZ86: $15,700 | CA86: $15,800 | CB86: $15,900 | CC86: $16,000 | CD86: $16,100 | CE86: =SUM(CE$5,$B86) -> $16,200 | CF86: $16,300 | CG86: $16,400 | CH86: $16,500 | CI86: $16,600 | CJ86: $16,700 | CK86: $16,800 | CL86: $16,900 | CM86: $17,000 | CN86: $17,100 | CO86: =SUM(CO$5,$B86) -> $17,200 | CP86: $17,300 | CQ86: $17,400 | CR86: $17,500 | CS86: $17,600 | CT86: $17,700 | CU86: $17,800 | CV86: $17,900 | CW86: $18,000 | CX86: $18,100
B87: $8,200 | C87: $8,200 | D87: $8,200 | E87: $8,200 | F87: $8,600 | G87: $8,700 | H87: $8,800 | I87: $8,900 | J87: $9,000 | K87: $9,100 | L87: $9,200 | M87: $9,300 | N87: $9,400 | O87: $9,500 | P87: $9,600 | Q87: $9,700 | R87: $9,800 | S87: $9,900 | T87: $10,000 | U87: $10,100 | V87: $10,200 | W87: $10,300 | X87: $10,400 | Y87: $10,500 | Z87: $10,600 | AA87: $10,700 | AB87: $10,800 | AC87: $10,900 | AD87: $11,000 | AE87: $11,100 | AF87: $11,200 | AG87: $11,300 | AH87: $11,400 | AI87: $11,500 | AJ87: $11,600 | AK87: $11,700 | AL87: $11,800 | AM87: $11,900 | AN87: $12,000 | AO87: $12,100 | AP87: $12,200 | AQ87: $12,300 | AR87: $12,400 | AS87: $12,500 | AT87: $12,600 | AU87: $12,700 | AV87: $12,800 | AW87: $12,900 | AX87: $13,000 | AY87: $13,100 | AZ87: $13,200 | BA87: $13,300 | BB87: $13,400 | BC87: $13,500 | BD87: $13,600 | BE87: $13,700 | BF87: $13,800 | BG87: $13,900 | BH87: $14,000 | BI87: $14,100 | BJ87: $14,200 | BK87: $14,300 | BL87: $14,400 | BM87: $14,500 | BN87: $14,600 | BO87: $14,700 | BP87: $14,800 | BQ87: $14,900 | BR87: $15,000 | BS87: $15,100 | BT87: $15,200 | BU87: $15,300 | BV87: $15,400 | BW87: $15,500 | BX87: $15,600 | BY87: $15,700 | BZ87: $15,800 | CA87: $15,900 | CB87: $16,000 | CC87: $16,100 | CD87: $16,200 | CE87: $16,300 | CF87: $16,400 | CG87: $16,500 | CH87: $16,600 | CI87: $16,700 | CJ87: $16,800 | CK87: $16,900 | CL87: $17,000 | CM87: $17,100 | CN87: $17,200 | CO87: $17,300 | CP87: $17,400 | CQ87: $17,500 | CR87: $17,600 | CS87: $17,700 | CT87: $17,800 | CU87: $17,900 | CV87: $18,000 | CW87: $18,100 | CX87: $18,200
B88: $8,300 | C88: $8,300 | D88: $8,300 | E88: $8,300 | F88: $8,700 | G88: $8,800 | H88: $8,900 | I88: $9,000 | J88: $9,100 | K88: $9,200 | L88: $9,300 | M88: $9,400 | N88: $9,500 | O88: $9,600 | P88: $9,700 | Q88: $9,800 | R88: $9,900 | S88: $10,000 | T88: $10,100 | U88: $10,200 | V88: $10,300 | W88: $10,400 | X88: $10,500 | Y88: $10,600 | Z88: $10,700 | AA88: $10,800 | AB88: $10,900 | AC88: $11,000 | AD88: $11,100 | AE88: $11,200 | AF88: $11,300 | AG88: $11,400 | AH88: $11,500 | AI88: $11,600 | AJ88: $11,700 | AK88: $11,800 | AL88: $11,900 | AM88: $12,000 | AN88: $12,100 | AO88: $12,200 | AP88: $12,300 | AQ88: $12,400 | AR88: $12,500 | AS88: $12,600 | AT88: $12,700 | AU88: $12,800 | AV88: $12,900 | AW88: $13,000 | AX88: $13,100 | AY88: $13,200 | AZ88: $13,300 | BA88: $13,400 | BB88: $13,500 | BC88: $13,600 | BD88: $13,700 | BE88: $13,800 | BF88: $13,900 | BG88: $14,000 | BH88: $14,100 | BI88: $14,200 | BJ88: $14,300 | BK88: $14,400 | BL88: $14,500 | BM88: $14,600 | BN88: $14,700 | BO88: $14,800 | BP88: $14,900 | BQ88: $15,000 | BR88: $15,100 | BS88: $15,200 | BT88: $15,300 | BU88: $15,400 | BV88: $15,500 | BW88: $15,600 | BX88: $15,700 | BY88: $15,800 | BZ88: $15,900 | CA88: $16,000 | CB88: $16,100 | CC88: $16,200 | CD88: $16,300 | CE88: $16,400 | CF88: $16,500 | CG88: $16,600 | CH88: $16,700 | CI88: $16,800 | CJ88: $16,900 | CK88: $17,000 | CL88: $17,100 | CM88: $17,200 | CN88: $17,300 | CO88: $17,400 | CP88: $17,500 | CQ88: $17,600 | CR88: $17,700 | CS88: $17,800 | CT88: $17,900 | CU88: $18,000 | CV88: $18,100 | CW88: $18,200 | CX88: $18,300
B89: $8,400 | C89: $8,400 | D89: $8,400 | E89: $8,400 | F89: $8,800 | G89: $8,900 | H89: $9,000 | I89: $9,100 | J89: $9,200 | K89: $9,300 | L89: $9,400 | M89: $9,500 | N89: $9,600 | O89: $9,700 | P89: $9,800 | Q89: $9,900 | R89: $10,000 | S89: $10,100 | T89: $10,200 | U89: $10,300 | V89: $10,400 | W89: $10,500 | X89: $10,600 | Y89: $10,700 | Z89: $10,800 | AA89: $10,900 | AB89: $11,000 | AC89: $11,100 | AD89: $11,200 | AE89: $11,300 | AF89: $11,400 | AG89: $11,500 | AH89: $11,600 | AI89: $11,700 | AJ89: $11,800 | AK89: $11,900 | AL89: $12,000 | AM89: $12,100 | AN89: $12,200 | AO89: $12,300 | AP89: $12,400 | AQ89: $12,500 | AR89: $12,600 | AS89: $12,700 | AT89: $12,800 | AU89: $12,900 | AV89: $13,000 | AW89: $13,100 | AX89: $13,200 | AY89: $13,300 | AZ89: $13,400 | BA89: $13,500 | BB89: $13,600 | BC89: $13,700 | BD89: $13,800 | BE89: $13,900 | BF89: $14,000 | BG89: $14,100 | BH89: $14,200 | BI89: $14,300 | BJ89: $14,400 | BK89: $14,500 | BL89: $14,600 | BM89: $14,700 | BN89: $14,800 | BO89: $14,900 | BP89: $15,000 | BQ89: $15,100 | BR89: $15,200 | BS89: $15,300 | BT89: $15,400 | BU89: $15,500 | BV89: $15,600 | BW89: $15,700 | BX89: $15,800 | BY89: $15,900 | BZ89: $16,000 | CA89: $16,100 | CB89: $16,200 | CC89: $16,300 | CD89: $16,400 | CE89: $16,500 | CF89: $16,600 | CG89: $16,700 | CH89: $16,800 | CI89: $16,900 | CJ89: $17,000 | CK89: $17,100 | CL89: $17,200 | CM89: $17,300 | CN89: $17,400 | CO89: $17,500 | CP89: $17,600 | CQ89: $17,700 | CR89: $17,800 | CS89: $17,900 | CT89: $18,000 | CU89: $18,100 | CV89: $18,200 | CW89: $18,300 | CX89: $18,400
B90: $8,500 | C90: $8,500 | D90: $8,500 | E90: $8,500 | F90: $8,900 | G90: $9,000 | H90: $9,100 | I90: $9,200 | J90: $9,300 | K90: $9,400 | L90: $9,500 | M90: $9,600 | N90: $9,700 | O90: $9,800 | P90: $9,900 | Q90: $10,000 | R90: $10,100 | S90: $10,200 | T90: $10,300 | U90: $10,400 | V90: $10,500 | W90: $10,600 | X90: $10,700 | Y90: $10,800 | Z90: $10,900 | AA90: $11,000 | AB90: $11,100 | AC90: $11,200 | AD90: $11,300 | AE90: $11,400 | AF90: $11,500 | AG90: $11,600 | AH90: $11,700 | AI90: $11,800 | AJ90: $11,900 | AK90: $12,000 | AL90: $12,100 | AM90: $12,200 | AN90: $12,300 | AO90: $12,400 | AP90: $12,500 | AQ90: $12,600 | AR90: $12,700 | AS90: $12,800 | AT90: $12,900 | AU90: $13,000 | AV90: $13,100 | AW90: $13,200 | AX90: $13,300 | AY90: $13,400 | AZ90: $13,500 | BA90: $13,600 | BB90: $13,700 | BC90: $13,800 | BD90: $13,900 | BE90: $14,000 | BF90: $14,100 | BG90: $14,200 | BH90: $14,300 | BI90: $14,400 | BJ90: $14,500 | BK90: $14,600 | BL90: $14,700 | BM90: $14,800 | BN90: $14,900 | BO90: $15,000 | BP90: $15,100 | BQ90: $15,200 | BR90: $15,300 | BS90: $15,400 | BT90: $15,500 | BU90: $15,600 | BV90: $15,700 | BW90: $15,800 | BX90: $15,900 | BY90: $16,000 | BZ90: $16,100 | CA90: $16,200 | CB90: $16,300 | CC90: $16,400 | CD90: $16,500 | CE90: $16,600 | CF90: $16,700 | CG90: $16,800 | CH90: $16,900 | CI90: $17,000 | CJ90: $17,100 | CK90: $17,200 | CL90: $17,300 | CM90: $17,400 | CN90: $17,500 | CO90: $17,600 | CP90: $17,700 | CQ90: $17,800 | CR90: $17,900 | CS90: $18,000 | CT90: $18,100 | CU90: $18,200 | CV90: $18,300 | CW90: $18,400 | CX90: $18,500
B91: $8,600 | C91: $8,600 | D91: $8,600 | E91: $8,600 | F91: $9,000 | G91: $9,100 | H91: $9,200 | I91: $9,300 | J91: $9,400 | K91: $9,500 | L91: $9,600 | M91: $9,700 | N91: $9,800 | O91: $9,900 | P91: $10,000 | Q91: $10,100 | R91: $10,200 | S91: $10,300 | T91: $10,400 | U91: $10,500 | V91: $10,600 | W91: $10,700 | X91: $10,800 | Y91: $10,900 | Z91: $11,000 | AA91: $11,100 | AB91: $11,200 | AC91: $11,300 | AD91: $11,400 | AE91: $11,500 | AF91: $11,600 | AG91: $11,700 | AH91: $11,800 | AI91: $11,900 | AJ91: $12,000 | AK91: $12,100 | AL91: $12,200 | AM91: $12,300 | AN91: $12,400 | AO91: $12,500 | AP91: $12,600 | AQ91: $12,700 | AR91: $12,800 | AS91: $12,900 | AT91: $13,000 | AU91: $13,100 | AV91: $13,200 | AW91: $13,300 | AX91: $13,400 | AY91: $13,500 | AZ91: $13,600 | BA91: $13,700 | BB91: $13,800 | BC91: $13,900 | BD91: $14,000 | BE91: $14,100 | BF91: $14,200 | BG91: $14,300 | BH91: $14,400 | BI91: $14,500 | BJ91: $14,600 | BK91: $14,700 | BL91: $14,800 | BM91: $14,900 | BN91: $15,000 | BO91: $15,100 | BP91: $15,200 | BQ91: $15,300 | BR91: $15,400 | BS91: $15,500 | BT91: $15,600 | BU91: $15,700 | BV91: $15,800 | BW91: $15,900 | BX91: $16,000 | BY91: $16,100 | BZ91: $16,200 | CA91: $16,300 | CB91: $16,400 | CC91: $16,500 | CD91: $16,600 | CE91: $16,700 | CF91: $16,800 | CG91: $16,900 | CH91: $17,000 | CI91: $17,100 | CJ91: $17,200 | CK91: $17,300 | CL91: $17,400 | CM91: $17,500 | CN91: $17,600 | CO91: $17,700 | CP91: $17,800 | CQ91: $17,900 | CR91: $18,000 | CS91: $18,100 | CT91: $18,200 | CU91: $18,300 | CV91: $18,400 | CW91: $18,500 | CX91: $18,600
B92: $8,700 | C92: $8,700 | D92: $8,700 | E92: $8,700 | F92: $9,100 | G92: $9,200 | H92: $9,300 | I92: $9,400 | J92: $9,500 | K92: $9,600 | L92: $9,700 | M92: $9,800 | N92: $9,900 | O92: $10,000 | P92: $10,100 | Q92: $10,200 | R92: $10,300 | S92: $10,400 | T92: $10,500 | U92: $10,600 | V92: $10,700 | W92: $10,800 | X92: $10,900 | Y92: $11,000 | Z92: $11,100 | AA92: $11,200 | AB92: $11,300 | AC92: $11,400 | AD92: $11,500 | AE92: $11,600 | AF92: $11,700 | AG92: $11,800 | AH92: $11,900 | AI92: $12,000 | AJ92: $12,100 | AK92: $12,200 | AL92: $12,300 | AM92: $12,400 | AN92: $12,500 | AO92: $12,600 | AP92: $12,700 | AQ92: $12,800 | AR92: $12,900 | AS92: $13,000 | AT92: $13,100 | AU92: $13,200 | AV92: $13,300 | AW92: $13,400 | AX92: $13,500 | AY92: $13,600 | AZ92: $13,700 | BA92: $13,800 | BB92: $13,900 | BC92: $14,000 | BD92: $14,100 | BE92: $14,200 | BF92: $14,300 | BG92: $14,400 | BH92: $14,500 | BI92: $14,600 | BJ92: $14,700 | BK92: $14,800 | BL92: $14,900 | BM92: $15,000 | BN92: $15,100 | BO92: $15,200 | BP92: $15,300 | BQ92: $15,400 | BR92: $15,500 | BS92: $15,600 | BT92: $15,700 | BU92: $15,800 | BV92: $15,900 | BW92: $16,000 | BX92: $16,100 | BY92: $16,200 | BZ92: $16,300 | CA92: $16,400 | CB92: $16,500 | CC92: $16,600 | CD92: $16,700 | CE92: $16,800 | CF92: $16,900 | CG92: $17,000 | CH92: $17,100 | CI92: $17,200 | CJ92: $17,300 | CK92: $17,400 | CL92: $17,500 | CM92: $17,600 | CN92: $17,700 | CO92: $17,800 | CP92: $17,900 | CQ92: $18,000 | CR92: $18,100 | CS92: $18,200 | CT92: $18,300 | CU92: $18,400 | CV92: $18,500 | CW92: $18,600 | CX92: $18,700
B93: $8,800 | C93: $8,800 | D93: $8,800 | E93: $8,800 | F93: $9,200 | G93: $9,300 | H93: $9,400 | I93: $9,500 | J93: $9,600 | K93: $9,700 | L93: $9,800 | M93: $9,900 | N93: $10,000 | O93: $10,100 | P93: $10,200 | Q93: $10,300 | R93: $10,400 | S93: $10,500 | T93: $10,600 | U93: $10,700 | V93: $10,800 | W93: $10,900 | X93: $11,000 | Y93: $11,100 | Z93: $11,200 | AA93: $11,300 | AB93: $11,400 | AC93: $11,500 | AD93: $11,600 | AE93: $11,700 | AF93: $11,800 | AG93: $11,900 | AH93: $12,000 | AI93: $12,100 | AJ93: $12,200 | AK93: $12,300 | AL93: $12,400 | AM93: $12,500 | AN93: $12,600 | AO93: $12,700 | AP93: $12,800 | AQ93: $12,900 | AR93: $13,000 | AS93: $13,100 | AT93: $13,200 | AU93: $13,300 | AV93: $13,400 | AW93: $13,500 | AX93: $13,600 | AY93: $13,700 | AZ93: $13,800 | BA93: $13,900 | BB93: $14,000 | BC93: $14,100 | BD93: $14,200 | BE93: $14,300 | BF93: $14,400 | BG93: $14,500 | BH93: $14,600 | BI93: $14,700 | BJ93: $14,800 | BK93: $14,900 | BL93: $15,000 | BM93: $15,100 | BN93: $15,200 | BO93: $15,300 | BP93: $15,400 | BQ93: $15,500 | BR93: $15,600 | BS93: $15,700 | BT93: $15,800 | BU93: $15,900 | BV93: $16,000 | BW93: $16,100 | BX93: $16,200 | BY93: $16,300 | BZ93: $16,400 | CA93: $16,500 | CB93: $16,600 | CC93: $16,700 | CD93: $16,800 | CE93: $16,900 | CF93: $17,000 | CG93: $17,100 | CH93: $17,200 | CI93: $17,300 | CJ93: $17,400 | CK93: $17,500 | CL93: $17,600 | CM93: $17,700 | CN93: $17,800 | CO93: $17,900 | CP93: $18,000 | CQ93: $18,100 | CR93: $18,200 | CS93: $18,300 | CT93: $18,400 | CU93: $18,500 | CV93: $18,600 | CW93: $18,700 | CX93: $18,800
B94: $8,900 | C94: $8,900 | D94: $8,900 | E94: $8,900 | F94: $9,300 | G94: $9,400 | H94: $9,500 | I94: $9,600 | J94: $9,700 | K94: $9,800 | L94: $9,900 | M94: $10,000 | N94: $10,100 | O94: $10,200 | P94: $10,300 | Q94: $10,400 | R94: $10,500 | S94: $10,600 | T94: $10,700 | U94: $10,800 | V94: $10,900 | W94: $11,000 | X94: $11,100 | Y94: $11,200 | Z94: $11,300 | AA94: $11,400 | AB94: $11,500 | AC94: $11,600 | AD94: $11,700 | AE94: $11,800 | AF94: $11,900 | AG94: $12,000 | AH94: $12,100 | AI94: $12,200 | AJ94: $12,300 | AK94: $12,400 | AL94: $12,500 | AM94: $12,600 | AN94: $12,700 | AO94: $12,800 | AP94: $12,900 | AQ94: $13,000 | AR94: $13,100 | AS94: $13,200 | AT94: $13,300 | AU94: $13,400 | AV94: $13,500 | AW94: $13,600 | AX94: $13,700 | AY94: $13,800 | AZ94: $13,900 | BA94: $14,000 | BB94: $14,100 | BC94: $14,200 | BD94: $14,300 | BE94: $14,400 | BF94: $14,500 | BG94: $14,600 | BH94: $14,700 | BI94: $14,800 | BJ94: $14,900 | BK94: $15,000 | BL94: $15,100 | BM94: $15,200 | BN94: $15,300 | BO94: $15,400 | BP94: $15,500 | BQ94: $15,600 | BR94: $15,700 | BS94: $15,800 | BT94: $15,900 | BU94: $16,000 | BV94: $16,100 | BW94: $16,200 | BX94: $16,300 | BY94: $16,400 | BZ94: $16,500 | CA94: $16,600 | CB94: $16,700 | CC94: $16,800 | CD94: $16,900 | CE94: $17,000 | CF94: $17,100 | CG94: $17,200 | CH94: $17,300 | CI94: $17,400 | CJ94: $17,500 | CK94: $17,600 | CL94: $17,700 | CM94: $17,800 | CN94: $17,900 | CO94: $18,000 | CP94: $18,100 | CQ94: $18,200 | CR94: $18,300 | CS94: $18,400 | CT94: $18,500 | CU94: $18,600 | CV94: $18,700 | CW94: $18,800 | CX94: $18,900
B95: $9,000 | C95: $9,000 | D95: $9,000 | E95: $9,000 | F95: $9,400 | G95: $9,500 | H95: $9,600 | I95: $9,700 | J95: $9,800 | K95: $9,900 | L95: $10,000 | M95: $10,100 | N95: $10,200 | O95: $10,300 | P95: $10,400 | Q95: $10,500 | R95: $10,600 | S95: $10,700 | T95: $10,800 | U95: $10,900 | V95: $11,000 | W95: $11,100 | X95: $11,200 | Y95: $11,300 | Z95: $11,400 | AA95: $11,500 | AB95: $11,600 | AC95: $11,700 | AD95: $11,800 | AE95: $11,900 | AF95: $12,000 | AG95: $12,100 | AH95: $12,200 | AI95: $12,300 | AJ95: $12,400 | AK95: $12,500 | AL95: $12,600 | AM95: $12,700 | AN95: $12,800 | AO95: $12,900 | AP95: $13,000 | AQ95: $13,100 | AR95: $13,200 | AS95: $13,300 | AT95: $13,400 | AU95: $13,500 | AV95: $13,600 | AW95: $13,700 | AX95: $13,800 | AY95: $13,900 | AZ95: $14,000 | BA95: $14,100 | BB95: $14,200 | BC95: $14,300 | BD95: $14,400 | BE95: $14,500 | BF95: $14,600 | BG95: $14,700 | BH95: $14,800 | BI95: $14,900 | BJ95: $15,000 | BK95: $15,100 | BL95: $15,200 | BM95: $15,300 | BN95: $15,400 | BO95: $15,500 | BP95: $15,600 | BQ95: $15,700 | BR95: $15,800 | BS95: $15,900 | BT95: $16,000 | BU95: $16,100 | BV95: $16,200 | BW95: $16,300 | BX95: $16,400 | BY95: $16,500 | BZ95: $16,600 | CA95: $16,700 | CB95: $16,800 | CC95: $16,900 | CD95: $17,000 | CE95: $17,100 | CF95: $17,200 | CG95: $17,300 | CH95: $17,400 | CI95: $17,500 | CJ95: $17,600 | CK95: $17,700 | CL95: $17,800 | CM95: $17,900 | CN95: $18,000 | CO95: $18,100 | CP95: $18,200 | CQ95: $18,300 | CR95: $18,400 | CS95: $18,500 | CT95: $18,600 | CU95: $18,700 | CV95: $18,800 | CW95: $18,900 | CX95: $19,000
B96: $9,100 | C96: =SUM(C$5,$B96) -> $9,100 | D96: $9,100 | E96: $9,100 | F96: $9,500 | G96: $9,600 | H96: $9,700 | I96: $9,800 | J96: $9,900 | K96: $10,000 | L96: $10,100 | M96: =SUM(M$5,$B96) -> $10,200 | N96: $10,300 | O96: $10,400 | P96: $10,500 | Q96: $10,600 | R96: $10,700 | S96: $10,800 | T96: $10,900 | U96: $11,000 | V96: $11,100 | W96: =SUM(W$5,$B96) -> $11,200 | X96: $11,300 | Y96: $11,400 | Z96: $11,500 | AA96: $11,600 | AB96: $11,700 | AC96: $11,800 | AD96: $11,900 | AE96: $12,000 | AF96: $12,100 | AG96: =SUM(AG$5,$B96) -> $12,200 | AH96: $12,300 | AI96: $12,400 | AJ96: $12,500 | AK96: $12,600 | AL96: $12,700 | AM96: $12,800 | AN96: $12,900 | AO96: $13,000 | AP96: $13,100 | AQ96: =SUM(AQ$5,$B96) -> $13,200 | AR96: $13,300 | AS96: $13,400 | AT96: $13,500 | AU96: $13,600 | AV96: $13,700 | AW96: $13,800 | AX96: $13,900 | AY96: $14,000 | AZ96: $14,100 | BA96: =SUM(BA$5,$B96) -> $14,200 | BB96: $14,300 | BC96: $14,400 | BD96: $14,500 | BE96: $14,600 | BF96: $14,700 | BG96: $14,800 | BH96: $14,900 | BI96: $15,000 | BJ96: $15,100 | BK96: =SUM(BK$5,$B96) -> $15,200 | BL96: $15,300 | BM96: $15,400 | BN96: $15,500 | BO96: $15,600 | BP96: $15,700 | BQ96: $15,800 | BR96: $15,900 | BS96: $16,000 | BT96: $16,100 | BU96: =SUM(BU$5,$B96) -> $16,200 | BV96: $16,300 | BW96: $16,400 | BX96: $16,500 | BY96: $16,600 | BZ96: $16,700 | CA96: $16,800 | CB96: $16,900 | CC96: $17,000 | CD96: $17,100 | CE96: =SUM(CE$5,$B96) -> $17,200 | CF96: $17,300 | CG96: $17,400 | CH96: $17,500 | CI96: $17,600 | CJ96: $17,700 | CK96: $17,800 | CL96: $17,900 | CM96: $18,000 | CN96: $18,100 | CO96: =SUM(CO$5,$B96) -> $18,200 | CP96: $18,300 | CQ96: $18,400 | CR96: $18,500 | CS96: $18,600 | CT96: $18,700 | CU96: $18,800 | CV96: $18,900 | CW96: $19,000 | CX96: $19,100
B97: $9,200 | C97: $9,200 | D97: $9,200 | E97: $9,200 | F97: $9,600 | G97: $9,700 | H97: $9,800 | I97: $9,900 | J97: $10,000 | K97: $10,100 | L97: $10,200 | M97: $10,300 | N97: $10,400 | O97: $10,500 | P97: $10,600 | Q97: $10,700 | R97: $10,800 | S97: $10,900 | T97: $11,000 | U97: $11,100 | V97: $11,200 | W97: $11,300 | X97: $11,400 | Y97: $11,500 | Z97: $11,600 | AA97: $11,700 | AB97: $11,800 | AC97: $11,900 | AD97: $12,000 | AE97: $12,100 | AF97: $12,200 | AG97: $12,300 | AH97: $12,400 | AI97: $12,500 | AJ97: $12,600 | AK97: $12,700 | AL97: $12,800 | AM97: $12,900 | AN97: $13,000 | AO97: $13,100 | AP97: $13,200 | AQ97: $13,300 | AR97: $13,400 | AS97: $13,500 | AT97: $13,600 | AU97: $13,700 | AV97: $13,800 | AW97: $13,900 | AX97: $14,000 | AY97: $14,100 | AZ97: $14,200 | BA97: $14,300 | BB97: $14,400 | BC97: $14,500 | BD97: $14,600 | BE97: $14,700 | BF97: $14,800 | BG97: $14,900 | BH97: $15,000 | BI97: $15,100 | BJ97: $15,200 | BK97: $15,300 | BL97: $15,400 | BM97: $15,500 | BN97: $15,600 | BO97: $15,700 | BP97: $15,800 | BQ97: $15,900 | BR97: $16,000 | BS97: $16,100 | BT97: $16,200 | BU97: $16,300 | BV97: $16,400 | BW97: $16,500 | BX97: $16,600 | BY97: $16,700 | BZ97: $16,800 | CA97: $16,900 | CB97: $17,000 | CC97: $17,100 | CD97: $17,200 | CE97: $17,300 | CF97: $17,400 | CG97: $17,500 | CH97: $17,600 | CI97: $17,700 | CJ97: $17,800 | CK97: $17,900 | CL97: $18,000 | CM97: $18,100 | CN97: $18,200 | CO97: $18,300 | CP97: $18,400 | CQ97: $18,500 | CR97: $18,600 | CS97: $18,700 | CT97: $18,800 | CU97: $18,900 | CV97: $19,000 | CW97: $19,100 | CX97: $19,200
B98: $9,300 | C98: $9,300 | D98: $9,300 | E98: $9,300 | F98: $9,700 | G98: $9,800 | H98: $9,900 | I98: $10,000 | J98: $10,100 | K98: $10,200 | L98: $10,300 | M98: $10,400 | N98: $10,500 | O98: $10,600 | P98: $10,700 | Q98: $10,800 | R98: $10,900 | S98: $11,000 | T98: $11,100 | U98: $11,200 | V98: $11,300 | W98: $11,400 | X98: $11,500 | Y98: $11,600 | Z98: $11,700 | AA98: $11,800 | AB98: $11,900 | AC98: $12,000 | AD98: $12,100 | AE98: $12,200 | AF98: $12,300 | AG98: $12,400 | AH98: $12,500 | AI98: $12,600 | AJ98: $12,700 | AK98: $12,800 | AL98: $12,900 | AM98: $13,000 | AN98: $13,100 | AO98: $13,200 | AP98: $13,300 | AQ98: $13,400 | AR98: $13,500 | AS98: $13,600 | AT98: $13,700 | AU98: $13,800 | AV98: $13,900 | AW98: $14,000 | AX98: $14,100 | AY98: $14,200 | AZ98: $14,300 | BA98: $14,400 | BB98: $14,500 | BC98: $14,600 | BD98: $14,700 | BE98: $14,800 | BF98: $14,900 | BG98: $15,000 | BH98: $15,100 | BI98: $15,200 | BJ98: $15,300 | BK98: $15,400 | BL98: $15,500 | BM98: $15,600 | BN98: $15,700 | BO98: $15,800 | BP98: $15,900 | BQ98: $16,000 | BR98: $16,100 | BS98: $16,200 | BT98: $16,300 | BU98: $16,400 | BV98: $16,500 | BW98: $16,600 | BX98: $16,700 | BY98: $16,800 | BZ98: $16,900 | CA98: $17,000 | CB98: $17,100 | CC98: $17,200 | CD98: $17,300 | CE98: $17,400 | CF98: $17,500 | CG98: $17,600 | CH98: $17,700 | CI98: $17,800 | CJ98: $17,900 | CK98: $18,000 | CL98: $18,100 | CM98: $18,200 | CN98: $18,300 | CO98: $18,400 | CP98: $18,500 | CQ98: $18,600 | CR98: $18,700 | CS98: $18,800 | CT98: $18,900 | CU98: $19,000 | CV98: $19,100 | CW98: $19,200 | CX98: $19,300
B99: $9,400 | C99: $9,400 | D99: $9,400 | E99: $9,400 | F99: $9,800 | G99: $9,900 | H99: $10,000 | I99: $10,100 | J99: $10,200 | K99: $10,300 | L99: $10,400 | M99: $10,500 | N99: $10,600 | O99: $10,700 | P99: $10,800 | Q99: $10,900 | R99: $11,000 | S99: $11,100 | T99: $11,200 | U99: $11,300 | V99: $11,400 | W99: $11,500 | X99: $11,600 | Y99: $11,700 | Z99: $11,800 | AA99: $11,900 | AB99: $12,000 | AC99: $12,100 | AD99: $12,200 | AE99: $12,300 | AF99: $12,400 | AG99: $12,500 | AH99: $12,600 | AI99: $12,700 | AJ99: $12,800 | AK99: $12,900 | AL99: $13,000 | AM99: $13,100 | AN99: $13,200 | AO99: $13,300 | AP99: $13,400 | AQ99: $13,500 | AR99: $13,600 | AS99: $13,700 | AT99: $13,800 | AU99: $13,900 | AV99: $14,000 | AW99: $14,100 | AX99: $14,200 | AY99: $14,300 | AZ99: $14,400 | BA99: $14,500 | BB99: $14,600 | BC99: $14,700 | BD99: $14,800 | BE99: $14,900 | BF99: $15,000 | BG99: $15,100 | BH99: $15,200 | BI99: $15,300 | BJ99: $15,400 | BK99: $15,500 | BL99: $15,600 | BM99: $15,700 | BN99: $15,800 | BO99: $15,900 | BP99: $16,000 | BQ99: $16,100 | BR99: $16,200 | BS99: $16,300 | BT99: $16,400 | BU99: $16,500 | BV99: $16,600 | BW99: $16,700 | BX99: $16,800 | BY99: $16,900 | BZ99: $17,000 | CA99: $17,100 | CB99: $17,200 | CC99: $17,300 | CD99: $17,400 | CE99: $17,500 | CF99: $17,600 | CG99: $17,700 | CH99: $17,800 | CI99: $17,900 | CJ99: $18,000 | CK99: $18,100 | CL99: $18,200 | CM99: $18,300 | CN99: $18,400 | CO99: $18,500 | CP99: $18,600 | CQ99: $18,700 | CR99: $18,800 | CS99: $18,900 | CT99: $19,000 | CU99: $19,100 | CV99: $19,200 | CW99: $19,300 | CX99: $19,400
B100: $9,500 | C100: $9,500 | D100: $9,500 | E100: $9,500 | F100: $9,900 | G100: $10,000 | H100: $10,100 | I100: $10,200 | J100: $10,300 | K100: $10,400 | L100: $10,500 | M100: $10,600 | N100: $10,700 | O100: $10,800 | P100: $10,900 | Q100: $11,000 | R100: $11,100 | S100: $11,200 | T100: $11,300 | U100: $11,400 | V100: $11,500 | W100: $11,600 | X100: $11,700 | Y100: $11,800 | Z100: $11,900 | AA100: $12,000 | AB100: $12,100 | AC100: $12,200 | AD100: $12,300 | AE100: $12,400 | AF100: $12,500 | AG100: $12,600 | AH100: $12,700 | AI100: $12,800 | AJ100: $12,900 | AK100: $13,000 | AL100: $13,100 | AM100: $13,200 | AN100: $13,300 | AO100: $13,400 | AP100: $13,500 | AQ100: $13,600 | AR100: $13,700 | AS100: $13,800 | AT100: $13,900 | AU100: $14,000 | AV100: $14,100 | AW100: $14,200 | AX100: $14,300 | AY100: $14,400 | AZ100: $14,500 | BA100: $14,600 | BB100: $14,700 | BC100: $14,800 | BD100: $14,900 | BE100: $15,000 | BF100: $15,100 | BG100: $15,200 | BH100: $15,300 | BI100: $15,400 | BJ100: $15,500 | BK100: $15,600 | BL100: $15,700 | BM100: $15,800 | BN100: $15,900 | BO100: $16,000 | BP100: $16,100 | BQ100: $16,200 | BR100: $16,300 | BS100: $16,400 | BT100: $16,500 | BU100: $16,600 | BV100: $16,700 | BW100: $16,800 | BX100: $16,900 | BY100: $17,000 | BZ100: $17,100 | CA100: $17,200 | CB100: $17,300 | CC100: $17,400 | CD100: $17,500 | CE100: $17,600 | CF100: $17,700 | CG100: $17,800 | CH100: $17,900 | CI100: $18,000 | CJ100: $18,100 | CK100: $18,200 | CL100: $18,300 | CM100: $18,400 | CN100: $18,500 | CO100: $18,600 | CP100: $18,700 | CQ100: $18,800 | CR100: $18,900 | CS100: $19,000 | CT100: $19,100 | CU100: $19,200 | CV100: $19,300 | CW100: $19,400 | CX100: $19,500
B101: $9,600 | C101: $9,600 | D101: $9,600 | E101: $9,600 | F101: $10,000 | G101: $10,100 | H101: $10,200 | I101: $10,300 | J101: $10,400 | K101: $10,500 | L101: $10,600 | M101: $10,700 | N101: $10,800 | O101: $10,900 | P101: $11,000 | Q101: $11,100 | R101: $11,200 | S101: $11,300 | T101: $11,400 | U101: $11,500 | V101: $11,600 | W101: $11,700 | X101: $11,800 | Y101: $11,900 | Z101: $12,000 | AA101: $12,100 | AB101: $12,200 | AC101: $12,300 | AD101: $12,400 | AE101: $12,500 | AF101: $12,600 | AG101: $12,700 | AH101: $12,800 | AI101: $12,900 | AJ101: $13,000 | AK101: $13,100 | AL101: $13,200 | AM101: $13,300 | AN101: $13,400 | AO101: $13,500 | AP101: $13,600 | AQ101: $13,700 | AR101: $13,800 | AS101: $13,900 | AT101: $14,000 | AU101: $14,100 | AV101: $14,200 | AW101: $14,300 | AX101: $14,400 | AY101: $14,500 | AZ101: $14,600 | BA101: $14,700 | BB101: $14,800 | BC101: $14,900 | BD101: $15,000 | BE101: $15,100 | BF101: $15,200 | BG101: $15,300 | BH101: $15,400 | BI101: $15,500 | BJ101: $15,600 | BK101: $15,700 | BL101: $15,800 | BM101: $15,900 | BN101: $16,000 | BO101: $16,100 | BP101: $16,200 | BQ101: $16,300 | BR101: $16,400 | BS101: $16,500 | BT101: $16,600 | BU101: $16,700 | BV101: $16,800 | BW101: $16,900 | BX101: $17,000 | BY101: $17,100 | BZ101: $17,200 | CA101: $17,300 | CB101: $17,400 | CC101: $17,500 | CD101: $17,600 | CE101: $17,700 | CF101: $17,800 | CG101: $17,900 | CH101: $18,000 | CI101: $18,100 | CJ101: $18,200 | CK101: $18,300 | CL101: $18,400 | CM101: $18,500 | CN101: $18,600 | CO101: $18,700 | CP101: $18,800 | CQ101: $18,900 | CR101: $19,000 | CS101: $19,100 | CT101: $19,200 | CU101: $19,300 | CV101: $19,400 | CW101: $19,500 | CX101: $19,600
B102: $9,700 | C102: $9,700 | D102: $9,700 | E102: $9,700 | F102: $10,100 | G102: $10,200 | H102: $10,300 | I102: $10,400 | J102: $10,500 | K102: $10,600 | L102: $10,700 | M102: $10,800 | N102: $10,900 | O102: $11,000 | P102: $11,100 | Q102: $11,200 | R102: $11,300 | S102: $11,400 | T102: $11,500 | U102: $11,600 | V102: $11,700 | W102: $11,800 | X102: $11,900 | Y102: $12,000 | Z102: $12,100 | AA102: $12,200 | AB102: $12,300 | AC102: $12,400 | AD102: $12,500 | AE102: $12,600 | AF102: $12,700 | AG102: $12,800 | AH102: $12,900 | AI102: $13,000 | AJ102: $13,100 | AK102: $13,200 | AL102: $13,300 | AM102: $13,400 | AN102: $13,500 | AO102: $13,600 | AP102: $13,700 | AQ102: $13,800 | AR102: $13,900 | AS102: $14,000 | AT102: $14,100 | AU102: $14,200 | AV102: $14,300 | AW102: $14,400 | AX102: $14,500 | AY102: $14,600 | AZ102: $14,700 | BA102: $14,800 | BB102: $14,900 | BC102: $15,000 | BD102: $15,100 | BE102: $15,200 | BF102: $15,300 | BG102: $15,400 | BH102: $15,500 | BI102: $15,600 | BJ102: $15,700 | BK102: $15,800 | BL102: $15,900 | BM102: $16,000 | BN102: $16,100 | BO102: $16,200 | BP102: $16,300 | BQ102: $16,400 | BR102: $16,500 | BS102: $16,600 | BT102: $16,700 | BU102: $16,800 | BV102: $16,900 | BW102: $17,000 | BX102: $17,100 | BY102: $17,200 | BZ102: $17,300 | CA102: $17,400 | CB102: $17,500 | CC102: $17,600 | CD102: $17,700 | CE102: $17,800 | CF102: $17,900 | CG102: $18,000 | CH102: $18,100 | CI102: $18,200 | CJ102: $18,300 | CK102: $18,400 | CL102: $18,500 | CM102: $18,600 | CN102: $18,700 | CO102: $18,800 | CP102: $18,900 | CQ102: $19,000 | CR102: $19,100 | CS102: $19,200 | CT102: $19,300 | CU102: $19,400 | CV102: $19,500 | CW102: $19,600 | CX102: $19,700
B103: $9,800 | C103: $9,800 | D103: $9,800 | E103: $9,800 | F103: $10,200 | G103: $10,300 | H103: $10,400 | I103: $10,500 | J103: $10,600 | K103: $10,700 | L103: $10,800 | M103: $10,900 | N103: $11,000 | O103: $11,100 | P103: $11,200 | Q103: $11,300 | R103: $11,400 | S103: $11,500 | T103: $11,600 | U103: $11,700 | V103: $11,800 | W103: $11,900 | X103: $12,000 | Y103: $12,100 | Z103: $12,200 | AA103: $12,300 | AB103: $12,400 | AC103: $12,500 | AD103: $12,600 | AE103: $12,700 | AF103: $12,800 | AG103: $12,900 | AH103: $13,000 | AI103: $13,100 | AJ103: $13,200 | AK103: $13,300 | AL103: $13,400 | AM103: $13,500 | AN103: $13,600 | AO103: $13,700 | AP103: $13,800 | AQ103: $13,900 | AR103: $14,000 | AS103: $14,100 | AT103: $14,200 | AU103: $14,300 | AV103: $14,400 | AW103: $14,500 | AX103: $14,600 | AY103: $14,700 | AZ103: $14,800 | BA103: $14,900 | BB103: $15,000 | BC103: $15,100 | BD103: $15,200 | BE103: $15,300 | BF103: $15,400 | BG103: $15,500 | BH103: $15,600 | BI103: $15,700 | BJ103: $15,800 | BK103: $15,900 | BL103: $16,000 | BM103: $16,100 | BN103: $16,200 | BO103: $16,300 | BP103: $16,400 | BQ103: $16,500 | BR103: $16,600 | BS103: $16,700 | BT103: $16,800 | BU103: $16,900 | BV103: $17,000 | BW103: $17,100 | BX103: $17,200 | BY103: $17,300 | BZ103: $17,400 | CA103: $17,500 | CB103: $17,600 | CC103: $17,700 | CD103: $17,800 | CE103: $17,900 | CF103: $18,000 | CG103: $18,100 | CH103: $18,200 | CI103: $18,300 | CJ103: $18,400 | CK103: $18,500 | CL103: $18,600 | CM103: $18,700 | CN103: $18,800 | CO103: $18,900 | CP103: $19,000 | CQ103: $19,100 | CR103: $19,200 | CS103: $19,300 | CT103: $19,400 | CU103: $19,500 | CV103: $19,600 | CW103: $19,700 | CX103: $19,800
B104: $9,900 | C104: $9,900 | D104: $9,900 | E104: $9,900 | F104: $10,300 | G104: $10,400 | H104: $10,500 | I104: $10,600 | J104: $10,700 | K104: $10,800 | L104: $10,900 | M104: $11,000 | N104: $11,100 | O104: $11,200 | P104: $11,300 | Q104: $11,400 | R104: $11,500 | S104: $11,600 | T104: $11,700 | U104: $11,800 | V104: $11,900 | W104: $12,000 | X104: $12,100 | Y104: $12,200 | Z104: $12,300 | AA104: $12,400 | AB104: $12,500 | AC104: $12,600 | AD104: $12,700 | AE104: $12,800 | AF104: $12,900 | AG104: $13,000 | AH104: $13,100 | AI104: $13,200 | AJ104: $13,300 | AK104: $13,400 | AL104: $13,500 | AM104: $13,600 | AN104: $13,700 | AO104: $13,800 | AP104: $13,900 | AQ104: $14,000 | AR104: $14,100 | AS104: $14,200 | AT104: $14,300 | AU104: $14,400 | AV104: $14,500 | AW104: $14,600 | AX104: $14,700 | AY104: $14,800 | AZ104: $14,900 | BA104: $15,000 | BB104: $15,100 | BC104: $15,200 | BD104: $15,300 | BE104: $15,400 | BF104: $15,500 | BG104: $15,600 | BH104: $15,700 | BI104: $15,800 | BJ104: $15,900 | BK104: $16,000 | BL104: $16,100 | BM104: $16,200 | BN104: $16,300 | BO104: $16,400 | BP104: $16,500 | BQ104: $16,600 | BR104: $16,700 | BS104: $16,800 | BT104: $16,900 | BU104: $17,000 | BV104: $17,100 | BW104: $17,200 | BX104: $17,300 | BY104: $17,400 | BZ104: $17,500 | CA104: $17,600 | CB104: $17,700 | CC104: $17,800 | CD104: $17,900 | CE104: $18,000 | CF104: $18,100 | CG104: $18,200 | CH104: $18,300 | CI104: $18,400 | CJ104: $18,500 | CK104: $18,600 | CL104: $18,700 | CM104: $18,800 | CN104: $18,900 | CO104: $19,000 | CP104: $19,100 | CQ104: $19,200 | CR104: $19,300 | CS104: $19,400 | CT104: $19,500 | CU104: $19,600 | CV104: $19,700 | CW104: $19,800 | CX104: $19,900
B105: $10,000 | C105: $10,000 | D105: $10,000 | E105: $10,000 | F105: $10,400 | G105: $10,500 | H105: $10,600 | I105: $10,700 | J105: $10,800 | K105: $10,900 | L105: $11,000 | M105: $11,100 | N105: $11,200 | O105: $11,300 | P105: $11,400 | Q105: $11,500 | R105: $11,600 | S105: $11,700 | T105: $11,800 | U105: $11,900 | V105: $12,000 | W105: $12,100 | X105: $12,200 | Y105: $12,300 | Z105: $12,400 | AA105: $12,500 | AB105: $12,600 | AC105: $12,700 | AD105: $12,800 | AE105: $12,900 | AF105: $13,000 | AG105: $13,100 | AH105: $13,200 | AI105: $13,300 | AJ105: $13,400 | AK105: $13,500 | AL105: $13,600 | AM105: $13,700 | AN105: $13,800 | AO105: $13,900 | AP105: $14,000 | AQ105: $14,100 | AR105: $14,200 | AS105: $14,300 | AT105: $14,400 | AU105: $14,500 | AV105: $14,600 | AW105: $14,700 | AX105: $14,800 | AY105: $14,900 | AZ105: $15,000 | BA105: $15,100 | BB105: $15,200 | BC105: $15,300 | BD105: $15,400 | BE105: $15,500 | BF105: $15,600 | BG105: $15,700 | BH105: $15,800 | BI105: $15,900 | BJ105: $16,000 | BK105: $16,100 | BL105: $16,200 | BM105: $16,300 | BN105: $16,400 | BO105: $16,500 | BP105: $16,600 | BQ105: $16,700 | BR105: $16,800 | BS105: $16,900 | BT105: $17,000 | BU105: $17,100 | BV105: $17,200 | BW105: $17,300 | BX105: $17,400 | BY105: $17,500 | BZ105: $17,600 | CA105: $17,700 | CB105: $17,800 | CC105: $17,900 | CD105: $18,000 | CE105: $18,100 | CF105: $18,200 | CG105: $18,300 | CH105: $18,400 | CI105: $18,500 | CJ105: $18,600 | CK105: $18,700 | CL105: $18,800 | CM105: $18,900 | CN105: $19,000 | CO105: $19,100 | CP105: $19,200 | CQ105: $19,300 | CR105: $19,400 | CS105: $19,500 | CT105: $19,600 | CU105: $19,700 | CV105: $19,800 | CW105: $19,900 | CX105: $20,000

Sheet A1
A1: foop | C1: R1C1-Style Notation And The FormulaR1C1 Property In Excel VBA: Tutorial And Examples
C3: Visit this post in PowerSpreadsheets.com now
B5: Revenue 1 / Revenue 2 | C5: $100 | D5: $200 | E5: $300 | F5: $400 | G5: $500 | H5: $600 | I5: $700 | J5: $800 | K5: $900 | L5: $1,000 | M5: $1,100 | N5: $1,200 | O5: $1,300 | P5: $1,400 | Q5: $1,500 | R5: $1,600 | S5: $1,700 | T5: $1,800 | U5: $1,900 | V5: $2,000 | W5: $2,100 | X5: $2,200 | Y5: $2,300 | Z5: $2,400 | AA5: $2,500 | AB5: $2,600 | AC5: $2,700 | AD5: $2,800 | AE5: $2,900 | AF5: $3,000 | AG5: $3,100 | AH5: $3,200 | AI5: $3,300 | AJ5: $3,400 | AK5: $3,500 | AL5: $3,600 | AM5: $3,700 | AN5: $3,800 | AO5: $3,900 | AP5: $4,000 | AQ5: $4,100 | AR5: $4,200 | AS5: $4,300 | AT5: $4,400 | AU5: $4,500 | AV5: $4,600 | AW5: $4,700 | AX5: $4,800 | AY5: $4,900 | AZ5: $5,000 | BA5: $5,100 | BB5: $5,200 | BC5: $5,300 | BD5: $5,400 | BE5: $5,500 | BF5: $5,600 | BG5: $5,700 | BH5: $5,800 | BI5: $5,900 | BJ5: $6,000 | BK5: $6,100 | BL5: $6,200 | BM5: $6,300 | BN5: $6,400 | BO5: $6,500 | BP5: $6,600 | BQ5: $6,700 | BR5: $6,800 | BS5: $6,900 | BT5: $7,000 | BU5: $7,100 | BV5: $7,200 | BW5: $7,300 | BX5: $7,400 | BY5: $7,500 | BZ5: $7,600 | CA5: $7,700 | CB5: $7,800 | CC5: $7,900 | CD5: $8,000 | CE5: $8,100 | CF5: $8,200 | CG5: $8,300 | CH5: $8,400 | CI5: $8,500 | CJ5: $8,600 | CK5: $8,700 | CL5: $8,800 | CM5: $8,900 | CN5: $9,000 | CO5: $9,100 | CP5: $9,200 | CQ5: $9,300 | CR5: $9,400 | CS5: $9,500 | CT5: $9,600 | CU5: $9,700 | CV5: $9,800 | CW5: $9,900 | CX5: $10,000
B6: $100 | C6: =SUM(C$5,$B6) -> $200 | D6: $300 | E6: $400 | F6: $500 | G6: $600 | H6: $700 | I6: $800 | J6: $900 | K6: $1,000 | L6: $1,100 | M6: =SUM(M$5,$B6) -> $1,200 | N6: $1,300 | O6: $1,400 | P6: $1,500 | Q6: $1,600 | R6: $1,700 | S6: $1,800 | T6: $1,900 | U6: $2,000 | V6: $2,100 | W6: =SUM(W$5,$B6) -> $2,200 | X6: $2,300 | Y6: $2,400 | Z6: $2,500 | AA6: $2,600 | AB6: $2,700 | AC6: $2,800 | AD6: $2,900 | AE6: $3,000 | AF6: $3,100 | AG6: =SUM(AG$5,$B6) -> $3,200 | AH6: $3,300 | AI6: $3,400 | AJ6: $3,500 | AK6: $3,600 | AL6: $3,700 | AM6: $3,800 | AN6: $3,900 | AO6: $4,000 | AP6: $4,100 | AQ6: =SUM(AQ$5,$B6) -> $4,200 | AR6: $4,300 | AS6: $4,400 | AT6: $4,500 | AU6: $4,600 | AV6: $4,700 | AW6: $4,800 | AX6: $4,900 | AY6: $5,000 | AZ6: $5,100 | BA6: =SUM(BA$5,$B6) -> $5,200 | BB6: $5,300 | BC6: $5,400 | BD6: $5,500 | BE6: $5,600 | BF6: $5,700 | BG6: $5,800 | BH6: $5,900 | BI6: $6,000 | BJ6: $6,100 | BK6: =SUM(BK$5,$B6) -> $6,200 | BL6: $6,300 | BM6: $6,400 | BN6: $6,500 | BO6: $6,600 | BP6: $6,700 | BQ6: $6,800 | BR6: $6,900 | BS6: $7,000 | BT6: $7,100 | BU6: =SUM(BU$5,$B6) -> $7,200 | BV6: $7,300 | BW6: $7,400 | BX6: $7,500 | BY6: $7,600 | BZ6: $7,700 | CA6: $7,800 | CB6: $7,900 | CC6: $8,000 | CD6: $8,100 | CE6: =SUM(CE$5,$B6) -> $8,200 | CF6: $8,300 | CG6: $8,400 | CH6: $8,500 | CI6: $8,600 | CJ6: $8,700 | CK6: $8,800 | CL6: $8,900 | CM6: $9,000 | CN6: $9,100 | CO6: =SUM(CO$5,$B6) -> $9,200 | CP6: $9,300 | CQ6: $9,400 | CR6: $9,500 | CS6: $9,600 | CT6: $9,700 | CU6: $9,800 | CV6: $9,900 | CW6: $10,000 | CX6: $10,100
B7: $200 | C7: $300 | D7: $400 | E7: $500 | F7: $600 | G7: $700 | H7: $800 | I7: $900 | J7: $1,000 | K7: $1,100 | L7: $1,200 | M7: $1,300 | N7: $1,400 | O7: $1,500 | P7: $1,600 | Q7: $1,700 | R7: $1,800 | S7: $1,900 | T7: $2,000 | U7: $2,100 | V7: $2,200 | W7: $2,300 | X7: $2,400 | Y7: $2,500 | Z7: $2,600 | AA7: $2,700 | AB7: $2,800 | AC7: $2,900 | AD7: $3,000 | AE7: $3,100 | AF7: $3,200 | AG7: $3,300 | AH7: $3,400 | AI7: $3,500 | AJ7: $3,600 | AK7: $3,700 | AL7: $3,800 | AM7: $3,900 | AN7: $4,000 | AO7: $4,100 | AP7: $4,200 | AQ7: $4,300 | AR7: $4,400 | AS7: $4,500 | AT7: $4,600 | AU7: $4,700 | AV7: $4,800 | AW7: $4,900 | AX7: $5,000 | AY7: $5,100 | AZ7: $5,200 | BA7: $5,300 | BB7: $5,400 | BC7: $5,500 | BD7: $5,600 | BE7: $5,700 | BF7: $5,800 | BG7: $5,900 | BH7: $6,000 | BI7: $6,100 | BJ7: $6,200 | BK7: $6,300 | BL7: $6,400 | BM7: $6,500 | BN7: $6,600 | BO7: $6,700 | BP7: $6,800 | BQ7: $6,900 | BR7: $7,000 | BS7: $7,100 | BT7: $7,200 | BU7: $7,300 | BV7: $7,400 | BW7: $7,500 | BX7: $7,600 | BY7: $7,700 | BZ7: $7,800 | CA7: $7,900 | CB7: $8,000 | CC7: $8,100 | CD7: $8,200 | CE7: $8,300 | CF7: $8,400 | CG7: $8,500 | CH7: $8,600 | CI7: $8,700 | CJ7: $8,800 | CK7: $8,900 | CL7: $9,000 | CM7: $9,100 | CN7: $9,200 | CO7: $9,300 | CP7: $9,400 | CQ7: $9,500 | CR7: $9,600 | CS7: $9,700 | CT7: $9,800 | CU7: $9,900 | CV7: $10,000 | CW7: $10,100 | CX7: $10,200
B8: $300 | C8: $400 | D8: $500 | E8: $600 | F8: $700 | G8: $800 | H8: $900 | I8: $1,000 | J8: $1,100 | K8: $1,200 | L8: $1,300 | M8: $1,400 | N8: $1,500 | O8: $1,600 | P8: $1,700 | Q8: $1,800 | R8: $1,900 | S8: $2,000 | T8: $2,100 | U8: $2,200 | V8: $2,300 | W8: $2,400 | X8: $2,500 | Y8: $2,600 | Z8: $2,700 | AA8: $2,800 | AB8: $2,900 | AC8: $3,000 | AD8: $3,100 | AE8: $3,200 | AF8: $3,300 | AG8: $3,400 | AH8: $3,500 | AI8: $3,600 | AJ8: $3,700 | AK8: $3,800 | AL8: $3,900 | AM8: $4,000 | AN8: $4,100 | AO8: $4,200 | AP8: $4,300 | AQ8: $4,400 | AR8: $4,500 | AS8: $4,600 | AT8: $4,700 | AU8: $4,800 | AV8: $4,900 | AW8: $5,000 | AX8: $5,100 | AY8: $5,200 | AZ8: $5,300 | BA8: $5,400 | BB8: $5,500 | BC8: $5,600 | BD8: $5,700 | BE8: $5,800 | BF8: $5,900 | BG8: $6,000 | BH8: $6,100 | BI8: $6,200 | BJ8: $6,300 | BK8: $6,400 | BL8: $6,500 | BM8: $6,600 | BN8: $6,700 | BO8: $6,800 | BP8: $6,900 | BQ8: $7,000 | BR8: $7,100 | BS8: $7,200 | BT8: $7,300 | BU8: $7,400 | BV8: $7,500 | BW8: $7,600 | BX8: $7,700 | BY8: $7,800 | BZ8: $7,900 | CA8: $8,000 | CB8: $8,100 | CC8: $8,200 | CD8: $8,300 | CE8: $8,400 | CF8: $8,500 | CG8: $8,600 | CH8: $8,700 | CI8: $8,800 | CJ8: $8,900 | CK8: $9,000 | CL8: $9,100 | CM8: $9,200 | CN8: $9,300 | CO8: $9,400 | CP8: $9,500 | CQ8: $9,600 | CR8: $9,700 | CS8: $9,800 | CT8: $9,900 | CU8: $10,000 | CV8: $10,100 | CW8: $10,200 | CX8: $10,300
B9: $400 | C9: $500 | D9: $600 | E9: $700 | F9: $800 | G9: $900 | H9: $1,000 | I9: $1,100 | J9: $1,200 | K9: $1,300 | L9: $1,400 | M9: $1,500 | N9: $1,600 | O9: $1,700 | P9: $1,800 | Q9: $1,900 | R9: $2,000 | S9: $2,100 | T9: $2,200 | U9: $2,300 | V9: $2,400 | W9: $2,500 | X9: $2,600 | Y9: $2,700 | Z9: $2,800 | AA9: $2,900 | AB9: $3,000 | AC9: $3,100 | AD9: $3,200 | AE9: $3,300 | AF9: $3,400 | AG9: $3,500 | AH9: $3,600 | AI9: $3,700 | AJ9: $3,800 | AK9: $3,900 | AL9: $4,000 | AM9: $4,100 | AN9: $4,200 | AO9: $4,300 | AP9: $4,400 | AQ9: $4,500 | AR9: $4,600 | AS9: $4,700 | AT9: $4,800 | AU9: $4,900 | AV9: $5,000 | AW9: $5,100 | AX9: $5,200 | AY9: $5,300 | AZ9: $5,400 | BA9: $5,500 | BB9: $5,600 | BC9: $5,700 | BD9: $5,800 | BE9: $5,900 | BF9: $6,000 | BG9: $6,100 | BH9: $6,200 | BI9: $6,300 | BJ9: $6,400 | BK9: $6,500 | BL9: $6,600 | BM9: $6,700 | BN9: $6,800 | BO9: $6,900 | BP9: $7,000 | BQ9: $7,100 | BR9: $7,200 | BS9: $7,300 | BT9: $7,400 | BU9: $7,500 | BV9: $7,600 | BW9: $7,700 | BX9: $7,800 | BY9: $7,900 | BZ9: $8,000 | CA9: $8,100 | CB9: $8,200 | CC9: $8,300 | CD9: $8,400 | CE9: $8,500 | CF9: $8,600 | CG9: $8,700 | CH9: $8,800 | CI9: $8,900 | CJ9: $9,000 | CK9: $9,100 | CL9: $9,200 | CM9: $9,300 | CN9: $9,400 | CO9: $9,500 | CP9: $9,600 | CQ9: $9,700 | CR9: $9,800 | CS9: $9,900 | CT9: $10,000 | CU9: $10,100 | CV9: $10,200 | CW9: $10,300 | CX9: $10,400
B10: $500 | C10: $600 | D10: $700 | E10: $800 | F10: $900 | G10: $1,000 | H10: $1,100 | I10: $1,200 | J10: $1,300 | K10: $1,400 | L10: $1,500 | M10: $1,600 | N10: $1,700 | O10: $1,800 | P10: $1,900 | Q10: $2,000 | R10: $2,100 | S10: $2,200 | T10: $2,300 | U10: $2,400 | V10: $2,500 | W10: $2,600 | X10: $2,700 | Y10: $2,800 | Z10: $2,900 | AA10: $3,000 | AB10: $3,100 | AC10: $3,200 | AD10: $3,300 | AE10: $3,400 | AF10: $3,500 | AG10: $3,600 | AH10: $3,700 | AI10: $3,800 | AJ10: $3,900 | AK10: $4,000 | AL10: $4,100 | AM10: $4,200 | AN10: $4,300 | AO10: $4,400 | AP10: $4,500 | AQ10: $4,600 | AR10: $4,700 | AS10: $4,800 | AT10: $4,900 | AU10: $5,000 | AV10: $5,100 | AW10: $5,200 | AX10: $5,300 | AY10: $5,400 | AZ10: $5,500 | BA10: $5,600 | BB10: $5,700 | BC10: $5,800 | BD10: $5,900 | BE10: $6,000 | BF10: $6,100 | BG10: $6,200 | BH10: $6,300 | BI10: $6,400 | BJ10: $6,500 | BK10: $6,600 | BL10: $6,700 | BM10: $6,800 | BN10: $6,900 | BO10: $7,000 | BP10: $7,100 | BQ10: $7,200 | BR10: $7,300 | BS10: $7,400 | BT10: $7,500 | BU10: $7,600 | BV10: $7,700 | BW10: $7,800 | BX10: $7,900 | BY10: $8,000 | BZ10: $8,100 | CA10: $8,200 | CB10: $8,300 | CC10: $8,400 | CD10: $8,500 | CE10: $8,600 | CF10: $8,700 | CG10: $8,800 | CH10: $8,900 | CI10: $9,000 | CJ10: $9,100 | CK10: $9,200 | CL10: $9,300 | CM10: $9,400 | CN10: $9,500 | CO10: $9,600 | CP10: $9,700 | CQ10: $9,800 | CR10: $9,900 | CS10: $10,000 | CT10: $10,100 | CU10: $10,200 | CV10: $10,300 | CW10: $10,400 | CX10: $10,500
B11: $600 | C11: $700 | D11: $800 | E11: $900 | F11: $1,000 | G11: $1,100 | H11: $1,200 | I11: $1,300 | J11: $1,400 | K11: $1,500 | L11: $1,600 | M11: $1,700 | N11: $1,800 | O11: $1,900 | P11: $2,000 | Q11: $2,100 | R11: $2,200 | S11: $2,300 | T11: $2,400 | U11: $2,500 | V11: $2,600 | W11: $2,700 | X11: $2,800 | Y11: $2,900 | Z11: $3,000 | AA11: $3,100 | AB11: $3,200 | AC11: $3,300 | AD11: $3,400 | AE11: $3,500 | AF11: $3,600 | AG11: $3,700 | AH11: $3,800 | AI11: $3,900 | AJ11: $4,000 | AK11: $4,100 | AL11: $4,200 | AM11: $4,300 | AN11: $4,400 | AO11: $4,500 | AP11: $4,600 | AQ11: $4,700 | AR11: $4,800 | AS11: $4,900 | AT11: $5,000 | AU11: $5,100 | AV11: $5,200 | AW11: $5,300 | AX11: $5,400 | AY11: $5,500 | AZ11: $5,600 | BA11: $5,700 | BB11: $5,800 | BC11: $5,900 | BD11: $6,000 | BE11: $6,100 | BF11: $6,200 | BG11: $6,300 | BH11: $6,400 | BI11: $6,500 | BJ11: $6,600 | BK11: $6,700 | BL11: $6,800 | BM11: $6,900 | BN11: $7,000 | BO11: $7,100 | BP11: $7,200 | BQ11: $7,300 | BR11: $7,400 | BS11: $7,500 | BT11: $7,600 | BU11: $7,700 | BV11: $7,800 | BW11: $7,900 | BX11: $8,000 | BY11: $8,100 | BZ11: $8,200 | CA11: $8,300 | CB11: $8,400 | CC11: $8,500 | CD11: $8,600 | CE11: $8,700 | CF11: $8,800 | CG11: $8,900 | CH11: $9,000 | CI11: $9,100 | CJ11: $9,200 | CK11: $9,300 | CL11: $9,400 | CM11: $9,500 | CN11: $9,600 | CO11: $9,700 | CP11: $9,800 | CQ11: $9,900 | CR11: $10,000 | CS11: $10,100 | CT11: $10,200 | CU11: $10,300 | CV11: $10,400 | CW11: $10,500 | CX11: $10,600
B12: $700 | C12: $800 | D12: $900 | E12: $1,000 | F12: $1,100 | G12: $1,200 | H12: $1,300 | I12: $1,400 | J12: $1,500 | K12: $1,600 | L12: $1,700 | M12: $1,800 | N12: $1,900 | O12: $2,000 | P12: $2,100 | Q12: $2,200 | R12: $2,300 | S12: $2,400 | T12: $2,500 | U12: $2,600 | V12: $2,700 | W12: $2,800 | X12: $2,900 | Y12: $3,000 | Z12: $3,100 | AA12: $3,200 | AB12: $3,300 | AC12: $3,400 | AD12: $3,500 | AE12: $3,600 | AF12: $3,700 | AG12: $3,800 | AH12: $3,900 | AI12: $4,000 | AJ12: $4,100 | AK12: $4,200 | AL12: $4,300 | AM12: $4,400 | AN12: $4,500 | AO12: $4,600 | AP12: $4,700 | AQ12: $4,800 | AR12: $4,900 | AS12: $5,000 | AT12: $5,100 | AU12: $5,200 | AV12: $5,300 | AW12: $5,400 | AX12: $5,500 | AY12: $5,600 | AZ12: $5,700 | BA12: $5,800 | BB12: $5,900 | BC12: $6,000 | BD12: $6,100 | BE12: $6,200 | BF12: $6,300 | BG12: $6,400 | BH12: $6,500 | BI12: $6,600 | BJ12: $6,700 | BK12: $6,800 | BL12: $6,900 | BM12: $7,000 | BN12: $7,100 | BO12: $7,200 | BP12: $7,300 | BQ12: $7,400 | BR12: $7,500 | BS12: $7,600 | BT12: $7,700 | BU12: $7,800 | BV12: $7,900 | BW12: $8,000 | BX12: $8,100 | BY12: $8,200 | BZ12: $8,300 | CA12: $8,400 | CB12: $8,500 | CC12: $8,600 | CD12: $8,700 | CE12: $8,800 | CF12: $8,900 | CG12: $9,000 | CH12: $9,100 | CI12: $9,200 | CJ12: $9,300 | CK12: $9,400 | CL12: $9,500 | CM12: $9,600 | CN12: $9,700 | CO12: $9,800 | CP12: $9,900 | CQ12: $10,000 | CR12: $10,100 | CS12: $10,200 | CT12: $10,300 | CU12: $10,400 | CV12: $10,500 | CW12: $10,600 | CX12: $10,700
B13: $800 | C13: $900 | D13: $1,000 | E13: $1,100 | F13: $1,200 | G13: $1,300 | H13: $1,400 | I13: $1,500 | J13: $1,600 | K13: $1,700 | L13: $1,800 | M13: $1,900 | N13: $2,000 | O13: $2,100 | P13: $2,200 | Q13: $2,300 | R13: $2,400 | S13: $2,500 | T13: $2,600 | U13: $2,700 | V13: $2,800 | W13: $2,900 | X13: $3,000 | Y13: $3,100 | Z13: $3,200 | AA13: $3,300 | AB13: $3,400 | AC13: $3,500 | AD13: $3,600 | AE13: $3,700 | AF13: $3,800 | AG13: $3,900 | AH13: $4,000 | AI13: $4,100 | AJ13: $4,200 | AK13: $4,300 | AL13: $4,400 | AM13: $4,500 | AN13: $4,600 | AO13: $4,700 | AP13: $4,800 | AQ13: $4,900 | AR13: $5,000 | AS13: $5,100 | AT13: $5,200 | AU13: $5,300 | AV13: $5,400 | AW13: $5,500 | AX13: $5,600 | AY13: $5,700 | AZ13: $5,800 | BA13: $5,900 | BB13: $6,000 | BC13: $6,100 | BD13: $6,200 | BE13: $6,300 | BF13: $6,400 | BG13: $6,500 | BH13: $6,600 | BI13: $6,700 | BJ13: $6,800 | BK13: $6,900 | BL13: $7,000 | BM13: $7,100 | BN13: $7,200 | BO13: $7,300 | BP13: $7,400 | BQ13: $7,500 | BR13: $7,600 | BS13: $7,700 | BT13: $7,800 | BU13: $7,900 | BV13: $8,000 | BW13: $8,100 | BX13: $8,200 | BY13: $8,300 | BZ13: $8,400 | CA13: $8,500 | CB13: $8,600 | CC13: $8,700 | CD13: $8,800 | CE13: $8,900 | CF13: $9,000 | CG13: $9,100 | CH13: $9,200 | CI13: $9,300 | CJ13: $9,400 | CK13: $9,500 | CL13: $9,600 | CM13: $9,700 | CN13: $9,800 | CO13: $9,900 | CP13: $10,000 | CQ13: $10,100 | CR13: $10,200 | CS13: $10,300 | CT13: $10,400 | CU13: $10,500 | CV13: $10,600 | CW13: $10,700 | CX13: $10,800
B14: $900 | C14: $1,000 | D14: $1,100 | E14: $1,200 | F14: $1,300 | G14: $1,400 | H14: $1,500 | I14: $1,600 | J14: $1,700 | K14: $1,800 | L14: $1,900 | M14: $2,000 | N14: $2,100 | O14: $2,200 | P14: $2,300 | Q14: $2,400 | R14: $2,500 | S14: $2,600 | T14: $2,700 | U14: $2,800 | V14: $2,900 | W14: $3,000 | X14: $3,100 | Y14: $3,200 | Z14: $3,300 | AA14: $3,400 | AB14: $3,500 | AC14: $3,600 | AD14: $3,700 | AE14: $3,800 | AF14: $3,900 | AG14: $4,000 | AH14: $4,100 | AI14: $4,200 | AJ14: $4,300 | AK14: $4,400 | AL14: $4,500 | AM14: $4,600 | AN14: $4,700 | AO14: $4,800 | AP14: $4,900 | AQ14: $5,000 | AR14: $5,100 | AS14: $5,200 | AT14: $5,300 | AU14: $5,400 | AV14: $5,500 | AW14: $5,600 | AX14: $5,700 | AY14: $5,800 | AZ14: $5,900 | BA14: $6,000 | BB14: $6,100 | BC14: $6,200 | BD14: $6,300 | BE14: $6,400 | BF14: $6,500 | BG14: $6,600 | BH14: $6,700 | BI14: $6,800 | BJ14: $6,900 | BK14: $7,000 | BL14: $7,100 | BM14: $7,200 | BN14: $7,300 | BO14: $7,400 | BP14: $7,500 | BQ14: $7,600 | BR14: $7,700 | BS14: $7,800 | BT14: $7,900 | BU14: $8,000 | BV14: $8,100 | BW14: $8,200 | BX14: $8,300 | BY14: $8,400 | BZ14: $8,500 | CA14: $8,600 | CB14: $8,700 | CC14: $8,800 | CD14: $8,900 | CE14: $9,000 | CF14: $9,100 | CG14: $9,200 | CH14: $9,300 | CI14: $9,400 | CJ14: $9,500 | CK14: $9,600 | CL14: $9,700 | CM14: $9,800 | CN14: $9,900 | CO14: $10,000 | CP14: $10,100 | CQ14: $10,200 | CR14: $10,300 | CS14: $10,400 | CT14: $10,500 | CU14: $10,600 | CV14: $10,700 | CW14: $10,800 | CX14: $10,900
B15: $1,000 | C15: $1,100 | D15: $1,200 | E15: $1,300 | F15: $1,400 | G15: $1,500 | H15: $1,600 | I15: $1,700 | J15: $1,800 | K15: $1,900 | L15: $2,000 | M15: $2,100 | N15: $2,200 | O15: $2,300 | P15: $2,400 | Q15: $2,500 | R15: $2,600 | S15: $2,700 | T15: $2,800 | U15: $2,900 | V15: $3,000 | W15: $3,100 | X15: $3,200 | Y15: $3,300 | Z15: $3,400 | AA15: $3,500 | AB15: $3,600 | AC15: $3,700 | AD15: $3,800 | AE15: $3,900 | AF15: $4,000 | AG15: $4,100 | AH15: $4,200 | AI15: $4,300 | AJ15: $4,400 | AK15: $4,500 | AL15: $4,600 | AM15: $4,700 | AN15: $4,800 | AO15: $4,900 | AP15: $5,000 | AQ15: $5,100 | AR15: $5,200 | AS15: $5,300 | AT15: $5,400 | AU15: $5,500 | AV15: $5,600 | AW15: $5,700 | AX15: $5,800 | AY15: $5,900 | AZ15: $6,000 | BA15: $6,100 | BB15: $6,200 | BC15: $6,300 | BD15: $6,400 | BE15: $6,500 | BF15: $6,600 | BG15: $6,700 | BH15: $6,800 | BI15: $6,900 | BJ15: $7,000 | BK15: $7,100 | BL15: $7,200 | BM15: $7,300 | BN15: $7,400 | BO15: $7,500 | BP15: $7,600 | BQ15: $7,700 | BR15: $7,800 | BS15: $7,900 | BT15: $8,000 | BU15: $8,100 | BV15: $8,200 | BW15: $8,300 | BX15: $8,400 | BY15: $8,500 | BZ15: $8,600 | CA15: $8,700 | CB15: $8,800 | CC15: $8,900 | CD15: $9,000 | CE15: $9,100 | CF15: $9,200 | CG15: $9,300 | CH15: $9,400 | CI15: $9,500 | CJ15: $9,600 | CK15: $9,700 | CL15: $9,800 | CM15: $9,900 | CN15: $10,000 | CO15: $10,100 | CP15: $10,200 | CQ15: $10,300 | CR15: $10,400 | CS15: $10,500 | CT15: $10,600 | CU15: $10,700 | CV15: $10,800 | CW15: $10,900 | CX15: $11,000
B16: $1,100 | C16: =SUM(C$5,$B16) -> $1,200 | D16: $1,300 | E16: $1,400 | F16: $1,500 | G16: $1,600 | H16: $1,700 | I16: $1,800 | J16: $1,900 | K16: $2,000 | L16: $2,100 | M16: =SUM(M$5,$B16) -> $2,200 | N16: $2,300 | O16: $2,400 | P16: $2,500 | Q16: $2,600 | R16: $2,700 | S16: $2,800 | T16: $2,900 | U16: $3,000 | V16: $3,100 | W16: =SUM(W$5,$B16) -> $3,200 | X16: $3,300 | Y16: $3,400 | Z16: $3,500 | AA16: $3,600 | AB16: $3,700 | AC16: $3,800 | AD16: $3,900 | AE16: $4,000 | AF16: $4,100 | AG16: =SUM(AG$5,$B16) -> $4,200 | AH16: $4,300 | AI16: $4,400 | AJ16: $4,500 | AK16: $4,600 | AL16: $4,700 | AM16: $4,800 | AN16: $4,900 | AO16: $5,000 | AP16: $5,100 | AQ16: =SUM(AQ$5,$B16) -> $5,200 | AR16: $5,300 | AS16: $5,400 | AT16: $5,500 | AU16: $5,600 | AV16: $5,700 | AW16: $5,800 | AX16: $5,900 | AY16: $6,000 | AZ16: $6,100 | BA16: =SUM(BA$5,$B16) -> $6,200 | BB16: $6,300 | BC16: $6,400 | BD16: $6,500 | BE16: $6,600 | BF16: $6,700 | BG16: $6,800 | BH16: $6,900 | BI16: $7,000 | BJ16: $7,100 | BK16: =SUM(BK$5,$B16) -> $7,200 | BL16: $7,300 | BM16: $7,400 | BN16: $7,500 | BO16: $7,600 | BP16: $7,700 | BQ16: $7,800 | BR16: $7,900 | BS16: $8,000 | BT16: $8,100 | BU16: =SUM(BU$5,$B16) -> $8,200 | BV16: $8,300 | BW16: $8,400 | BX16: $8,500 | BY16: $8,600 | BZ16: $8,700 | CA16: $8,800 | CB16: $8,900 | CC16: $9,000 | CD16: $9,100 | CE16: =SUM(CE$5,$B16) -> $9,200 | CF16: $9,300 | CG16: $9,400 | CH16: $9,500 | CI16: $9,600 | CJ16: $9,700 | CK16: $9,800 | CL16: $9,900 | CM16: $10,000 | CN16: $10,100 | CO16: =SUM(CO$5,$B16) -> $10,200 | CP16: $10,300 | CQ16: $10,400 | CR16: $10,500 | CS16: $10,600 | CT16: $10,700 | CU16: $10,800 | CV16: $10,900 | CW16: $11,000 | CX16: $11,100
B17: $1,200 | C17: $1,300 | D17: $1,400 | E17: $1,500 | F17: $1,600 | G17: $1,700 | H17: $1,800 | I17: $1,900 | J17: $2,000 | K17: $2,100 | L17: $2,200 | M17: $2,300 | N17: $2,400 | O17: $2,500 | P17: $2,600 | Q17: $2,700 | R17: $2,800 | S17: $2,900 | T17: $3,000 | U17: $3,100 | V17: $3,200 | W17: $3,300 | X17: $3,400 | Y17: $3,500 | Z17: $3,600 | AA17: $3,700 | AB17: $3,800 | AC17: $3,900 | AD17: $4,000 | AE17: $4,100 | AF17: $4,200 | AG17: $4,300 | AH17: $4,400 | AI17: $4,500 | AJ17: $4,600 | AK17: $4,700 | AL17: $4,800 | AM17: $4,900 | AN17: $5,000 | AO17: $5,100 | AP17: $5,200 | AQ17: $5,300 | AR17: $5,400 | AS17: $5,500 | AT17: $5,600 | AU17: $5,700 | AV17: $5,800 | AW17: $5,900 | AX17: $6,000 | AY17: $6,100 | AZ17: $6,200 | BA17: $6,300 | BB17: $6,400 | BC17: $6,500 | BD17: $6,600 | BE17: $6,700 | BF17: $6,800 | BG17: $6,900 | BH17: $7,000 | BI17: $7,100 | BJ17: $7,200 | BK17: $7,300 | BL17: $7,400 | BM17: $7,500 | BN17: $7,600 | BO17: $7,700 | BP17: $7,800 | BQ17: $7,900 | BR17: $8,000 | BS17: $8,100 | BT17: $8,200 | BU17: $8,300 | BV17: $8,400 | BW17: $8,500 | BX17: $8,600 | BY17: $8,700 | BZ17: $8,800 | CA17: $8,900 | CB17: $9,000 | CC17: $9,100 | CD17: $9,200 | CE17: $9,300 | CF17: $9,400 | CG17: $9,500 | CH17: $9,600 | CI17: $9,700 | CJ17: $9,800 | CK17: $9,900 | CL17: $10,000 | CM17: $10,100 | CN17: $10,200 | CO17: $10,300 | CP17: $10,400 | CQ17: $10,500 | CR17: $10,600 | CS17: $10,700 | CT17: $10,800 | CU17: $10,900 | CV17: $11,000 | CW17: $11,100 | CX17: $11,200
B18: $1,300 | C18: $1,400 | D18: $1,500 | E18: $1,600 | F18: $1,700 | G18: $1,800 | H18: $1,900 | I18: $2,000 | J18: $2,100 | K18: $2,200 | L18: $2,300 | M18: $2,400 | N18: $2,500 | O18: $2,600 | P18: $2,700 | Q18: $2,800 | R18: $2,900 | S18: $3,000 | T18: $3,100 | U18: $3,200 | V18: $3,300 | W18: $3,400 | X18: $3,500 | Y18: $3,600 | Z18: $3,700 | AA18: $3,800 | AB18: $3,900 | AC18: $4,000 | AD18: $4,100 | AE18: $4,200 | AF18: $4,300 | AG18: $4,400 | AH18: $4,500 | AI18: $4,600 | AJ18: $4,700 | AK18: $4,800 | AL18: $4,900 | AM18: $5,000 | AN18: $5,100 | AO18: $5,200 | AP18: $5,300 | AQ18: $5,400 | AR18: $5,500 | AS18: $5,600 | AT18: $5,700 | AU18: $5,800 | AV18: $5,900 | AW18: $6,000 | AX18: $6,100 | AY18: $6,200 | AZ18: $6,300 | BA18: $6,400 | BB18: $6,500 | BC18: $6,600 | BD18: $6,700 | BE18: $6,800 | BF18: $6,900 | BG18: $7,000 | BH18: $7,100 | BI18: $7,200 | BJ18: $7,300 | BK18: $7,400 | BL18: $7,500 | BM18: $7,600 | BN18: $7,700 | BO18: $7,800 | BP18: $7,900 | BQ18: $8,000 | BR18: $8,100 | BS18: $8,200 | BT18: $8,300 | BU18: $8,400 | BV18: $8,500 | BW18: $8,600 | BX18: $8,700 | BY18: $8,800 | BZ18: $8,900 | CA18: $9,000 | CB18: $9,100 | CC18: $9,200 | CD18: $9,300 | CE18: $9,400 | CF18: $9,500 | CG18: $9,600 | CH18: $9,700 | CI18: $9,800 | CJ18: $9,900 | CK18: $10,000 | CL18: $10,100 | CM18: $10,200 | CN18: $10,300 | CO18: $10,400 | CP18: $10,500 | CQ18: $10,600 | CR18: $10,700 | CS18: $10,800 | CT18: $10,900 | CU18: $11,000 | CV18: $11,100 | CW18: $11,200 | CX18: $11,300
B19: $1,400 | C19: $1,500 | D19: $1,600 | E19: $1,700 | F19: $1,800 | G19: $1,900 | H19: $2,000 | I19: $2,100 | J19: $2,200 | K19: $2,300 | L19: $2,400 | M19: $2,500 | N19: $2,600 | O19: $2,700 | P19: $2,800 | Q19: $2,900 | R19: $3,000 | S19: $3,100 | T19: $3,200 | U19: $3,300 | V19: $3,400 | W19: $3,500 | X19: $3,600 | Y19: $3,700 | Z19: $3,800 | AA19: $3,900 | AB19: $4,000 | AC19: $4,100 | AD19: $4,200 | AE19: $4,300 | AF19: $4,400 | AG19: $4,500 | AH19: $4,600 | AI19: $4,700 | AJ19: $4,800 | AK19: $4,900 | AL19: $5,000 | AM19: $5,100 | AN19: $5,200 | AO19: $5,300 | AP19: $5,400 | AQ19: $5,500 | AR19: $5,600 | AS19: $5,700 | AT19: $5,800 | AU19: $5,900 | AV19: $6,000 | AW19: $6,100 | AX19: $6,200 | AY19: $6,300 | AZ19: $6,400 | BA19: $6,500 | BB19: $6,600 | BC19: $6,700 | BD19: $6,800 | BE19: $6,900 | BF19: $7,000 | BG19: $7,100 | BH19: $7,200 | BI19: $7,300 | BJ19: $7,400 | BK19: $7,500 | BL19: $7,600 | BM19: $7,700 | BN19: $7,800 | BO19: $7,900 | BP19: $8,000 | BQ19: $8,100 | BR19: $8,200 | BS19: $8,300 | BT19: $8,400 | BU19: $8,500 | BV19: $8,600 | BW19: $8,700 | BX19: $8,800 | BY19: $8,900 | BZ19: $9,000 | CA19: $9,100 | CB19: $9,200 | CC19: $9,300 | CD19: $9,400 | CE19: $9,500 | CF19: $9,600 | CG19: $9,700 | CH19: $9,800 | CI19: $9,900 | CJ19: $10,000 | CK19: $10,100 | CL19: $10,200 | CM19: $10,300 | CN19: $10,400 | CO19: $10,500 | CP19: $10,600 | CQ19: $10,700 | CR19: $10,800 | CS19: $10,900 | CT19: $11,000 | CU19: $11,100 | CV19: $11,200 | CW19: $11,300 | CX19: $11,400
B20: $1,500 | C20: $1,600 | D20: $1,700 | E20: $1,800 | F20: $1,900 | G20: $2,000 | H20: $2,100 | I20: $2,200 | J20: $2,300 | K20: $2,400 | L20: $2,500 | M20: $2,600 | N20: $2,700 | O20: $2,800 | P20: $2,900 | Q20: $3,000 | R20: $3,100 | S20: $3,200 | T20: $3,300 | U20: $3,400 | V20: $3,500 | W20: $3,600 | X20: $3,700 | Y20: $3,800 | Z20: $3,900 | AA20: $4,000 | AB20: $4,100 | AC20: $4,200 | AD20: $4,300 | AE20: $4,400 | AF20: $4,500 | AG20: $4,600 | AH20: $4,700 | AI20: $4,800 | AJ20: $4,900 | AK20: $5,000 | AL20: $5,100 | AM20: $5,200 | AN20: $5,300 | AO20: $5,400 | AP20: $5,500 | AQ20: $5,600 | AR20: $5,700 | AS20: $5,800 | AT20: $5,900 | AU20: $6,000 | AV20: $6,100 | AW20: $6,200 | AX20: $6,300 | AY20: $6,400 | AZ20: $6,500 | BA20: $6,600 | BB20: $6,700 | BC20: $6,800 | BD20: $6,900 | BE20: $7,000 | BF20: $7,100 | BG20: $7,200 | BH20: $7,300 | BI20: $7,400 | BJ20: $7,500 | BK20: $7,600 | BL20: $7,700 | BM20: $7,800 | BN20: $7,900 | BO20: $8,000 | BP20: $8,100 | BQ20: $8,200 | BR20: $8,300 | BS20: $8,400 | BT20: $8,500 | BU20: $8,600 | BV20: $8,700 | BW20: $8,800 | BX20: $8,900 | BY20: $9,000 | BZ20: $9,100 | CA20: $9,200 | CB20: $9,300 | CC20: $9,400 | CD20: $9,500 | CE20: $9,600 | CF20: $9,700 | CG20: $9,800 | CH20: $9,900 | CI20: $10,000 | CJ20: $10,100 | CK20: $10,200 | CL20: $10,300 | CM20: $10,400 | CN20: $10,500 | CO20: $10,600 | CP20: $10,700 | CQ20: $10,800 | CR20: $10,900 | CS20: $11,000 | CT20: $11,100 | CU20: $11,200 | CV20: $11,300 | CW20: $11,400 | CX20: $11,500
B21: $1,600 | C21: $1,700 | D21: $1,800 | E21: $1,900 | F21: $2,000 | G21: $2,100 | H21: $2,200 | I21: $2,300 | J21: $2,400 | K21: $2,500 | L21: $2,600 | M21: $2,700 | N21: $2,800 | O21: $2,900 | P21: $3,000 | Q21: $3,100 | R21: $3,200 | S21: $3,300 | T21: $3,400 | U21: $3,500 | V21: $3,600 | W21: $3,700 | X21: $3,800 | Y21: $3,900 | Z21: $4,000 | AA21: $4,100 | AB21: $4,200 | AC21: $4,300 | AD21: $4,400 | AE21: $4,500 | AF21: $4,600 | AG21: $4,700 | AH21: $4,800 | AI21: $4,900 | AJ21: $5,000 | AK21: $5,100 | AL21: $5,200 | AM21: $5,300 | AN21: $5,400 | AO21: $5,500 | AP21: $5,600 | AQ21: $5,700 | AR21: $5,800 | AS21: $5,900 | AT21: $6,000 | AU21: $6,100 | AV21: $6,200 | AW21: $6,300 | AX21: $6,400 | AY21: $6,500 | AZ21: $6,600 | BA21: $6,700 | BB21: $6,800 | BC21: $6,900 | BD21: $7,000 | BE21: $7,100 | BF21: $7,200 | BG21: $7,300 | BH21: $7,400 | BI21: $7,500 | BJ21: $7,600 | BK21: $7,700 | BL21: $7,800 | BM21: $7,900 | BN21: $8,000 | BO21: $8,100 | BP21: $8,200 | BQ21: $8,300 | BR21: $8,400 | BS21: $8,500 | BT21: $8,600 | BU21: $8,700 | BV21: $8,800 | BW21: $8,900 | BX21: $9,000 | BY21: $9,100 | BZ21: $9,200 | CA21: $9,300 | CB21: $9,400 | CC21: $9,500 | CD21: $9,600 | CE21: $9,700 | CF21: $9,800 | CG21: $9,900 | CH21: $10,000 | CI21: $10,100 | CJ21: $10,200 | CK21: $10,300 | CL21: $10,400 | CM21: $10,500 | CN21: $10,600 | CO21: $10,700 | CP21: $10,800 | CQ21: $10,900 | CR21: $11,000 | CS21: $11,100 | CT21: $11,200 | CU21: $11,300 | CV21: $11,400 | CW21: $11,500 | CX21: $11,600
B22: $1,700 | C22: $1,800 | D22: $1,900 | E22: $2,000 | F22: $2,100 | G22: $2,200 | H22: $2,300 | I22: $2,400 | J22: $2,500 | K22: $2,600 | L22: $2,700 | M22: $2,800 | N22: $2,900 | O22: $3,000 | P22: $3,100 | Q22: $3,200 | R22: $3,300 | S22: $3,400 | T22: $3,500 | U22: $3,600 | V22: $3,700 | W22: $3,800 | X22: $3,900 | Y22: $4,000 | Z22: $4,100 | AA22: $4,200 | AB22: $4,300 | AC22: $4,400 | AD22: $4,500 | AE22: $4,600 | AF22: $4,700 | AG22: $4,800 | AH22: $4,900 | AI22: $5,000 | AJ22: $5,100 | AK22: $5,200 | AL22: $5,300 | AM22: $5,400 | AN22: $5,500 | AO22: $5,600 | AP22: $5,700 | AQ22: $5,800 | AR22: $5,900 | AS22: $6,000 | AT22: $6,100 | AU22: $6,200 | AV22: $6,300 | AW22: $6,400 | AX22: $6,500 | AY22: $6,600 | AZ22: $6,700 | BA22: $6,800 | BB22: $6,900 | BC22: $7,000 | BD22: $7,100 | BE22: $7,200 | BF22: $7,300 | BG22: $7,400 | BH22: $7,500 | BI22: $7,600 | BJ22: $7,700 | BK22: $7,800 | BL22: $7,900 | BM22: $8,000 | BN22: $8,100 | BO22: $8,200 | BP22: $8,300 | BQ22: $8,400 | BR22: $8,500 | BS22: $8,600 | BT22: $8,700 | BU22: $8,800 | BV22: $8,900 | BW22: $9,000 | BX22: $9,100 | BY22: $9,200 | BZ22: $9,300 | CA22: $9,400 | CB22: $9,500 | CC22: $9,600 | CD22: $9,700 | CE22: $9,800 | CF22: $9,900 | CG22: $10,000 | CH22: $10,100 | CI22: $10,200 | CJ22: $10,300 | CK22: $10,400 | CL22: $10,500 | CM22: $10,600 | CN22: $10,700 | CO22: $10,800 | CP22: $10,900 | CQ22: $11,000 | CR22: $11,100 | CS22: $11,200 | CT22: $11,300 | CU22: $11,400 | CV22: $11,500 | CW22: $11,600 | CX22: $11,700
B23: $1,800 | C23: $1,900 | D23: $2,000 | E23: $2,100 | F23: $2,200 | G23: $2,300 | H23: $2,400 | I23: $2,500 | J23: $2,600 | K23: $2,700 | L23: $2,800 | M23: $2,900 | N23: $3,000 | O23: $3,100 | P23: $3,200 | Q23: $3,300 | R23: $3,400 | S23: $3,500 | T23: $3,600 | U23: $3,700 | V23: $3,800 | W23: $3,900 | X23: $4,000 | Y23: $4,100 | Z23: $4,200 | AA23: $4,300 | AB23: $4,400 | AC23: $4,500 | AD23: $4,600 | AE23: $4,700 | AF23: $4,800 | AG23: $4,900 | AH23: $5,000 | AI23: $5,100 | AJ23: $5,200 | AK23: $5,300 | AL23: $5,400 | AM23: $5,500 | AN23: $5,600 | AO23: $5,700 | AP23: $5,800 | AQ23: $5,900 | AR23: $6,000 | AS23: $6,100 | AT23: $6,200 | AU23: $6,300 | AV23: $6,400 | AW23: $6,500 | AX23: $6,600 | AY23: $6,700 | AZ23: $6,800 | BA23: $6,900 | BB23: $7,000 | BC23: $7,100 | BD23: $7,200 | BE23: $7,300 | BF23: $7,400 | BG23: $7,500 | BH23: $7,600 | BI23: $7,700 | BJ23: $7,800 | BK23: $7,900 | BL23: $8,000 | BM23: $8,100 | BN23: $8,200 | BO23: $8,300 | BP23: $8,400 | BQ23: $8,500 | BR23: $8,600 | BS23: $8,700 | BT23: $8,800 | BU23: $8,900 | BV23: $9,000 | BW23: $9,100 | BX23: $9,200 | BY23: $9,300 | BZ23: $9,400 | CA23: $9,500 | CB23: $9,600 | CC23: $9,700 | CD23: $9,800 | CE23: $9,900 | CF23: $10,000 | CG23: $10,100 | CH23: $10,200 | CI23: $10,300 | CJ23: $10,400 | CK23: $10,500 | CL23: $10,600 | CM23: $10,700 | CN23: $10,800 | CO23: $10,900 | CP23: $11,000 | CQ23: $11,100 | CR23: $11,200 | CS23: $11,300 | CT23: $11,400 | CU23: $11,500 | CV23: $11,600 | CW23: $11,700 | CX23: $11,800
B24: $1,900 | C24: $2,000 | D24: $2,100 | E24: $2,200 | F24: $2,300 | G24: $2,400 | H24: $2,500 | I24: $2,600 | J24: $2,700 | K24: $2,800 | L24: $2,900 | M24: $3,000 | N24: $3,100 | O24: $3,200 | P24: $3,300 | Q24: $3,400 | R24: $3,500 | S24: $3,600 | T24: $3,700 | U24: $3,800 | V24: $3,900 | W24: $4,000 | X24: $4,100 | Y24: $4,200 | Z24: $4,300 | AA24: $4,400 | AB24: $4,500 | AC24: $4,600 | AD24: $4,700 | AE24: $4,800 | AF24: $4,900 | AG24: $5,000 | AH24: $5,100 | AI24: $5,200 | AJ24: $5,300 | AK24: $5,400 | AL24: $5,500 | AM24: $5,600 | AN24: $5,700 | AO24: $5,800 | AP24: $5,900 | AQ24: $6,000 | AR24: $6,100 | AS24: $6,200 | AT24: $6,300 | AU24: $6,400 | AV24: $6,500 | AW24: $6,600 | AX24: $6,700 | AY24: $6,800 | AZ24: $6,900 | BA24: $7,000 | BB24: $7,100 | BC24: $7,200 | BD24: $7,300 | BE24: $7,400 | BF24: $7,500 | BG24: $7,600 | BH24: $7,700 | BI24: $7,800 | BJ24: $7,900 | BK24: $8,000 | BL24: $8,100 | BM24: $8,200 | BN24: $8,300 | BO24: $8,400 | BP24: $8,500 | BQ24: $8,600 | BR24: $8,700 | BS24: $8,800 | BT24: $8,900 | BU24: $9,000 | BV24: $9,100 | BW24: $9,200 | BX24: $9,300 | BY24: $9,400 | BZ24: $9,500 | CA24: $9,600 | CB24: $9,700 | CC24: $9,800 | CD24: $9,900 | CE24: $10,000 | CF24: $10,100 | CG24: $10,200 | CH24: $10,300 | CI24: $10,400 | CJ24: $10,500 | CK24: $10,600 | CL24: $10,700 | CM24: $10,800 | CN24: $10,900 | CO24: $11,000 | CP24: $11,100 | CQ24: $11,200 | CR24: $11,300 | CS24: $11,400 | CT24: $11,500 | CU24: $11,600 | CV24: $11,700 | CW24: $11,800 | CX24: $11,900
B25: $2,000 | C25: $2,100 | D25: $2,200 | E25: $2,300 | F25: $2,400 | G25: $2,500 | H25: $2,600 | I25: $2,700 | J25: $2,800 | K25: $2,900 | L25: $3,000 | M25: $3,100 | N25: $3,200 | O25: $3,300 | P25: $3,400 | Q25: $3,500 | R25: $3,600 | S25: $3,700 | T25: $3,800 | U25: $3,900 | V25: $4,000 | W25: $4,100 | X25: $4,200 | Y25: $4,300 | Z25: $4,400 | AA25: $4,500 | AB25: $4,600 | AC25: $4,700 | AD25: $4,800 | AE25: $4,900 | AF25: $5,000 | AG25: $5,100 | AH25: $5,200 | AI25: $5,300 | AJ25: $5,400 | AK25: $5,500 | AL25: $5,600 | AM25: $5,700 | AN25: $5,800 | AO25: $5,900 | AP25: $6,000 | AQ25: $6,100 | AR25: $6,200 | AS25: $6,300 | AT25: $6,400 | AU25: $6,500 | AV25: $6,600 | AW25: $6,700 | AX25: $6,800 | AY25: $6,900 | AZ25: $7,000 | BA25: $7,100 | BB25: $7,200 | BC25: $7,300 | BD25: $7,400 | BE25: $7,500 | BF25: $7,600 | BG25: $7,700 | BH25: $7,800 | BI25: $7,900 | BJ25: $8,000 | BK25: $8,100 | BL25: $8,200 | BM25: $8,300 | BN25: $8,400 | BO25: $8,500 | BP25: $8,600 | BQ25: $8,700 | BR25: $8,800 | BS25: $8,900 | BT25: $9,000 | BU25: $9,100 | BV25: $9,200 | BW25: $9,300 | BX25: $9,400 | BY25: $9,500 | BZ25: $9,600 | CA25: $9,700 | CB25: $9,800 | CC25: $9,900 | CD25: $10,000 | CE25: $10,100 | CF25: $10,200 | CG25: $10,300 | CH25: $10,400 | CI25: $10,500 | CJ25: $10,600 | CK25: $10,700 | CL25: $10,800 | CM25: $10,900 | CN25: $11,000 | CO25: $11,100 | CP25: $11,200 | CQ25: $11,300 | CR25: $11,400 | CS25: $11,500 | CT25: $11,600 | CU25: $11,700 | CV25: $11,800 | CW25: $11,900 | CX25: $12,000
B26: $2,100 | C26: =SUM(C$5,$B26) -> $2,200 | D26: $2,300 | E26: $2,400 | F26: $2,500 | G26: $2,600 | H26: $2,700 | I26: $2,800 | J26: $2,900 | K26: $3,000 | L26: $3,100 | M26: =SUM(M$5,$B26) -> $3,200 | N26: $3,300 | O26: $3,400 | P26: $3,500 | Q26: $3,600 | R26: $3,700 | S26: $3,800 | T26: $3,900 | U26: $4,000 | V26: $4,100 | W26: =SUM(W$5,$B26) -> $4,200 | X26: $4,300 | Y26: $4,400 | Z26: $4,500 | AA26: $4,600 | AB26: $4,700 | AC26: $4,800 | AD26: $4,900 | AE26: $5,000 | AF26: $5,100 | AG26: =SUM(AG$5,$B26) -> $5,200 | AH26: $5,300 | AI26: $5,400 | AJ26: $5,500 | AK26: $5,600 | AL26: $5,700 | AM26: $5,800 | AN26: $5,900 | AO26: $6,000 | AP26: $6,100 | AQ26: =SUM(AQ$5,$B26) -> $6,200 | AR26: $6,300 | AS26: $6,400 | AT26: $6,500 | AU26: $6,600 | AV26: $6,700 | AW26: $6,800 | AX26: $6,900 | AY26: $7,000 | AZ26: $7,100 | BA26: =SUM(BA$5,$B26) -> $7,200 | BB26: $7,300 | BC26: $7,400 | BD26: $7,500 | BE26: $7,600 | BF26: $7,700 | BG26: $7,800 | BH26: $7,900 | BI26: $8,000 | BJ26: $8,100 | BK26: =SUM(BK$5,$B26) -> $8,200 | BL26: $8,300 | BM26: $8,400 | BN26: $8,500 | BO26: $8,600 | BP26: $8,700 | BQ26: $8,800 | BR26: $8,900 | BS26: $9,000 | BT26: $9,100 | BU26: =SUM(BU$5,$B26) -> $9,200 | BV26: $9,300 | BW26: $9,400 | BX26: $9,500 | BY26: $9,600 | BZ26: $9,700 | CA26: $9,800 | CB26: $9,900 | CC26: $10,000 | CD26: $10,100 | CE26: =SUM(CE$5,$B26) -> $10,200 | CF26: $10,300 | CG26: $10,400 | CH26: $10,500 | CI26: $10,600 | CJ26: $10,700 | CK26: $10,800 | CL26: $10,900 | CM26: $11,000 | CN26: $11,100 | CO26: =SUM(CO$5,$B26) -> $11,200 | CP26: $11,300 | CQ26: $11,400 | CR26: $11,500 | CS26: $11,600 | CT26: $11,700 | CU26: $11,800 | CV26: $11,900 | CW26: $12,000 | CX26: $12,100
B27: $2,200 | C27: $2,300 | D27: $2,400 | E27: $2,500 | F27: $2,600 | G27: $2,700 | H27: $2,800 | I27: $2,900 | J27: $3,000 | K27: $3,100 | L27: $3,200 | M27: $3,300 | N27: $3,400 | O27: $3,500 | P27: $3,600 | Q27: $3,700 | R27: $3,800 | S27: $3,900 | T27: $4,000 | U27: $4,100 | V27: $4,200 | W27: $4,300 | X27: $4,400 | Y27: $4,500 | Z27: $4,600 | AA27: $4,700 | AB27: $4,800 | AC27: $4,900 | AD27: $5,000 | AE27: $5,100 | AF27: $5,200 | AG27: $5,300 | AH27: $5,400 | AI27: $5,500 | AJ27: $5,600 | AK27: $5,700 | AL27: $5,800 | AM27: $5,900 | AN27: $6,000 | AO27: $6,100 | AP27: $6,200 | AQ27: $6,300 | AR27: $6,400 | AS27: $6,500 | AT27: $6,600 | AU27: $6,700 | AV27: $6,800 | AW27: $6,900 | AX27: $7,000 | AY27: $7,100 | AZ27: $7,200 | BA27: $7,300 | BB27: $7,400 | BC27: $7,500 | BD27: $7,600 | BE27: $7,700 | BF27: $7,800 | BG27: $7,900 | BH27: $8,000 | BI27: $8,100 | BJ27: $8,200 | BK27: $8,300 | BL27: $8,400 | BM27: $8,500 | BN27: $8,600 | BO27: $8,700 | BP27: $8,800 | BQ27: $8,900 | BR27: $9,000 | BS27: $9,100 | BT27: $9,200 | BU27: $9,300 | BV27: $9,400 | BW27: $9,500 | BX27: $9,600 | BY27: $9,700 | BZ27: $9,800 | CA27: $9,900 | CB27: $10,000 | CC27: $10,100 | CD27: $10,200 | CE27: $10,300 | CF27: $10,400 | CG27: $10,500 | CH27: $10,600 | CI27: $10,700 | CJ27: $10,800 | CK27: $10,900 | CL27: $11,000 | CM27: $11,100 | CN27: $11,200 | CO27: $11,300 | CP27: $11,400 | CQ27: $11,500 | CR27: $11,600 | CS27: $11,700 | CT27: $11,800 | CU27: $11,900 | CV27: $12,000 | CW27: $12,100 | CX27: $12,200
B28: $2,300 | C28: $2,400 | D28: $2,500 | E28: $2,600 | F28: $2,700 | G28: $2,800 | H28: $2,900 | I28: $3,000 | J28: $3,100 | K28: $3,200 | L28: $3,300 | M28: $3,400 | N28: $3,500 | O28: $3,600 | P28: $3,700 | Q28: $3,800 | R28: $3,900 | S28: $4,000 | T28: $4,100 | U28: $4,200 | V28: $4,300 | W28: $4,400 | X28: $4,500 | Y28: $4,600 | Z28: $4,700 | AA28: $4,800 | AB28: $4,900 | AC28: $5,000 | AD28: $5,100 | AE28: $5,200 | AF28: $5,300 | AG28: $5,400 | AH28: $5,500 | AI28: $5,600 | AJ28: $5,700 | AK28: $5,800 | AL28: $5,900 | AM28: $6,000 | AN28: $6,100 | AO28: $6,200 | AP28: $6,300 | AQ28: $6,400 | AR28: $6,500 | AS28: $6,600 | AT28: $6,700 | AU28: $6,800 | AV28: $6,900 | AW28: $7,000 | AX28: $7,100 | AY28: $7,200 | AZ28: $7,300 | BA28: $7,400 | BB28: $7,500 | BC28: $7,600 | BD28: $7,700 | BE28: $7,800 | BF28: $7,900 | BG28: $8,000 | BH28: $8,100 | BI28: $8,200 | BJ28: $8,300 | BK28: $8,400 | BL28: $8,500 | BM28: $8,600 | BN28: $8,700 | BO28: $8,800 | BP28: $8,900 | BQ28: $9,000 | BR28: $9,100 | BS28: $9,200 | BT28: $9,300 | BU28: $9,400 | BV28: $9,500 | BW28: $9,600 | BX28: $9,700 | BY28: $9,800 | BZ28: $9,900 | CA28: $10,000 | CB28: $10,100 | CC28: $10,200 | CD28: $10,300 | CE28: $10,400 | CF28: $10,500 | CG28: $10,600 | CH28: $10,700 | CI28: $10,800 | CJ28: $10,900 | CK28: $11,000 | CL28: $11,100 | CM28: $11,200 | CN28: $11,300 | CO28: $11,400 | CP28: $11,500 | CQ28: $11,600 | CR28: $11,700 | CS28: $11,800 | CT28: $11,900 | CU28: $12,000 | CV28: $12,100 | CW28: $12,200 | CX28: $12,300
B29: $2,400 | C29: $2,500 | D29: $2,600 | E29: $2,700 | F29: $2,800 | G29: $2,900 | H29: $3,000 | I29: $3,100 | J29: $3,200 | K29: $3,300 | L29: $3,400 | M29: $3,500 | N29: $3,600 | O29: =SUM(O$5,$B29) -> $3,700 | P29: $3,800 | Q29: $3,900 | R29: $4,000 | S29: $4,100 | T29: $4,200 | U29: $4,300 | V29: $4,400 | W29: $4,500 | X29: $4,600 | Y29: $4,700 | Z29: $4,800 | AA29: $4,900 | AB29: $5,000 | AC29: $5,100 | AD29: $5,200 | AE29: $5,300 | AF29: $5,400 | AG29: $5,500 | AH29: $5,600 | AI29: $5,700 | AJ29: $5,800 | AK29: $5,900 | AL29: $6,000 | AM29: $6,100 | AN29: $6,200 | AO29: $6,300 | AP29: $6,400 | AQ29: $6,500 | AR29: $6,600 | AS29: $6,700 | AT29: $6,800 | AU29: $6,900 | AV29: $7,000 | AW29: $7,100 | AX29: $7,200 | AY29: $7,300 | AZ29: $7,400 | BA29: $7,500 | BB29: $7,600 | BC29: $7,700 | BD29: $7,800 | BE29: $7,900 | BF29: $8,000 | BG29: $8,100 | BH29: $8,200 | BI29: $8,300 | BJ29: $8,400 | BK29: $8,500 | BL29: $8,600 | BM29: $8,700 | BN29: $8,800 | BO29: $8,900 | BP29: $9,000 | BQ29: $9,100 | BR29: $9,200 | BS29: $9,300 | BT29: $9,400 | BU29: $9,500 | BV29: $9,600 | BW29: $9,700 | BX29: $9,800 | BY29: $9,900 | BZ29: $10,000 | CA29: $10,100 | CB29: $10,200 | CC29: $10,300 | CD29: $10,400 | CE29: $10,500 | CF29: $10,600 | CG29: $10,700 | CH29: $10,800 | CI29: $10,900 | CJ29: $11,000 | CK29: $11,100 | CL29: $11,200 | CM29: $11,300 | CN29: $11,400 | CO29: $11,500 | CP29: $11,600 | CQ29: $11,700 | CR29: $11,800 | CS29: $11,900 | CT29: $12,000 | CU29: $12,100 | CV29: $12,200 | CW29: $12,300 | CX29: $12,400
B30: $2,500 | C30: $2,600 | D30: $2,700 | E30: $2,800 | F30: $2,900 | G30: $3,000 | H30: $3,100 | I30: $3,200 | J30: $3,300 | K30: $3,400 | L30: $3,500 | M30: $3,600 | N30: $3,700 | O30: $3,800 | P30: $3,900 | Q30: $4,000 | R30: $4,100 | S30: $4,200 | T30: $4,300 | U30: $4,400 | V30: $4,500 | W30: $4,600 | X30: $4,700 | Y30: $4,800 | Z30: $4,900 | AA30: $5,000 | AB30: $5,100 | AC30: $5,200 | AD30: $5,300 | AE30: $5,400 | AF30: $5,500 | AG30: $5,600 | AH30: $5,700 | AI30: $5,800 | AJ30: $5,900 | AK30: $6,000 | AL30: $6,100 | AM30: $6,200 | AN30: $6,300 | AO30: $6,400 | AP30: $6,500 | AQ30: $6,600 | AR30: $6,700 | AS30: $6,800 | AT30: $6,900 | AU30: $7,000 | AV30: $7,100 | AW30: $7,200 | AX30: $7,300 | AY30: $7,400 | AZ30: $7,500 | BA30: $7,600 | BB30: $7,700 | BC30: $7,800 | BD30: $7,900 | BE30: $8,000 | BF30: $8,100 | BG30: $8,200 | BH30: $8,300 | BI30: $8,400 | BJ30: $8,500 | BK30: $8,600 | BL30: $8,700 | BM30: $8,800 | BN30: $8,900 | BO30: $9,000 | BP30: $9,100 | BQ30: $9,200 | BR30: $9,300 | BS30: $9,400 | BT30: $9,500 | BU30: $9,600 | BV30: $9,700 | BW30: $9,800 | BX30: $9,900 | BY30: $10,000 | BZ30: $10,100 | CA30: $10,200 | CB30: $10,300 | CC30: $10,400 | CD30: $10,500 | CE30: $10,600 | CF30: $10,700 | CG30: $10,800 | CH30: $10,900 | CI30: $11,000 | CJ30: $11,100 | CK30: $11,200 | CL30: $11,300 | CM30: $11,400 | CN30: $11,500 | CO30: $11,600 | CP30: $11,700 | CQ30: $11,800 | CR30: $11,900 | CS30: $12,000 | CT30: $12,100 | CU30: $12,200 | CV30: $12,300 | CW30: $12,400 | CX30: $12,500
B31: $2,600 | C31: $2,700 | D31: $2,800 | E31: $2,900 | F31: $3,000 | G31: $3,100 | H31: $3,200 | I31: $3,300 | J31: $3,400 | K31: $3,500 | L31: $3,600 | M31: $3,700 | N31: $3,800 | O31: $3,900 | P31: $4,000 | Q31: $4,100 | R31: $4,200 | S31: $4,300 | T31: $4,400 | U31: $4,500 | V31: $4,600 | W31: $4,700 | X31: $4,800 | Y31: $4,900 | Z31: $5,000 | AA31: $5,100 | AB31: $5,200 | AC31: $5,300 | AD31: $5,400 | AE31: $5,500 | AF31: $5,600 | AG31: $5,700 | AH31: $5,800 | AI31: $5,900 | AJ31: $6,000 | AK31: $6,100 | AL31: $6,200 | AM31: $6,300 | AN31: $6,400 | AO31: $6,500 | AP31: $6,600 | AQ31: $6,700 | AR31: $6,800 | AS31: $6,900 | AT31: $7,000 | AU31: $7,100 | AV31: $7,200 | AW31: $7,300 | AX31: $7,400 | AY31: $7,500 | AZ31: $7,600 | BA31: $7,700 | BB31: $7,800 | BC31: $7,900 | BD31: $8,000 | BE31: $8,100 | BF31: $8,200 | BG31: $8,300 | BH31: $8,400 | BI31: $8,500 | BJ31: $8,600 | BK31: $8,700 | BL31: $8,800 | BM31: $8,900 | BN31: $9,000 | BO31: $9,100 | BP31: $9,200 | BQ31: $9,300 | BR31: $9,400 | BS31: $9,500 | BT31: $9,600 | BU31: $9,700 | BV31: $9,800 | BW31: $9,900 | BX31: $10,000 | BY31: $10,100 | BZ31: $10,200 | CA31: $10,300 | CB31: $10,400 | CC31: $10,500 | CD31: $10,600 | CE31: $10,700 | CF31: $10,800 | CG31: $10,900 | CH31: $11,000 | CI31: $11,100 | CJ31: $11,200 | CK31: $11,300 | CL31: $11,400 | CM31: $11,500 | CN31: $11,600 | CO31: $11,700 | CP31: $11,800 | CQ31: $11,900 | CR31: $12,000 | CS31: $12,100 | CT31: $12,200 | CU31: $12,300 | CV31: $12,400 | CW31: $12,500 | CX31: $12,600
B32: $2,700 | C32: $2,800 | D32: $2,900 | E32: $3,000 | F32: $3,100 | G32: $3,200 | H32: $3,300 | I32: $3,400 | J32: $3,500 | K32: $3,600 | L32: $3,700 | M32: $3,800 | N32: $3,900 | O32: $4,000 | P32: $4,100 | Q32: $4,200 | R32: $4,300 | S32: $4,400 | T32: $4,500 | U32: $4,600 | V32: $4,700 | W32: $4,800 | X32: $4,900 | Y32: $5,000 | Z32: $5,100 | AA32: $5,200 | AB32: $5,300 | AC32: $5,400 | AD32: $5,500 | AE32: $5,600 | AF32: $5,700 | AG32: $5,800 | AH32: $5,900 | AI32: $6,000 | AJ32: $6,100 | AK32: $6,200 | AL32: $6,300 | AM32: $6,400 | AN32: $6,500 | AO32: $6,600 | AP32: $6,700 | AQ32: $6,800 | AR32: $6,900 | AS32: $7,000 | AT32: $7,100 | AU32: $7,200 | AV32: $7,300 | AW32: $7,400 | AX32: $7,500 | AY32: $7,600 | AZ32: $7,700 | BA32: $7,800 | BB32: $7,900 | BC32: $8,000 | BD32: $8,100 | BE32: $8,200 | BF32: $8,300 | BG32: $8,400 | BH32: $8,500 | BI32: $8,600 | BJ32: $8,700 | BK32: $8,800 | BL32: $8,900 | BM32: $9,000 | BN32: $9,100 | BO32: $9,200 | BP32: $9,300 | BQ32: $9,400 | BR32: $9,500 | BS32: $9,600 | BT32: $9,700 | BU32: $9,800 | BV32: $9,900 | BW32: $10,000 | BX32: $10,100 | BY32: $10,200 | BZ32: $10,300 | CA32: $10,400 | CB32: $10,500 | CC32: $10,600 | CD32: $10,700 | CE32: $10,800 | CF32: $10,900 | CG32: $11,000 | CH32: $11,100 | CI32: $11,200 | CJ32: $11,300 | CK32: $11,400 | CL32: $11,500 | CM32: $11,600 | CN32: $11,700 | CO32: $11,800 | CP32: $11,900 | CQ32: $12,000 | CR32: $12,100 | CS32: $12,200 | CT32: $12,300 | CU32: $12,400 | CV32: $12,500 | CW32: $12,600 | CX32: $12,700
